{"text_format":"1","workbook":"xlsx","n_sheets":11,"sheets":["Main","Points","Template FBC","Template BBC","Template Spirits","Template Sake","Template DBC","Template AWS","Tasters","Series","Samples"],"not_rendered":{"charts":0,"images":10,"macros":1,"external_links":1,"defined_names":14,"comments":0,"pivot_tables":0},"unopened":[],"bounds":{"document_bytes":16777216,"sheet_cells":100000,"rows_first":2000,"rows_last":500,"rows_between":2000,"halvings":0,"cell_chars":16384,"cell_head_chars":4096},"cells_cut":0,"cells_raw":0,"read":"whole","date_system":"1900"}

{"sheet":"Main","index":0,"n_rows":19,"n_cols":5,"rows_kept":19,"cut":false,"hidden":false,"merged":[]}
["Concours ID",115,null,"Max Days",1]
["Concours Nom","DBC",null,"Max Juries",10]
["Concours Type","DBC",null,"Nb Jury / pc",3]
[]
[]
[]
[]
[]
[]
[]
[]
[]
[]
["Medals"]
["Code","ID in DataBase","Name"]
["G",195,"Gold"]
["S",196,"Silver"]
["B",197,"Bronze"]
["DCT",198,"Mitra Trophy"]

{"sheet":"Points","index":1,"n_rows":1634,"n_cols":28,"rows_kept":1634,"cut":false,"hidden":false,"merged":[[0,14,0,17],[1,23,6,23]]}
["ImpResID","ImpSerieNum","ImpPassage","ImpMedalID","ImpPoints","ImpPointsHidden","ImpCcrsID",null,"MedalCode","JuryNum","Etiquette","Produit",null,null,"Calcul des bornes",null,null,null,null,null,"Code SQL","Delete","Insert","Update Points",null,null,null,{"$f":"\"INSERT INTO [dbo].[Results_ImportPointsAndMedals_tbl] ([ImpSerieNum],[ImpPassage],[ImpMedalID],[ImpPoints],[ImpPointsHidden],[ImpCcrsID]) VALUES (\"&B2&\",\"&C2&\",\"&IF(D2=\"\",\"NULL\",\"'\"&D2&\"'\")&\",\"&IF(E2=\"\",\"NULL\",SUBSTITUTE(E2,\",\",\".\"))&\",\"&SUBSTITUTE(F2,\",\",\".\")&\",\"&G2&\");\"","v":"INSERT INTO [dbo].[Results_ImportPointsAndMedals_tbl] ([ImpSerieNum],[ImpPassage],[ImpMedalID],[ImpPoints],[ImpPointsHidden],[ImpCcrsID]) VALUES (,,NULL,NULL,,);"}]
[null,null,null,null,null,null,null,null,null,null,null,null,null,null,"Medaille","NbMed","%","%cumul",null,null,"dbmanottbe.[dbo].Results_Import",{"$f":"\"DELETE FROM \"&$U$2&\" WHERE ImpCcrsID = \"&Main!B1&\";\"","v":"DELETE FROM dbmanottbe.[dbo].Results_Import WHERE ImpCcrsID = 110;"},{"$f":"\"INSERT INTO \"&$U$2&\" ([ImpSerieNum],[ImpPassage],[ImpMedalID],[ImpPoints],[ImpPointsHidden],[ImpCcrsID]) VALUES (\"&B2&\",\"&C2&\",\"&IF(D2=\"\",\"NULL\",\"'\"&D2&\"'\")&\",\"&IF(E2=\"\",\"NULL\",SUBSTITUTE(E2,\",\",\".\"))&\",\"&SUBSTITUTE(F2,\",\",\".\")&\",\"&G2&\");\"","v":"INSERT INTO dbmanottbe.[dbo].Results_Import ([ImpSerieNum],[ImpPassage],[ImpMedalID],[ImpPoints],[ImpPointsHidden],[ImpCcrsID]) VALUES (,,NULL,NULL,,);"},{"$f":"\"UPDATE Ccrs_InscriptionBiere \"\n&\"SET MedailleID = ImpMedalID \"\n&\"\t,Points = ImpPoints \"\n&\"\t,PointsHidden = ImpPointsHidden \"\n&\"FROM dbo.Ccrs_InscriptionBiere \"\n&\"INNER JOIN dbo.Ccrs_SerieLienInscription ON dbo.Ccrs_InscriptionBiere.ID = dbo.Ccrs_SerieLienInscription.InscriptionID \"\n&\"INNER JOIN dbo.Ccrs_Series ON dbo.Ccrs_SerieLienInscription.SerieID = dbo.Ccrs_Series.ID \"\n&\"INNER JOIN dbo.Results_Import ON dbo.Ccrs_Series.Num = dbo.Results_Import.ImpSerieNum \"\n&\"\tAND dbo.Ccrs_Series.ConcoursID = dbo.Results_Import.ImpCcrsID \"\n&\"\tAND dbo.Ccrs_SerieLienInscription.Passage = dbo.Results_Import.ImpPassage \"\n&\"WHERE dbo.Results_Import.ImpCcrsID = \"&Main!B1&\" \"\n&\"AND dbo.Ccrs_SerieLienInscription.TypeID IN (1)\"","v":"UPDATE Ccrs_InscriptionBiere SET MedailleID = ImpMedalID \t,Points = ImpPoints \t,PointsHidden = ImpPointsHidden FROM dbo.Ccrs_InscriptionBiere INNER JOIN dbo.Ccrs_SerieLienInscription ON dbo.Ccrs_InscriptionBiere.ID = dbo.Ccrs_SerieLienInscription.InscriptionID INNER JOIN dbo.Ccrs_Series ON dbo.Ccrs_SerieLienInscription.SerieID = dbo.Ccrs_Series.ID INNER JOIN dbo.Results_Import ON dbo.Ccrs_Series.Num = dbo.Results_Import.ImpSerieNum \tAND dbo.Ccrs_Series.ConcoursID = dbo.Results_Import.ImpCcrsID \tAND dbo.Ccrs_SerieLienInscription.Passage = dbo.Results_Import.ImpPassage WHERE dbo.Results_Import.ImpCcrsID = 110 AND dbo.Ccrs_SerieLienInscription.TypeID IN (1)"}]
[null,null,null,null,null,null,null,null,null,null,null,null,null,null,{"$f":"Main!A16","v":0},{"$f":"IF(O3=\"\",\"\",COUNTIF(I$2:I$10000,O3))","v":0},{"$f":"IF(O3=\"\",\"\",P3/P$10)","v":{"$error":"#DIV/0!"}},{"$f":"IF(O3=\"\",\"\",SUM($P$3:P3)/$P$10)","v":{"$error":"#DIV/0!"}},null,null,null,null,{"$f":"\"INSERT INTO \"&$U$2&\" ([ImpSerieNum],[ImpPassage],[ImpMedalID],[ImpPoints],[ImpPointsHidden],[ImpCcrsID]) VALUES (\"&B3&\",\"&C3&\",\"&IF(D3=\"\",\"NULL\",\"'\"&D3&\"'\")&\",\"&IF(E3=\"\",\"NULL\",SUBSTITUTE(E3,\",\",\".\"))&\",\"&SUBSTITUTE(F3,\",\",\".\")&\",\"&G3&\");\"","v":"INSERT INTO dbmanottbe.[dbo].Results_Import ([ImpSerieNum],[ImpPassage],[ImpMedalID],[ImpPoints],[ImpPointsHidden],[ImpCcrsID]) VALUES (,,NULL,NULL,,);"}]
[null,null,null,null,null,null,null,null,null,null,null,null,null,null,{"$f":"Main!A17","v":0},{"$f":"IF(O4=\"\",\"\",COUNTIF(I$2:I$10000,O4))","v":0},{"$error":"#DIV/0!"},{"$f":"IF(O4=\"\",\"\",SUM($P$3:P4)/$P$10)","v":{"$error":"#DIV/0!"}},null,null,null,null,"INSERT INTO dbmanottbe.[dbo].Results_Import ([ImpSerieNum],[ImpPassage],[ImpMedalID],[ImpPoints],[ImpPointsHidden],[ImpCcrsID]) VALUES (,,NULL,NULL,,);"]
[null,null,null,null,null,null,null,null,null,null,null,null,null,null,{"$f":"Main!A18","v":0},0,{"$error":"#DIV/0!"},{"$f":"IF(O5=\"\",\"\",SUM($P$3:P5)/$P$10)","v":{"$error":"#DIV/0!"}},null,null,null,null,"INSERT INTO dbmanottbe.[dbo].Results_Import ([ImpSerieNum],[ImpPassage],[ImpMedalID],[ImpPoints],[ImpPointsHidden],[ImpCcrsID]) VALUES (,,NULL,NULL,,);"]
[null,null,null,null,null,null,null,null,null,null,null,null,null,null,null,"","",{"$f":"IF(O6=\"\",\"\",SUM($P$3:P6)/$P$10)","v":""},null,null,null,null,"INSERT INTO dbmanottbe.[dbo].Results_Import ([ImpSerieNum],[ImpPassage],[ImpMedalID],[ImpPoints],[ImpPointsHidden],[ImpCcrsID]) VALUES (,,NULL,NULL,,);"]
[null,null,null,null,null,null,null,null,null,null,null,null,null,null,null,{"$f":"IF(O7=\"\",\"\",COUNTIF(D$2:D$10000,O7))","v":""},"",{"$f":"IF(O7=\"\",\"\",SUM($P$3:P7)/$P$10)","v":""},null,null,null,null,"INSERT INTO dbmanottbe.[dbo].Results_Import ([ImpSerieNum],[ImpPassage],[ImpMedalID],[ImpPoints],[ImpPointsHidden],[ImpCcrsID]) VALUES (,,NULL,NULL,,);"]
[null,null,null,null,null,null,null,null,null,null,null,null,null,null,null,"","",{"$f":"IF(O8=\"\",\"\",SUM($P$3:P8)/$P$10)","v":""},null,null,null,null,"INSERT INTO dbmanottbe.[dbo].Results_Import ([ImpSerieNum],[ImpPassage],[ImpMedalID],[ImpPoints],[ImpPointsHidden],[ImpCcrsID]) VALUES (,,NULL,NULL,,);"]
[null,null,null,null,null,null,null,null,null,null,null,null,null,null,{"$f":"NA()","v":{"$error":"#N/A"}},{"$f":"COUNTIF(D$2:D$10000,O9)","v":0},{"$f":"P9/P$10","v":{"$error":"#DIV/0!"}},{"$f":"IF(ISNA(O9),\"\",IF(O9=\"\",\"\",SUM($P$3:P9)/$P$10))","v":""},null,null,null,null,"INSERT INTO dbmanottbe.[dbo].Results_Import ([ImpSerieNum],[ImpPassage],[ImpMedalID],[ImpPoints],[ImpPointsHidden],[ImpCcrsID]) VALUES (,,NULL,NULL,,);"]
[null,null,null,null,null,null,null,null,null,null,null,null,null,null,"NbInscr",{"$f":"COUNT(B$2:B$10000)","v":0},null,null,null,null,null,null,"INSERT INTO dbmanottbe.[dbo].Results_Import ([ImpSerieNum],[ImpPassage],[ImpMedalID],[ImpPoints],[ImpPointsHidden],[ImpCcrsID]) VALUES (,,NULL,NULL,,);"]
[null,null,null,null,null,null,null,null,null,null,null,null,null,null,"NbMedal",{"$f":"SUM(P3:P8)","v":0},{"$f":"P11/P$10","v":{"$error":"#DIV/0!"}},{"$f":"R10+Q11","v":{"$error":"#DIV/0!"}},null,null,null,null,"INSERT INTO dbmanottbe.[dbo].Results_Import ([ImpSerieNum],[ImpPassage],[ImpMedalID],[ImpPoints],[ImpPointsHidden],[ImpCcrsID]) VALUES (,,NULL,NULL,,);"]
[null,null,null,null,null,null,null,null,null,null,null,null,null,null,null,null,null,null,null,null,null,null,"INSERT INTO dbmanottbe.[dbo].Results_Import ([ImpSerieNum],[ImpPassage],[ImpMedalID],[ImpPoints],[ImpPointsHidden],[ImpCcrsID]) VALUES (,,NULL,NULL,,);"]
[null,null,null,null,null,null,null,null,null,null,null,null,null,null,null,null,null,null,null,null,null,null,"INSERT INTO dbmanottbe.[dbo].Results_Import ([ImpSerieNum],[ImpPassage],[ImpMedalID],[ImpPoints],[ImpPointsHidden],[ImpCcrsID]) VALUES (,,NULL,NULL,,);"]
[null,null,null,null,null,null,null,null,null,null,null,null,null,null,null,null,null,null,null,null,null,null,"INSERT INTO dbmanottbe.[dbo].Results_Import ([ImpSerieNum],[ImpPassage],[ImpMedalID],[ImpPoints],[ImpPointsHidden],[ImpCcrsID]) VALUES (,,NULL,NULL,,);"]
[null,null,null,null,null,null,null,null,null,null,null,null,null,null,null,null,null,null,null,null,null,null,"INSERT INTO dbmanottbe.[dbo].Results_Import ([ImpSerieNum],[ImpPassage],[ImpMedalID],[ImpPoints],[ImpPointsHidden],[ImpCcrsID]) VALUES (,,NULL,NULL,,);"]
[null,null,null,null,null,null,null,null,null,null,null,null,null,null,null,null,null,null,null,null,null,null,"INSERT INTO dbmanottbe.[dbo].Results_Import ([ImpSerieNum],[ImpPassage],[ImpMedalID],[ImpPoints],[ImpPointsHidden],[ImpCcrsID]) VALUES (,,NULL,NULL,,);"]
[null,null,null,null,null,null,null,null,null,null,null,null,null,null,null,null,null,null,null,null,null,null,"INSERT INTO dbmanottbe.[dbo].Results_Import ([ImpSerieNum],[ImpPassage],[ImpMedalID],[ImpPoints],[ImpPointsHidden],[ImpCcrsID]) VALUES (,,NULL,NULL,,);"]
[null,null,null,null,null,null,null,null,null,null,null,null,null,null,null,null,null,null,null,null,null,null,"INSERT INTO dbmanottbe.[dbo].Results_Import ([ImpSerieNum],[ImpPassage],[ImpMedalID],[ImpPoints],[ImpPointsHidden],[ImpCcrsID]) VALUES (,,NULL,NULL,,);"]
[null,null,null,null,null,null,null,null,null,null,null,null,null,null,null,null,null,null,null,null,null,null,"INSERT INTO dbmanottbe.[dbo].Results_Import ([ImpSerieNum],[ImpPassage],[ImpMedalID],[ImpPoints],[ImpPointsHidden],[ImpCcrsID]) VALUES (,,NULL,NULL,,);"]
[null,null,null,null,null,null,null,null,null,null,null,null,null,null,null,null,null,null,null,null,null,null,"INSERT INTO dbmanottbe.[dbo].Results_Import ([ImpSerieNum],[ImpPassage],[ImpMedalID],[ImpPoints],[ImpPointsHidden],[ImpCcrsID]) VALUES (,,NULL,NULL,,);"]
[null,null,null,null,null,null,null,null,null,null,null,null,null,null,null,null,null,null,null,null,null,null,"INSERT INTO dbmanottbe.[dbo].Results_Import ([ImpSerieNum],[ImpPassage],[ImpMedalID],[ImpPoints],[ImpPointsHidden],[ImpCcrsID]) VALUES (,,NULL,NULL,,);"]
[null,null,null,null,null,null,null,null,null,null,null,null,null,null,null,null,null,null,null,null,null,null,"INSERT INTO dbmanottbe.[dbo].Results_Import ([ImpSerieNum],[ImpPassage],[ImpMedalID],[ImpPoints],[ImpPointsHidden],[ImpCcrsID]) VALUES (,,NULL,NULL,,);"]
[null,null,null,null,null,null,null,null,null,null,null,null,null,null,null,null,null,null,null,null,null,null,"INSERT INTO dbmanottbe.[dbo].Results_Import ([ImpSerieNum],[ImpPassage],[ImpMedalID],[ImpPoints],[ImpPointsHidden],[ImpCcrsID]) VALUES (,,NULL,NULL,,);"]
[null,null,null,null,null,null,null,null,null,null,null,null,null,null,null,null,null,null,null,null,null,null,"INSERT INTO dbmanottbe.[dbo].Results_Import ([ImpSerieNum],[ImpPassage],[ImpMedalID],[ImpPoints],[ImpPointsHidden],[ImpCcrsID]) VALUES (,,NULL,NULL,,);"]
[null,null,null,null,null,null,null,null,null,null,null,null,null,null,null,null,null,null,null,null,null,null,"INSERT INTO dbmanottbe.[dbo].Results_Import ([ImpSerieNum],[ImpPassage],[ImpMedalID],[ImpPoints],[ImpPointsHidden],[ImpCcrsID]) VALUES (,,NULL,NULL,,);"]
[null,null,null,null,null,null,null,null,null,null,null,null,null,null,null,null,null,null,null,null,null,null,"INSERT INTO dbmanottbe.[dbo].Results_Import ([ImpSerieNum],[ImpPassage],[ImpMedalID],[ImpPoints],[ImpPointsHidden],[ImpCcrsID]) VALUES (,,NULL,NULL,,);"]
[null,null,null,null,null,null,null,null,null,null,null,null,null,null,null,null,null,null,null,null,null,null,"INSERT INTO dbmanottbe.[dbo].Results_Import ([ImpSerieNum],[ImpPassage],[ImpMedalID],[ImpPoints],[ImpPointsHidden],[ImpCcrsID]) VALUES (,,NULL,NULL,,);"]
[null,null,null,null,null,null,null,null,null,null,null,null,null,null,null,null,null,null,null,null,null,null,"INSERT INTO dbmanottbe.[dbo].Results_Import ([ImpSerieNum],[ImpPassage],[ImpMedalID],[ImpPoints],[ImpPointsHidden],[ImpCcrsID]) VALUES (,,NULL,NULL,,);"]
[null,null,null,null,null,null,null,null,null,null,null,null,null,null,null,null,null,null,null,null,null,null,"INSERT INTO dbmanottbe.[dbo].Results_Import ([ImpSerieNum],[ImpPassage],[ImpMedalID],[ImpPoints],[ImpPointsHidden],[ImpCcrsID]) VALUES (,,NULL,NULL,,);"]
[null,null,null,null,null,null,null,null,null,null,null,null,null,null,null,null,null,null,null,null,null,null,"INSERT INTO dbmanottbe.[dbo].Results_Import ([ImpSerieNum],[ImpPassage],[ImpMedalID],[ImpPoints],[ImpPointsHidden],[ImpCcrsID]) VALUES (,,NULL,NULL,,);"]
[null,null,null,null,null,null,null,null,null,null,null,null,null,null,null,null,null,null,null,null,null,null,"INSERT INTO dbmanottbe.[dbo].Results_Import ([ImpSerieNum],[ImpPassage],[ImpMedalID],[ImpPoints],[ImpPointsHidden],[ImpCcrsID]) VALUES (,,NULL,NULL,,);"]
[null,null,null,null,null,null,null,null,null,null,null,null,null,null,null,null,null,null,null,null,null,null,"INSERT INTO dbmanottbe.[dbo].Results_Import ([ImpSerieNum],[ImpPassage],[ImpMedalID],[ImpPoints],[ImpPointsHidden],[ImpCcrsID]) VALUES (,,NULL,NULL,,);"]
[null,null,null,null,null,null,null,null,null,null,null,null,null,null,null,null,null,null,null,null,null,null,"INSERT INTO dbmanottbe.[dbo].Results_Import ([ImpSerieNum],[ImpPassage],[ImpMedalID],[ImpPoints],[ImpPointsHidden],[ImpCcrsID]) VALUES (,,NULL,NULL,,);"]
[null,null,null,null,null,null,null,null,null,null,null,null,null,null,null,null,null,null,null,null,null,null,"INSERT INTO dbmanottbe.[dbo].Results_Import ([ImpSerieNum],[ImpPassage],[ImpMedalID],[ImpPoints],[ImpPointsHidden],[ImpCcrsID]) VALUES (,,NULL,NULL,,);"]
[null,null,null,null,null,null,null,null,null,null,null,null,null,null,null,null,null,null,null,null,null,null,"INSERT INTO dbmanottbe.[dbo].Results_Import ([ImpSerieNum],[ImpPassage],[ImpMedalID],[ImpPoints],[ImpPointsHidden],[ImpCcrsID]) VALUES (,,NULL,NULL,,);"]
[null,null,null,null,null,null,null,null,null,null,null,null,null,null,null,null,null,null,null,null,null,null,"INSERT INTO dbmanottbe.[dbo].Results_Import ([ImpSerieNum],[ImpPassage],[ImpMedalID],[ImpPoints],[ImpPointsHidden],[ImpCcrsID]) VALUES (,,NULL,NULL,,);"]
[null,null,null,null,null,null,null,null,null,null,null,null,null,null,null,null,null,null,null,null,null,null,"INSERT INTO dbmanottbe.[dbo].Results_Import ([ImpSerieNum],[ImpPassage],[ImpMedalID],[ImpPoints],[ImpPointsHidden],[ImpCcrsID]) VALUES (,,NULL,NULL,,);"]
[null,null,null,null,null,null,null,null,null,null,null,null,null,null,null,null,null,null,null,null,null,null,"INSERT INTO dbmanottbe.[dbo].Results_Import ([ImpSerieNum],[ImpPassage],[ImpMedalID],[ImpPoints],[ImpPointsHidden],[ImpCcrsID]) VALUES (,,NULL,NULL,,);"]
[null,null,null,null,null,null,null,null,null,null,null,null,null,null,null,null,null,null,null,null,null,null,"INSERT INTO dbmanottbe.[dbo].Results_Import ([ImpSerieNum],[ImpPassage],[ImpMedalID],[ImpPoints],[ImpPointsHidden],[ImpCcrsID]) VALUES (,,NULL,NULL,,);"]
[null,null,null,null,null,null,null,null,null,null,null,null,null,null,null,null,null,null,null,null,null,null,"INSERT INTO dbmanottbe.[dbo].Results_Import ([ImpSerieNum],[ImpPassage],[ImpMedalID],[ImpPoints],[ImpPointsHidden],[ImpCcrsID]) VALUES (,,NULL,NULL,,);"]
[null,null,null,null,null,null,null,null,null,null,null,null,null,null,null,null,null,null,null,null,null,null,"INSERT INTO dbmanottbe.[dbo].Results_Import ([ImpSerieNum],[ImpPassage],[ImpMedalID],[ImpPoints],[ImpPointsHidden],[ImpCcrsID]) VALUES (,,NULL,NULL,,);"]
[null,null,null,null,null,null,null,null,null,null,null,null,null,null,null,null,null,null,null,null,null,null,"INSERT INTO dbmanottbe.[dbo].Results_Import ([ImpSerieNum],[ImpPassage],[ImpMedalID],[ImpPoints],[ImpPointsHidden],[ImpCcrsID]) VALUES (,,NULL,NULL,,);"]
[null,null,null,null,null,null,null,null,null,null,null,null,null,null,null,null,null,null,null,null,null,null,"INSERT INTO dbmanottbe.[dbo].Results_Import ([ImpSerieNum],[ImpPassage],[ImpMedalID],[ImpPoints],[ImpPointsHidden],[ImpCcrsID]) VALUES (,,NULL,NULL,,);"]
[null,null,null,null,null,null,null,null,null,null,null,null,null,null,null,null,null,null,null,null,null,null,"INSERT INTO dbmanottbe.[dbo].Results_Import ([ImpSerieNum],[ImpPassage],[ImpMedalID],[ImpPoints],[ImpPointsHidden],[ImpCcrsID]) VALUES (,,NULL,NULL,,);"]
[null,null,null,null,null,null,null,null,null,null,null,null,null,null,null,null,null,null,null,null,null,null,"INSERT INTO dbmanottbe.[dbo].Results_Import ([ImpSerieNum],[ImpPassage],[ImpMedalID],[ImpPoints],[ImpPointsHidden],[ImpCcrsID]) VALUES (,,NULL,NULL,,);"]
[null,null,null,null,null,null,null,null,null,null,null,null,null,null,null,null,null,null,null,null,null,null,"INSERT INTO dbmanottbe.[dbo].Results_Import ([ImpSerieNum],[ImpPassage],[ImpMedalID],[ImpPoints],[ImpPointsHidden],[ImpCcrsID]) VALUES (,,NULL,NULL,,);"]
[null,null,null,null,null,null,null,null,null,null,null,null,null,null,null,null,null,null,null,null,null,null,"INSERT INTO dbmanottbe.[dbo].Results_Import ([ImpSerieNum],[ImpPassage],[ImpMedalID],[ImpPoints],[ImpPointsHidden],[ImpCcrsID]) VALUES (,,NULL,NULL,,);"]
[null,null,null,null,null,null,null,null,null,null,null,null,null,null,null,null,null,null,null,null,null,null,"INSERT INTO dbmanottbe.[dbo].Results_Import ([ImpSerieNum],[ImpPassage],[ImpMedalID],[ImpPoints],[ImpPointsHidden],[ImpCcrsID]) VALUES (,,NULL,NULL,,);"]
[null,null,null,null,null,null,null,null,null,null,null,null,null,null,null,null,null,null,null,null,null,null,"INSERT INTO dbmanottbe.[dbo].Results_Import ([ImpSerieNum],[ImpPassage],[ImpMedalID],[ImpPoints],[ImpPointsHidden],[ImpCcrsID]) VALUES (,,NULL,NULL,,);"]
[null,null,null,null,null,null,null,null,null,null,null,null,null,null,null,null,null,null,null,null,null,null,"INSERT INTO dbmanottbe.[dbo].Results_Import ([ImpSerieNum],[ImpPassage],[ImpMedalID],[ImpPoints],[ImpPointsHidden],[ImpCcrsID]) VALUES (,,NULL,NULL,,);"]
[null,null,null,null,null,null,null,null,null,null,null,null,null,null,null,null,null,null,null,null,null,null,"INSERT INTO dbmanottbe.[dbo].Results_Import ([ImpSerieNum],[ImpPassage],[ImpMedalID],[ImpPoints],[ImpPointsHidden],[ImpCcrsID]) VALUES (,,NULL,NULL,,);"]
[null,null,null,null,null,null,null,null,null,null,null,null,null,null,null,null,null,null,null,null,null,null,"INSERT INTO dbmanottbe.[dbo].Results_Import ([ImpSerieNum],[ImpPassage],[ImpMedalID],[ImpPoints],[ImpPointsHidden],[ImpCcrsID]) VALUES (,,NULL,NULL,,);"]
[null,null,null,null,null,null,null,null,null,null,null,null,null,null,null,null,null,null,null,null,null,null,"INSERT INTO dbmanottbe.[dbo].Results_Import ([ImpSerieNum],[ImpPassage],[ImpMedalID],[ImpPoints],[ImpPointsHidden],[ImpCcrsID]) VALUES (,,NULL,NULL,,);"]
[null,null,null,null,null,null,null,null,null,null,null,null,null,null,null,null,null,null,null,null,null,null,"INSERT INTO dbmanottbe.[dbo].Results_Import ([ImpSerieNum],[ImpPassage],[ImpMedalID],[ImpPoints],[ImpPointsHidden],[ImpCcrsID]) VALUES (,,NULL,NULL,,);"]
[null,null,null,null,null,null,null,null,null,null,null,null,null,null,null,null,null,null,null,null,null,null,"INSERT INTO dbmanottbe.[dbo].Results_Import ([ImpSerieNum],[ImpPassage],[ImpMedalID],[ImpPoints],[ImpPointsHidden],[ImpCcrsID]) VALUES (,,NULL,NULL,,);"]
[null,null,null,null,null,null,null,null,null,null,null,null,null,null,null,null,null,null,null,null,null,null,"INSERT INTO dbmanottbe.[dbo].Results_Import ([ImpSerieNum],[ImpPassage],[ImpMedalID],[ImpPoints],[ImpPointsHidden],[ImpCcrsID]) VALUES (,,NULL,NULL,,);"]
[null,null,null,null,null,null,null,null,null,null,null,null,null,null,null,null,null,null,null,null,null,null,"INSERT INTO dbmanottbe.[dbo].Results_Import ([ImpSerieNum],[ImpPassage],[ImpMedalID],[ImpPoints],[ImpPointsHidden],[ImpCcrsID]) VALUES (,,NULL,NULL,,);"]
[null,null,null,null,null,null,null,null,null,null,null,null,null,null,null,null,null,null,null,null,null,null,"INSERT INTO dbmanottbe.[dbo].Results_Import ([ImpSerieNum],[ImpPassage],[ImpMedalID],[ImpPoints],[ImpPointsHidden],[ImpCcrsID]) VALUES (,,NULL,NULL,,);"]
[null,null,null,null,null,null,null,null,null,null,null,null,null,null,null,null,null,null,null,null,null,null,"INSERT INTO dbmanottbe.[dbo].Results_Import ([ImpSerieNum],[ImpPassage],[ImpMedalID],[ImpPoints],[ImpPointsHidden],[ImpCcrsID]) VALUES (,,NULL,NULL,,);"]
[null,null,null,null,null,null,null,null,null,null,null,null,null,null,null,null,null,null,null,null,null,null,"INSERT INTO dbmanottbe.[dbo].Results_Import ([ImpSerieNum],[ImpPassage],[ImpMedalID],[ImpPoints],[ImpPointsHidden],[ImpCcrsID]) VALUES (,,NULL,NULL,,);"]
[null,null,null,null,null,null,null,null,null,null,null,null,null,null,null,null,null,null,null,null,null,null,"INSERT INTO dbmanottbe.[dbo].Results_Import ([ImpSerieNum],[ImpPassage],[ImpMedalID],[ImpPoints],[ImpPointsHidden],[ImpCcrsID]) VALUES (,,NULL,NULL,,);"]
[null,null,null,null,null,null,null,null,null,null,null,null,null,null,null,null,null,null,null,null,null,null,"INSERT INTO dbmanottbe.[dbo].Results_Import ([ImpSerieNum],[ImpPassage],[ImpMedalID],[ImpPoints],[ImpPointsHidden],[ImpCcrsID]) VALUES (,,NULL,NULL,,);"]
[null,null,null,null,null,null,null,null,null,null,null,null,null,null,null,null,null,null,null,null,null,null,"INSERT INTO dbmanottbe.[dbo].Results_Import ([ImpSerieNum],[ImpPassage],[ImpMedalID],[ImpPoints],[ImpPointsHidden],[ImpCcrsID]) VALUES (,,NULL,NULL,,);"]
[null,null,null,null,null,null,null,null,null,null,null,null,null,null,null,null,null,null,null,null,null,null,"INSERT INTO dbmanottbe.[dbo].Results_Import ([ImpSerieNum],[ImpPassage],[ImpMedalID],[ImpPoints],[ImpPointsHidden],[ImpCcrsID]) VALUES (,,NULL,NULL,,);"]
[null,null,null,null,null,null,null,null,null,null,null,null,null,null,null,null,null,null,null,null,null,null,"INSERT INTO dbmanottbe.[dbo].Results_Import ([ImpSerieNum],[ImpPassage],[ImpMedalID],[ImpPoints],[ImpPointsHidden],[ImpCcrsID]) VALUES (,,NULL,NULL,,);"]
[null,null,null,null,null,null,null,null,null,null,null,null,null,null,null,null,null,null,null,null,null,null,"INSERT INTO dbmanottbe.[dbo].Results_Import ([ImpSerieNum],[ImpPassage],[ImpMedalID],[ImpPoints],[ImpPointsHidden],[ImpCcrsID]) VALUES (,,NULL,NULL,,);"]
[null,null,null,null,null,null,null,null,null,null,null,null,null,null,null,null,null,null,null,null,null,null,{"$f":"\"INSERT INTO \"&$U$2&\" ([ImpSerieNum],[ImpPassage],[ImpMedalID],[ImpPoints],[ImpPointsHidden],[ImpCcrsID]) VALUES (\"&B67&\",\"&C67&\",\"&IF(D67=\"\",\"NULL\",\"'\"&D67&\"'\")&\",\"&IF(E67=\"\",\"NULL\",SUBSTITUTE(E67,\",\",\".\"))&\",\"&SUBSTITUTE(F67,\",\",\".\")&\",\"&G67&\");\"","v":"INSERT INTO dbmanottbe.[dbo].Results_Import ([ImpSerieNum],[ImpPassage],[ImpMedalID],[ImpPoints],[ImpPointsHidden],[ImpCcrsID]) VALUES (,,NULL,NULL,,);"}]
[null,null,null,null,null,null,null,null,null,null,null,null,null,null,null,null,null,null,null,null,null,null,"INSERT INTO dbmanottbe.[dbo].Results_Import ([ImpSerieNum],[ImpPassage],[ImpMedalID],[ImpPoints],[ImpPointsHidden],[ImpCcrsID]) VALUES (,,NULL,NULL,,);"]
[null,null,null,null,null,null,null,null,null,null,null,null,null,null,null,null,null,null,null,null,null,null,"INSERT INTO dbmanottbe.[dbo].Results_Import ([ImpSerieNum],[ImpPassage],[ImpMedalID],[ImpPoints],[ImpPointsHidden],[ImpCcrsID]) VALUES (,,NULL,NULL,,);"]
[null,null,null,null,null,null,null,null,null,null,null,null,null,null,null,null,null,null,null,null,null,null,"INSERT INTO dbmanottbe.[dbo].Results_Import ([ImpSerieNum],[ImpPassage],[ImpMedalID],[ImpPoints],[ImpPointsHidden],[ImpCcrsID]) VALUES (,,NULL,NULL,,);"]
[null,null,null,null,null,null,null,null,null,null,null,null,null,null,null,null,null,null,null,null,null,null,"INSERT INTO dbmanottbe.[dbo].Results_Import ([ImpSerieNum],[ImpPassage],[ImpMedalID],[ImpPoints],[ImpPointsHidden],[ImpCcrsID]) VALUES (,,NULL,NULL,,);"]
[null,null,null,null,null,null,null,null,null,null,null,null,null,null,null,null,null,null,null,null,null,null,"INSERT INTO dbmanottbe.[dbo].Results_Import ([ImpSerieNum],[ImpPassage],[ImpMedalID],[ImpPoints],[ImpPointsHidden],[ImpCcrsID]) VALUES (,,NULL,NULL,,);"]
[null,null,null,null,null,null,null,null,null,null,null,null,null,null,null,null,null,null,null,null,null,null,"INSERT INTO dbmanottbe.[dbo].Results_Import ([ImpSerieNum],[ImpPassage],[ImpMedalID],[ImpPoints],[ImpPointsHidden],[ImpCcrsID]) VALUES (,,NULL,NULL,,);"]
[null,null,null,null,null,null,null,null,null,null,null,null,null,null,null,null,null,null,null,null,null,null,"INSERT INTO dbmanottbe.[dbo].Results_Import ([ImpSerieNum],[ImpPassage],[ImpMedalID],[ImpPoints],[ImpPointsHidden],[ImpCcrsID]) VALUES (,,NULL,NULL,,);"]
[null,null,null,null,null,null,null,null,null,null,null,null,null,null,null,null,null,null,null,null,null,null,"INSERT INTO dbmanottbe.[dbo].Results_Import ([ImpSerieNum],[ImpPassage],[ImpMedalID],[ImpPoints],[ImpPointsHidden],[ImpCcrsID]) VALUES (,,NULL,NULL,,);"]
[null,null,null,null,null,null,null,null,null,null,null,null,null,null,null,null,null,null,null,null,null,null,"INSERT INTO dbmanottbe.[dbo].Results_Import ([ImpSerieNum],[ImpPassage],[ImpMedalID],[ImpPoints],[ImpPointsHidden],[ImpCcrsID]) VALUES (,,NULL,NULL,,);"]
[null,null,null,null,null,null,null,null,null,null,null,null,null,null,null,null,null,null,null,null,null,null,"INSERT INTO dbmanottbe.[dbo].Results_Import ([ImpSerieNum],[ImpPassage],[ImpMedalID],[ImpPoints],[ImpPointsHidden],[ImpCcrsID]) VALUES (,,NULL,NULL,,);"]
[null,null,null,null,null,null,null,null,null,null,null,null,null,null,null,null,null,null,null,null,null,null,"INSERT INTO dbmanottbe.[dbo].Results_Import ([ImpSerieNum],[ImpPassage],[ImpMedalID],[ImpPoints],[ImpPointsHidden],[ImpCcrsID]) VALUES (,,NULL,NULL,,);"]
[null,null,null,null,null,null,null,null,null,null,null,null,null,null,null,null,null,null,null,null,null,null,"INSERT INTO dbmanottbe.[dbo].Results_Import ([ImpSerieNum],[ImpPassage],[ImpMedalID],[ImpPoints],[ImpPointsHidden],[ImpCcrsID]) VALUES (,,NULL,NULL,,);"]
[null,null,null,null,null,null,null,null,null,null,null,null,null,null,null,null,null,null,null,null,null,null,"INSERT INTO dbmanottbe.[dbo].Results_Import ([ImpSerieNum],[ImpPassage],[ImpMedalID],[ImpPoints],[ImpPointsHidden],[ImpCcrsID]) VALUES (,,NULL,NULL,,);"]
[null,null,null,null,null,null,null,null,null,null,null,null,null,null,null,null,null,null,null,null,null,null,"INSERT INTO dbmanottbe.[dbo].Results_Import ([ImpSerieNum],[ImpPassage],[ImpMedalID],[ImpPoints],[ImpPointsHidden],[ImpCcrsID]) VALUES (,,NULL,NULL,,);"]
[null,null,null,null,null,null,null,null,null,null,null,null,null,null,null,null,null,null,null,null,null,null,"INSERT INTO dbmanottbe.[dbo].Results_Import ([ImpSerieNum],[ImpPassage],[ImpMedalID],[ImpPoints],[ImpPointsHidden],[ImpCcrsID]) VALUES (,,NULL,NULL,,);"]
[null,null,null,null,null,null,null,null,null,null,null,null,null,null,null,null,null,null,null,null,null,null,"INSERT INTO dbmanottbe.[dbo].Results_Import ([ImpSerieNum],[ImpPassage],[ImpMedalID],[ImpPoints],[ImpPointsHidden],[ImpCcrsID]) VALUES (,,NULL,NULL,,);"]
[null,null,null,null,null,null,null,null,null,null,null,null,null,null,null,null,null,null,null,null,null,null,"INSERT INTO dbmanottbe.[dbo].Results_Import ([ImpSerieNum],[ImpPassage],[ImpMedalID],[ImpPoints],[ImpPointsHidden],[ImpCcrsID]) VALUES (,,NULL,NULL,,);"]
[null,null,null,null,null,null,null,null,null,null,null,null,null,null,null,null,null,null,null,null,null,null,"INSERT INTO dbmanottbe.[dbo].Results_Import ([ImpSerieNum],[ImpPassage],[ImpMedalID],[ImpPoints],[ImpPointsHidden],[ImpCcrsID]) VALUES (,,NULL,NULL,,);"]
[null,null,null,null,null,null,null,null,null,null,null,null,null,null,null,null,null,null,null,null,null,null,"INSERT INTO dbmanottbe.[dbo].Results_Import ([ImpSerieNum],[ImpPassage],[ImpMedalID],[ImpPoints],[ImpPointsHidden],[ImpCcrsID]) VALUES (,,NULL,NULL,,);"]
[null,null,null,null,null,null,null,null,null,null,null,null,null,null,null,null,null,null,null,null,null,null,"INSERT INTO dbmanottbe.[dbo].Results_Import ([ImpSerieNum],[ImpPassage],[ImpMedalID],[ImpPoints],[ImpPointsHidden],[ImpCcrsID]) VALUES (,,NULL,NULL,,);"]
[null,null,null,null,null,null,null,null,null,null,null,null,null,null,null,null,null,null,null,null,null,null,"INSERT INTO dbmanottbe.[dbo].Results_Import ([ImpSerieNum],[ImpPassage],[ImpMedalID],[ImpPoints],[ImpPointsHidden],[ImpCcrsID]) VALUES (,,NULL,NULL,,);"]
[null,null,null,null,null,null,null,null,null,null,null,null,null,null,null,null,null,null,null,null,null,null,"INSERT INTO dbmanottbe.[dbo].Results_Import ([ImpSerieNum],[ImpPassage],[ImpMedalID],[ImpPoints],[ImpPointsHidden],[ImpCcrsID]) VALUES (,,NULL,NULL,,);"]
[null,null,null,null,null,null,null,null,null,null,null,null,null,null,null,null,null,null,null,null,null,null,"INSERT INTO dbmanottbe.[dbo].Results_Import ([ImpSerieNum],[ImpPassage],[ImpMedalID],[ImpPoints],[ImpPointsHidden],[ImpCcrsID]) VALUES (,,NULL,NULL,,);"]
[null,null,null,null,null,null,null,null,null,null,null,null,null,null,null,null,null,null,null,null,null,null,"INSERT INTO dbmanottbe.[dbo].Results_Import ([ImpSerieNum],[ImpPassage],[ImpMedalID],[ImpPoints],[ImpPointsHidden],[ImpCcrsID]) VALUES (,,NULL,NULL,,);"]
[null,null,null,null,null,null,null,null,null,null,null,null,null,null,null,null,null,null,null,null,null,null,"INSERT INTO dbmanottbe.[dbo].Results_Import ([ImpSerieNum],[ImpPassage],[ImpMedalID],[ImpPoints],[ImpPointsHidden],[ImpCcrsID]) VALUES (,,NULL,NULL,,);"]
[null,null,null,null,null,null,null,null,null,null,null,null,null,null,null,null,null,null,null,null,null,null,"INSERT INTO dbmanottbe.[dbo].Results_Import ([ImpSerieNum],[ImpPassage],[ImpMedalID],[ImpPoints],[ImpPointsHidden],[ImpCcrsID]) VALUES (,,NULL,NULL,,);"]
[null,null,null,null,null,null,null,null,null,null,null,null,null,null,null,null,null,null,null,null,null,null,"INSERT INTO dbmanottbe.[dbo].Results_Import ([ImpSerieNum],[ImpPassage],[ImpMedalID],[ImpPoints],[ImpPointsHidden],[ImpCcrsID]) VALUES (,,NULL,NULL,,);"]
[null,null,null,null,null,null,null,null,null,null,null,null,null,null,null,null,null,null,null,null,null,null,"INSERT INTO dbmanottbe.[dbo].Results_Import ([ImpSerieNum],[ImpPassage],[ImpMedalID],[ImpPoints],[ImpPointsHidden],[ImpCcrsID]) VALUES (,,NULL,NULL,,);"]
[null,null,null,null,null,null,null,null,null,null,null,null,null,null,null,null,null,null,null,null,null,null,"INSERT INTO dbmanottbe.[dbo].Results_Import ([ImpSerieNum],[ImpPassage],[ImpMedalID],[ImpPoints],[ImpPointsHidden],[ImpCcrsID]) VALUES (,,NULL,NULL,,);"]
[null,null,null,null,null,null,null,null,null,null,null,null,null,null,null,null,null,null,null,null,null,null,"INSERT INTO dbmanottbe.[dbo].Results_Import ([ImpSerieNum],[ImpPassage],[ImpMedalID],[ImpPoints],[ImpPointsHidden],[ImpCcrsID]) VALUES (,,NULL,NULL,,);"]
[null,null,null,null,null,null,null,null,null,null,null,null,null,null,null,null,null,null,null,null,null,null,"INSERT INTO dbmanottbe.[dbo].Results_Import ([ImpSerieNum],[ImpPassage],[ImpMedalID],[ImpPoints],[ImpPointsHidden],[ImpCcrsID]) VALUES (,,NULL,NULL,,);"]
[null,null,null,null,null,null,null,null,null,null,null,null,null,null,null,null,null,null,null,null,null,null,"INSERT INTO dbmanottbe.[dbo].Results_Import ([ImpSerieNum],[ImpPassage],[ImpMedalID],[ImpPoints],[ImpPointsHidden],[ImpCcrsID]) VALUES (,,NULL,NULL,,);"]
[null,null,null,null,null,null,null,null,null,null,null,null,null,null,null,null,null,null,null,null,null,null,"INSERT INTO dbmanottbe.[dbo].Results_Import ([ImpSerieNum],[ImpPassage],[ImpMedalID],[ImpPoints],[ImpPointsHidden],[ImpCcrsID]) VALUES (,,NULL,NULL,,);"]
[null,null,null,null,null,null,null,null,null,null,null,null,null,null,null,null,null,null,null,null,null,null,"INSERT INTO dbmanottbe.[dbo].Results_Import ([ImpSerieNum],[ImpPassage],[ImpMedalID],[ImpPoints],[ImpPointsHidden],[ImpCcrsID]) VALUES (,,NULL,NULL,,);"]
[null,null,null,null,null,null,null,null,null,null,null,null,null,null,null,null,null,null,null,null,null,null,"INSERT INTO dbmanottbe.[dbo].Results_Import ([ImpSerieNum],[ImpPassage],[ImpMedalID],[ImpPoints],[ImpPointsHidden],[ImpCcrsID]) VALUES (,,NULL,NULL,,);"]
[null,null,null,null,null,null,null,null,null,null,null,null,null,null,null,null,null,null,null,null,null,null,"INSERT INTO dbmanottbe.[dbo].Results_Import ([ImpSerieNum],[ImpPassage],[ImpMedalID],[ImpPoints],[ImpPointsHidden],[ImpCcrsID]) VALUES (,,NULL,NULL,,);"]
[null,null,null,null,null,null,null,null,null,null,null,null,null,null,null,null,null,null,null,null,null,null,"INSERT INTO dbmanottbe.[dbo].Results_Import ([ImpSerieNum],[ImpPassage],[ImpMedalID],[ImpPoints],[ImpPointsHidden],[ImpCcrsID]) VALUES (,,NULL,NULL,,);"]
[null,null,null,null,null,null,null,null,null,null,null,null,null,null,null,null,null,null,null,null,null,null,"INSERT INTO dbmanottbe.[dbo].Results_Import ([ImpSerieNum],[ImpPassage],[ImpMedalID],[ImpPoints],[ImpPointsHidden],[ImpCcrsID]) VALUES (,,NULL,NULL,,);"]
[null,null,null,null,null,null,null,null,null,null,null,null,null,null,null,null,null,null,null,null,null,null,"INSERT INTO dbmanottbe.[dbo].Results_Import ([ImpSerieNum],[ImpPassage],[ImpMedalID],[ImpPoints],[ImpPointsHidden],[ImpCcrsID]) VALUES (,,NULL,NULL,,);"]
[null,null,null,null,null,null,null,null,null,null,null,null,null,null,null,null,null,null,null,null,null,null,"INSERT INTO dbmanottbe.[dbo].Results_Import ([ImpSerieNum],[ImpPassage],[ImpMedalID],[ImpPoints],[ImpPointsHidden],[ImpCcrsID]) VALUES (,,NULL,NULL,,);"]
[null,null,null,null,null,null,null,null,null,null,null,null,null,null,null,null,null,null,null,null,null,null,"INSERT INTO dbmanottbe.[dbo].Results_Import ([ImpSerieNum],[ImpPassage],[ImpMedalID],[ImpPoints],[ImpPointsHidden],[ImpCcrsID]) VALUES (,,NULL,NULL,,);"]
[null,null,null,null,null,null,null,null,null,null,null,null,null,null,null,null,null,null,null,null,null,null,"INSERT INTO dbmanottbe.[dbo].Results_Import ([ImpSerieNum],[ImpPassage],[ImpMedalID],[ImpPoints],[ImpPointsHidden],[ImpCcrsID]) VALUES (,,NULL,NULL,,);"]
[null,null,null,null,null,null,null,null,null,null,null,null,null,null,null,null,null,null,null,null,null,null,"INSERT INTO dbmanottbe.[dbo].Results_Import ([ImpSerieNum],[ImpPassage],[ImpMedalID],[ImpPoints],[ImpPointsHidden],[ImpCcrsID]) VALUES (,,NULL,NULL,,);"]
[null,null,null,null,null,null,null,null,null,null,null,null,null,null,null,null,null,null,null,null,null,null,"INSERT INTO dbmanottbe.[dbo].Results_Import ([ImpSerieNum],[ImpPassage],[ImpMedalID],[ImpPoints],[ImpPointsHidden],[ImpCcrsID]) VALUES (,,NULL,NULL,,);"]
[null,null,null,null,null,null,null,null,null,null,null,null,null,null,null,null,null,null,null,null,null,null,"INSERT INTO dbmanottbe.[dbo].Results_Import ([ImpSerieNum],[ImpPassage],[ImpMedalID],[ImpPoints],[ImpPointsHidden],[ImpCcrsID]) VALUES (,,NULL,NULL,,);"]
[null,null,null,null,null,null,null,null,null,null,null,null,null,null,null,null,null,null,null,null,null,null,"INSERT INTO dbmanottbe.[dbo].Results_Import ([ImpSerieNum],[ImpPassage],[ImpMedalID],[ImpPoints],[ImpPointsHidden],[ImpCcrsID]) VALUES (,,NULL,NULL,,);"]
[null,null,null,null,null,null,null,null,null,null,null,null,null,null,null,null,null,null,null,null,null,null,"INSERT INTO dbmanottbe.[dbo].Results_Import ([ImpSerieNum],[ImpPassage],[ImpMedalID],[ImpPoints],[ImpPointsHidden],[ImpCcrsID]) VALUES (,,NULL,NULL,,);"]
[null,null,null,null,null,null,null,null,null,null,null,null,null,null,null,null,null,null,null,null,null,null,"INSERT INTO dbmanottbe.[dbo].Results_Import ([ImpSerieNum],[ImpPassage],[ImpMedalID],[ImpPoints],[ImpPointsHidden],[ImpCcrsID]) VALUES (,,NULL,NULL,,);"]
[null,null,null,null,null,null,null,null,null,null,null,null,null,null,null,null,null,null,null,null,null,null,"INSERT INTO dbmanottbe.[dbo].Results_Import ([ImpSerieNum],[ImpPassage],[ImpMedalID],[ImpPoints],[ImpPointsHidden],[ImpCcrsID]) VALUES (,,NULL,NULL,,);"]
[null,null,null,null,null,null,null,null,null,null,null,null,null,null,null,null,null,null,null,null,null,null,"INSERT INTO dbmanottbe.[dbo].Results_Import ([ImpSerieNum],[ImpPassage],[ImpMedalID],[ImpPoints],[ImpPointsHidden],[ImpCcrsID]) VALUES (,,NULL,NULL,,);"]
[null,null,null,null,null,null,null,null,null,null,null,null,null,null,null,null,null,null,null,null,null,null,"INSERT INTO dbmanottbe.[dbo].Results_Import ([ImpSerieNum],[ImpPassage],[ImpMedalID],[ImpPoints],[ImpPointsHidden],[ImpCcrsID]) VALUES (,,NULL,NULL,,);"]
[null,null,null,null,null,null,null,null,null,null,null,null,null,null,null,null,null,null,null,null,null,null,"INSERT INTO dbmanottbe.[dbo].Results_Import ([ImpSerieNum],[ImpPassage],[ImpMedalID],[ImpPoints],[ImpPointsHidden],[ImpCcrsID]) VALUES (,,NULL,NULL,,);"]
[null,null,null,null,null,null,null,null,null,null,null,null,null,null,null,null,null,null,null,null,null,null,"INSERT INTO dbmanottbe.[dbo].Results_Import ([ImpSerieNum],[ImpPassage],[ImpMedalID],[ImpPoints],[ImpPointsHidden],[ImpCcrsID]) VALUES (,,NULL,NULL,,);"]
[null,null,null,null,null,null,null,null,null,null,null,null,null,null,null,null,null,null,null,null,null,null,"INSERT INTO dbmanottbe.[dbo].Results_Import ([ImpSerieNum],[ImpPassage],[ImpMedalID],[ImpPoints],[ImpPointsHidden],[ImpCcrsID]) VALUES (,,NULL,NULL,,);"]
[null,null,null,null,null,null,null,null,null,null,null,null,null,null,null,null,null,null,null,null,null,null,"INSERT INTO dbmanottbe.[dbo].Results_Import ([ImpSerieNum],[ImpPassage],[ImpMedalID],[ImpPoints],[ImpPointsHidden],[ImpCcrsID]) VALUES (,,NULL,NULL,,);"]
[null,null,null,null,null,null,null,null,null,null,null,null,null,null,null,null,null,null,null,null,null,null,"INSERT INTO dbmanottbe.[dbo].Results_Import ([ImpSerieNum],[ImpPassage],[ImpMedalID],[ImpPoints],[ImpPointsHidden],[ImpCcrsID]) VALUES (,,NULL,NULL,,);"]
[null,null,null,null,null,null,null,null,null,null,null,null,null,null,null,null,null,null,null,null,null,null,"INSERT INTO dbmanottbe.[dbo].Results_Import ([ImpSerieNum],[ImpPassage],[ImpMedalID],[ImpPoints],[ImpPointsHidden],[ImpCcrsID]) VALUES (,,NULL,NULL,,);"]
[null,null,null,null,null,null,null,null,null,null,null,null,null,null,null,null,null,null,null,null,null,null,"INSERT INTO dbmanottbe.[dbo].Results_Import ([ImpSerieNum],[ImpPassage],[ImpMedalID],[ImpPoints],[ImpPointsHidden],[ImpCcrsID]) VALUES (,,NULL,NULL,,);"]
[null,null,null,null,null,null,null,null,null,null,null,null,null,null,null,null,null,null,null,null,null,null,"INSERT INTO dbmanottbe.[dbo].Results_Import ([ImpSerieNum],[ImpPassage],[ImpMedalID],[ImpPoints],[ImpPointsHidden],[ImpCcrsID]) VALUES (,,NULL,NULL,,);"]
[null,null,null,null,null,null,null,null,null,null,null,null,null,null,null,null,null,null,null,null,null,null,"INSERT INTO dbmanottbe.[dbo].Results_Import ([ImpSerieNum],[ImpPassage],[ImpMedalID],[ImpPoints],[ImpPointsHidden],[ImpCcrsID]) VALUES (,,NULL,NULL,,);"]
[null,null,null,null,null,null,null,null,null,null,null,null,null,null,null,null,null,null,null,null,null,null,"INSERT INTO dbmanottbe.[dbo].Results_Import ([ImpSerieNum],[ImpPassage],[ImpMedalID],[ImpPoints],[ImpPointsHidden],[ImpCcrsID]) VALUES (,,NULL,NULL,,);"]
[null,null,null,null,null,null,null,null,null,null,null,null,null,null,null,null,null,null,null,null,null,null,"INSERT INTO dbmanottbe.[dbo].Results_Import ([ImpSerieNum],[ImpPassage],[ImpMedalID],[ImpPoints],[ImpPointsHidden],[ImpCcrsID]) VALUES (,,NULL,NULL,,);"]
[null,null,null,null,null,null,null,null,null,null,null,null,null,null,null,null,null,null,null,null,null,null,"INSERT INTO dbmanottbe.[dbo].Results_Import ([ImpSerieNum],[ImpPassage],[ImpMedalID],[ImpPoints],[ImpPointsHidden],[ImpCcrsID]) VALUES (,,NULL,NULL,,);"]
[null,null,null,null,null,null,null,null,null,null,null,null,null,null,null,null,null,null,null,null,null,null,{"$f":"\"INSERT INTO \"&$U$2&\" ([ImpSerieNum],[ImpPassage],[ImpMedalID],[ImpPoints],[ImpPointsHidden],[ImpCcrsID]) VALUES (\"&B131&\",\"&C131&\",\"&IF(D131=\"\",\"NULL\",\"'\"&D131&\"'\")&\",\"&IF(E131=\"\",\"NULL\",SUBSTITUTE(E131,\",\",\".\"))&\",\"&SUBSTITUTE(F131,\",\",\".\")&\",\"&G131&\");\"","v":"INSERT INTO dbmanottbe.[dbo].Results_Import ([ImpSerieNum],[ImpPassage],[ImpMedalID],[ImpPoints],[ImpPointsHidden],[ImpCcrsID]) VALUES (,,NULL,NULL,,);"}]
[null,null,null,null,null,null,null,null,null,null,null,null,null,null,null,null,null,null,null,null,null,null,"INSERT INTO dbmanottbe.[dbo].Results_Import ([ImpSerieNum],[ImpPassage],[ImpMedalID],[ImpPoints],[ImpPointsHidden],[ImpCcrsID]) VALUES (,,NULL,NULL,,);"]
[null,null,null,null,null,null,null,null,null,null,null,null,null,null,null,null,null,null,null,null,null,null,"INSERT INTO dbmanottbe.[dbo].Results_Import ([ImpSerieNum],[ImpPassage],[ImpMedalID],[ImpPoints],[ImpPointsHidden],[ImpCcrsID]) VALUES (,,NULL,NULL,,);"]
[null,null,null,null,null,null,null,null,null,null,null,null,null,null,null,null,null,null,null,null,null,null,"INSERT INTO dbmanottbe.[dbo].Results_Import ([ImpSerieNum],[ImpPassage],[ImpMedalID],[ImpPoints],[ImpPointsHidden],[ImpCcrsID]) VALUES (,,NULL,NULL,,);"]
[null,null,null,null,null,null,null,null,null,null,null,null,null,null,null,null,null,null,null,null,null,null,"INSERT INTO dbmanottbe.[dbo].Results_Import ([ImpSerieNum],[ImpPassage],[ImpMedalID],[ImpPoints],[ImpPointsHidden],[ImpCcrsID]) VALUES (,,NULL,NULL,,);"]
[null,null,null,null,null,null,null,null,null,null,null,null,null,null,null,null,null,null,null,null,null,null,"INSERT INTO dbmanottbe.[dbo].Results_Import ([ImpSerieNum],[ImpPassage],[ImpMedalID],[ImpPoints],[ImpPointsHidden],[ImpCcrsID]) VALUES (,,NULL,NULL,,);"]
[null,null,null,null,null,null,null,null,null,null,null,null,null,null,null,null,null,null,null,null,null,null,"INSERT INTO dbmanottbe.[dbo].Results_Import ([ImpSerieNum],[ImpPassage],[ImpMedalID],[ImpPoints],[ImpPointsHidden],[ImpCcrsID]) VALUES (,,NULL,NULL,,);"]
[null,null,null,null,null,null,null,null,null,null,null,null,null,null,null,null,null,null,null,null,null,null,"INSERT INTO dbmanottbe.[dbo].Results_Import ([ImpSerieNum],[ImpPassage],[ImpMedalID],[ImpPoints],[ImpPointsHidden],[ImpCcrsID]) VALUES (,,NULL,NULL,,);"]
[null,null,null,null,null,null,null,null,null,null,null,null,null,null,null,null,null,null,null,null,null,null,"INSERT INTO dbmanottbe.[dbo].Results_Import ([ImpSerieNum],[ImpPassage],[ImpMedalID],[ImpPoints],[ImpPointsHidden],[ImpCcrsID]) VALUES (,,NULL,NULL,,);"]
[null,null,null,null,null,null,null,null,null,null,null,null,null,null,null,null,null,null,null,null,null,null,"INSERT INTO dbmanottbe.[dbo].Results_Import ([ImpSerieNum],[ImpPassage],[ImpMedalID],[ImpPoints],[ImpPointsHidden],[ImpCcrsID]) VALUES (,,NULL,NULL,,);"]
[null,null,null,null,null,null,null,null,null,null,null,null,null,null,null,null,null,null,null,null,null,null,"INSERT INTO dbmanottbe.[dbo].Results_Import ([ImpSerieNum],[ImpPassage],[ImpMedalID],[ImpPoints],[ImpPointsHidden],[ImpCcrsID]) VALUES (,,NULL,NULL,,);"]
[null,null,null,null,null,null,null,null,null,null,null,null,null,null,null,null,null,null,null,null,null,null,"INSERT INTO dbmanottbe.[dbo].Results_Import ([ImpSerieNum],[ImpPassage],[ImpMedalID],[ImpPoints],[ImpPointsHidden],[ImpCcrsID]) VALUES (,,NULL,NULL,,);"]
[null,null,null,null,null,null,null,null,null,null,null,null,null,null,null,null,null,null,null,null,null,null,"INSERT INTO dbmanottbe.[dbo].Results_Import ([ImpSerieNum],[ImpPassage],[ImpMedalID],[ImpPoints],[ImpPointsHidden],[ImpCcrsID]) VALUES (,,NULL,NULL,,);"]
[null,null,null,null,null,null,null,null,null,null,null,null,null,null,null,null,null,null,null,null,null,null,"INSERT INTO dbmanottbe.[dbo].Results_Import ([ImpSerieNum],[ImpPassage],[ImpMedalID],[ImpPoints],[ImpPointsHidden],[ImpCcrsID]) VALUES (,,NULL,NULL,,);"]
[null,null,null,null,null,null,null,null,null,null,null,null,null,null,null,null,null,null,null,null,null,null,"INSERT INTO dbmanottbe.[dbo].Results_Import ([ImpSerieNum],[ImpPassage],[ImpMedalID],[ImpPoints],[ImpPointsHidden],[ImpCcrsID]) VALUES (,,NULL,NULL,,);"]
[null,null,null,null,null,null,null,null,null,null,null,null,null,null,null,null,null,null,null,null,null,null,"INSERT INTO dbmanottbe.[dbo].Results_Import ([ImpSerieNum],[ImpPassage],[ImpMedalID],[ImpPoints],[ImpPointsHidden],[ImpCcrsID]) VALUES (,,NULL,NULL,,);"]
[null,null,null,null,null,null,null,null,null,null,null,null,null,null,null,null,null,null,null,null,null,null,"INSERT INTO dbmanottbe.[dbo].Results_Import ([ImpSerieNum],[ImpPassage],[ImpMedalID],[ImpPoints],[ImpPointsHidden],[ImpCcrsID]) VALUES (,,NULL,NULL,,);"]
[null,null,null,null,null,null,null,null,null,null,null,null,null,null,null,null,null,null,null,null,null,null,"INSERT INTO dbmanottbe.[dbo].Results_Import ([ImpSerieNum],[ImpPassage],[ImpMedalID],[ImpPoints],[ImpPointsHidden],[ImpCcrsID]) VALUES (,,NULL,NULL,,);"]
[null,null,null,null,null,null,null,null,null,null,null,null,null,null,null,null,null,null,null,null,null,null,"INSERT INTO dbmanottbe.[dbo].Results_Import ([ImpSerieNum],[ImpPassage],[ImpMedalID],[ImpPoints],[ImpPointsHidden],[ImpCcrsID]) VALUES (,,NULL,NULL,,);"]
[null,null,null,null,null,null,null,null,null,null,null,null,null,null,null,null,null,null,null,null,null,null,"INSERT INTO dbmanottbe.[dbo].Results_Import ([ImpSerieNum],[ImpPassage],[ImpMedalID],[ImpPoints],[ImpPointsHidden],[ImpCcrsID]) VALUES (,,NULL,NULL,,);"]
[null,null,null,null,null,null,null,null,null,null,null,null,null,null,null,null,null,null,null,null,null,null,"INSERT INTO dbmanottbe.[dbo].Results_Import ([ImpSerieNum],[ImpPassage],[ImpMedalID],[ImpPoints],[ImpPointsHidden],[ImpCcrsID]) VALUES (,,NULL,NULL,,);"]
[null,null,null,null,null,null,null,null,null,null,null,null,null,null,null,null,null,null,null,null,null,null,"INSERT INTO dbmanottbe.[dbo].Results_Import ([ImpSerieNum],[ImpPassage],[ImpMedalID],[ImpPoints],[ImpPointsHidden],[ImpCcrsID]) VALUES (,,NULL,NULL,,);"]
[null,null,null,null,null,null,null,null,null,null,null,null,null,null,null,null,null,null,null,null,null,null,"INSERT INTO dbmanottbe.[dbo].Results_Import ([ImpSerieNum],[ImpPassage],[ImpMedalID],[ImpPoints],[ImpPointsHidden],[ImpCcrsID]) VALUES (,,NULL,NULL,,);"]
[null,null,null,null,null,null,null,null,null,null,null,null,null,null,null,null,null,null,null,null,null,null,"INSERT INTO dbmanottbe.[dbo].Results_Import ([ImpSerieNum],[ImpPassage],[ImpMedalID],[ImpPoints],[ImpPointsHidden],[ImpCcrsID]) VALUES (,,NULL,NULL,,);"]
[null,null,null,null,null,null,null,null,null,null,null,null,null,null,null,null,null,null,null,null,null,null,"INSERT INTO dbmanottbe.[dbo].Results_Import ([ImpSerieNum],[ImpPassage],[ImpMedalID],[ImpPoints],[ImpPointsHidden],[ImpCcrsID]) VALUES (,,NULL,NULL,,);"]
[null,null,null,null,null,null,null,null,null,null,null,null,null,null,null,null,null,null,null,null,null,null,"INSERT INTO dbmanottbe.[dbo].Results_Import ([ImpSerieNum],[ImpPassage],[ImpMedalID],[ImpPoints],[ImpPointsHidden],[ImpCcrsID]) VALUES (,,NULL,NULL,,);"]
[null,null,null,null,null,null,null,null,null,null,null,null,null,null,null,null,null,null,null,null,null,null,"INSERT INTO dbmanottbe.[dbo].Results_Import ([ImpSerieNum],[ImpPassage],[ImpMedalID],[ImpPoints],[ImpPointsHidden],[ImpCcrsID]) VALUES (,,NULL,NULL,,);"]
[null,null,null,null,null,null,null,null,null,null,null,null,null,null,null,null,null,null,null,null,null,null,"INSERT INTO dbmanottbe.[dbo].Results_Import ([ImpSerieNum],[ImpPassage],[ImpMedalID],[ImpPoints],[ImpPointsHidden],[ImpCcrsID]) VALUES (,,NULL,NULL,,);"]
[null,null,null,null,null,null,null,null,null,null,null,null,null,null,null,null,null,null,null,null,null,null,"INSERT INTO dbmanottbe.[dbo].Results_Import ([ImpSerieNum],[ImpPassage],[ImpMedalID],[ImpPoints],[ImpPointsHidden],[ImpCcrsID]) VALUES (,,NULL,NULL,,);"]
[null,null,null,null,null,null,null,null,null,null,null,null,null,null,null,null,null,null,null,null,null,null,"INSERT INTO dbmanottbe.[dbo].Results_Import ([ImpSerieNum],[ImpPassage],[ImpMedalID],[ImpPoints],[ImpPointsHidden],[ImpCcrsID]) VALUES (,,NULL,NULL,,);"]
[null,null,null,null,null,null,null,null,null,null,null,null,null,null,null,null,null,null,null,null,null,null,"INSERT INTO dbmanottbe.[dbo].Results_Import ([ImpSerieNum],[ImpPassage],[ImpMedalID],[ImpPoints],[ImpPointsHidden],[ImpCcrsID]) VALUES (,,NULL,NULL,,);"]
[null,null,null,null,null,null,null,null,null,null,null,null,null,null,null,null,null,null,null,null,null,null,"INSERT INTO dbmanottbe.[dbo].Results_Import ([ImpSerieNum],[ImpPassage],[ImpMedalID],[ImpPoints],[ImpPointsHidden],[ImpCcrsID]) VALUES (,,NULL,NULL,,);"]
[null,null,null,null,null,null,null,null,null,null,null,null,null,null,null,null,null,null,null,null,null,null,"INSERT INTO dbmanottbe.[dbo].Results_Import ([ImpSerieNum],[ImpPassage],[ImpMedalID],[ImpPoints],[ImpPointsHidden],[ImpCcrsID]) VALUES (,,NULL,NULL,,);"]
[null,null,null,null,null,null,null,null,null,null,null,null,null,null,null,null,null,null,null,null,null,null,"INSERT INTO dbmanottbe.[dbo].Results_Import ([ImpSerieNum],[ImpPassage],[ImpMedalID],[ImpPoints],[ImpPointsHidden],[ImpCcrsID]) VALUES (,,NULL,NULL,,);"]
[null,null,null,null,null,null,null,null,null,null,null,null,null,null,null,null,null,null,null,null,null,null,"INSERT INTO dbmanottbe.[dbo].Results_Import ([ImpSerieNum],[ImpPassage],[ImpMedalID],[ImpPoints],[ImpPointsHidden],[ImpCcrsID]) VALUES (,,NULL,NULL,,);"]
[null,null,null,null,null,null,null,null,null,null,null,null,null,null,null,null,null,null,null,null,null,null,"INSERT INTO dbmanottbe.[dbo].Results_Import ([ImpSerieNum],[ImpPassage],[ImpMedalID],[ImpPoints],[ImpPointsHidden],[ImpCcrsID]) VALUES (,,NULL,NULL,,);"]
[null,null,null,null,null,null,null,null,null,null,null,null,null,null,null,null,null,null,null,null,null,null,"INSERT INTO dbmanottbe.[dbo].Results_Import ([ImpSerieNum],[ImpPassage],[ImpMedalID],[ImpPoints],[ImpPointsHidden],[ImpCcrsID]) VALUES (,,NULL,NULL,,);"]
[null,null,null,null,null,null,null,null,null,null,null,null,null,null,null,null,null,null,null,null,null,null,"INSERT INTO dbmanottbe.[dbo].Results_Import ([ImpSerieNum],[ImpPassage],[ImpMedalID],[ImpPoints],[ImpPointsHidden],[ImpCcrsID]) VALUES (,,NULL,NULL,,);"]
[null,null,null,null,null,null,null,null,null,null,null,null,null,null,null,null,null,null,null,null,null,null,"INSERT INTO dbmanottbe.[dbo].Results_Import ([ImpSerieNum],[ImpPassage],[ImpMedalID],[ImpPoints],[ImpPointsHidden],[ImpCcrsID]) VALUES (,,NULL,NULL,,);"]
[null,null,null,null,null,null,null,null,null,null,null,null,null,null,null,null,null,null,null,null,null,null,"INSERT INTO dbmanottbe.[dbo].Results_Import ([ImpSerieNum],[ImpPassage],[ImpMedalID],[ImpPoints],[ImpPointsHidden],[ImpCcrsID]) VALUES (,,NULL,NULL,,);"]
[null,null,null,null,null,null,null,null,null,null,null,null,null,null,null,null,null,null,null,null,null,null,"INSERT INTO dbmanottbe.[dbo].Results_Import ([ImpSerieNum],[ImpPassage],[ImpMedalID],[ImpPoints],[ImpPointsHidden],[ImpCcrsID]) VALUES (,,NULL,NULL,,);"]
[null,null,null,null,null,null,null,null,null,null,null,null,null,null,null,null,null,null,null,null,null,null,"INSERT INTO dbmanottbe.[dbo].Results_Import ([ImpSerieNum],[ImpPassage],[ImpMedalID],[ImpPoints],[ImpPointsHidden],[ImpCcrsID]) VALUES (,,NULL,NULL,,);"]
[null,null,null,null,null,null,null,null,null,null,null,null,null,null,null,null,null,null,null,null,null,null,"INSERT INTO dbmanottbe.[dbo].Results_Import ([ImpSerieNum],[ImpPassage],[ImpMedalID],[ImpPoints],[ImpPointsHidden],[ImpCcrsID]) VALUES (,,NULL,NULL,,);"]
[null,null,null,null,null,null,null,null,null,null,null,null,null,null,null,null,null,null,null,null,null,null,"INSERT INTO dbmanottbe.[dbo].Results_Import ([ImpSerieNum],[ImpPassage],[ImpMedalID],[ImpPoints],[ImpPointsHidden],[ImpCcrsID]) VALUES (,,NULL,NULL,,);"]
[null,null,null,null,null,null,null,null,null,null,null,null,null,null,null,null,null,null,null,null,null,null,"INSERT INTO dbmanottbe.[dbo].Results_Import ([ImpSerieNum],[ImpPassage],[ImpMedalID],[ImpPoints],[ImpPointsHidden],[ImpCcrsID]) VALUES (,,NULL,NULL,,);"]
[null,null,null,null,null,null,null,null,null,null,null,null,null,null,null,null,null,null,null,null,null,null,"INSERT INTO dbmanottbe.[dbo].Results_Import ([ImpSerieNum],[ImpPassage],[ImpMedalID],[ImpPoints],[ImpPointsHidden],[ImpCcrsID]) VALUES (,,NULL,NULL,,);"]
[null,null,null,null,null,null,null,null,null,null,null,null,null,null,null,null,null,null,null,null,null,null,"INSERT INTO dbmanottbe.[dbo].Results_Import ([ImpSerieNum],[ImpPassage],[ImpMedalID],[ImpPoints],[ImpPointsHidden],[ImpCcrsID]) VALUES (,,NULL,NULL,,);"]
[null,null,null,null,null,null,null,null,null,null,null,null,null,null,null,null,null,null,null,null,null,null,"INSERT INTO dbmanottbe.[dbo].Results_Import ([ImpSerieNum],[ImpPassage],[ImpMedalID],[ImpPoints],[ImpPointsHidden],[ImpCcrsID]) VALUES (,,NULL,NULL,,);"]
[null,null,null,null,null,null,null,null,null,null,null,null,null,null,null,null,null,null,null,null,null,null,"INSERT INTO dbmanottbe.[dbo].Results_Import ([ImpSerieNum],[ImpPassage],[ImpMedalID],[ImpPoints],[ImpPointsHidden],[ImpCcrsID]) VALUES (,,NULL,NULL,,);"]
[null,null,null,null,null,null,null,null,null,null,null,null,null,null,null,null,null,null,null,null,null,null,"INSERT INTO dbmanottbe.[dbo].Results_Import ([ImpSerieNum],[ImpPassage],[ImpMedalID],[ImpPoints],[ImpPointsHidden],[ImpCcrsID]) VALUES (,,NULL,NULL,,);"]
[null,null,null,null,null,null,null,null,null,null,null,null,null,null,null,null,null,null,null,null,null,null,"INSERT INTO dbmanottbe.[dbo].Results_Import ([ImpSerieNum],[ImpPassage],[ImpMedalID],[ImpPoints],[ImpPointsHidden],[ImpCcrsID]) VALUES (,,NULL,NULL,,);"]
[null,null,null,null,null,null,null,null,null,null,null,null,null,null,null,null,null,null,null,null,null,null,"INSERT INTO dbmanottbe.[dbo].Results_Import ([ImpSerieNum],[ImpPassage],[ImpMedalID],[ImpPoints],[ImpPointsHidden],[ImpCcrsID]) VALUES (,,NULL,NULL,,);"]
[null,null,null,null,null,null,null,null,null,null,null,null,null,null,null,null,null,null,null,null,null,null,"INSERT INTO dbmanottbe.[dbo].Results_Import ([ImpSerieNum],[ImpPassage],[ImpMedalID],[ImpPoints],[ImpPointsHidden],[ImpCcrsID]) VALUES (,,NULL,NULL,,);"]
[null,null,null,null,null,null,null,null,null,null,null,null,null,null,null,null,null,null,null,null,null,null,"INSERT INTO dbmanottbe.[dbo].Results_Import ([ImpSerieNum],[ImpPassage],[ImpMedalID],[ImpPoints],[ImpPointsHidden],[ImpCcrsID]) VALUES (,,NULL,NULL,,);"]
[null,null,null,null,null,null,null,null,null,null,null,null,null,null,null,null,null,null,null,null,null,null,"INSERT INTO dbmanottbe.[dbo].Results_Import ([ImpSerieNum],[ImpPassage],[ImpMedalID],[ImpPoints],[ImpPointsHidden],[ImpCcrsID]) VALUES (,,NULL,NULL,,);"]
[null,null,null,null,null,null,null,null,null,null,null,null,null,null,null,null,null,null,null,null,null,null,"INSERT INTO dbmanottbe.[dbo].Results_Import ([ImpSerieNum],[ImpPassage],[ImpMedalID],[ImpPoints],[ImpPointsHidden],[ImpCcrsID]) VALUES (,,NULL,NULL,,);"]
[null,null,null,null,null,null,null,null,null,null,null,null,null,null,null,null,null,null,null,null,null,null,"INSERT INTO dbmanottbe.[dbo].Results_Import ([ImpSerieNum],[ImpPassage],[ImpMedalID],[ImpPoints],[ImpPointsHidden],[ImpCcrsID]) VALUES (,,NULL,NULL,,);"]
[null,null,null,null,null,null,null,null,null,null,null,null,null,null,null,null,null,null,null,null,null,null,"INSERT INTO dbmanottbe.[dbo].Results_Import ([ImpSerieNum],[ImpPassage],[ImpMedalID],[ImpPoints],[ImpPointsHidden],[ImpCcrsID]) VALUES (,,NULL,NULL,,);"]
[null,null,null,null,null,null,null,null,null,null,null,null,null,null,null,null,null,null,null,null,null,null,"INSERT INTO dbmanottbe.[dbo].Results_Import ([ImpSerieNum],[ImpPassage],[ImpMedalID],[ImpPoints],[ImpPointsHidden],[ImpCcrsID]) VALUES (,,NULL,NULL,,);"]
[null,null,null,null,null,null,null,null,null,null,null,null,null,null,null,null,null,null,null,null,null,null,"INSERT INTO dbmanottbe.[dbo].Results_Import ([ImpSerieNum],[ImpPassage],[ImpMedalID],[ImpPoints],[ImpPointsHidden],[ImpCcrsID]) VALUES (,,NULL,NULL,,);"]
[null,null,null,null,null,null,null,null,null,null,null,null,null,null,null,null,null,null,null,null,null,null,"INSERT INTO dbmanottbe.[dbo].Results_Import ([ImpSerieNum],[ImpPassage],[ImpMedalID],[ImpPoints],[ImpPointsHidden],[ImpCcrsID]) VALUES (,,NULL,NULL,,);"]
[null,null,null,null,null,null,null,null,null,null,null,null,null,null,null,null,null,null,null,null,null,null,"INSERT INTO dbmanottbe.[dbo].Results_Import ([ImpSerieNum],[ImpPassage],[ImpMedalID],[ImpPoints],[ImpPointsHidden],[ImpCcrsID]) VALUES (,,NULL,NULL,,);"]
[null,null,null,null,null,null,null,null,null,null,null,null,null,null,null,null,null,null,null,null,null,null,"INSERT INTO dbmanottbe.[dbo].Results_Import ([ImpSerieNum],[ImpPassage],[ImpMedalID],[ImpPoints],[ImpPointsHidden],[ImpCcrsID]) VALUES (,,NULL,NULL,,);"]
[null,null,null,null,null,null,null,null,null,null,null,null,null,null,null,null,null,null,null,null,null,null,"INSERT INTO dbmanottbe.[dbo].Results_Import ([ImpSerieNum],[ImpPassage],[ImpMedalID],[ImpPoints],[ImpPointsHidden],[ImpCcrsID]) VALUES (,,NULL,NULL,,);"]
[null,null,null,null,null,null,null,null,null,null,null,null,null,null,null,null,null,null,null,null,null,null,{"$f":"\"INSERT INTO \"&$U$2&\" ([ImpSerieNum],[ImpPassage],[ImpMedalID],[ImpPoints],[ImpPointsHidden],[ImpCcrsID]) VALUES (\"&B195&\",\"&C195&\",\"&IF(D195=\"\",\"NULL\",\"'\"&D195&\"'\")&\",\"&IF(E195=\"\",\"NULL\",SUBSTITUTE(E195,\",\",\".\"))&\",\"&SUBSTITUTE(F195,\",\",\".\")&\",\"&G195&\");\"","v":"INSERT INTO dbmanottbe.[dbo].Results_Import ([ImpSerieNum],[ImpPassage],[ImpMedalID],[ImpPoints],[ImpPointsHidden],[ImpCcrsID]) VALUES (,,NULL,NULL,,);"}]
[null,null,null,null,null,null,null,null,null,null,null,null,null,null,null,null,null,null,null,null,null,null,"INSERT INTO dbmanottbe.[dbo].Results_Import ([ImpSerieNum],[ImpPassage],[ImpMedalID],[ImpPoints],[ImpPointsHidden],[ImpCcrsID]) VALUES (,,NULL,NULL,,);"]
[null,null,null,null,null,null,null,null,null,null,null,null,null,null,null,null,null,null,null,null,null,null,"INSERT INTO dbmanottbe.[dbo].Results_Import ([ImpSerieNum],[ImpPassage],[ImpMedalID],[ImpPoints],[ImpPointsHidden],[ImpCcrsID]) VALUES (,,NULL,NULL,,);"]
[null,null,null,null,null,null,null,null,null,null,null,null,null,null,null,null,null,null,null,null,null,null,"INSERT INTO dbmanottbe.[dbo].Results_Import ([ImpSerieNum],[ImpPassage],[ImpMedalID],[ImpPoints],[ImpPointsHidden],[ImpCcrsID]) VALUES (,,NULL,NULL,,);"]
[null,null,null,null,null,null,null,null,null,null,null,null,null,null,null,null,null,null,null,null,null,null,"INSERT INTO dbmanottbe.[dbo].Results_Import ([ImpSerieNum],[ImpPassage],[ImpMedalID],[ImpPoints],[ImpPointsHidden],[ImpCcrsID]) VALUES (,,NULL,NULL,,);"]
[null,null,null,null,null,null,null,null,null,null,null,null,null,null,null,null,null,null,null,null,null,null,"INSERT INTO dbmanottbe.[dbo].Results_Import ([ImpSerieNum],[ImpPassage],[ImpMedalID],[ImpPoints],[ImpPointsHidden],[ImpCcrsID]) VALUES (,,NULL,NULL,,);"]
[null,null,null,null,null,null,null,null,null,null,null,null,null,null,null,null,null,null,null,null,null,null,"INSERT INTO dbmanottbe.[dbo].Results_Import ([ImpSerieNum],[ImpPassage],[ImpMedalID],[ImpPoints],[ImpPointsHidden],[ImpCcrsID]) VALUES (,,NULL,NULL,,);"]
[null,null,null,null,null,null,null,null,null,null,null,null,null,null,null,null,null,null,null,null,null,null,"INSERT INTO dbmanottbe.[dbo].Results_Import ([ImpSerieNum],[ImpPassage],[ImpMedalID],[ImpPoints],[ImpPointsHidden],[ImpCcrsID]) VALUES (,,NULL,NULL,,);"]
[null,null,null,null,null,null,null,null,null,null,null,null,null,null,null,null,null,null,null,null,null,null,"INSERT INTO dbmanottbe.[dbo].Results_Import ([ImpSerieNum],[ImpPassage],[ImpMedalID],[ImpPoints],[ImpPointsHidden],[ImpCcrsID]) VALUES (,,NULL,NULL,,);"]
[null,null,null,null,null,null,null,null,null,null,null,null,null,null,null,null,null,null,null,null,null,null,"INSERT INTO dbmanottbe.[dbo].Results_Import ([ImpSerieNum],[ImpPassage],[ImpMedalID],[ImpPoints],[ImpPointsHidden],[ImpCcrsID]) VALUES (,,NULL,NULL,,);"]
[null,null,null,null,null,null,null,null,null,null,null,null,null,null,null,null,null,null,null,null,null,null,"INSERT INTO dbmanottbe.[dbo].Results_Import ([ImpSerieNum],[ImpPassage],[ImpMedalID],[ImpPoints],[ImpPointsHidden],[ImpCcrsID]) VALUES (,,NULL,NULL,,);"]
[null,null,null,null,null,null,null,null,null,null,null,null,null,null,null,null,null,null,null,null,null,null,"INSERT INTO dbmanottbe.[dbo].Results_Import ([ImpSerieNum],[ImpPassage],[ImpMedalID],[ImpPoints],[ImpPointsHidden],[ImpCcrsID]) VALUES (,,NULL,NULL,,);"]
[null,null,null,null,null,null,null,null,null,null,null,null,null,null,null,null,null,null,null,null,null,null,"INSERT INTO dbmanottbe.[dbo].Results_Import ([ImpSerieNum],[ImpPassage],[ImpMedalID],[ImpPoints],[ImpPointsHidden],[ImpCcrsID]) VALUES (,,NULL,NULL,,);"]
[null,null,null,null,null,null,null,null,null,null,null,null,null,null,null,null,null,null,null,null,null,null,"INSERT INTO dbmanottbe.[dbo].Results_Import ([ImpSerieNum],[ImpPassage],[ImpMedalID],[ImpPoints],[ImpPointsHidden],[ImpCcrsID]) VALUES (,,NULL,NULL,,);"]
[null,null,null,null,null,null,null,null,null,null,null,null,null,null,null,null,null,null,null,null,null,null,"INSERT INTO dbmanottbe.[dbo].Results_Import ([ImpSerieNum],[ImpPassage],[ImpMedalID],[ImpPoints],[ImpPointsHidden],[ImpCcrsID]) VALUES (,,NULL,NULL,,);"]
[null,null,null,null,null,null,null,null,null,null,null,null,null,null,null,null,null,null,null,null,null,null,"INSERT INTO dbmanottbe.[dbo].Results_Import ([ImpSerieNum],[ImpPassage],[ImpMedalID],[ImpPoints],[ImpPointsHidden],[ImpCcrsID]) VALUES (,,NULL,NULL,,);"]
[null,null,null,null,null,null,null,null,null,null,null,null,null,null,null,null,null,null,null,null,null,null,"INSERT INTO dbmanottbe.[dbo].Results_Import ([ImpSerieNum],[ImpPassage],[ImpMedalID],[ImpPoints],[ImpPointsHidden],[ImpCcrsID]) VALUES (,,NULL,NULL,,);"]
[null,null,null,null,null,null,null,null,null,null,null,null,null,null,null,null,null,null,null,null,null,null,"INSERT INTO dbmanottbe.[dbo].Results_Import ([ImpSerieNum],[ImpPassage],[ImpMedalID],[ImpPoints],[ImpPointsHidden],[ImpCcrsID]) VALUES (,,NULL,NULL,,);"]
[null,null,null,null,null,null,null,null,null,null,null,null,null,null,null,null,null,null,null,null,null,null,"INSERT INTO dbmanottbe.[dbo].Results_Import ([ImpSerieNum],[ImpPassage],[ImpMedalID],[ImpPoints],[ImpPointsHidden],[ImpCcrsID]) VALUES (,,NULL,NULL,,);"]
[null,null,null,null,null,null,null,null,null,null,null,null,null,null,null,null,null,null,null,null,null,null,"INSERT INTO dbmanottbe.[dbo].Results_Import ([ImpSerieNum],[ImpPassage],[ImpMedalID],[ImpPoints],[ImpPointsHidden],[ImpCcrsID]) VALUES (,,NULL,NULL,,);"]
[null,null,null,null,null,null,null,null,null,null,null,null,null,null,null,null,null,null,null,null,null,null,"INSERT INTO dbmanottbe.[dbo].Results_Import ([ImpSerieNum],[ImpPassage],[ImpMedalID],[ImpPoints],[ImpPointsHidden],[ImpCcrsID]) VALUES (,,NULL,NULL,,);"]
[null,null,null,null,null,null,null,null,null,null,null,null,null,null,null,null,null,null,null,null,null,null,"INSERT INTO dbmanottbe.[dbo].Results_Import ([ImpSerieNum],[ImpPassage],[ImpMedalID],[ImpPoints],[ImpPointsHidden],[ImpCcrsID]) VALUES (,,NULL,NULL,,);"]
[null,null,null,null,null,null,null,null,null,null,null,null,null,null,null,null,null,null,null,null,null,null,"INSERT INTO dbmanottbe.[dbo].Results_Import ([ImpSerieNum],[ImpPassage],[ImpMedalID],[ImpPoints],[ImpPointsHidden],[ImpCcrsID]) VALUES (,,NULL,NULL,,);"]
[null,null,null,null,null,null,null,null,null,null,null,null,null,null,null,null,null,null,null,null,null,null,"INSERT INTO dbmanottbe.[dbo].Results_Import ([ImpSerieNum],[ImpPassage],[ImpMedalID],[ImpPoints],[ImpPointsHidden],[ImpCcrsID]) VALUES (,,NULL,NULL,,);"]
[null,null,null,null,null,null,null,null,null,null,null,null,null,null,null,null,null,null,null,null,null,null,"INSERT INTO dbmanottbe.[dbo].Results_Import ([ImpSerieNum],[ImpPassage],[ImpMedalID],[ImpPoints],[ImpPointsHidden],[ImpCcrsID]) VALUES (,,NULL,NULL,,);"]
[null,null,null,null,null,null,null,null,null,null,null,null,null,null,null,null,null,null,null,null,null,null,"INSERT INTO dbmanottbe.[dbo].Results_Import ([ImpSerieNum],[ImpPassage],[ImpMedalID],[ImpPoints],[ImpPointsHidden],[ImpCcrsID]) VALUES (,,NULL,NULL,,);"]
[null,null,null,null,null,null,null,null,null,null,null,null,null,null,null,null,null,null,null,null,null,null,"INSERT INTO dbmanottbe.[dbo].Results_Import ([ImpSerieNum],[ImpPassage],[ImpMedalID],[ImpPoints],[ImpPointsHidden],[ImpCcrsID]) VALUES (,,NULL,NULL,,);"]
[null,null,null,null,null,null,null,null,null,null,null,null,null,null,null,null,null,null,null,null,null,null,"INSERT INTO dbmanottbe.[dbo].Results_Import ([ImpSerieNum],[ImpPassage],[ImpMedalID],[ImpPoints],[ImpPointsHidden],[ImpCcrsID]) VALUES (,,NULL,NULL,,);"]
[null,null,null,null,null,null,null,null,null,null,null,null,null,null,null,null,null,null,null,null,null,null,"INSERT INTO dbmanottbe.[dbo].Results_Import ([ImpSerieNum],[ImpPassage],[ImpMedalID],[ImpPoints],[ImpPointsHidden],[ImpCcrsID]) VALUES (,,NULL,NULL,,);"]
[null,null,null,null,null,null,null,null,null,null,null,null,null,null,null,null,null,null,null,null,null,null,"INSERT INTO dbmanottbe.[dbo].Results_Import ([ImpSerieNum],[ImpPassage],[ImpMedalID],[ImpPoints],[ImpPointsHidden],[ImpCcrsID]) VALUES (,,NULL,NULL,,);"]
[null,null,null,null,null,null,null,null,null,null,null,null,null,null,null,null,null,null,null,null,null,null,"INSERT INTO dbmanottbe.[dbo].Results_Import ([ImpSerieNum],[ImpPassage],[ImpMedalID],[ImpPoints],[ImpPointsHidden],[ImpCcrsID]) VALUES (,,NULL,NULL,,);"]
[null,null,null,null,null,null,null,null,null,null,null,null,null,null,null,null,null,null,null,null,null,null,"INSERT INTO dbmanottbe.[dbo].Results_Import ([ImpSerieNum],[ImpPassage],[ImpMedalID],[ImpPoints],[ImpPointsHidden],[ImpCcrsID]) VALUES (,,NULL,NULL,,);"]
[null,null,null,null,null,null,null,null,null,null,null,null,null,null,null,null,null,null,null,null,null,null,"INSERT INTO dbmanottbe.[dbo].Results_Import ([ImpSerieNum],[ImpPassage],[ImpMedalID],[ImpPoints],[ImpPointsHidden],[ImpCcrsID]) VALUES (,,NULL,NULL,,);"]
[null,null,null,null,null,null,null,null,null,null,null,null,null,null,null,null,null,null,null,null,null,null,"INSERT INTO dbmanottbe.[dbo].Results_Import ([ImpSerieNum],[ImpPassage],[ImpMedalID],[ImpPoints],[ImpPointsHidden],[ImpCcrsID]) VALUES (,,NULL,NULL,,);"]
[null,null,null,null,null,null,null,null,null,null,null,null,null,null,null,null,null,null,null,null,null,null,"INSERT INTO dbmanottbe.[dbo].Results_Import ([ImpSerieNum],[ImpPassage],[ImpMedalID],[ImpPoints],[ImpPointsHidden],[ImpCcrsID]) VALUES (,,NULL,NULL,,);"]
[null,null,null,null,null,null,null,null,null,null,null,null,null,null,null,null,null,null,null,null,null,null,"INSERT INTO dbmanottbe.[dbo].Results_Import ([ImpSerieNum],[ImpPassage],[ImpMedalID],[ImpPoints],[ImpPointsHidden],[ImpCcrsID]) VALUES (,,NULL,NULL,,);"]
[null,null,null,null,null,null,null,null,null,null,null,null,null,null,null,null,null,null,null,null,null,null,"INSERT INTO dbmanottbe.[dbo].Results_Import ([ImpSerieNum],[ImpPassage],[ImpMedalID],[ImpPoints],[ImpPointsHidden],[ImpCcrsID]) VALUES (,,NULL,NULL,,);"]
[null,null,null,null,null,null,null,null,null,null,null,null,null,null,null,null,null,null,null,null,null,null,"INSERT INTO dbmanottbe.[dbo].Results_Import ([ImpSerieNum],[ImpPassage],[ImpMedalID],[ImpPoints],[ImpPointsHidden],[ImpCcrsID]) VALUES (,,NULL,NULL,,);"]
[null,null,null,null,null,null,null,null,null,null,null,null,null,null,null,null,null,null,null,null,null,null,"INSERT INTO dbmanottbe.[dbo].Results_Import ([ImpSerieNum],[ImpPassage],[ImpMedalID],[ImpPoints],[ImpPointsHidden],[ImpCcrsID]) VALUES (,,NULL,NULL,,);"]
[null,null,null,null,null,null,null,null,null,null,null,null,null,null,null,null,null,null,null,null,null,null,"INSERT INTO dbmanottbe.[dbo].Results_Import ([ImpSerieNum],[ImpPassage],[ImpMedalID],[ImpPoints],[ImpPointsHidden],[ImpCcrsID]) VALUES (,,NULL,NULL,,);"]
[null,null,null,null,null,null,null,null,null,null,null,null,null,null,null,null,null,null,null,null,null,null,"INSERT INTO dbmanottbe.[dbo].Results_Import ([ImpSerieNum],[ImpPassage],[ImpMedalID],[ImpPoints],[ImpPointsHidden],[ImpCcrsID]) VALUES (,,NULL,NULL,,);"]
[null,null,null,null,null,null,null,null,null,null,null,null,null,null,null,null,null,null,null,null,null,null,"INSERT INTO dbmanottbe.[dbo].Results_Import ([ImpSerieNum],[ImpPassage],[ImpMedalID],[ImpPoints],[ImpPointsHidden],[ImpCcrsID]) VALUES (,,NULL,NULL,,);"]
[null,null,null,null,null,null,null,null,null,null,null,null,null,null,null,null,null,null,null,null,null,null,"INSERT INTO dbmanottbe.[dbo].Results_Import ([ImpSerieNum],[ImpPassage],[ImpMedalID],[ImpPoints],[ImpPointsHidden],[ImpCcrsID]) VALUES (,,NULL,NULL,,);"]
[null,null,null,null,null,null,null,null,null,null,null,null,null,null,null,null,null,null,null,null,null,null,"INSERT INTO dbmanottbe.[dbo].Results_Import ([ImpSerieNum],[ImpPassage],[ImpMedalID],[ImpPoints],[ImpPointsHidden],[ImpCcrsID]) VALUES (,,NULL,NULL,,);"]
[null,null,null,null,null,null,null,null,null,null,null,null,null,null,null,null,null,null,null,null,null,null,"INSERT INTO dbmanottbe.[dbo].Results_Import ([ImpSerieNum],[ImpPassage],[ImpMedalID],[ImpPoints],[ImpPointsHidden],[ImpCcrsID]) VALUES (,,NULL,NULL,,);"]
[null,null,null,null,null,null,null,null,null,null,null,null,null,null,null,null,null,null,null,null,null,null,"INSERT INTO dbmanottbe.[dbo].Results_Import ([ImpSerieNum],[ImpPassage],[ImpMedalID],[ImpPoints],[ImpPointsHidden],[ImpCcrsID]) VALUES (,,NULL,NULL,,);"]
[null,null,null,null,null,null,null,null,null,null,null,null,null,null,null,null,null,null,null,null,null,null,"INSERT INTO dbmanottbe.[dbo].Results_Import ([ImpSerieNum],[ImpPassage],[ImpMedalID],[ImpPoints],[ImpPointsHidden],[ImpCcrsID]) VALUES (,,NULL,NULL,,);"]
[null,null,null,null,null,null,null,null,null,null,null,null,null,null,null,null,null,null,null,null,null,null,"INSERT INTO dbmanottbe.[dbo].Results_Import ([ImpSerieNum],[ImpPassage],[ImpMedalID],[ImpPoints],[ImpPointsHidden],[ImpCcrsID]) VALUES (,,NULL,NULL,,);"]
[null,null,null,null,null,null,null,null,null,null,null,null,null,null,null,null,null,null,null,null,null,null,"INSERT INTO dbmanottbe.[dbo].Results_Import ([ImpSerieNum],[ImpPassage],[ImpMedalID],[ImpPoints],[ImpPointsHidden],[ImpCcrsID]) VALUES (,,NULL,NULL,,);"]
[null,null,null,null,null,null,null,null,null,null,null,null,null,null,null,null,null,null,null,null,null,null,"INSERT INTO dbmanottbe.[dbo].Results_Import ([ImpSerieNum],[ImpPassage],[ImpMedalID],[ImpPoints],[ImpPointsHidden],[ImpCcrsID]) VALUES (,,NULL,NULL,,);"]
[null,null,null,null,null,null,null,null,null,null,null,null,null,null,null,null,null,null,null,null,null,null,"INSERT INTO dbmanottbe.[dbo].Results_Import ([ImpSerieNum],[ImpPassage],[ImpMedalID],[ImpPoints],[ImpPointsHidden],[ImpCcrsID]) VALUES (,,NULL,NULL,,);"]
[null,null,null,null,null,null,null,null,null,null,null,null,null,null,null,null,null,null,null,null,null,null,"INSERT INTO dbmanottbe.[dbo].Results_Import ([ImpSerieNum],[ImpPassage],[ImpMedalID],[ImpPoints],[ImpPointsHidden],[ImpCcrsID]) VALUES (,,NULL,NULL,,);"]
[null,null,null,null,null,null,null,null,null,null,null,null,null,null,null,null,null,null,null,null,null,null,"INSERT INTO dbmanottbe.[dbo].Results_Import ([ImpSerieNum],[ImpPassage],[ImpMedalID],[ImpPoints],[ImpPointsHidden],[ImpCcrsID]) VALUES (,,NULL,NULL,,);"]
[null,null,null,null,null,null,null,null,null,null,null,null,null,null,null,null,null,null,null,null,null,null,"INSERT INTO dbmanottbe.[dbo].Results_Import ([ImpSerieNum],[ImpPassage],[ImpMedalID],[ImpPoints],[ImpPointsHidden],[ImpCcrsID]) VALUES (,,NULL,NULL,,);"]
[null,null,null,null,null,null,null,null,null,null,null,null,null,null,null,null,null,null,null,null,null,null,"INSERT INTO dbmanottbe.[dbo].Results_Import ([ImpSerieNum],[ImpPassage],[ImpMedalID],[ImpPoints],[ImpPointsHidden],[ImpCcrsID]) VALUES (,,NULL,NULL,,);"]
[null,null,null,null,null,null,null,null,null,null,null,null,null,null,null,null,null,null,null,null,null,null,"INSERT INTO dbmanottbe.[dbo].Results_Import ([ImpSerieNum],[ImpPassage],[ImpMedalID],[ImpPoints],[ImpPointsHidden],[ImpCcrsID]) VALUES (,,NULL,NULL,,);"]
[null,null,null,null,null,null,null,null,null,null,null,null,null,null,null,null,null,null,null,null,null,null,"INSERT INTO dbmanottbe.[dbo].Results_Import ([ImpSerieNum],[ImpPassage],[ImpMedalID],[ImpPoints],[ImpPointsHidden],[ImpCcrsID]) VALUES (,,NULL,NULL,,);"]
[null,null,null,null,null,null,null,null,null,null,null,null,null,null,null,null,null,null,null,null,null,null,"INSERT INTO dbmanottbe.[dbo].Results_Import ([ImpSerieNum],[ImpPassage],[ImpMedalID],[ImpPoints],[ImpPointsHidden],[ImpCcrsID]) VALUES (,,NULL,NULL,,);"]
[null,null,null,null,null,null,null,null,null,null,null,null,null,null,null,null,null,null,null,null,null,null,"INSERT INTO dbmanottbe.[dbo].Results_Import ([ImpSerieNum],[ImpPassage],[ImpMedalID],[ImpPoints],[ImpPointsHidden],[ImpCcrsID]) VALUES (,,NULL,NULL,,);"]
[null,null,null,null,null,null,null,null,null,null,null,null,null,null,null,null,null,null,null,null,null,null,"INSERT INTO dbmanottbe.[dbo].Results_Import ([ImpSerieNum],[ImpPassage],[ImpMedalID],[ImpPoints],[ImpPointsHidden],[ImpCcrsID]) VALUES (,,NULL,NULL,,);"]
[null,null,null,null,null,null,null,null,null,null,null,null,null,null,null,null,null,null,null,null,null,null,"INSERT INTO dbmanottbe.[dbo].Results_Import ([ImpSerieNum],[ImpPassage],[ImpMedalID],[ImpPoints],[ImpPointsHidden],[ImpCcrsID]) VALUES (,,NULL,NULL,,);"]
[null,null,null,null,null,null,null,null,null,null,null,null,null,null,null,null,null,null,null,null,null,null,"INSERT INTO dbmanottbe.[dbo].Results_Import ([ImpSerieNum],[ImpPassage],[ImpMedalID],[ImpPoints],[ImpPointsHidden],[ImpCcrsID]) VALUES (,,NULL,NULL,,);"]
[null,null,null,null,null,null,null,null,null,null,null,null,null,null,null,null,null,null,null,null,null,null,"INSERT INTO dbmanottbe.[dbo].Results_Import ([ImpSerieNum],[ImpPassage],[ImpMedalID],[ImpPoints],[ImpPointsHidden],[ImpCcrsID]) VALUES (,,NULL,NULL,,);"]
[null,null,null,null,null,null,null,null,null,null,null,null,null,null,null,null,null,null,null,null,null,null,"INSERT INTO dbmanottbe.[dbo].Results_Import ([ImpSerieNum],[ImpPassage],[ImpMedalID],[ImpPoints],[ImpPointsHidden],[ImpCcrsID]) VALUES (,,NULL,NULL,,);"]
[null,null,null,null,null,null,null,null,null,null,null,null,null,null,null,null,null,null,null,null,null,null,{"$f":"\"INSERT INTO \"&$U$2&\" ([ImpSerieNum],[ImpPassage],[ImpMedalID],[ImpPoints],[ImpPointsHidden],[ImpCcrsID]) VALUES (\"&B259&\",\"&C259&\",\"&IF(D259=\"\",\"NULL\",\"'\"&D259&\"'\")&\",\"&IF(E259=\"\",\"NULL\",SUBSTITUTE(E259,\",\",\".\"))&\",\"&SUBSTITUTE(F259,\",\",\".\")&\",\"&G259&\");\"","v":"INSERT INTO dbmanottbe.[dbo].Results_Import ([ImpSerieNum],[ImpPassage],[ImpMedalID],[ImpPoints],[ImpPointsHidden],[ImpCcrsID]) VALUES (,,NULL,NULL,,);"}]
[null,null,null,null,null,null,null,null,null,null,null,null,null,null,null,null,null,null,null,null,null,null,"INSERT INTO dbmanottbe.[dbo].Results_Import ([ImpSerieNum],[ImpPassage],[ImpMedalID],[ImpPoints],[ImpPointsHidden],[ImpCcrsID]) VALUES (,,NULL,NULL,,);"]
[null,null,null,null,null,null,null,null,null,null,null,null,null,null,null,null,null,null,null,null,null,null,"INSERT INTO dbmanottbe.[dbo].Results_Import ([ImpSerieNum],[ImpPassage],[ImpMedalID],[ImpPoints],[ImpPointsHidden],[ImpCcrsID]) VALUES (,,NULL,NULL,,);"]
[null,null,null,null,null,null,null,null,null,null,null,null,null,null,null,null,null,null,null,null,null,null,"INSERT INTO dbmanottbe.[dbo].Results_Import ([ImpSerieNum],[ImpPassage],[ImpMedalID],[ImpPoints],[ImpPointsHidden],[ImpCcrsID]) VALUES (,,NULL,NULL,,);"]
[null,null,null,null,null,null,null,null,null,null,null,null,null,null,null,null,null,null,null,null,null,null,"INSERT INTO dbmanottbe.[dbo].Results_Import ([ImpSerieNum],[ImpPassage],[ImpMedalID],[ImpPoints],[ImpPointsHidden],[ImpCcrsID]) VALUES (,,NULL,NULL,,);"]
[null,null,null,null,null,null,null,null,null,null,null,null,null,null,null,null,null,null,null,null,null,null,"INSERT INTO dbmanottbe.[dbo].Results_Import ([ImpSerieNum],[ImpPassage],[ImpMedalID],[ImpPoints],[ImpPointsHidden],[ImpCcrsID]) VALUES (,,NULL,NULL,,);"]
[null,null,null,null,null,null,null,null,null,null,null,null,null,null,null,null,null,null,null,null,null,null,"INSERT INTO dbmanottbe.[dbo].Results_Import ([ImpSerieNum],[ImpPassage],[ImpMedalID],[ImpPoints],[ImpPointsHidden],[ImpCcrsID]) VALUES (,,NULL,NULL,,);"]
[null,null,null,null,null,null,null,null,null,null,null,null,null,null,null,null,null,null,null,null,null,null,"INSERT INTO dbmanottbe.[dbo].Results_Import ([ImpSerieNum],[ImpPassage],[ImpMedalID],[ImpPoints],[ImpPointsHidden],[ImpCcrsID]) VALUES (,,NULL,NULL,,);"]
[null,null,null,null,null,null,null,null,null,null,null,null,null,null,null,null,null,null,null,null,null,null,"INSERT INTO dbmanottbe.[dbo].Results_Import ([ImpSerieNum],[ImpPassage],[ImpMedalID],[ImpPoints],[ImpPointsHidden],[ImpCcrsID]) VALUES (,,NULL,NULL,,);"]
[null,null,null,null,null,null,null,null,null,null,null,null,null,null,null,null,null,null,null,null,null,null,"INSERT INTO dbmanottbe.[dbo].Results_Import ([ImpSerieNum],[ImpPassage],[ImpMedalID],[ImpPoints],[ImpPointsHidden],[ImpCcrsID]) VALUES (,,NULL,NULL,,);"]
[null,null,null,null,null,null,null,null,null,null,null,null,null,null,null,null,null,null,null,null,null,null,"INSERT INTO dbmanottbe.[dbo].Results_Import ([ImpSerieNum],[ImpPassage],[ImpMedalID],[ImpPoints],[ImpPointsHidden],[ImpCcrsID]) VALUES (,,NULL,NULL,,);"]
[null,null,null,null,null,null,null,null,null,null,null,null,null,null,null,null,null,null,null,null,null,null,"INSERT INTO dbmanottbe.[dbo].Results_Import ([ImpSerieNum],[ImpPassage],[ImpMedalID],[ImpPoints],[ImpPointsHidden],[ImpCcrsID]) VALUES (,,NULL,NULL,,);"]
[null,null,null,null,null,null,null,null,null,null,null,null,null,null,null,null,null,null,null,null,null,null,"INSERT INTO dbmanottbe.[dbo].Results_Import ([ImpSerieNum],[ImpPassage],[ImpMedalID],[ImpPoints],[ImpPointsHidden],[ImpCcrsID]) VALUES (,,NULL,NULL,,);"]
[null,null,null,null,null,null,null,null,null,null,null,null,null,null,null,null,null,null,null,null,null,null,"INSERT INTO dbmanottbe.[dbo].Results_Import ([ImpSerieNum],[ImpPassage],[ImpMedalID],[ImpPoints],[ImpPointsHidden],[ImpCcrsID]) VALUES (,,NULL,NULL,,);"]
[null,null,null,null,null,null,null,null,null,null,null,null,null,null,null,null,null,null,null,null,null,null,"INSERT INTO dbmanottbe.[dbo].Results_Import ([ImpSerieNum],[ImpPassage],[ImpMedalID],[ImpPoints],[ImpPointsHidden],[ImpCcrsID]) VALUES (,,NULL,NULL,,);"]
[null,null,null,null,null,null,null,null,null,null,null,null,null,null,null,null,null,null,null,null,null,null,"INSERT INTO dbmanottbe.[dbo].Results_Import ([ImpSerieNum],[ImpPassage],[ImpMedalID],[ImpPoints],[ImpPointsHidden],[ImpCcrsID]) VALUES (,,NULL,NULL,,);"]
[null,null,null,null,null,null,null,null,null,null,null,null,null,null,null,null,null,null,null,null,null,null,"INSERT INTO dbmanottbe.[dbo].Results_Import ([ImpSerieNum],[ImpPassage],[ImpMedalID],[ImpPoints],[ImpPointsHidden],[ImpCcrsID]) VALUES (,,NULL,NULL,,);"]
[null,null,null,null,null,null,null,null,null,null,null,null,null,null,null,null,null,null,null,null,null,null,"INSERT INTO dbmanottbe.[dbo].Results_Import ([ImpSerieNum],[ImpPassage],[ImpMedalID],[ImpPoints],[ImpPointsHidden],[ImpCcrsID]) VALUES (,,NULL,NULL,,);"]
[null,null,null,null,null,null,null,null,null,null,null,null,null,null,null,null,null,null,null,null,null,null,"INSERT INTO dbmanottbe.[dbo].Results_Import ([ImpSerieNum],[ImpPassage],[ImpMedalID],[ImpPoints],[ImpPointsHidden],[ImpCcrsID]) VALUES (,,NULL,NULL,,);"]
[null,null,null,null,null,null,null,null,null,null,null,null,null,null,null,null,null,null,null,null,null,null,"INSERT INTO dbmanottbe.[dbo].Results_Import ([ImpSerieNum],[ImpPassage],[ImpMedalID],[ImpPoints],[ImpPointsHidden],[ImpCcrsID]) VALUES (,,NULL,NULL,,);"]
[null,null,null,null,null,null,null,null,null,null,null,null,null,null,null,null,null,null,null,null,null,null,"INSERT INTO dbmanottbe.[dbo].Results_Import ([ImpSerieNum],[ImpPassage],[ImpMedalID],[ImpPoints],[ImpPointsHidden],[ImpCcrsID]) VALUES (,,NULL,NULL,,);"]
[null,null,null,null,null,null,null,null,null,null,null,null,null,null,null,null,null,null,null,null,null,null,"INSERT INTO dbmanottbe.[dbo].Results_Import ([ImpSerieNum],[ImpPassage],[ImpMedalID],[ImpPoints],[ImpPointsHidden],[ImpCcrsID]) VALUES (,,NULL,NULL,,);"]
[null,null,null,null,null,null,null,null,null,null,null,null,null,null,null,null,null,null,null,null,null,null,"INSERT INTO dbmanottbe.[dbo].Results_Import ([ImpSerieNum],[ImpPassage],[ImpMedalID],[ImpPoints],[ImpPointsHidden],[ImpCcrsID]) VALUES (,,NULL,NULL,,);"]
[null,null,null,null,null,null,null,null,null,null,null,null,null,null,null,null,null,null,null,null,null,null,"INSERT INTO dbmanottbe.[dbo].Results_Import ([ImpSerieNum],[ImpPassage],[ImpMedalID],[ImpPoints],[ImpPointsHidden],[ImpCcrsID]) VALUES (,,NULL,NULL,,);"]
[null,null,null,null,null,null,null,null,null,null,null,null,null,null,null,null,null,null,null,null,null,null,"INSERT INTO dbmanottbe.[dbo].Results_Import ([ImpSerieNum],[ImpPassage],[ImpMedalID],[ImpPoints],[ImpPointsHidden],[ImpCcrsID]) VALUES (,,NULL,NULL,,);"]
[null,null,null,null,null,null,null,null,null,null,null,null,null,null,null,null,null,null,null,null,null,null,"INSERT INTO dbmanottbe.[dbo].Results_Import ([ImpSerieNum],[ImpPassage],[ImpMedalID],[ImpPoints],[ImpPointsHidden],[ImpCcrsID]) VALUES (,,NULL,NULL,,);"]
[null,null,null,null,null,null,null,null,null,null,null,null,null,null,null,null,null,null,null,null,null,null,"INSERT INTO dbmanottbe.[dbo].Results_Import ([ImpSerieNum],[ImpPassage],[ImpMedalID],[ImpPoints],[ImpPointsHidden],[ImpCcrsID]) VALUES (,,NULL,NULL,,);"]
[null,null,null,null,null,null,null,null,null,null,null,null,null,null,null,null,null,null,null,null,null,null,"INSERT INTO dbmanottbe.[dbo].Results_Import ([ImpSerieNum],[ImpPassage],[ImpMedalID],[ImpPoints],[ImpPointsHidden],[ImpCcrsID]) VALUES (,,NULL,NULL,,);"]
[null,null,null,null,null,null,null,null,null,null,null,null,null,null,null,null,null,null,null,null,null,null,"INSERT INTO dbmanottbe.[dbo].Results_Import ([ImpSerieNum],[ImpPassage],[ImpMedalID],[ImpPoints],[ImpPointsHidden],[ImpCcrsID]) VALUES (,,NULL,NULL,,);"]
[null,null,null,null,null,null,null,null,null,null,null,null,null,null,null,null,null,null,null,null,null,null,"INSERT INTO dbmanottbe.[dbo].Results_Import ([ImpSerieNum],[ImpPassage],[ImpMedalID],[ImpPoints],[ImpPointsHidden],[ImpCcrsID]) VALUES (,,NULL,NULL,,);"]
[null,null,null,null,null,null,null,null,null,null,null,null,null,null,null,null,null,null,null,null,null,null,"INSERT INTO dbmanottbe.[dbo].Results_Import ([ImpSerieNum],[ImpPassage],[ImpMedalID],[ImpPoints],[ImpPointsHidden],[ImpCcrsID]) VALUES (,,NULL,NULL,,);"]
[null,null,null,null,null,null,null,null,null,null,null,null,null,null,null,null,null,null,null,null,null,null,"INSERT INTO dbmanottbe.[dbo].Results_Import ([ImpSerieNum],[ImpPassage],[ImpMedalID],[ImpPoints],[ImpPointsHidden],[ImpCcrsID]) VALUES (,,NULL,NULL,,);"]
[null,null,null,null,null,null,null,null,null,null,null,null,null,null,null,null,null,null,null,null,null,null,"INSERT INTO dbmanottbe.[dbo].Results_Import ([ImpSerieNum],[ImpPassage],[ImpMedalID],[ImpPoints],[ImpPointsHidden],[ImpCcrsID]) VALUES (,,NULL,NULL,,);"]
[null,null,null,null,null,null,null,null,null,null,null,null,null,null,null,null,null,null,null,null,null,null,"INSERT INTO dbmanottbe.[dbo].Results_Import ([ImpSerieNum],[ImpPassage],[ImpMedalID],[ImpPoints],[ImpPointsHidden],[ImpCcrsID]) VALUES (,,NULL,NULL,,);"]
[null,null,null,null,null,null,null,null,null,null,null,null,null,null,null,null,null,null,null,null,null,null,"INSERT INTO dbmanottbe.[dbo].Results_Import ([ImpSerieNum],[ImpPassage],[ImpMedalID],[ImpPoints],[ImpPointsHidden],[ImpCcrsID]) VALUES (,,NULL,NULL,,);"]
[null,null,null,null,null,null,null,null,null,null,null,null,null,null,null,null,null,null,null,null,null,null,"INSERT INTO dbmanottbe.[dbo].Results_Import ([ImpSerieNum],[ImpPassage],[ImpMedalID],[ImpPoints],[ImpPointsHidden],[ImpCcrsID]) VALUES (,,NULL,NULL,,);"]
[null,null,null,null,null,null,null,null,null,null,null,null,null,null,null,null,null,null,null,null,null,null,"INSERT INTO dbmanottbe.[dbo].Results_Import ([ImpSerieNum],[ImpPassage],[ImpMedalID],[ImpPoints],[ImpPointsHidden],[ImpCcrsID]) VALUES (,,NULL,NULL,,);"]
[null,null,null,null,null,null,null,null,null,null,null,null,null,null,null,null,null,null,null,null,null,null,"INSERT INTO dbmanottbe.[dbo].Results_Import ([ImpSerieNum],[ImpPassage],[ImpMedalID],[ImpPoints],[ImpPointsHidden],[ImpCcrsID]) VALUES (,,NULL,NULL,,);"]
[null,null,null,null,null,null,null,null,null,null,null,null,null,null,null,null,null,null,null,null,null,null,"INSERT INTO dbmanottbe.[dbo].Results_Import ([ImpSerieNum],[ImpPassage],[ImpMedalID],[ImpPoints],[ImpPointsHidden],[ImpCcrsID]) VALUES (,,NULL,NULL,,);"]
[null,null,null,null,null,null,null,null,null,null,null,null,null,null,null,null,null,null,null,null,null,null,"INSERT INTO dbmanottbe.[dbo].Results_Import ([ImpSerieNum],[ImpPassage],[ImpMedalID],[ImpPoints],[ImpPointsHidden],[ImpCcrsID]) VALUES (,,NULL,NULL,,);"]
[null,null,null,null,null,null,null,null,null,null,null,null,null,null,null,null,null,null,null,null,null,null,"INSERT INTO dbmanottbe.[dbo].Results_Import ([ImpSerieNum],[ImpPassage],[ImpMedalID],[ImpPoints],[ImpPointsHidden],[ImpCcrsID]) VALUES (,,NULL,NULL,,);"]
[null,null,null,null,null,null,null,null,null,null,null,null,null,null,null,null,null,null,null,null,null,null,"INSERT INTO dbmanottbe.[dbo].Results_Import ([ImpSerieNum],[ImpPassage],[ImpMedalID],[ImpPoints],[ImpPointsHidden],[ImpCcrsID]) VALUES (,,NULL,NULL,,);"]
[null,null,null,null,null,null,null,null,null,null,null,null,null,null,null,null,null,null,null,null,null,null,"INSERT INTO dbmanottbe.[dbo].Results_Import ([ImpSerieNum],[ImpPassage],[ImpMedalID],[ImpPoints],[ImpPointsHidden],[ImpCcrsID]) VALUES (,,NULL,NULL,,);"]
[null,null,null,null,null,null,null,null,null,null,null,null,null,null,null,null,null,null,null,null,null,null,"INSERT INTO dbmanottbe.[dbo].Results_Import ([ImpSerieNum],[ImpPassage],[ImpMedalID],[ImpPoints],[ImpPointsHidden],[ImpCcrsID]) VALUES (,,NULL,NULL,,);"]
[null,null,null,null,null,null,null,null,null,null,null,null,null,null,null,null,null,null,null,null,null,null,"INSERT INTO dbmanottbe.[dbo].Results_Import ([ImpSerieNum],[ImpPassage],[ImpMedalID],[ImpPoints],[ImpPointsHidden],[ImpCcrsID]) VALUES (,,NULL,NULL,,);"]
[null,null,null,null,null,null,null,null,null,null,null,null,null,null,null,null,null,null,null,null,null,null,"INSERT INTO dbmanottbe.[dbo].Results_Import ([ImpSerieNum],[ImpPassage],[ImpMedalID],[ImpPoints],[ImpPointsHidden],[ImpCcrsID]) VALUES (,,NULL,NULL,,);"]
[null,null,null,null,null,null,null,null,null,null,null,null,null,null,null,null,null,null,null,null,null,null,"INSERT INTO dbmanottbe.[dbo].Results_Import ([ImpSerieNum],[ImpPassage],[ImpMedalID],[ImpPoints],[ImpPointsHidden],[ImpCcrsID]) VALUES (,,NULL,NULL,,);"]
[null,null,null,null,null,null,null,null,null,null,null,null,null,null,null,null,null,null,null,null,null,null,"INSERT INTO dbmanottbe.[dbo].Results_Import ([ImpSerieNum],[ImpPassage],[ImpMedalID],[ImpPoints],[ImpPointsHidden],[ImpCcrsID]) VALUES (,,NULL,NULL,,);"]
[null,null,null,null,null,null,null,null,null,null,null,null,null,null,null,null,null,null,null,null,null,null,"INSERT INTO dbmanottbe.[dbo].Results_Import ([ImpSerieNum],[ImpPassage],[ImpMedalID],[ImpPoints],[ImpPointsHidden],[ImpCcrsID]) VALUES (,,NULL,NULL,,);"]
[null,null,null,null,null,null,null,null,null,null,null,null,null,null,null,null,null,null,null,null,null,null,"INSERT INTO dbmanottbe.[dbo].Results_Import ([ImpSerieNum],[ImpPassage],[ImpMedalID],[ImpPoints],[ImpPointsHidden],[ImpCcrsID]) VALUES (,,NULL,NULL,,);"]
[null,null,null,null,null,null,null,null,null,null,null,null,null,null,null,null,null,null,null,null,null,null,"INSERT INTO dbmanottbe.[dbo].Results_Import ([ImpSerieNum],[ImpPassage],[ImpMedalID],[ImpPoints],[ImpPointsHidden],[ImpCcrsID]) VALUES (,,NULL,NULL,,);"]
[null,null,null,null,null,null,null,null,null,null,null,null,null,null,null,null,null,null,null,null,null,null,"INSERT INTO dbmanottbe.[dbo].Results_Import ([ImpSerieNum],[ImpPassage],[ImpMedalID],[ImpPoints],[ImpPointsHidden],[ImpCcrsID]) VALUES (,,NULL,NULL,,);"]
[null,null,null,null,null,null,null,null,null,null,null,null,null,null,null,null,null,null,null,null,null,null,"INSERT INTO dbmanottbe.[dbo].Results_Import ([ImpSerieNum],[ImpPassage],[ImpMedalID],[ImpPoints],[ImpPointsHidden],[ImpCcrsID]) VALUES (,,NULL,NULL,,);"]
[null,null,null,null,null,null,null,null,null,null,null,null,null,null,null,null,null,null,null,null,null,null,"INSERT INTO dbmanottbe.[dbo].Results_Import ([ImpSerieNum],[ImpPassage],[ImpMedalID],[ImpPoints],[ImpPointsHidden],[ImpCcrsID]) VALUES (,,NULL,NULL,,);"]
[null,null,null,null,null,null,null,null,null,null,null,null,null,null,null,null,null,null,null,null,null,null,"INSERT INTO dbmanottbe.[dbo].Results_Import ([ImpSerieNum],[ImpPassage],[ImpMedalID],[ImpPoints],[ImpPointsHidden],[ImpCcrsID]) VALUES (,,NULL,NULL,,);"]
[null,null,null,null,null,null,null,null,null,null,null,null,null,null,null,null,null,null,null,null,null,null,"INSERT INTO dbmanottbe.[dbo].Results_Import ([ImpSerieNum],[ImpPassage],[ImpMedalID],[ImpPoints],[ImpPointsHidden],[ImpCcrsID]) VALUES (,,NULL,NULL,,);"]
[null,null,null,null,null,null,null,null,null,null,null,null,null,null,null,null,null,null,null,null,null,null,"INSERT INTO dbmanottbe.[dbo].Results_Import ([ImpSerieNum],[ImpPassage],[ImpMedalID],[ImpPoints],[ImpPointsHidden],[ImpCcrsID]) VALUES (,,NULL,NULL,,);"]
[null,null,null,null,null,null,null,null,null,null,null,null,null,null,null,null,null,null,null,null,null,null,"INSERT INTO dbmanottbe.[dbo].Results_Import ([ImpSerieNum],[ImpPassage],[ImpMedalID],[ImpPoints],[ImpPointsHidden],[ImpCcrsID]) VALUES (,,NULL,NULL,,);"]
[null,null,null,null,null,null,null,null,null,null,null,null,null,null,null,null,null,null,null,null,null,null,"INSERT INTO dbmanottbe.[dbo].Results_Import ([ImpSerieNum],[ImpPassage],[ImpMedalID],[ImpPoints],[ImpPointsHidden],[ImpCcrsID]) VALUES (,,NULL,NULL,,);"]
[null,null,null,null,null,null,null,null,null,null,null,null,null,null,null,null,null,null,null,null,null,null,"INSERT INTO dbmanottbe.[dbo].Results_Import ([ImpSerieNum],[ImpPassage],[ImpMedalID],[ImpPoints],[ImpPointsHidden],[ImpCcrsID]) VALUES (,,NULL,NULL,,);"]
[null,null,null,null,null,null,null,null,null,null,null,null,null,null,null,null,null,null,null,null,null,null,"INSERT INTO dbmanottbe.[dbo].Results_Import ([ImpSerieNum],[ImpPassage],[ImpMedalID],[ImpPoints],[ImpPointsHidden],[ImpCcrsID]) VALUES (,,NULL,NULL,,);"]
[null,null,null,null,null,null,null,null,null,null,null,null,null,null,null,null,null,null,null,null,null,null,"INSERT INTO dbmanottbe.[dbo].Results_Import ([ImpSerieNum],[ImpPassage],[ImpMedalID],[ImpPoints],[ImpPointsHidden],[ImpCcrsID]) VALUES (,,NULL,NULL,,);"]
[null,null,null,null,null,null,null,null,null,null,null,null,null,null,null,null,null,null,null,null,null,null,"INSERT INTO dbmanottbe.[dbo].Results_Import ([ImpSerieNum],[ImpPassage],[ImpMedalID],[ImpPoints],[ImpPointsHidden],[ImpCcrsID]) VALUES (,,NULL,NULL,,);"]
[null,null,null,null,null,null,null,null,null,null,null,null,null,null,null,null,null,null,null,null,null,null,"INSERT INTO dbmanottbe.[dbo].Results_Import ([ImpSerieNum],[ImpPassage],[ImpMedalID],[ImpPoints],[ImpPointsHidden],[ImpCcrsID]) VALUES (,,NULL,NULL,,);"]
[null,null,null,null,null,null,null,null,null,null,null,null,null,null,null,null,null,null,null,null,null,null,{"$f":"\"INSERT INTO \"&$U$2&\" ([ImpSerieNum],[ImpPassage],[ImpMedalID],[ImpPoints],[ImpPointsHidden],[ImpCcrsID]) VALUES (\"&B323&\",\"&C323&\",\"&IF(D323=\"\",\"NULL\",\"'\"&D323&\"'\")&\",\"&IF(E323=\"\",\"NULL\",SUBSTITUTE(E323,\",\",\".\"))&\",\"&SUBSTITUTE(F323,\",\",\".\")&\",\"&G323&\");\"","v":"INSERT INTO dbmanottbe.[dbo].Results_Import ([ImpSerieNum],[ImpPassage],[ImpMedalID],[ImpPoints],[ImpPointsHidden],[ImpCcrsID]) VALUES (,,NULL,NULL,,);"}]
[null,null,null,null,null,null,null,null,null,null,null,null,null,null,null,null,null,null,null,null,null,null,"INSERT INTO dbmanottbe.[dbo].Results_Import ([ImpSerieNum],[ImpPassage],[ImpMedalID],[ImpPoints],[ImpPointsHidden],[ImpCcrsID]) VALUES (,,NULL,NULL,,);"]
[null,null,null,null,null,null,null,null,null,null,null,null,null,null,null,null,null,null,null,null,null,null,"INSERT INTO dbmanottbe.[dbo].Results_Import ([ImpSerieNum],[ImpPassage],[ImpMedalID],[ImpPoints],[ImpPointsHidden],[ImpCcrsID]) VALUES (,,NULL,NULL,,);"]
[null,null,null,null,null,null,null,null,null,null,null,null,null,null,null,null,null,null,null,null,null,null,"INSERT INTO dbmanottbe.[dbo].Results_Import ([ImpSerieNum],[ImpPassage],[ImpMedalID],[ImpPoints],[ImpPointsHidden],[ImpCcrsID]) VALUES (,,NULL,NULL,,);"]
[null,null,null,null,null,null,null,null,null,null,null,null,null,null,null,null,null,null,null,null,null,null,"INSERT INTO dbmanottbe.[dbo].Results_Import ([ImpSerieNum],[ImpPassage],[ImpMedalID],[ImpPoints],[ImpPointsHidden],[ImpCcrsID]) VALUES (,,NULL,NULL,,);"]
[null,null,null,null,null,null,null,null,null,null,null,null,null,null,null,null,null,null,null,null,null,null,"INSERT INTO dbmanottbe.[dbo].Results_Import ([ImpSerieNum],[ImpPassage],[ImpMedalID],[ImpPoints],[ImpPointsHidden],[ImpCcrsID]) VALUES (,,NULL,NULL,,);"]
[null,null,null,null,null,null,null,null,null,null,null,null,null,null,null,null,null,null,null,null,null,null,"INSERT INTO dbmanottbe.[dbo].Results_Import ([ImpSerieNum],[ImpPassage],[ImpMedalID],[ImpPoints],[ImpPointsHidden],[ImpCcrsID]) VALUES (,,NULL,NULL,,);"]
[null,null,null,null,null,null,null,null,null,null,null,null,null,null,null,null,null,null,null,null,null,null,"INSERT INTO dbmanottbe.[dbo].Results_Import ([ImpSerieNum],[ImpPassage],[ImpMedalID],[ImpPoints],[ImpPointsHidden],[ImpCcrsID]) VALUES (,,NULL,NULL,,);"]
[null,null,null,null,null,null,null,null,null,null,null,null,null,null,null,null,null,null,null,null,null,null,"INSERT INTO dbmanottbe.[dbo].Results_Import ([ImpSerieNum],[ImpPassage],[ImpMedalID],[ImpPoints],[ImpPointsHidden],[ImpCcrsID]) VALUES (,,NULL,NULL,,);"]
[null,null,null,null,null,null,null,null,null,null,null,null,null,null,null,null,null,null,null,null,null,null,"INSERT INTO dbmanottbe.[dbo].Results_Import ([ImpSerieNum],[ImpPassage],[ImpMedalID],[ImpPoints],[ImpPointsHidden],[ImpCcrsID]) VALUES (,,NULL,NULL,,);"]
[null,null,null,null,null,null,null,null,null,null,null,null,null,null,null,null,null,null,null,null,null,null,"INSERT INTO dbmanottbe.[dbo].Results_Import ([ImpSerieNum],[ImpPassage],[ImpMedalID],[ImpPoints],[ImpPointsHidden],[ImpCcrsID]) VALUES (,,NULL,NULL,,);"]
[null,null,null,null,null,null,null,null,null,null,null,null,null,null,null,null,null,null,null,null,null,null,"INSERT INTO dbmanottbe.[dbo].Results_Import ([ImpSerieNum],[ImpPassage],[ImpMedalID],[ImpPoints],[ImpPointsHidden],[ImpCcrsID]) VALUES (,,NULL,NULL,,);"]
[null,null,null,null,null,null,null,null,null,null,null,null,null,null,null,null,null,null,null,null,null,null,"INSERT INTO dbmanottbe.[dbo].Results_Import ([ImpSerieNum],[ImpPassage],[ImpMedalID],[ImpPoints],[ImpPointsHidden],[ImpCcrsID]) VALUES (,,NULL,NULL,,);"]
[null,null,null,null,null,null,null,null,null,null,null,null,null,null,null,null,null,null,null,null,null,null,"INSERT INTO dbmanottbe.[dbo].Results_Import ([ImpSerieNum],[ImpPassage],[ImpMedalID],[ImpPoints],[ImpPointsHidden],[ImpCcrsID]) VALUES (,,NULL,NULL,,);"]
[null,null,null,null,null,null,null,null,null,null,null,null,null,null,null,null,null,null,null,null,null,null,"INSERT INTO dbmanottbe.[dbo].Results_Import ([ImpSerieNum],[ImpPassage],[ImpMedalID],[ImpPoints],[ImpPointsHidden],[ImpCcrsID]) VALUES (,,NULL,NULL,,);"]
[null,null,null,null,null,null,null,null,null,null,null,null,null,null,null,null,null,null,null,null,null,null,"INSERT INTO dbmanottbe.[dbo].Results_Import ([ImpSerieNum],[ImpPassage],[ImpMedalID],[ImpPoints],[ImpPointsHidden],[ImpCcrsID]) VALUES (,,NULL,NULL,,);"]
[null,null,null,null,null,null,null,null,null,null,null,null,null,null,null,null,null,null,null,null,null,null,"INSERT INTO dbmanottbe.[dbo].Results_Import ([ImpSerieNum],[ImpPassage],[ImpMedalID],[ImpPoints],[ImpPointsHidden],[ImpCcrsID]) VALUES (,,NULL,NULL,,);"]
[null,null,null,null,null,null,null,null,null,null,null,null,null,null,null,null,null,null,null,null,null,null,"INSERT INTO dbmanottbe.[dbo].Results_Import ([ImpSerieNum],[ImpPassage],[ImpMedalID],[ImpPoints],[ImpPointsHidden],[ImpCcrsID]) VALUES (,,NULL,NULL,,);"]
[null,null,null,null,null,null,null,null,null,null,null,null,null,null,null,null,null,null,null,null,null,null,"INSERT INTO dbmanottbe.[dbo].Results_Import ([ImpSerieNum],[ImpPassage],[ImpMedalID],[ImpPoints],[ImpPointsHidden],[ImpCcrsID]) VALUES (,,NULL,NULL,,);"]
[null,null,null,null,null,null,null,null,null,null,null,null,null,null,null,null,null,null,null,null,null,null,"INSERT INTO dbmanottbe.[dbo].Results_Import ([ImpSerieNum],[ImpPassage],[ImpMedalID],[ImpPoints],[ImpPointsHidden],[ImpCcrsID]) VALUES (,,NULL,NULL,,);"]
[null,null,null,null,null,null,null,null,null,null,null,null,null,null,null,null,null,null,null,null,null,null,"INSERT INTO dbmanottbe.[dbo].Results_Import ([ImpSerieNum],[ImpPassage],[ImpMedalID],[ImpPoints],[ImpPointsHidden],[ImpCcrsID]) VALUES (,,NULL,NULL,,);"]
[null,null,null,null,null,null,null,null,null,null,null,null,null,null,null,null,null,null,null,null,null,null,"INSERT INTO dbmanottbe.[dbo].Results_Import ([ImpSerieNum],[ImpPassage],[ImpMedalID],[ImpPoints],[ImpPointsHidden],[ImpCcrsID]) VALUES (,,NULL,NULL,,);"]
[null,null,null,null,null,null,null,null,null,null,null,null,null,null,null,null,null,null,null,null,null,null,"INSERT INTO dbmanottbe.[dbo].Results_Import ([ImpSerieNum],[ImpPassage],[ImpMedalID],[ImpPoints],[ImpPointsHidden],[ImpCcrsID]) VALUES (,,NULL,NULL,,);"]
[null,null,null,null,null,null,null,null,null,null,null,null,null,null,null,null,null,null,null,null,null,null,"INSERT INTO dbmanottbe.[dbo].Results_Import ([ImpSerieNum],[ImpPassage],[ImpMedalID],[ImpPoints],[ImpPointsHidden],[ImpCcrsID]) VALUES (,,NULL,NULL,,);"]
[null,null,null,null,null,null,null,null,null,null,null,null,null,null,null,null,null,null,null,null,null,null,"INSERT INTO dbmanottbe.[dbo].Results_Import ([ImpSerieNum],[ImpPassage],[ImpMedalID],[ImpPoints],[ImpPointsHidden],[ImpCcrsID]) VALUES (,,NULL,NULL,,);"]
[null,null,null,null,null,null,null,null,null,null,null,null,null,null,null,null,null,null,null,null,null,null,"INSERT INTO dbmanottbe.[dbo].Results_Import ([ImpSerieNum],[ImpPassage],[ImpMedalID],[ImpPoints],[ImpPointsHidden],[ImpCcrsID]) VALUES (,,NULL,NULL,,);"]
[null,null,null,null,null,null,null,null,null,null,null,null,null,null,null,null,null,null,null,null,null,null,"INSERT INTO dbmanottbe.[dbo].Results_Import ([ImpSerieNum],[ImpPassage],[ImpMedalID],[ImpPoints],[ImpPointsHidden],[ImpCcrsID]) VALUES (,,NULL,NULL,,);"]
[null,null,null,null,null,null,null,null,null,null,null,null,null,null,null,null,null,null,null,null,null,null,"INSERT INTO dbmanottbe.[dbo].Results_Import ([ImpSerieNum],[ImpPassage],[ImpMedalID],[ImpPoints],[ImpPointsHidden],[ImpCcrsID]) VALUES (,,NULL,NULL,,);"]
[null,null,null,null,null,null,null,null,null,null,null,null,null,null,null,null,null,null,null,null,null,null,"INSERT INTO dbmanottbe.[dbo].Results_Import ([ImpSerieNum],[ImpPassage],[ImpMedalID],[ImpPoints],[ImpPointsHidden],[ImpCcrsID]) VALUES (,,NULL,NULL,,);"]
[null,null,null,null,null,null,null,null,null,null,null,null,null,null,null,null,null,null,null,null,null,null,"INSERT INTO dbmanottbe.[dbo].Results_Import ([ImpSerieNum],[ImpPassage],[ImpMedalID],[ImpPoints],[ImpPointsHidden],[ImpCcrsID]) VALUES (,,NULL,NULL,,);"]
[null,null,null,null,null,null,null,null,null,null,null,null,null,null,null,null,null,null,null,null,null,null,"INSERT INTO dbmanottbe.[dbo].Results_Import ([ImpSerieNum],[ImpPassage],[ImpMedalID],[ImpPoints],[ImpPointsHidden],[ImpCcrsID]) VALUES (,,NULL,NULL,,);"]
[null,null,null,null,null,null,null,null,null,null,null,null,null,null,null,null,null,null,null,null,null,null,"INSERT INTO dbmanottbe.[dbo].Results_Import ([ImpSerieNum],[ImpPassage],[ImpMedalID],[ImpPoints],[ImpPointsHidden],[ImpCcrsID]) VALUES (,,NULL,NULL,,);"]
[null,null,null,null,null,null,null,null,null,null,null,null,null,null,null,null,null,null,null,null,null,null,"INSERT INTO dbmanottbe.[dbo].Results_Import ([ImpSerieNum],[ImpPassage],[ImpMedalID],[ImpPoints],[ImpPointsHidden],[ImpCcrsID]) VALUES (,,NULL,NULL,,);"]
[null,null,null,null,null,null,null,null,null,null,null,null,null,null,null,null,null,null,null,null,null,null,"INSERT INTO dbmanottbe.[dbo].Results_Import ([ImpSerieNum],[ImpPassage],[ImpMedalID],[ImpPoints],[ImpPointsHidden],[ImpCcrsID]) VALUES (,,NULL,NULL,,);"]
[null,null,null,null,null,null,null,null,null,null,null,null,null,null,null,null,null,null,null,null,null,null,"INSERT INTO dbmanottbe.[dbo].Results_Import ([ImpSerieNum],[ImpPassage],[ImpMedalID],[ImpPoints],[ImpPointsHidden],[ImpCcrsID]) VALUES (,,NULL,NULL,,);"]
[null,null,null,null,null,null,null,null,null,null,null,null,null,null,null,null,null,null,null,null,null,null,"INSERT INTO dbmanottbe.[dbo].Results_Import ([ImpSerieNum],[ImpPassage],[ImpMedalID],[ImpPoints],[ImpPointsHidden],[ImpCcrsID]) VALUES (,,NULL,NULL,,);"]
[null,null,null,null,null,null,null,null,null,null,null,null,null,null,null,null,null,null,null,null,null,null,"INSERT INTO dbmanottbe.[dbo].Results_Import ([ImpSerieNum],[ImpPassage],[ImpMedalID],[ImpPoints],[ImpPointsHidden],[ImpCcrsID]) VALUES (,,NULL,NULL,,);"]
[null,null,null,null,null,null,null,null,null,null,null,null,null,null,null,null,null,null,null,null,null,null,"INSERT INTO dbmanottbe.[dbo].Results_Import ([ImpSerieNum],[ImpPassage],[ImpMedalID],[ImpPoints],[ImpPointsHidden],[ImpCcrsID]) VALUES (,,NULL,NULL,,);"]
[null,null,null,null,null,null,null,null,null,null,null,null,null,null,null,null,null,null,null,null,null,null,"INSERT INTO dbmanottbe.[dbo].Results_Import ([ImpSerieNum],[ImpPassage],[ImpMedalID],[ImpPoints],[ImpPointsHidden],[ImpCcrsID]) VALUES (,,NULL,NULL,,);"]
[null,null,null,null,null,null,null,null,null,null,null,null,null,null,null,null,null,null,null,null,null,null,"INSERT INTO dbmanottbe.[dbo].Results_Import ([ImpSerieNum],[ImpPassage],[ImpMedalID],[ImpPoints],[ImpPointsHidden],[ImpCcrsID]) VALUES (,,NULL,NULL,,);"]
[null,null,null,null,null,null,null,null,null,null,null,null,null,null,null,null,null,null,null,null,null,null,"INSERT INTO dbmanottbe.[dbo].Results_Import ([ImpSerieNum],[ImpPassage],[ImpMedalID],[ImpPoints],[ImpPointsHidden],[ImpCcrsID]) VALUES (,,NULL,NULL,,);"]
[null,null,null,null,null,null,null,null,null,null,null,null,null,null,null,null,null,null,null,null,null,null,"INSERT INTO dbmanottbe.[dbo].Results_Import ([ImpSerieNum],[ImpPassage],[ImpMedalID],[ImpPoints],[ImpPointsHidden],[ImpCcrsID]) VALUES (,,NULL,NULL,,);"]
[null,null,null,null,null,null,null,null,null,null,null,null,null,null,null,null,null,null,null,null,null,null,"INSERT INTO dbmanottbe.[dbo].Results_Import ([ImpSerieNum],[ImpPassage],[ImpMedalID],[ImpPoints],[ImpPointsHidden],[ImpCcrsID]) VALUES (,,NULL,NULL,,);"]
[null,null,null,null,null,null,null,null,null,null,null,null,null,null,null,null,null,null,null,null,null,null,"INSERT INTO dbmanottbe.[dbo].Results_Import ([ImpSerieNum],[ImpPassage],[ImpMedalID],[ImpPoints],[ImpPointsHidden],[ImpCcrsID]) VALUES (,,NULL,NULL,,);"]
[null,null,null,null,null,null,null,null,null,null,null,null,null,null,null,null,null,null,null,null,null,null,"INSERT INTO dbmanottbe.[dbo].Results_Import ([ImpSerieNum],[ImpPassage],[ImpMedalID],[ImpPoints],[ImpPointsHidden],[ImpCcrsID]) VALUES (,,NULL,NULL,,);"]
[null,null,null,null,null,null,null,null,null,null,null,null,null,null,null,null,null,null,null,null,null,null,"INSERT INTO dbmanottbe.[dbo].Results_Import ([ImpSerieNum],[ImpPassage],[ImpMedalID],[ImpPoints],[ImpPointsHidden],[ImpCcrsID]) VALUES (,,NULL,NULL,,);"]
[null,null,null,null,null,null,null,null,null,null,null,null,null,null,null,null,null,null,null,null,null,null,"INSERT INTO dbmanottbe.[dbo].Results_Import ([ImpSerieNum],[ImpPassage],[ImpMedalID],[ImpPoints],[ImpPointsHidden],[ImpCcrsID]) VALUES (,,NULL,NULL,,);"]
[null,null,null,null,null,null,null,null,null,null,null,null,null,null,null,null,null,null,null,null,null,null,"INSERT INTO dbmanottbe.[dbo].Results_Import ([ImpSerieNum],[ImpPassage],[ImpMedalID],[ImpPoints],[ImpPointsHidden],[ImpCcrsID]) VALUES (,,NULL,NULL,,);"]
[null,null,null,null,null,null,null,null,null,null,null,null,null,null,null,null,null,null,null,null,null,null,"INSERT INTO dbmanottbe.[dbo].Results_Import ([ImpSerieNum],[ImpPassage],[ImpMedalID],[ImpPoints],[ImpPointsHidden],[ImpCcrsID]) VALUES (,,NULL,NULL,,);"]
[null,null,null,null,null,null,null,null,null,null,null,null,null,null,null,null,null,null,null,null,null,null,"INSERT INTO dbmanottbe.[dbo].Results_Import ([ImpSerieNum],[ImpPassage],[ImpMedalID],[ImpPoints],[ImpPointsHidden],[ImpCcrsID]) VALUES (,,NULL,NULL,,);"]
[null,null,null,null,null,null,null,null,null,null,null,null,null,null,null,null,null,null,null,null,null,null,"INSERT INTO dbmanottbe.[dbo].Results_Import ([ImpSerieNum],[ImpPassage],[ImpMedalID],[ImpPoints],[ImpPointsHidden],[ImpCcrsID]) VALUES (,,NULL,NULL,,);"]
[null,null,null,null,null,null,null,null,null,null,null,null,null,null,null,null,null,null,null,null,null,null,"INSERT INTO dbmanottbe.[dbo].Results_Import ([ImpSerieNum],[ImpPassage],[ImpMedalID],[ImpPoints],[ImpPointsHidden],[ImpCcrsID]) VALUES (,,NULL,NULL,,);"]
[null,null,null,null,null,null,null,null,null,null,null,null,null,null,null,null,null,null,null,null,null,null,"INSERT INTO dbmanottbe.[dbo].Results_Import ([ImpSerieNum],[ImpPassage],[ImpMedalID],[ImpPoints],[ImpPointsHidden],[ImpCcrsID]) VALUES (,,NULL,NULL,,);"]
[null,null,null,null,null,null,null,null,null,null,null,null,null,null,null,null,null,null,null,null,null,null,"INSERT INTO dbmanottbe.[dbo].Results_Import ([ImpSerieNum],[ImpPassage],[ImpMedalID],[ImpPoints],[ImpPointsHidden],[ImpCcrsID]) VALUES (,,NULL,NULL,,);"]
[null,null,null,null,null,null,null,null,null,null,null,null,null,null,null,null,null,null,null,null,null,null,"INSERT INTO dbmanottbe.[dbo].Results_Import ([ImpSerieNum],[ImpPassage],[ImpMedalID],[ImpPoints],[ImpPointsHidden],[ImpCcrsID]) VALUES (,,NULL,NULL,,);"]
[null,null,null,null,null,null,null,null,null,null,null,null,null,null,null,null,null,null,null,null,null,null,"INSERT INTO dbmanottbe.[dbo].Results_Import ([ImpSerieNum],[ImpPassage],[ImpMedalID],[ImpPoints],[ImpPointsHidden],[ImpCcrsID]) VALUES (,,NULL,NULL,,);"]
[null,null,null,null,null,null,null,null,null,null,null,null,null,null,null,null,null,null,null,null,null,null,"INSERT INTO dbmanottbe.[dbo].Results_Import ([ImpSerieNum],[ImpPassage],[ImpMedalID],[ImpPoints],[ImpPointsHidden],[ImpCcrsID]) VALUES (,,NULL,NULL,,);"]
[null,null,null,null,null,null,null,null,null,null,null,null,null,null,null,null,null,null,null,null,null,null,"INSERT INTO dbmanottbe.[dbo].Results_Import ([ImpSerieNum],[ImpPassage],[ImpMedalID],[ImpPoints],[ImpPointsHidden],[ImpCcrsID]) VALUES (,,NULL,NULL,,);"]
[null,null,null,null,null,null,null,null,null,null,null,null,null,null,null,null,null,null,null,null,null,null,"INSERT INTO dbmanottbe.[dbo].Results_Import ([ImpSerieNum],[ImpPassage],[ImpMedalID],[ImpPoints],[ImpPointsHidden],[ImpCcrsID]) VALUES (,,NULL,NULL,,);"]
[null,null,null,null,null,null,null,null,null,null,null,null,null,null,null,null,null,null,null,null,null,null,"INSERT INTO dbmanottbe.[dbo].Results_Import ([ImpSerieNum],[ImpPassage],[ImpMedalID],[ImpPoints],[ImpPointsHidden],[ImpCcrsID]) VALUES (,,NULL,NULL,,);"]
[null,null,null,null,null,null,null,null,null,null,null,null,null,null,null,null,null,null,null,null,null,null,"INSERT INTO dbmanottbe.[dbo].Results_Import ([ImpSerieNum],[ImpPassage],[ImpMedalID],[ImpPoints],[ImpPointsHidden],[ImpCcrsID]) VALUES (,,NULL,NULL,,);"]
[null,null,null,null,null,null,null,null,null,null,null,null,null,null,null,null,null,null,null,null,null,null,"INSERT INTO dbmanottbe.[dbo].Results_Import ([ImpSerieNum],[ImpPassage],[ImpMedalID],[ImpPoints],[ImpPointsHidden],[ImpCcrsID]) VALUES (,,NULL,NULL,,);"]
[null,null,null,null,null,null,null,null,null,null,null,null,null,null,null,null,null,null,null,null,null,null,"INSERT INTO dbmanottbe.[dbo].Results_Import ([ImpSerieNum],[ImpPassage],[ImpMedalID],[ImpPoints],[ImpPointsHidden],[ImpCcrsID]) VALUES (,,NULL,NULL,,);"]
[null,null,null,null,null,null,null,null,null,null,null,null,null,null,null,null,null,null,null,null,null,null,"INSERT INTO dbmanottbe.[dbo].Results_Import ([ImpSerieNum],[ImpPassage],[ImpMedalID],[ImpPoints],[ImpPointsHidden],[ImpCcrsID]) VALUES (,,NULL,NULL,,);"]
[null,null,null,null,null,null,null,null,null,null,null,null,null,null,null,null,null,null,null,null,null,null,{"$f":"\"INSERT INTO \"&$U$2&\" ([ImpSerieNum],[ImpPassage],[ImpMedalID],[ImpPoints],[ImpPointsHidden],[ImpCcrsID]) VALUES (\"&B387&\",\"&C387&\",\"&IF(D387=\"\",\"NULL\",\"'\"&D387&\"'\")&\",\"&IF(E387=\"\",\"NULL\",SUBSTITUTE(E387,\",\",\".\"))&\",\"&SUBSTITUTE(F387,\",\",\".\")&\",\"&G387&\");\"","v":"INSERT INTO dbmanottbe.[dbo].Results_Import ([ImpSerieNum],[ImpPassage],[ImpMedalID],[ImpPoints],[ImpPointsHidden],[ImpCcrsID]) VALUES (,,NULL,NULL,,);"}]
[null,null,null,null,null,null,null,null,null,null,null,null,null,null,null,null,null,null,null,null,null,null,"INSERT INTO dbmanottbe.[dbo].Results_Import ([ImpSerieNum],[ImpPassage],[ImpMedalID],[ImpPoints],[ImpPointsHidden],[ImpCcrsID]) VALUES (,,NULL,NULL,,);"]
[null,null,null,null,null,null,null,null,null,null,null,null,null,null,null,null,null,null,null,null,null,null,"INSERT INTO dbmanottbe.[dbo].Results_Import ([ImpSerieNum],[ImpPassage],[ImpMedalID],[ImpPoints],[ImpPointsHidden],[ImpCcrsID]) VALUES (,,NULL,NULL,,);"]
[null,null,null,null,null,null,null,null,null,null,null,null,null,null,null,null,null,null,null,null,null,null,"INSERT INTO dbmanottbe.[dbo].Results_Import ([ImpSerieNum],[ImpPassage],[ImpMedalID],[ImpPoints],[ImpPointsHidden],[ImpCcrsID]) VALUES (,,NULL,NULL,,);"]
[null,null,null,null,null,null,null,null,null,null,null,null,null,null,null,null,null,null,null,null,null,null,"INSERT INTO dbmanottbe.[dbo].Results_Import ([ImpSerieNum],[ImpPassage],[ImpMedalID],[ImpPoints],[ImpPointsHidden],[ImpCcrsID]) VALUES (,,NULL,NULL,,);"]
[null,null,null,null,null,null,null,null,null,null,null,null,null,null,null,null,null,null,null,null,null,null,"INSERT INTO dbmanottbe.[dbo].Results_Import ([ImpSerieNum],[ImpPassage],[ImpMedalID],[ImpPoints],[ImpPointsHidden],[ImpCcrsID]) VALUES (,,NULL,NULL,,);"]
[null,null,null,null,null,null,null,null,null,null,null,null,null,null,null,null,null,null,null,null,null,null,"INSERT INTO dbmanottbe.[dbo].Results_Import ([ImpSerieNum],[ImpPassage],[ImpMedalID],[ImpPoints],[ImpPointsHidden],[ImpCcrsID]) VALUES (,,NULL,NULL,,);"]
[null,null,null,null,null,null,null,null,null,null,null,null,null,null,null,null,null,null,null,null,null,null,"INSERT INTO dbmanottbe.[dbo].Results_Import ([ImpSerieNum],[ImpPassage],[ImpMedalID],[ImpPoints],[ImpPointsHidden],[ImpCcrsID]) VALUES (,,NULL,NULL,,);"]
[null,null,null,null,null,null,null,null,null,null,null,null,null,null,null,null,null,null,null,null,null,null,"INSERT INTO dbmanottbe.[dbo].Results_Import ([ImpSerieNum],[ImpPassage],[ImpMedalID],[ImpPoints],[ImpPointsHidden],[ImpCcrsID]) VALUES (,,NULL,NULL,,);"]
[null,null,null,null,null,null,null,null,null,null,null,null,null,null,null,null,null,null,null,null,null,null,"INSERT INTO dbmanottbe.[dbo].Results_Import ([ImpSerieNum],[ImpPassage],[ImpMedalID],[ImpPoints],[ImpPointsHidden],[ImpCcrsID]) VALUES (,,NULL,NULL,,);"]
[null,null,null,null,null,null,null,null,null,null,null,null,null,null,null,null,null,null,null,null,null,null,"INSERT INTO dbmanottbe.[dbo].Results_Import ([ImpSerieNum],[ImpPassage],[ImpMedalID],[ImpPoints],[ImpPointsHidden],[ImpCcrsID]) VALUES (,,NULL,NULL,,);"]
[null,null,null,null,null,null,null,null,null,null,null,null,null,null,null,null,null,null,null,null,null,null,"INSERT INTO dbmanottbe.[dbo].Results_Import ([ImpSerieNum],[ImpPassage],[ImpMedalID],[ImpPoints],[ImpPointsHidden],[ImpCcrsID]) VALUES (,,NULL,NULL,,);"]
[null,null,null,null,null,null,null,null,null,null,null,null,null,null,null,null,null,null,null,null,null,null,"INSERT INTO dbmanottbe.[dbo].Results_Import ([ImpSerieNum],[ImpPassage],[ImpMedalID],[ImpPoints],[ImpPointsHidden],[ImpCcrsID]) VALUES (,,NULL,NULL,,);"]
[null,null,null,null,null,null,null,null,null,null,null,null,null,null,null,null,null,null,null,null,null,null,"INSERT INTO dbmanottbe.[dbo].Results_Import ([ImpSerieNum],[ImpPassage],[ImpMedalID],[ImpPoints],[ImpPointsHidden],[ImpCcrsID]) VALUES (,,NULL,NULL,,);"]
[null,null,null,null,null,null,null,null,null,null,null,null,null,null,null,null,null,null,null,null,null,null,"INSERT INTO dbmanottbe.[dbo].Results_Import ([ImpSerieNum],[ImpPassage],[ImpMedalID],[ImpPoints],[ImpPointsHidden],[ImpCcrsID]) VALUES (,,NULL,NULL,,);"]
[null,null,null,null,null,null,null,null,null,null,null,null,null,null,null,null,null,null,null,null,null,null,"INSERT INTO dbmanottbe.[dbo].Results_Import ([ImpSerieNum],[ImpPassage],[ImpMedalID],[ImpPoints],[ImpPointsHidden],[ImpCcrsID]) VALUES (,,NULL,NULL,,);"]
[null,null,null,null,null,null,null,null,null,null,null,null,null,null,null,null,null,null,null,null,null,null,"INSERT INTO dbmanottbe.[dbo].Results_Import ([ImpSerieNum],[ImpPassage],[ImpMedalID],[ImpPoints],[ImpPointsHidden],[ImpCcrsID]) VALUES (,,NULL,NULL,,);"]
[null,null,null,null,null,null,null,null,null,null,null,null,null,null,null,null,null,null,null,null,null,null,"INSERT INTO dbmanottbe.[dbo].Results_Import ([ImpSerieNum],[ImpPassage],[ImpMedalID],[ImpPoints],[ImpPointsHidden],[ImpCcrsID]) VALUES (,,NULL,NULL,,);"]
[null,null,null,null,null,null,null,null,null,null,null,null,null,null,null,null,null,null,null,null,null,null,"INSERT INTO dbmanottbe.[dbo].Results_Import ([ImpSerieNum],[ImpPassage],[ImpMedalID],[ImpPoints],[ImpPointsHidden],[ImpCcrsID]) VALUES (,,NULL,NULL,,);"]
[null,null,null,null,null,null,null,null,null,null,null,null,null,null,null,null,null,null,null,null,null,null,"INSERT INTO dbmanottbe.[dbo].Results_Import ([ImpSerieNum],[ImpPassage],[ImpMedalID],[ImpPoints],[ImpPointsHidden],[ImpCcrsID]) VALUES (,,NULL,NULL,,);"]
[null,null,null,null,null,null,null,null,null,null,null,null,null,null,null,null,null,null,null,null,null,null,"INSERT INTO dbmanottbe.[dbo].Results_Import ([ImpSerieNum],[ImpPassage],[ImpMedalID],[ImpPoints],[ImpPointsHidden],[ImpCcrsID]) VALUES (,,NULL,NULL,,);"]
[null,null,null,null,null,null,null,null,null,null,null,null,null,null,null,null,null,null,null,null,null,null,"INSERT INTO dbmanottbe.[dbo].Results_Import ([ImpSerieNum],[ImpPassage],[ImpMedalID],[ImpPoints],[ImpPointsHidden],[ImpCcrsID]) VALUES (,,NULL,NULL,,);"]
[null,null,null,null,null,null,null,null,null,null,null,null,null,null,null,null,null,null,null,null,null,null,"INSERT INTO dbmanottbe.[dbo].Results_Import ([ImpSerieNum],[ImpPassage],[ImpMedalID],[ImpPoints],[ImpPointsHidden],[ImpCcrsID]) VALUES (,,NULL,NULL,,);"]
[null,null,null,null,null,null,null,null,null,null,null,null,null,null,null,null,null,null,null,null,null,null,"INSERT INTO dbmanottbe.[dbo].Results_Import ([ImpSerieNum],[ImpPassage],[ImpMedalID],[ImpPoints],[ImpPointsHidden],[ImpCcrsID]) VALUES (,,NULL,NULL,,);"]
[null,null,null,null,null,null,null,null,null,null,null,null,null,null,null,null,null,null,null,null,null,null,"INSERT INTO dbmanottbe.[dbo].Results_Import ([ImpSerieNum],[ImpPassage],[ImpMedalID],[ImpPoints],[ImpPointsHidden],[ImpCcrsID]) VALUES (,,NULL,NULL,,);"]
[null,null,null,null,null,null,null,null,null,null,null,null,null,null,null,null,null,null,null,null,null,null,"INSERT INTO dbmanottbe.[dbo].Results_Import ([ImpSerieNum],[ImpPassage],[ImpMedalID],[ImpPoints],[ImpPointsHidden],[ImpCcrsID]) VALUES (,,NULL,NULL,,);"]
[null,null,null,null,null,null,null,null,null,null,null,null,null,null,null,null,null,null,null,null,null,null,"INSERT INTO dbmanottbe.[dbo].Results_Import ([ImpSerieNum],[ImpPassage],[ImpMedalID],[ImpPoints],[ImpPointsHidden],[ImpCcrsID]) VALUES (,,NULL,NULL,,);"]
[null,null,null,null,null,null,null,null,null,null,null,null,null,null,null,null,null,null,null,null,null,null,"INSERT INTO dbmanottbe.[dbo].Results_Import ([ImpSerieNum],[ImpPassage],[ImpMedalID],[ImpPoints],[ImpPointsHidden],[ImpCcrsID]) VALUES (,,NULL,NULL,,);"]
[null,null,null,null,null,null,null,null,null,null,null,null,null,null,null,null,null,null,null,null,null,null,"INSERT INTO dbmanottbe.[dbo].Results_Import ([ImpSerieNum],[ImpPassage],[ImpMedalID],[ImpPoints],[ImpPointsHidden],[ImpCcrsID]) VALUES (,,NULL,NULL,,);"]
[null,null,null,null,null,null,null,null,null,null,null,null,null,null,null,null,null,null,null,null,null,null,"INSERT INTO dbmanottbe.[dbo].Results_Import ([ImpSerieNum],[ImpPassage],[ImpMedalID],[ImpPoints],[ImpPointsHidden],[ImpCcrsID]) VALUES (,,NULL,NULL,,);"]
[null,null,null,null,null,null,null,null,null,null,null,null,null,null,null,null,null,null,null,null,null,null,"INSERT INTO dbmanottbe.[dbo].Results_Import ([ImpSerieNum],[ImpPassage],[ImpMedalID],[ImpPoints],[ImpPointsHidden],[ImpCcrsID]) VALUES (,,NULL,NULL,,);"]
[null,null,null,null,null,null,null,null,null,null,null,null,null,null,null,null,null,null,null,null,null,null,"INSERT INTO dbmanottbe.[dbo].Results_Import ([ImpSerieNum],[ImpPassage],[ImpMedalID],[ImpPoints],[ImpPointsHidden],[ImpCcrsID]) VALUES (,,NULL,NULL,,);"]
[null,null,null,null,null,null,null,null,null,null,null,null,null,null,null,null,null,null,null,null,null,null,"INSERT INTO dbmanottbe.[dbo].Results_Import ([ImpSerieNum],[ImpPassage],[ImpMedalID],[ImpPoints],[ImpPointsHidden],[ImpCcrsID]) VALUES (,,NULL,NULL,,);"]
[null,null,null,null,null,null,null,null,null,null,null,null,null,null,null,null,null,null,null,null,null,null,"INSERT INTO dbmanottbe.[dbo].Results_Import ([ImpSerieNum],[ImpPassage],[ImpMedalID],[ImpPoints],[ImpPointsHidden],[ImpCcrsID]) VALUES (,,NULL,NULL,,);"]
[null,null,null,null,null,null,null,null,null,null,null,null,null,null,null,null,null,null,null,null,null,null,"INSERT INTO dbmanottbe.[dbo].Results_Import ([ImpSerieNum],[ImpPassage],[ImpMedalID],[ImpPoints],[ImpPointsHidden],[ImpCcrsID]) VALUES (,,NULL,NULL,,);"]
[null,null,null,null,null,null,null,null,null,null,null,null,null,null,null,null,null,null,null,null,null,null,"INSERT INTO dbmanottbe.[dbo].Results_Import ([ImpSerieNum],[ImpPassage],[ImpMedalID],[ImpPoints],[ImpPointsHidden],[ImpCcrsID]) VALUES (,,NULL,NULL,,);"]
[null,null,null,null,null,null,null,null,null,null,null,null,null,null,null,null,null,null,null,null,null,null,"INSERT INTO dbmanottbe.[dbo].Results_Import ([ImpSerieNum],[ImpPassage],[ImpMedalID],[ImpPoints],[ImpPointsHidden],[ImpCcrsID]) VALUES (,,NULL,NULL,,);"]
[null,null,null,null,null,null,null,null,null,null,null,null,null,null,null,null,null,null,null,null,null,null,"INSERT INTO dbmanottbe.[dbo].Results_Import ([ImpSerieNum],[ImpPassage],[ImpMedalID],[ImpPoints],[ImpPointsHidden],[ImpCcrsID]) VALUES (,,NULL,NULL,,);"]
[null,null,null,null,null,null,null,null,null,null,null,null,null,null,null,null,null,null,null,null,null,null,"INSERT INTO dbmanottbe.[dbo].Results_Import ([ImpSerieNum],[ImpPassage],[ImpMedalID],[ImpPoints],[ImpPointsHidden],[ImpCcrsID]) VALUES (,,NULL,NULL,,);"]
[null,null,null,null,null,null,null,null,null,null,null,null,null,null,null,null,null,null,null,null,null,null,"INSERT INTO dbmanottbe.[dbo].Results_Import ([ImpSerieNum],[ImpPassage],[ImpMedalID],[ImpPoints],[ImpPointsHidden],[ImpCcrsID]) VALUES (,,NULL,NULL,,);"]
[null,null,null,null,null,null,null,null,null,null,null,null,null,null,null,null,null,null,null,null,null,null,"INSERT INTO dbmanottbe.[dbo].Results_Import ([ImpSerieNum],[ImpPassage],[ImpMedalID],[ImpPoints],[ImpPointsHidden],[ImpCcrsID]) VALUES (,,NULL,NULL,,);"]
[null,null,null,null,null,null,null,null,null,null,null,null,null,null,null,null,null,null,null,null,null,null,"INSERT INTO dbmanottbe.[dbo].Results_Import ([ImpSerieNum],[ImpPassage],[ImpMedalID],[ImpPoints],[ImpPointsHidden],[ImpCcrsID]) VALUES (,,NULL,NULL,,);"]
[null,null,null,null,null,null,null,null,null,null,null,null,null,null,null,null,null,null,null,null,null,null,"INSERT INTO dbmanottbe.[dbo].Results_Import ([ImpSerieNum],[ImpPassage],[ImpMedalID],[ImpPoints],[ImpPointsHidden],[ImpCcrsID]) VALUES (,,NULL,NULL,,);"]
[null,null,null,null,null,null,null,null,null,null,null,null,null,null,null,null,null,null,null,null,null,null,"INSERT INTO dbmanottbe.[dbo].Results_Import ([ImpSerieNum],[ImpPassage],[ImpMedalID],[ImpPoints],[ImpPointsHidden],[ImpCcrsID]) VALUES (,,NULL,NULL,,);"]
[null,null,null,null,null,null,null,null,null,null,null,null,null,null,null,null,null,null,null,null,null,null,"INSERT INTO dbmanottbe.[dbo].Results_Import ([ImpSerieNum],[ImpPassage],[ImpMedalID],[ImpPoints],[ImpPointsHidden],[ImpCcrsID]) VALUES (,,NULL,NULL,,);"]
[null,null,null,null,null,null,null,null,null,null,null,null,null,null,null,null,null,null,null,null,null,null,"INSERT INTO dbmanottbe.[dbo].Results_Import ([ImpSerieNum],[ImpPassage],[ImpMedalID],[ImpPoints],[ImpPointsHidden],[ImpCcrsID]) VALUES (,,NULL,NULL,,);"]
[null,null,null,null,null,null,null,null,null,null,null,null,null,null,null,null,null,null,null,null,null,null,"INSERT INTO dbmanottbe.[dbo].Results_Import ([ImpSerieNum],[ImpPassage],[ImpMedalID],[ImpPoints],[ImpPointsHidden],[ImpCcrsID]) VALUES (,,NULL,NULL,,);"]
[null,null,null,null,null,null,null,null,null,null,null,null,null,null,null,null,null,null,null,null,null,null,"INSERT INTO dbmanottbe.[dbo].Results_Import ([ImpSerieNum],[ImpPassage],[ImpMedalID],[ImpPoints],[ImpPointsHidden],[ImpCcrsID]) VALUES (,,NULL,NULL,,);"]
[null,null,null,null,null,null,null,null,null,null,null,null,null,null,null,null,null,null,null,null,null,null,"INSERT INTO dbmanottbe.[dbo].Results_Import ([ImpSerieNum],[ImpPassage],[ImpMedalID],[ImpPoints],[ImpPointsHidden],[ImpCcrsID]) VALUES (,,NULL,NULL,,);"]
[null,null,null,null,null,null,null,null,null,null,null,null,null,null,null,null,null,null,null,null,null,null,"INSERT INTO dbmanottbe.[dbo].Results_Import ([ImpSerieNum],[ImpPassage],[ImpMedalID],[ImpPoints],[ImpPointsHidden],[ImpCcrsID]) VALUES (,,NULL,NULL,,);"]
[null,null,null,null,null,null,null,null,null,null,null,null,null,null,null,null,null,null,null,null,null,null,"INSERT INTO dbmanottbe.[dbo].Results_Import ([ImpSerieNum],[ImpPassage],[ImpMedalID],[ImpPoints],[ImpPointsHidden],[ImpCcrsID]) VALUES (,,NULL,NULL,,);"]
[null,null,null,null,null,null,null,null,null,null,null,null,null,null,null,null,null,null,null,null,null,null,"INSERT INTO dbmanottbe.[dbo].Results_Import ([ImpSerieNum],[ImpPassage],[ImpMedalID],[ImpPoints],[ImpPointsHidden],[ImpCcrsID]) VALUES (,,NULL,NULL,,);"]
[null,null,null,null,null,null,null,null,null,null,null,null,null,null,null,null,null,null,null,null,null,null,"INSERT INTO dbmanottbe.[dbo].Results_Import ([ImpSerieNum],[ImpPassage],[ImpMedalID],[ImpPoints],[ImpPointsHidden],[ImpCcrsID]) VALUES (,,NULL,NULL,,);"]
[null,null,null,null,null,null,null,null,null,null,null,null,null,null,null,null,null,null,null,null,null,null,"INSERT INTO dbmanottbe.[dbo].Results_Import ([ImpSerieNum],[ImpPassage],[ImpMedalID],[ImpPoints],[ImpPointsHidden],[ImpCcrsID]) VALUES (,,NULL,NULL,,);"]
[null,null,null,null,null,null,null,null,null,null,null,null,null,null,null,null,null,null,null,null,null,null,"INSERT INTO dbmanottbe.[dbo].Results_Import ([ImpSerieNum],[ImpPassage],[ImpMedalID],[ImpPoints],[ImpPointsHidden],[ImpCcrsID]) VALUES (,,NULL,NULL,,);"]
[null,null,null,null,null,null,null,null,null,null,null,null,null,null,null,null,null,null,null,null,null,null,"INSERT INTO dbmanottbe.[dbo].Results_Import ([ImpSerieNum],[ImpPassage],[ImpMedalID],[ImpPoints],[ImpPointsHidden],[ImpCcrsID]) VALUES (,,NULL,NULL,,);"]
[null,null,null,null,null,null,null,null,null,null,null,null,null,null,null,null,null,null,null,null,null,null,"INSERT INTO dbmanottbe.[dbo].Results_Import ([ImpSerieNum],[ImpPassage],[ImpMedalID],[ImpPoints],[ImpPointsHidden],[ImpCcrsID]) VALUES (,,NULL,NULL,,);"]
[null,null,null,null,null,null,null,null,null,null,null,null,null,null,null,null,null,null,null,null,null,null,"INSERT INTO dbmanottbe.[dbo].Results_Import ([ImpSerieNum],[ImpPassage],[ImpMedalID],[ImpPoints],[ImpPointsHidden],[ImpCcrsID]) VALUES (,,NULL,NULL,,);"]
[null,null,null,null,null,null,null,null,null,null,null,null,null,null,null,null,null,null,null,null,null,null,"INSERT INTO dbmanottbe.[dbo].Results_Import ([ImpSerieNum],[ImpPassage],[ImpMedalID],[ImpPoints],[ImpPointsHidden],[ImpCcrsID]) VALUES (,,NULL,NULL,,);"]
[null,null,null,null,null,null,null,null,null,null,null,null,null,null,null,null,null,null,null,null,null,null,"INSERT INTO dbmanottbe.[dbo].Results_Import ([ImpSerieNum],[ImpPassage],[ImpMedalID],[ImpPoints],[ImpPointsHidden],[ImpCcrsID]) VALUES (,,NULL,NULL,,);"]
[null,null,null,null,null,null,null,null,null,null,null,null,null,null,null,null,null,null,null,null,null,null,"INSERT INTO dbmanottbe.[dbo].Results_Import ([ImpSerieNum],[ImpPassage],[ImpMedalID],[ImpPoints],[ImpPointsHidden],[ImpCcrsID]) VALUES (,,NULL,NULL,,);"]
[null,null,null,null,null,null,null,null,null,null,null,null,null,null,null,null,null,null,null,null,null,null,"INSERT INTO dbmanottbe.[dbo].Results_Import ([ImpSerieNum],[ImpPassage],[ImpMedalID],[ImpPoints],[ImpPointsHidden],[ImpCcrsID]) VALUES (,,NULL,NULL,,);"]
[null,null,null,null,null,null,null,null,null,null,null,null,null,null,null,null,null,null,null,null,null,null,"INSERT INTO dbmanottbe.[dbo].Results_Import ([ImpSerieNum],[ImpPassage],[ImpMedalID],[ImpPoints],[ImpPointsHidden],[ImpCcrsID]) VALUES (,,NULL,NULL,,);"]
[null,null,null,null,null,null,null,null,null,null,null,null,null,null,null,null,null,null,null,null,null,null,"INSERT INTO dbmanottbe.[dbo].Results_Import ([ImpSerieNum],[ImpPassage],[ImpMedalID],[ImpPoints],[ImpPointsHidden],[ImpCcrsID]) VALUES (,,NULL,NULL,,);"]
[null,null,null,null,null,null,null,null,null,null,null,null,null,null,null,null,null,null,null,null,null,null,{"$f":"\"INSERT INTO \"&$U$2&\" ([ImpSerieNum],[ImpPassage],[ImpMedalID],[ImpPoints],[ImpPointsHidden],[ImpCcrsID]) VALUES (\"&B451&\",\"&C451&\",\"&IF(D451=\"\",\"NULL\",\"'\"&D451&\"'\")&\",\"&IF(E451=\"\",\"NULL\",SUBSTITUTE(E451,\",\",\".\"))&\",\"&SUBSTITUTE(F451,\",\",\".\")&\",\"&G451&\");\"","v":"INSERT INTO dbmanottbe.[dbo].Results_Import ([ImpSerieNum],[ImpPassage],[ImpMedalID],[ImpPoints],[ImpPointsHidden],[ImpCcrsID]) VALUES (,,NULL,NULL,,);"}]
[null,null,null,null,null,null,null,null,null,null,null,null,null,null,null,null,null,null,null,null,null,null,"INSERT INTO dbmanottbe.[dbo].Results_Import ([ImpSerieNum],[ImpPassage],[ImpMedalID],[ImpPoints],[ImpPointsHidden],[ImpCcrsID]) VALUES (,,NULL,NULL,,);"]
[null,null,null,null,null,null,null,null,null,null,null,null,null,null,null,null,null,null,null,null,null,null,"INSERT INTO dbmanottbe.[dbo].Results_Import ([ImpSerieNum],[ImpPassage],[ImpMedalID],[ImpPoints],[ImpPointsHidden],[ImpCcrsID]) VALUES (,,NULL,NULL,,);"]
[null,null,null,null,null,null,null,null,null,null,null,null,null,null,null,null,null,null,null,null,null,null,"INSERT INTO dbmanottbe.[dbo].Results_Import ([ImpSerieNum],[ImpPassage],[ImpMedalID],[ImpPoints],[ImpPointsHidden],[ImpCcrsID]) VALUES (,,NULL,NULL,,);"]
[null,null,null,null,null,null,null,null,null,null,null,null,null,null,null,null,null,null,null,null,null,null,"INSERT INTO dbmanottbe.[dbo].Results_Import ([ImpSerieNum],[ImpPassage],[ImpMedalID],[ImpPoints],[ImpPointsHidden],[ImpCcrsID]) VALUES (,,NULL,NULL,,);"]
[null,null,null,null,null,null,null,null,null,null,null,null,null,null,null,null,null,null,null,null,null,null,"INSERT INTO dbmanottbe.[dbo].Results_Import ([ImpSerieNum],[ImpPassage],[ImpMedalID],[ImpPoints],[ImpPointsHidden],[ImpCcrsID]) VALUES (,,NULL,NULL,,);"]
[null,null,null,null,null,null,null,null,null,null,null,null,null,null,null,null,null,null,null,null,null,null,"INSERT INTO dbmanottbe.[dbo].Results_Import ([ImpSerieNum],[ImpPassage],[ImpMedalID],[ImpPoints],[ImpPointsHidden],[ImpCcrsID]) VALUES (,,NULL,NULL,,);"]
[null,null,null,null,null,null,null,null,null,null,null,null,null,null,null,null,null,null,null,null,null,null,"INSERT INTO dbmanottbe.[dbo].Results_Import ([ImpSerieNum],[ImpPassage],[ImpMedalID],[ImpPoints],[ImpPointsHidden],[ImpCcrsID]) VALUES (,,NULL,NULL,,);"]
[null,null,null,null,null,null,null,null,null,null,null,null,null,null,null,null,null,null,null,null,null,null,"INSERT INTO dbmanottbe.[dbo].Results_Import ([ImpSerieNum],[ImpPassage],[ImpMedalID],[ImpPoints],[ImpPointsHidden],[ImpCcrsID]) VALUES (,,NULL,NULL,,);"]
[null,null,null,null,null,null,null,null,null,null,null,null,null,null,null,null,null,null,null,null,null,null,"INSERT INTO dbmanottbe.[dbo].Results_Import ([ImpSerieNum],[ImpPassage],[ImpMedalID],[ImpPoints],[ImpPointsHidden],[ImpCcrsID]) VALUES (,,NULL,NULL,,);"]
[null,null,null,null,null,null,null,null,null,null,null,null,null,null,null,null,null,null,null,null,null,null,"INSERT INTO dbmanottbe.[dbo].Results_Import ([ImpSerieNum],[ImpPassage],[ImpMedalID],[ImpPoints],[ImpPointsHidden],[ImpCcrsID]) VALUES (,,NULL,NULL,,);"]
[null,null,null,null,null,null,null,null,null,null,null,null,null,null,null,null,null,null,null,null,null,null,"INSERT INTO dbmanottbe.[dbo].Results_Import ([ImpSerieNum],[ImpPassage],[ImpMedalID],[ImpPoints],[ImpPointsHidden],[ImpCcrsID]) VALUES (,,NULL,NULL,,);"]
[null,null,null,null,null,null,null,null,null,null,null,null,null,null,null,null,null,null,null,null,null,null,"INSERT INTO dbmanottbe.[dbo].Results_Import ([ImpSerieNum],[ImpPassage],[ImpMedalID],[ImpPoints],[ImpPointsHidden],[ImpCcrsID]) VALUES (,,NULL,NULL,,);"]
[null,null,null,null,null,null,null,null,null,null,null,null,null,null,null,null,null,null,null,null,null,null,"INSERT INTO dbmanottbe.[dbo].Results_Import ([ImpSerieNum],[ImpPassage],[ImpMedalID],[ImpPoints],[ImpPointsHidden],[ImpCcrsID]) VALUES (,,NULL,NULL,,);"]
[null,null,null,null,null,null,null,null,null,null,null,null,null,null,null,null,null,null,null,null,null,null,"INSERT INTO dbmanottbe.[dbo].Results_Import ([ImpSerieNum],[ImpPassage],[ImpMedalID],[ImpPoints],[ImpPointsHidden],[ImpCcrsID]) VALUES (,,NULL,NULL,,);"]
[null,null,null,null,null,null,null,null,null,null,null,null,null,null,null,null,null,null,null,null,null,null,"INSERT INTO dbmanottbe.[dbo].Results_Import ([ImpSerieNum],[ImpPassage],[ImpMedalID],[ImpPoints],[ImpPointsHidden],[ImpCcrsID]) VALUES (,,NULL,NULL,,);"]
[null,null,null,null,null,null,null,null,null,null,null,null,null,null,null,null,null,null,null,null,null,null,"INSERT INTO dbmanottbe.[dbo].Results_Import ([ImpSerieNum],[ImpPassage],[ImpMedalID],[ImpPoints],[ImpPointsHidden],[ImpCcrsID]) VALUES (,,NULL,NULL,,);"]
[null,null,null,null,null,null,null,null,null,null,null,null,null,null,null,null,null,null,null,null,null,null,"INSERT INTO dbmanottbe.[dbo].Results_Import ([ImpSerieNum],[ImpPassage],[ImpMedalID],[ImpPoints],[ImpPointsHidden],[ImpCcrsID]) VALUES (,,NULL,NULL,,);"]
[null,null,null,null,null,null,null,null,null,null,null,null,null,null,null,null,null,null,null,null,null,null,"INSERT INTO dbmanottbe.[dbo].Results_Import ([ImpSerieNum],[ImpPassage],[ImpMedalID],[ImpPoints],[ImpPointsHidden],[ImpCcrsID]) VALUES (,,NULL,NULL,,);"]
[null,null,null,null,null,null,null,null,null,null,null,null,null,null,null,null,null,null,null,null,null,null,"INSERT INTO dbmanottbe.[dbo].Results_Import ([ImpSerieNum],[ImpPassage],[ImpMedalID],[ImpPoints],[ImpPointsHidden],[ImpCcrsID]) VALUES (,,NULL,NULL,,);"]
[null,null,null,null,null,null,null,null,null,null,null,null,null,null,null,null,null,null,null,null,null,null,"INSERT INTO dbmanottbe.[dbo].Results_Import ([ImpSerieNum],[ImpPassage],[ImpMedalID],[ImpPoints],[ImpPointsHidden],[ImpCcrsID]) VALUES (,,NULL,NULL,,);"]
[null,null,null,null,null,null,null,null,null,null,null,null,null,null,null,null,null,null,null,null,null,null,"INSERT INTO dbmanottbe.[dbo].Results_Import ([ImpSerieNum],[ImpPassage],[ImpMedalID],[ImpPoints],[ImpPointsHidden],[ImpCcrsID]) VALUES (,,NULL,NULL,,);"]
[null,null,null,null,null,null,null,null,null,null,null,null,null,null,null,null,null,null,null,null,null,null,"INSERT INTO dbmanottbe.[dbo].Results_Import ([ImpSerieNum],[ImpPassage],[ImpMedalID],[ImpPoints],[ImpPointsHidden],[ImpCcrsID]) VALUES (,,NULL,NULL,,);"]
[null,null,null,null,null,null,null,null,null,null,null,null,null,null,null,null,null,null,null,null,null,null,"INSERT INTO dbmanottbe.[dbo].Results_Import ([ImpSerieNum],[ImpPassage],[ImpMedalID],[ImpPoints],[ImpPointsHidden],[ImpCcrsID]) VALUES (,,NULL,NULL,,);"]
[null,null,null,null,null,null,null,null,null,null,null,null,null,null,null,null,null,null,null,null,null,null,"INSERT INTO dbmanottbe.[dbo].Results_Import ([ImpSerieNum],[ImpPassage],[ImpMedalID],[ImpPoints],[ImpPointsHidden],[ImpCcrsID]) VALUES (,,NULL,NULL,,);"]
[null,null,null,null,null,null,null,null,null,null,null,null,null,null,null,null,null,null,null,null,null,null,"INSERT INTO dbmanottbe.[dbo].Results_Import ([ImpSerieNum],[ImpPassage],[ImpMedalID],[ImpPoints],[ImpPointsHidden],[ImpCcrsID]) VALUES (,,NULL,NULL,,);"]
[null,null,null,null,null,null,null,null,null,null,null,null,null,null,null,null,null,null,null,null,null,null,"INSERT INTO dbmanottbe.[dbo].Results_Import ([ImpSerieNum],[ImpPassage],[ImpMedalID],[ImpPoints],[ImpPointsHidden],[ImpCcrsID]) VALUES (,,NULL,NULL,,);"]
[null,null,null,null,null,null,null,null,null,null,null,null,null,null,null,null,null,null,null,null,null,null,"INSERT INTO dbmanottbe.[dbo].Results_Import ([ImpSerieNum],[ImpPassage],[ImpMedalID],[ImpPoints],[ImpPointsHidden],[ImpCcrsID]) VALUES (,,NULL,NULL,,);"]
[null,null,null,null,null,null,null,null,null,null,null,null,null,null,null,null,null,null,null,null,null,null,"INSERT INTO dbmanottbe.[dbo].Results_Import ([ImpSerieNum],[ImpPassage],[ImpMedalID],[ImpPoints],[ImpPointsHidden],[ImpCcrsID]) VALUES (,,NULL,NULL,,);"]
[null,null,null,null,null,null,null,null,null,null,null,null,null,null,null,null,null,null,null,null,null,null,"INSERT INTO dbmanottbe.[dbo].Results_Import ([ImpSerieNum],[ImpPassage],[ImpMedalID],[ImpPoints],[ImpPointsHidden],[ImpCcrsID]) VALUES (,,NULL,NULL,,);"]
[null,null,null,null,null,null,null,null,null,null,null,null,null,null,null,null,null,null,null,null,null,null,"INSERT INTO dbmanottbe.[dbo].Results_Import ([ImpSerieNum],[ImpPassage],[ImpMedalID],[ImpPoints],[ImpPointsHidden],[ImpCcrsID]) VALUES (,,NULL,NULL,,);"]
[null,null,null,null,null,null,null,null,null,null,null,null,null,null,null,null,null,null,null,null,null,null,"INSERT INTO dbmanottbe.[dbo].Results_Import ([ImpSerieNum],[ImpPassage],[ImpMedalID],[ImpPoints],[ImpPointsHidden],[ImpCcrsID]) VALUES (,,NULL,NULL,,);"]
[null,null,null,null,null,null,null,null,null,null,null,null,null,null,null,null,null,null,null,null,null,null,"INSERT INTO dbmanottbe.[dbo].Results_Import ([ImpSerieNum],[ImpPassage],[ImpMedalID],[ImpPoints],[ImpPointsHidden],[ImpCcrsID]) VALUES (,,NULL,NULL,,);"]
[null,null,null,null,null,null,null,null,null,null,null,null,null,null,null,null,null,null,null,null,null,null,"INSERT INTO dbmanottbe.[dbo].Results_Import ([ImpSerieNum],[ImpPassage],[ImpMedalID],[ImpPoints],[ImpPointsHidden],[ImpCcrsID]) VALUES (,,NULL,NULL,,);"]
[null,null,null,null,null,null,null,null,null,null,null,null,null,null,null,null,null,null,null,null,null,null,"INSERT INTO dbmanottbe.[dbo].Results_Import ([ImpSerieNum],[ImpPassage],[ImpMedalID],[ImpPoints],[ImpPointsHidden],[ImpCcrsID]) VALUES (,,NULL,NULL,,);"]
[null,null,null,null,null,null,null,null,null,null,null,null,null,null,null,null,null,null,null,null,null,null,"INSERT INTO dbmanottbe.[dbo].Results_Import ([ImpSerieNum],[ImpPassage],[ImpMedalID],[ImpPoints],[ImpPointsHidden],[ImpCcrsID]) VALUES (,,NULL,NULL,,);"]
[null,null,null,null,null,null,null,null,null,null,null,null,null,null,null,null,null,null,null,null,null,null,"INSERT INTO dbmanottbe.[dbo].Results_Import ([ImpSerieNum],[ImpPassage],[ImpMedalID],[ImpPoints],[ImpPointsHidden],[ImpCcrsID]) VALUES (,,NULL,NULL,,);"]
[null,null,null,null,null,null,null,null,null,null,null,null,null,null,null,null,null,null,null,null,null,null,"INSERT INTO dbmanottbe.[dbo].Results_Import ([ImpSerieNum],[ImpPassage],[ImpMedalID],[ImpPoints],[ImpPointsHidden],[ImpCcrsID]) VALUES (,,NULL,NULL,,);"]
[null,null,null,null,null,null,null,null,null,null,null,null,null,null,null,null,null,null,null,null,null,null,"INSERT INTO dbmanottbe.[dbo].Results_Import ([ImpSerieNum],[ImpPassage],[ImpMedalID],[ImpPoints],[ImpPointsHidden],[ImpCcrsID]) VALUES (,,NULL,NULL,,);"]
[null,null,null,null,null,null,null,null,null,null,null,null,null,null,null,null,null,null,null,null,null,null,"INSERT INTO dbmanottbe.[dbo].Results_Import ([ImpSerieNum],[ImpPassage],[ImpMedalID],[ImpPoints],[ImpPointsHidden],[ImpCcrsID]) VALUES (,,NULL,NULL,,);"]
[null,null,null,null,null,null,null,null,null,null,null,null,null,null,null,null,null,null,null,null,null,null,"INSERT INTO dbmanottbe.[dbo].Results_Import ([ImpSerieNum],[ImpPassage],[ImpMedalID],[ImpPoints],[ImpPointsHidden],[ImpCcrsID]) VALUES (,,NULL,NULL,,);"]
[null,null,null,null,null,null,null,null,null,null,null,null,null,null,null,null,null,null,null,null,null,null,"INSERT INTO dbmanottbe.[dbo].Results_Import ([ImpSerieNum],[ImpPassage],[ImpMedalID],[ImpPoints],[ImpPointsHidden],[ImpCcrsID]) VALUES (,,NULL,NULL,,);"]
[null,null,null,null,null,null,null,null,null,null,null,null,null,null,null,null,null,null,null,null,null,null,"INSERT INTO dbmanottbe.[dbo].Results_Import ([ImpSerieNum],[ImpPassage],[ImpMedalID],[ImpPoints],[ImpPointsHidden],[ImpCcrsID]) VALUES (,,NULL,NULL,,);"]
[null,null,null,null,null,null,null,null,null,null,null,null,null,null,null,null,null,null,null,null,null,null,"INSERT INTO dbmanottbe.[dbo].Results_Import ([ImpSerieNum],[ImpPassage],[ImpMedalID],[ImpPoints],[ImpPointsHidden],[ImpCcrsID]) VALUES (,,NULL,NULL,,);"]
[null,null,null,null,null,null,null,null,null,null,null,null,null,null,null,null,null,null,null,null,null,null,"INSERT INTO dbmanottbe.[dbo].Results_Import ([ImpSerieNum],[ImpPassage],[ImpMedalID],[ImpPoints],[ImpPointsHidden],[ImpCcrsID]) VALUES (,,NULL,NULL,,);"]
[null,null,null,null,null,null,null,null,null,null,null,null,null,null,null,null,null,null,null,null,null,null,"INSERT INTO dbmanottbe.[dbo].Results_Import ([ImpSerieNum],[ImpPassage],[ImpMedalID],[ImpPoints],[ImpPointsHidden],[ImpCcrsID]) VALUES (,,NULL,NULL,,);"]
[null,null,null,null,null,null,null,null,null,null,null,null,null,null,null,null,null,null,null,null,null,null,"INSERT INTO dbmanottbe.[dbo].Results_Import ([ImpSerieNum],[ImpPassage],[ImpMedalID],[ImpPoints],[ImpPointsHidden],[ImpCcrsID]) VALUES (,,NULL,NULL,,);"]
[null,null,null,null,null,null,null,null,null,null,null,null,null,null,null,null,null,null,null,null,null,null,"INSERT INTO dbmanottbe.[dbo].Results_Import ([ImpSerieNum],[ImpPassage],[ImpMedalID],[ImpPoints],[ImpPointsHidden],[ImpCcrsID]) VALUES (,,NULL,NULL,,);"]
[null,null,null,null,null,null,null,null,null,null,null,null,null,null,null,null,null,null,null,null,null,null,"INSERT INTO dbmanottbe.[dbo].Results_Import ([ImpSerieNum],[ImpPassage],[ImpMedalID],[ImpPoints],[ImpPointsHidden],[ImpCcrsID]) VALUES (,,NULL,NULL,,);"]
[null,null,null,null,null,null,null,null,null,null,null,null,null,null,null,null,null,null,null,null,null,null,"INSERT INTO dbmanottbe.[dbo].Results_Import ([ImpSerieNum],[ImpPassage],[ImpMedalID],[ImpPoints],[ImpPointsHidden],[ImpCcrsID]) VALUES (,,NULL,NULL,,);"]
[null,null,null,null,null,null,null,null,null,null,null,null,null,null,null,null,null,null,null,null,null,null,"INSERT INTO dbmanottbe.[dbo].Results_Import ([ImpSerieNum],[ImpPassage],[ImpMedalID],[ImpPoints],[ImpPointsHidden],[ImpCcrsID]) VALUES (,,NULL,NULL,,);"]
[null,null,null,null,null,null,null,null,null,null,null,null,null,null,null,null,null,null,null,null,null,null,"INSERT INTO dbmanottbe.[dbo].Results_Import ([ImpSerieNum],[ImpPassage],[ImpMedalID],[ImpPoints],[ImpPointsHidden],[ImpCcrsID]) VALUES (,,NULL,NULL,,);"]
[null,null,null,null,null,null,null,null,null,null,null,null,null,null,null,null,null,null,null,null,null,null,"INSERT INTO dbmanottbe.[dbo].Results_Import ([ImpSerieNum],[ImpPassage],[ImpMedalID],[ImpPoints],[ImpPointsHidden],[ImpCcrsID]) VALUES (,,NULL,NULL,,);"]
[null,null,null,null,null,null,null,null,null,null,null,null,null,null,null,null,null,null,null,null,null,null,"INSERT INTO dbmanottbe.[dbo].Results_Import ([ImpSerieNum],[ImpPassage],[ImpMedalID],[ImpPoints],[ImpPointsHidden],[ImpCcrsID]) VALUES (,,NULL,NULL,,);"]
[null,null,null,null,null,null,null,null,null,null,null,null,null,null,null,null,null,null,null,null,null,null,"INSERT INTO dbmanottbe.[dbo].Results_Import ([ImpSerieNum],[ImpPassage],[ImpMedalID],[ImpPoints],[ImpPointsHidden],[ImpCcrsID]) VALUES (,,NULL,NULL,,);"]
[null,null,null,null,null,null,null,null,null,null,null,null,null,null,null,null,null,null,null,null,null,null,"INSERT INTO dbmanottbe.[dbo].Results_Import ([ImpSerieNum],[ImpPassage],[ImpMedalID],[ImpPoints],[ImpPointsHidden],[ImpCcrsID]) VALUES (,,NULL,NULL,,);"]
[null,null,null,null,null,null,null,null,null,null,null,null,null,null,null,null,null,null,null,null,null,null,"INSERT INTO dbmanottbe.[dbo].Results_Import ([ImpSerieNum],[ImpPassage],[ImpMedalID],[ImpPoints],[ImpPointsHidden],[ImpCcrsID]) VALUES (,,NULL,NULL,,);"]
[null,null,null,null,null,null,null,null,null,null,null,null,null,null,null,null,null,null,null,null,null,null,"INSERT INTO dbmanottbe.[dbo].Results_Import ([ImpSerieNum],[ImpPassage],[ImpMedalID],[ImpPoints],[ImpPointsHidden],[ImpCcrsID]) VALUES (,,NULL,NULL,,);"]
[null,null,null,null,null,null,null,null,null,null,null,null,null,null,null,null,null,null,null,null,null,null,"INSERT INTO dbmanottbe.[dbo].Results_Import ([ImpSerieNum],[ImpPassage],[ImpMedalID],[ImpPoints],[ImpPointsHidden],[ImpCcrsID]) VALUES (,,NULL,NULL,,);"]
[null,null,null,null,null,null,null,null,null,null,null,null,null,null,null,null,null,null,null,null,null,null,"INSERT INTO dbmanottbe.[dbo].Results_Import ([ImpSerieNum],[ImpPassage],[ImpMedalID],[ImpPoints],[ImpPointsHidden],[ImpCcrsID]) VALUES (,,NULL,NULL,,);"]
[null,null,null,null,null,null,null,null,null,null,null,null,null,null,null,null,null,null,null,null,null,null,"INSERT INTO dbmanottbe.[dbo].Results_Import ([ImpSerieNum],[ImpPassage],[ImpMedalID],[ImpPoints],[ImpPointsHidden],[ImpCcrsID]) VALUES (,,NULL,NULL,,);"]
[null,null,null,null,null,null,null,null,null,null,null,null,null,null,null,null,null,null,null,null,null,null,"INSERT INTO dbmanottbe.[dbo].Results_Import ([ImpSerieNum],[ImpPassage],[ImpMedalID],[ImpPoints],[ImpPointsHidden],[ImpCcrsID]) VALUES (,,NULL,NULL,,);"]
[null,null,null,null,null,null,null,null,null,null,null,null,null,null,null,null,null,null,null,null,null,null,"INSERT INTO dbmanottbe.[dbo].Results_Import ([ImpSerieNum],[ImpPassage],[ImpMedalID],[ImpPoints],[ImpPointsHidden],[ImpCcrsID]) VALUES (,,NULL,NULL,,);"]
[null,null,null,null,null,null,null,null,null,null,null,null,null,null,null,null,null,null,null,null,null,null,"INSERT INTO dbmanottbe.[dbo].Results_Import ([ImpSerieNum],[ImpPassage],[ImpMedalID],[ImpPoints],[ImpPointsHidden],[ImpCcrsID]) VALUES (,,NULL,NULL,,);"]
[null,null,null,null,null,null,null,null,null,null,null,null,null,null,null,null,null,null,null,null,null,null,{"$f":"\"INSERT INTO \"&$U$2&\" ([ImpSerieNum],[ImpPassage],[ImpMedalID],[ImpPoints],[ImpPointsHidden],[ImpCcrsID]) VALUES (\"&B515&\",\"&C515&\",\"&IF(D515=\"\",\"NULL\",\"'\"&D515&\"'\")&\",\"&IF(E515=\"\",\"NULL\",SUBSTITUTE(E515,\",\",\".\"))&\",\"&SUBSTITUTE(F515,\",\",\".\")&\",\"&G515&\");\"","v":"INSERT INTO dbmanottbe.[dbo].Results_Import ([ImpSerieNum],[ImpPassage],[ImpMedalID],[ImpPoints],[ImpPointsHidden],[ImpCcrsID]) VALUES (,,NULL,NULL,,);"}]
[null,null,null,null,null,null,null,null,null,null,null,null,null,null,null,null,null,null,null,null,null,null,"INSERT INTO dbmanottbe.[dbo].Results_Import ([ImpSerieNum],[ImpPassage],[ImpMedalID],[ImpPoints],[ImpPointsHidden],[ImpCcrsID]) VALUES (,,NULL,NULL,,);"]
[null,null,null,null,null,null,null,null,null,null,null,null,null,null,null,null,null,null,null,null,null,null,"INSERT INTO dbmanottbe.[dbo].Results_Import ([ImpSerieNum],[ImpPassage],[ImpMedalID],[ImpPoints],[ImpPointsHidden],[ImpCcrsID]) VALUES (,,NULL,NULL,,);"]
[null,null,null,null,null,null,null,null,null,null,null,null,null,null,null,null,null,null,null,null,null,null,"INSERT INTO dbmanottbe.[dbo].Results_Import ([ImpSerieNum],[ImpPassage],[ImpMedalID],[ImpPoints],[ImpPointsHidden],[ImpCcrsID]) VALUES (,,NULL,NULL,,);"]
[null,null,null,null,null,null,null,null,null,null,null,null,null,null,null,null,null,null,null,null,null,null,"INSERT INTO dbmanottbe.[dbo].Results_Import ([ImpSerieNum],[ImpPassage],[ImpMedalID],[ImpPoints],[ImpPointsHidden],[ImpCcrsID]) VALUES (,,NULL,NULL,,);"]
[null,null,null,null,null,null,null,null,null,null,null,null,null,null,null,null,null,null,null,null,null,null,"INSERT INTO dbmanottbe.[dbo].Results_Import ([ImpSerieNum],[ImpPassage],[ImpMedalID],[ImpPoints],[ImpPointsHidden],[ImpCcrsID]) VALUES (,,NULL,NULL,,);"]
[null,null,null,null,null,null,null,null,null,null,null,null,null,null,null,null,null,null,null,null,null,null,"INSERT INTO dbmanottbe.[dbo].Results_Import ([ImpSerieNum],[ImpPassage],[ImpMedalID],[ImpPoints],[ImpPointsHidden],[ImpCcrsID]) VALUES (,,NULL,NULL,,);"]
[null,null,null,null,null,null,null,null,null,null,null,null,null,null,null,null,null,null,null,null,null,null,"INSERT INTO dbmanottbe.[dbo].Results_Import ([ImpSerieNum],[ImpPassage],[ImpMedalID],[ImpPoints],[ImpPointsHidden],[ImpCcrsID]) VALUES (,,NULL,NULL,,);"]
[null,null,null,null,null,null,null,null,null,null,null,null,null,null,null,null,null,null,null,null,null,null,"INSERT INTO dbmanottbe.[dbo].Results_Import ([ImpSerieNum],[ImpPassage],[ImpMedalID],[ImpPoints],[ImpPointsHidden],[ImpCcrsID]) VALUES (,,NULL,NULL,,);"]
[null,null,null,null,null,null,null,null,null,null,null,null,null,null,null,null,null,null,null,null,null,null,"INSERT INTO dbmanottbe.[dbo].Results_Import ([ImpSerieNum],[ImpPassage],[ImpMedalID],[ImpPoints],[ImpPointsHidden],[ImpCcrsID]) VALUES (,,NULL,NULL,,);"]
[null,null,null,null,null,null,null,null,null,null,null,null,null,null,null,null,null,null,null,null,null,null,"INSERT INTO dbmanottbe.[dbo].Results_Import ([ImpSerieNum],[ImpPassage],[ImpMedalID],[ImpPoints],[ImpPointsHidden],[ImpCcrsID]) VALUES (,,NULL,NULL,,);"]
[null,null,null,null,null,null,null,null,null,null,null,null,null,null,null,null,null,null,null,null,null,null,"INSERT INTO dbmanottbe.[dbo].Results_Import ([ImpSerieNum],[ImpPassage],[ImpMedalID],[ImpPoints],[ImpPointsHidden],[ImpCcrsID]) VALUES (,,NULL,NULL,,);"]
[null,null,null,null,null,null,null,null,null,null,null,null,null,null,null,null,null,null,null,null,null,null,"INSERT INTO dbmanottbe.[dbo].Results_Import ([ImpSerieNum],[ImpPassage],[ImpMedalID],[ImpPoints],[ImpPointsHidden],[ImpCcrsID]) VALUES (,,NULL,NULL,,);"]
[null,null,null,null,null,null,null,null,null,null,null,null,null,null,null,null,null,null,null,null,null,null,"INSERT INTO dbmanottbe.[dbo].Results_Import ([ImpSerieNum],[ImpPassage],[ImpMedalID],[ImpPoints],[ImpPointsHidden],[ImpCcrsID]) VALUES (,,NULL,NULL,,);"]
[null,null,null,null,null,null,null,null,null,null,null,null,null,null,null,null,null,null,null,null,null,null,"INSERT INTO dbmanottbe.[dbo].Results_Import ([ImpSerieNum],[ImpPassage],[ImpMedalID],[ImpPoints],[ImpPointsHidden],[ImpCcrsID]) VALUES (,,NULL,NULL,,);"]
[null,null,null,null,null,null,null,null,null,null,null,null,null,null,null,null,null,null,null,null,null,null,"INSERT INTO dbmanottbe.[dbo].Results_Import ([ImpSerieNum],[ImpPassage],[ImpMedalID],[ImpPoints],[ImpPointsHidden],[ImpCcrsID]) VALUES (,,NULL,NULL,,);"]
[null,null,null,null,null,null,null,null,null,null,null,null,null,null,null,null,null,null,null,null,null,null,"INSERT INTO dbmanottbe.[dbo].Results_Import ([ImpSerieNum],[ImpPassage],[ImpMedalID],[ImpPoints],[ImpPointsHidden],[ImpCcrsID]) VALUES (,,NULL,NULL,,);"]
[null,null,null,null,null,null,null,null,null,null,null,null,null,null,null,null,null,null,null,null,null,null,"INSERT INTO dbmanottbe.[dbo].Results_Import ([ImpSerieNum],[ImpPassage],[ImpMedalID],[ImpPoints],[ImpPointsHidden],[ImpCcrsID]) VALUES (,,NULL,NULL,,);"]
[null,null,null,null,null,null,null,null,null,null,null,null,null,null,null,null,null,null,null,null,null,null,"INSERT INTO dbmanottbe.[dbo].Results_Import ([ImpSerieNum],[ImpPassage],[ImpMedalID],[ImpPoints],[ImpPointsHidden],[ImpCcrsID]) VALUES (,,NULL,NULL,,);"]
[null,null,null,null,null,null,null,null,null,null,null,null,null,null,null,null,null,null,null,null,null,null,"INSERT INTO dbmanottbe.[dbo].Results_Import ([ImpSerieNum],[ImpPassage],[ImpMedalID],[ImpPoints],[ImpPointsHidden],[ImpCcrsID]) VALUES (,,NULL,NULL,,);"]
[null,null,null,null,null,null,null,null,null,null,null,null,null,null,null,null,null,null,null,null,null,null,"INSERT INTO dbmanottbe.[dbo].Results_Import ([ImpSerieNum],[ImpPassage],[ImpMedalID],[ImpPoints],[ImpPointsHidden],[ImpCcrsID]) VALUES (,,NULL,NULL,,);"]
[null,null,null,null,null,null,null,null,null,null,null,null,null,null,null,null,null,null,null,null,null,null,"INSERT INTO dbmanottbe.[dbo].Results_Import ([ImpSerieNum],[ImpPassage],[ImpMedalID],[ImpPoints],[ImpPointsHidden],[ImpCcrsID]) VALUES (,,NULL,NULL,,);"]
[null,null,null,null,null,null,null,null,null,null,null,null,null,null,null,null,null,null,null,null,null,null,"INSERT INTO dbmanottbe.[dbo].Results_Import ([ImpSerieNum],[ImpPassage],[ImpMedalID],[ImpPoints],[ImpPointsHidden],[ImpCcrsID]) VALUES (,,NULL,NULL,,);"]
[null,null,null,null,null,null,null,null,null,null,null,null,null,null,null,null,null,null,null,null,null,null,"INSERT INTO dbmanottbe.[dbo].Results_Import ([ImpSerieNum],[ImpPassage],[ImpMedalID],[ImpPoints],[ImpPointsHidden],[ImpCcrsID]) VALUES (,,NULL,NULL,,);"]
[null,null,null,null,null,null,null,null,null,null,null,null,null,null,null,null,null,null,null,null,null,null,"INSERT INTO dbmanottbe.[dbo].Results_Import ([ImpSerieNum],[ImpPassage],[ImpMedalID],[ImpPoints],[ImpPointsHidden],[ImpCcrsID]) VALUES (,,NULL,NULL,,);"]
[null,null,null,null,null,null,null,null,null,null,null,null,null,null,null,null,null,null,null,null,null,null,"INSERT INTO dbmanottbe.[dbo].Results_Import ([ImpSerieNum],[ImpPassage],[ImpMedalID],[ImpPoints],[ImpPointsHidden],[ImpCcrsID]) VALUES (,,NULL,NULL,,);"]
[null,null,null,null,null,null,null,null,null,null,null,null,null,null,null,null,null,null,null,null,null,null,"INSERT INTO dbmanottbe.[dbo].Results_Import ([ImpSerieNum],[ImpPassage],[ImpMedalID],[ImpPoints],[ImpPointsHidden],[ImpCcrsID]) VALUES (,,NULL,NULL,,);"]
[null,null,null,null,null,null,null,null,null,null,null,null,null,null,null,null,null,null,null,null,null,null,"INSERT INTO dbmanottbe.[dbo].Results_Import ([ImpSerieNum],[ImpPassage],[ImpMedalID],[ImpPoints],[ImpPointsHidden],[ImpCcrsID]) VALUES (,,NULL,NULL,,);"]
[null,null,null,null,null,null,null,null,null,null,null,null,null,null,null,null,null,null,null,null,null,null,"INSERT INTO dbmanottbe.[dbo].Results_Import ([ImpSerieNum],[ImpPassage],[ImpMedalID],[ImpPoints],[ImpPointsHidden],[ImpCcrsID]) VALUES (,,NULL,NULL,,);"]
[null,null,null,null,null,null,null,null,null,null,null,null,null,null,null,null,null,null,null,null,null,null,"INSERT INTO dbmanottbe.[dbo].Results_Import ([ImpSerieNum],[ImpPassage],[ImpMedalID],[ImpPoints],[ImpPointsHidden],[ImpCcrsID]) VALUES (,,NULL,NULL,,);"]
[null,null,null,null,null,null,null,null,null,null,null,null,null,null,null,null,null,null,null,null,null,null,"INSERT INTO dbmanottbe.[dbo].Results_Import ([ImpSerieNum],[ImpPassage],[ImpMedalID],[ImpPoints],[ImpPointsHidden],[ImpCcrsID]) VALUES (,,NULL,NULL,,);"]
[null,null,null,null,null,null,null,null,null,null,null,null,null,null,null,null,null,null,null,null,null,null,"INSERT INTO dbmanottbe.[dbo].Results_Import ([ImpSerieNum],[ImpPassage],[ImpMedalID],[ImpPoints],[ImpPointsHidden],[ImpCcrsID]) VALUES (,,NULL,NULL,,);"]
[null,null,null,null,null,null,null,null,null,null,null,null,null,null,null,null,null,null,null,null,null,null,"INSERT INTO dbmanottbe.[dbo].Results_Import ([ImpSerieNum],[ImpPassage],[ImpMedalID],[ImpPoints],[ImpPointsHidden],[ImpCcrsID]) VALUES (,,NULL,NULL,,);"]
[null,null,null,null,null,null,null,null,null,null,null,null,null,null,null,null,null,null,null,null,null,null,"INSERT INTO dbmanottbe.[dbo].Results_Import ([ImpSerieNum],[ImpPassage],[ImpMedalID],[ImpPoints],[ImpPointsHidden],[ImpCcrsID]) VALUES (,,NULL,NULL,,);"]
[null,null,null,null,null,null,null,null,null,null,null,null,null,null,null,null,null,null,null,null,null,null,"INSERT INTO dbmanottbe.[dbo].Results_Import ([ImpSerieNum],[ImpPassage],[ImpMedalID],[ImpPoints],[ImpPointsHidden],[ImpCcrsID]) VALUES (,,NULL,NULL,,);"]
[null,null,null,null,null,null,null,null,null,null,null,null,null,null,null,null,null,null,null,null,null,null,"INSERT INTO dbmanottbe.[dbo].Results_Import ([ImpSerieNum],[ImpPassage],[ImpMedalID],[ImpPoints],[ImpPointsHidden],[ImpCcrsID]) VALUES (,,NULL,NULL,,);"]
[null,null,null,null,null,null,null,null,null,null,null,null,null,null,null,null,null,null,null,null,null,null,"INSERT INTO dbmanottbe.[dbo].Results_Import ([ImpSerieNum],[ImpPassage],[ImpMedalID],[ImpPoints],[ImpPointsHidden],[ImpCcrsID]) VALUES (,,NULL,NULL,,);"]
[null,null,null,null,null,null,null,null,null,null,null,null,null,null,null,null,null,null,null,null,null,null,"INSERT INTO dbmanottbe.[dbo].Results_Import ([ImpSerieNum],[ImpPassage],[ImpMedalID],[ImpPoints],[ImpPointsHidden],[ImpCcrsID]) VALUES (,,NULL,NULL,,);"]
[null,null,null,null,null,null,null,null,null,null,null,null,null,null,null,null,null,null,null,null,null,null,"INSERT INTO dbmanottbe.[dbo].Results_Import ([ImpSerieNum],[ImpPassage],[ImpMedalID],[ImpPoints],[ImpPointsHidden],[ImpCcrsID]) VALUES (,,NULL,NULL,,);"]
[null,null,null,null,null,null,null,null,null,null,null,null,null,null,null,null,null,null,null,null,null,null,"INSERT INTO dbmanottbe.[dbo].Results_Import ([ImpSerieNum],[ImpPassage],[ImpMedalID],[ImpPoints],[ImpPointsHidden],[ImpCcrsID]) VALUES (,,NULL,NULL,,);"]
[null,null,null,null,null,null,null,null,null,null,null,null,null,null,null,null,null,null,null,null,null,null,"INSERT INTO dbmanottbe.[dbo].Results_Import ([ImpSerieNum],[ImpPassage],[ImpMedalID],[ImpPoints],[ImpPointsHidden],[ImpCcrsID]) VALUES (,,NULL,NULL,,);"]
[null,null,null,null,null,null,null,null,null,null,null,null,null,null,null,null,null,null,null,null,null,null,"INSERT INTO dbmanottbe.[dbo].Results_Import ([ImpSerieNum],[ImpPassage],[ImpMedalID],[ImpPoints],[ImpPointsHidden],[ImpCcrsID]) VALUES (,,NULL,NULL,,);"]
[null,null,null,null,null,null,null,null,null,null,null,null,null,null,null,null,null,null,null,null,null,null,"INSERT INTO dbmanottbe.[dbo].Results_Import ([ImpSerieNum],[ImpPassage],[ImpMedalID],[ImpPoints],[ImpPointsHidden],[ImpCcrsID]) VALUES (,,NULL,NULL,,);"]
[null,null,null,null,null,null,null,null,null,null,null,null,null,null,null,null,null,null,null,null,null,null,"INSERT INTO dbmanottbe.[dbo].Results_Import ([ImpSerieNum],[ImpPassage],[ImpMedalID],[ImpPoints],[ImpPointsHidden],[ImpCcrsID]) VALUES (,,NULL,NULL,,);"]
[null,null,null,null,null,null,null,null,null,null,null,null,null,null,null,null,null,null,null,null,null,null,"INSERT INTO dbmanottbe.[dbo].Results_Import ([ImpSerieNum],[ImpPassage],[ImpMedalID],[ImpPoints],[ImpPointsHidden],[ImpCcrsID]) VALUES (,,NULL,NULL,,);"]
[null,null,null,null,null,null,null,null,null,null,null,null,null,null,null,null,null,null,null,null,null,null,"INSERT INTO dbmanottbe.[dbo].Results_Import ([ImpSerieNum],[ImpPassage],[ImpMedalID],[ImpPoints],[ImpPointsHidden],[ImpCcrsID]) VALUES (,,NULL,NULL,,);"]
[null,null,null,null,null,null,null,null,null,null,null,null,null,null,null,null,null,null,null,null,null,null,"INSERT INTO dbmanottbe.[dbo].Results_Import ([ImpSerieNum],[ImpPassage],[ImpMedalID],[ImpPoints],[ImpPointsHidden],[ImpCcrsID]) VALUES (,,NULL,NULL,,);"]
[null,null,null,null,null,null,null,null,null,null,null,null,null,null,null,null,null,null,null,null,null,null,"INSERT INTO dbmanottbe.[dbo].Results_Import ([ImpSerieNum],[ImpPassage],[ImpMedalID],[ImpPoints],[ImpPointsHidden],[ImpCcrsID]) VALUES (,,NULL,NULL,,);"]
[null,null,null,null,null,null,null,null,null,null,null,null,null,null,null,null,null,null,null,null,null,null,"INSERT INTO dbmanottbe.[dbo].Results_Import ([ImpSerieNum],[ImpPassage],[ImpMedalID],[ImpPoints],[ImpPointsHidden],[ImpCcrsID]) VALUES (,,NULL,NULL,,);"]
[null,null,null,null,null,null,null,null,null,null,null,null,null,null,null,null,null,null,null,null,null,null,"INSERT INTO dbmanottbe.[dbo].Results_Import ([ImpSerieNum],[ImpPassage],[ImpMedalID],[ImpPoints],[ImpPointsHidden],[ImpCcrsID]) VALUES (,,NULL,NULL,,);"]
[null,null,null,null,null,null,null,null,null,null,null,null,null,null,null,null,null,null,null,null,null,null,"INSERT INTO dbmanottbe.[dbo].Results_Import ([ImpSerieNum],[ImpPassage],[ImpMedalID],[ImpPoints],[ImpPointsHidden],[ImpCcrsID]) VALUES (,,NULL,NULL,,);"]
[null,null,null,null,null,null,null,null,null,null,null,null,null,null,null,null,null,null,null,null,null,null,"INSERT INTO dbmanottbe.[dbo].Results_Import ([ImpSerieNum],[ImpPassage],[ImpMedalID],[ImpPoints],[ImpPointsHidden],[ImpCcrsID]) VALUES (,,NULL,NULL,,);"]
[null,null,null,null,null,null,null,null,null,null,null,null,null,null,null,null,null,null,null,null,null,null,"INSERT INTO dbmanottbe.[dbo].Results_Import ([ImpSerieNum],[ImpPassage],[ImpMedalID],[ImpPoints],[ImpPointsHidden],[ImpCcrsID]) VALUES (,,NULL,NULL,,);"]
[null,null,null,null,null,null,null,null,null,null,null,null,null,null,null,null,null,null,null,null,null,null,"INSERT INTO dbmanottbe.[dbo].Results_Import ([ImpSerieNum],[ImpPassage],[ImpMedalID],[ImpPoints],[ImpPointsHidden],[ImpCcrsID]) VALUES (,,NULL,NULL,,);"]
[null,null,null,null,null,null,null,null,null,null,null,null,null,null,null,null,null,null,null,null,null,null,"INSERT INTO dbmanottbe.[dbo].Results_Import ([ImpSerieNum],[ImpPassage],[ImpMedalID],[ImpPoints],[ImpPointsHidden],[ImpCcrsID]) VALUES (,,NULL,NULL,,);"]
[null,null,null,null,null,null,null,null,null,null,null,null,null,null,null,null,null,null,null,null,null,null,"INSERT INTO dbmanottbe.[dbo].Results_Import ([ImpSerieNum],[ImpPassage],[ImpMedalID],[ImpPoints],[ImpPointsHidden],[ImpCcrsID]) VALUES (,,NULL,NULL,,);"]
[null,null,null,null,null,null,null,null,null,null,null,null,null,null,null,null,null,null,null,null,null,null,"INSERT INTO dbmanottbe.[dbo].Results_Import ([ImpSerieNum],[ImpPassage],[ImpMedalID],[ImpPoints],[ImpPointsHidden],[ImpCcrsID]) VALUES (,,NULL,NULL,,);"]
[null,null,null,null,null,null,null,null,null,null,null,null,null,null,null,null,null,null,null,null,null,null,"INSERT INTO dbmanottbe.[dbo].Results_Import ([ImpSerieNum],[ImpPassage],[ImpMedalID],[ImpPoints],[ImpPointsHidden],[ImpCcrsID]) VALUES (,,NULL,NULL,,);"]
[null,null,null,null,null,null,null,null,null,null,null,null,null,null,null,null,null,null,null,null,null,null,"INSERT INTO dbmanottbe.[dbo].Results_Import ([ImpSerieNum],[ImpPassage],[ImpMedalID],[ImpPoints],[ImpPointsHidden],[ImpCcrsID]) VALUES (,,NULL,NULL,,);"]
[null,null,null,null,null,null,null,null,null,null,null,null,null,null,null,null,null,null,null,null,null,null,"INSERT INTO dbmanottbe.[dbo].Results_Import ([ImpSerieNum],[ImpPassage],[ImpMedalID],[ImpPoints],[ImpPointsHidden],[ImpCcrsID]) VALUES (,,NULL,NULL,,);"]
[null,null,null,null,null,null,null,null,null,null,null,null,null,null,null,null,null,null,null,null,null,null,"INSERT INTO dbmanottbe.[dbo].Results_Import ([ImpSerieNum],[ImpPassage],[ImpMedalID],[ImpPoints],[ImpPointsHidden],[ImpCcrsID]) VALUES (,,NULL,NULL,,);"]
[null,null,null,null,null,null,null,null,null,null,null,null,null,null,null,null,null,null,null,null,null,null,"INSERT INTO dbmanottbe.[dbo].Results_Import ([ImpSerieNum],[ImpPassage],[ImpMedalID],[ImpPoints],[ImpPointsHidden],[ImpCcrsID]) VALUES (,,NULL,NULL,,);"]
[null,null,null,null,null,null,null,null,null,null,null,null,null,null,null,null,null,null,null,null,null,null,"INSERT INTO dbmanottbe.[dbo].Results_Import ([ImpSerieNum],[ImpPassage],[ImpMedalID],[ImpPoints],[ImpPointsHidden],[ImpCcrsID]) VALUES (,,NULL,NULL,,);"]
[null,null,null,null,null,null,null,null,null,null,null,null,null,null,null,null,null,null,null,null,null,null,"INSERT INTO dbmanottbe.[dbo].Results_Import ([ImpSerieNum],[ImpPassage],[ImpMedalID],[ImpPoints],[ImpPointsHidden],[ImpCcrsID]) VALUES (,,NULL,NULL,,);"]
[null,null,null,null,null,null,null,null,null,null,null,null,null,null,null,null,null,null,null,null,null,null,{"$f":"\"INSERT INTO \"&$U$2&\" ([ImpSerieNum],[ImpPassage],[ImpMedalID],[ImpPoints],[ImpPointsHidden],[ImpCcrsID]) VALUES (\"&B579&\",\"&C579&\",\"&IF(D579=\"\",\"NULL\",\"'\"&D579&\"'\")&\",\"&IF(E579=\"\",\"NULL\",SUBSTITUTE(E579,\",\",\".\"))&\",\"&SUBSTITUTE(F579,\",\",\".\")&\",\"&G579&\");\"","v":"INSERT INTO dbmanottbe.[dbo].Results_Import ([ImpSerieNum],[ImpPassage],[ImpMedalID],[ImpPoints],[ImpPointsHidden],[ImpCcrsID]) VALUES (,,NULL,NULL,,);"}]
[null,null,null,null,null,null,null,null,null,null,null,null,null,null,null,null,null,null,null,null,null,null,"INSERT INTO dbmanottbe.[dbo].Results_Import ([ImpSerieNum],[ImpPassage],[ImpMedalID],[ImpPoints],[ImpPointsHidden],[ImpCcrsID]) VALUES (,,NULL,NULL,,);"]
[null,null,null,null,null,null,null,null,null,null,null,null,null,null,null,null,null,null,null,null,null,null,"INSERT INTO dbmanottbe.[dbo].Results_Import ([ImpSerieNum],[ImpPassage],[ImpMedalID],[ImpPoints],[ImpPointsHidden],[ImpCcrsID]) VALUES (,,NULL,NULL,,);"]
[null,null,null,null,null,null,null,null,null,null,null,null,null,null,null,null,null,null,null,null,null,null,"INSERT INTO dbmanottbe.[dbo].Results_Import ([ImpSerieNum],[ImpPassage],[ImpMedalID],[ImpPoints],[ImpPointsHidden],[ImpCcrsID]) VALUES (,,NULL,NULL,,);"]
[null,null,null,null,null,null,null,null,null,null,null,null,null,null,null,null,null,null,null,null,null,null,"INSERT INTO dbmanottbe.[dbo].Results_Import ([ImpSerieNum],[ImpPassage],[ImpMedalID],[ImpPoints],[ImpPointsHidden],[ImpCcrsID]) VALUES (,,NULL,NULL,,);"]
[null,null,null,null,null,null,null,null,null,null,null,null,null,null,null,null,null,null,null,null,null,null,"INSERT INTO dbmanottbe.[dbo].Results_Import ([ImpSerieNum],[ImpPassage],[ImpMedalID],[ImpPoints],[ImpPointsHidden],[ImpCcrsID]) VALUES (,,NULL,NULL,,);"]
[null,null,null,null,null,null,null,null,null,null,null,null,null,null,null,null,null,null,null,null,null,null,"INSERT INTO dbmanottbe.[dbo].Results_Import ([ImpSerieNum],[ImpPassage],[ImpMedalID],[ImpPoints],[ImpPointsHidden],[ImpCcrsID]) VALUES (,,NULL,NULL,,);"]
[null,null,null,null,null,null,null,null,null,null,null,null,null,null,null,null,null,null,null,null,null,null,"INSERT INTO dbmanottbe.[dbo].Results_Import ([ImpSerieNum],[ImpPassage],[ImpMedalID],[ImpPoints],[ImpPointsHidden],[ImpCcrsID]) VALUES (,,NULL,NULL,,);"]
[null,null,null,null,null,null,null,null,null,null,null,null,null,null,null,null,null,null,null,null,null,null,"INSERT INTO dbmanottbe.[dbo].Results_Import ([ImpSerieNum],[ImpPassage],[ImpMedalID],[ImpPoints],[ImpPointsHidden],[ImpCcrsID]) VALUES (,,NULL,NULL,,);"]
[null,null,null,null,null,null,null,null,null,null,null,null,null,null,null,null,null,null,null,null,null,null,"INSERT INTO dbmanottbe.[dbo].Results_Import ([ImpSerieNum],[ImpPassage],[ImpMedalID],[ImpPoints],[ImpPointsHidden],[ImpCcrsID]) VALUES (,,NULL,NULL,,);"]
[null,null,null,null,null,null,null,null,null,null,null,null,null,null,null,null,null,null,null,null,null,null,"INSERT INTO dbmanottbe.[dbo].Results_Import ([ImpSerieNum],[ImpPassage],[ImpMedalID],[ImpPoints],[ImpPointsHidden],[ImpCcrsID]) VALUES (,,NULL,NULL,,);"]
[null,null,null,null,null,null,null,null,null,null,null,null,null,null,null,null,null,null,null,null,null,null,"INSERT INTO dbmanottbe.[dbo].Results_Import ([ImpSerieNum],[ImpPassage],[ImpMedalID],[ImpPoints],[ImpPointsHidden],[ImpCcrsID]) VALUES (,,NULL,NULL,,);"]
[null,null,null,null,null,null,null,null,null,null,null,null,null,null,null,null,null,null,null,null,null,null,"INSERT INTO dbmanottbe.[dbo].Results_Import ([ImpSerieNum],[ImpPassage],[ImpMedalID],[ImpPoints],[ImpPointsHidden],[ImpCcrsID]) VALUES (,,NULL,NULL,,);"]
[null,null,null,null,null,null,null,null,null,null,null,null,null,null,null,null,null,null,null,null,null,null,"INSERT INTO dbmanottbe.[dbo].Results_Import ([ImpSerieNum],[ImpPassage],[ImpMedalID],[ImpPoints],[ImpPointsHidden],[ImpCcrsID]) VALUES (,,NULL,NULL,,);"]
[null,null,null,null,null,null,null,null,null,null,null,null,null,null,null,null,null,null,null,null,null,null,"INSERT INTO dbmanottbe.[dbo].Results_Import ([ImpSerieNum],[ImpPassage],[ImpMedalID],[ImpPoints],[ImpPointsHidden],[ImpCcrsID]) VALUES (,,NULL,NULL,,);"]
[null,null,null,null,null,null,null,null,null,null,null,null,null,null,null,null,null,null,null,null,null,null,"INSERT INTO dbmanottbe.[dbo].Results_Import ([ImpSerieNum],[ImpPassage],[ImpMedalID],[ImpPoints],[ImpPointsHidden],[ImpCcrsID]) VALUES (,,NULL,NULL,,);"]
[null,null,null,null,null,null,null,null,null,null,null,null,null,null,null,null,null,null,null,null,null,null,"INSERT INTO dbmanottbe.[dbo].Results_Import ([ImpSerieNum],[ImpPassage],[ImpMedalID],[ImpPoints],[ImpPointsHidden],[ImpCcrsID]) VALUES (,,NULL,NULL,,);"]
[null,null,null,null,null,null,null,null,null,null,null,null,null,null,null,null,null,null,null,null,null,null,"INSERT INTO dbmanottbe.[dbo].Results_Import ([ImpSerieNum],[ImpPassage],[ImpMedalID],[ImpPoints],[ImpPointsHidden],[ImpCcrsID]) VALUES (,,NULL,NULL,,);"]
[null,null,null,null,null,null,null,null,null,null,null,null,null,null,null,null,null,null,null,null,null,null,"INSERT INTO dbmanottbe.[dbo].Results_Import ([ImpSerieNum],[ImpPassage],[ImpMedalID],[ImpPoints],[ImpPointsHidden],[ImpCcrsID]) VALUES (,,NULL,NULL,,);"]
[null,null,null,null,null,null,null,null,null,null,null,null,null,null,null,null,null,null,null,null,null,null,"INSERT INTO dbmanottbe.[dbo].Results_Import ([ImpSerieNum],[ImpPassage],[ImpMedalID],[ImpPoints],[ImpPointsHidden],[ImpCcrsID]) VALUES (,,NULL,NULL,,);"]
[null,null,null,null,null,null,null,null,null,null,null,null,null,null,null,null,null,null,null,null,null,null,"INSERT INTO dbmanottbe.[dbo].Results_Import ([ImpSerieNum],[ImpPassage],[ImpMedalID],[ImpPoints],[ImpPointsHidden],[ImpCcrsID]) VALUES (,,NULL,NULL,,);"]
[null,null,null,null,null,null,null,null,null,null,null,null,null,null,null,null,null,null,null,null,null,null,"INSERT INTO dbmanottbe.[dbo].Results_Import ([ImpSerieNum],[ImpPassage],[ImpMedalID],[ImpPoints],[ImpPointsHidden],[ImpCcrsID]) VALUES (,,NULL,NULL,,);"]
[null,null,null,null,null,null,null,null,null,null,null,null,null,null,null,null,null,null,null,null,null,null,"INSERT INTO dbmanottbe.[dbo].Results_Import ([ImpSerieNum],[ImpPassage],[ImpMedalID],[ImpPoints],[ImpPointsHidden],[ImpCcrsID]) VALUES (,,NULL,NULL,,);"]
[null,null,null,null,null,null,null,null,null,null,null,null,null,null,null,null,null,null,null,null,null,null,"INSERT INTO dbmanottbe.[dbo].Results_Import ([ImpSerieNum],[ImpPassage],[ImpMedalID],[ImpPoints],[ImpPointsHidden],[ImpCcrsID]) VALUES (,,NULL,NULL,,);"]
[null,null,null,null,null,null,null,null,null,null,null,null,null,null,null,null,null,null,null,null,null,null,"INSERT INTO dbmanottbe.[dbo].Results_Import ([ImpSerieNum],[ImpPassage],[ImpMedalID],[ImpPoints],[ImpPointsHidden],[ImpCcrsID]) VALUES (,,NULL,NULL,,);"]
[null,null,null,null,null,null,null,null,null,null,null,null,null,null,null,null,null,null,null,null,null,null,"INSERT INTO dbmanottbe.[dbo].Results_Import ([ImpSerieNum],[ImpPassage],[ImpMedalID],[ImpPoints],[ImpPointsHidden],[ImpCcrsID]) VALUES (,,NULL,NULL,,);"]
[null,null,null,null,null,null,null,null,null,null,null,null,null,null,null,null,null,null,null,null,null,null,"INSERT INTO dbmanottbe.[dbo].Results_Import ([ImpSerieNum],[ImpPassage],[ImpMedalID],[ImpPoints],[ImpPointsHidden],[ImpCcrsID]) VALUES (,,NULL,NULL,,);"]
[null,null,null,null,null,null,null,null,null,null,null,null,null,null,null,null,null,null,null,null,null,null,"INSERT INTO dbmanottbe.[dbo].Results_Import ([ImpSerieNum],[ImpPassage],[ImpMedalID],[ImpPoints],[ImpPointsHidden],[ImpCcrsID]) VALUES (,,NULL,NULL,,);"]
[null,null,null,null,null,null,null,null,null,null,null,null,null,null,null,null,null,null,null,null,null,null,"INSERT INTO dbmanottbe.[dbo].Results_Import ([ImpSerieNum],[ImpPassage],[ImpMedalID],[ImpPoints],[ImpPointsHidden],[ImpCcrsID]) VALUES (,,NULL,NULL,,);"]
[null,null,null,null,null,null,null,null,null,null,null,null,null,null,null,null,null,null,null,null,null,null,"INSERT INTO dbmanottbe.[dbo].Results_Import ([ImpSerieNum],[ImpPassage],[ImpMedalID],[ImpPoints],[ImpPointsHidden],[ImpCcrsID]) VALUES (,,NULL,NULL,,);"]
[null,null,null,null,null,null,null,null,null,null,null,null,null,null,null,null,null,null,null,null,null,null,"INSERT INTO dbmanottbe.[dbo].Results_Import ([ImpSerieNum],[ImpPassage],[ImpMedalID],[ImpPoints],[ImpPointsHidden],[ImpCcrsID]) VALUES (,,NULL,NULL,,);"]
[null,null,null,null,null,null,null,null,null,null,null,null,null,null,null,null,null,null,null,null,null,null,"INSERT INTO dbmanottbe.[dbo].Results_Import ([ImpSerieNum],[ImpPassage],[ImpMedalID],[ImpPoints],[ImpPointsHidden],[ImpCcrsID]) VALUES (,,NULL,NULL,,);"]
[null,null,null,null,null,null,null,null,null,null,null,null,null,null,null,null,null,null,null,null,null,null,"INSERT INTO dbmanottbe.[dbo].Results_Import ([ImpSerieNum],[ImpPassage],[ImpMedalID],[ImpPoints],[ImpPointsHidden],[ImpCcrsID]) VALUES (,,NULL,NULL,,);"]
[null,null,null,null,null,null,null,null,null,null,null,null,null,null,null,null,null,null,null,null,null,null,"INSERT INTO dbmanottbe.[dbo].Results_Import ([ImpSerieNum],[ImpPassage],[ImpMedalID],[ImpPoints],[ImpPointsHidden],[ImpCcrsID]) VALUES (,,NULL,NULL,,);"]
[null,null,null,null,null,null,null,null,null,null,null,null,null,null,null,null,null,null,null,null,null,null,"INSERT INTO dbmanottbe.[dbo].Results_Import ([ImpSerieNum],[ImpPassage],[ImpMedalID],[ImpPoints],[ImpPointsHidden],[ImpCcrsID]) VALUES (,,NULL,NULL,,);"]
[null,null,null,null,null,null,null,null,null,null,null,null,null,null,null,null,null,null,null,null,null,null,"INSERT INTO dbmanottbe.[dbo].Results_Import ([ImpSerieNum],[ImpPassage],[ImpMedalID],[ImpPoints],[ImpPointsHidden],[ImpCcrsID]) VALUES (,,NULL,NULL,,);"]
[null,null,null,null,null,null,null,null,null,null,null,null,null,null,null,null,null,null,null,null,null,null,"INSERT INTO dbmanottbe.[dbo].Results_Import ([ImpSerieNum],[ImpPassage],[ImpMedalID],[ImpPoints],[ImpPointsHidden],[ImpCcrsID]) VALUES (,,NULL,NULL,,);"]
[null,null,null,null,null,null,null,null,null,null,null,null,null,null,null,null,null,null,null,null,null,null,"INSERT INTO dbmanottbe.[dbo].Results_Import ([ImpSerieNum],[ImpPassage],[ImpMedalID],[ImpPoints],[ImpPointsHidden],[ImpCcrsID]) VALUES (,,NULL,NULL,,);"]
[null,null,null,null,null,null,null,null,null,null,null,null,null,null,null,null,null,null,null,null,null,null,"INSERT INTO dbmanottbe.[dbo].Results_Import ([ImpSerieNum],[ImpPassage],[ImpMedalID],[ImpPoints],[ImpPointsHidden],[ImpCcrsID]) VALUES (,,NULL,NULL,,);"]
[null,null,null,null,null,null,null,null,null,null,null,null,null,null,null,null,null,null,null,null,null,null,"INSERT INTO dbmanottbe.[dbo].Results_Import ([ImpSerieNum],[ImpPassage],[ImpMedalID],[ImpPoints],[ImpPointsHidden],[ImpCcrsID]) VALUES (,,NULL,NULL,,);"]
[null,null,null,null,null,null,null,null,null,null,null,null,null,null,null,null,null,null,null,null,null,null,"INSERT INTO dbmanottbe.[dbo].Results_Import ([ImpSerieNum],[ImpPassage],[ImpMedalID],[ImpPoints],[ImpPointsHidden],[ImpCcrsID]) VALUES (,,NULL,NULL,,);"]
[null,null,null,null,null,null,null,null,null,null,null,null,null,null,null,null,null,null,null,null,null,null,"INSERT INTO dbmanottbe.[dbo].Results_Import ([ImpSerieNum],[ImpPassage],[ImpMedalID],[ImpPoints],[ImpPointsHidden],[ImpCcrsID]) VALUES (,,NULL,NULL,,);"]
[null,null,null,null,null,null,null,null,null,null,null,null,null,null,null,null,null,null,null,null,null,null,"INSERT INTO dbmanottbe.[dbo].Results_Import ([ImpSerieNum],[ImpPassage],[ImpMedalID],[ImpPoints],[ImpPointsHidden],[ImpCcrsID]) VALUES (,,NULL,NULL,,);"]
[null,null,null,null,null,null,null,null,null,null,null,null,null,null,null,null,null,null,null,null,null,null,"INSERT INTO dbmanottbe.[dbo].Results_Import ([ImpSerieNum],[ImpPassage],[ImpMedalID],[ImpPoints],[ImpPointsHidden],[ImpCcrsID]) VALUES (,,NULL,NULL,,);"]
[null,null,null,null,null,null,null,null,null,null,null,null,null,null,null,null,null,null,null,null,null,null,"INSERT INTO dbmanottbe.[dbo].Results_Import ([ImpSerieNum],[ImpPassage],[ImpMedalID],[ImpPoints],[ImpPointsHidden],[ImpCcrsID]) VALUES (,,NULL,NULL,,);"]
[null,null,null,null,null,null,null,null,null,null,null,null,null,null,null,null,null,null,null,null,null,null,"INSERT INTO dbmanottbe.[dbo].Results_Import ([ImpSerieNum],[ImpPassage],[ImpMedalID],[ImpPoints],[ImpPointsHidden],[ImpCcrsID]) VALUES (,,NULL,NULL,,);"]
[null,null,null,null,null,null,null,null,null,null,null,null,null,null,null,null,null,null,null,null,null,null,"INSERT INTO dbmanottbe.[dbo].Results_Import ([ImpSerieNum],[ImpPassage],[ImpMedalID],[ImpPoints],[ImpPointsHidden],[ImpCcrsID]) VALUES (,,NULL,NULL,,);"]
[null,null,null,null,null,null,null,null,null,null,null,null,null,null,null,null,null,null,null,null,null,null,"INSERT INTO dbmanottbe.[dbo].Results_Import ([ImpSerieNum],[ImpPassage],[ImpMedalID],[ImpPoints],[ImpPointsHidden],[ImpCcrsID]) VALUES (,,NULL,NULL,,);"]
[null,null,null,null,null,null,null,null,null,null,null,null,null,null,null,null,null,null,null,null,null,null,"INSERT INTO dbmanottbe.[dbo].Results_Import ([ImpSerieNum],[ImpPassage],[ImpMedalID],[ImpPoints],[ImpPointsHidden],[ImpCcrsID]) VALUES (,,NULL,NULL,,);"]
[null,null,null,null,null,null,null,null,null,null,null,null,null,null,null,null,null,null,null,null,null,null,"INSERT INTO dbmanottbe.[dbo].Results_Import ([ImpSerieNum],[ImpPassage],[ImpMedalID],[ImpPoints],[ImpPointsHidden],[ImpCcrsID]) VALUES (,,NULL,NULL,,);"]
[null,null,null,null,null,null,null,null,null,null,null,null,null,null,null,null,null,null,null,null,null,null,"INSERT INTO dbmanottbe.[dbo].Results_Import ([ImpSerieNum],[ImpPassage],[ImpMedalID],[ImpPoints],[ImpPointsHidden],[ImpCcrsID]) VALUES (,,NULL,NULL,,);"]
[null,null,null,null,null,null,null,null,null,null,null,null,null,null,null,null,null,null,null,null,null,null,"INSERT INTO dbmanottbe.[dbo].Results_Import ([ImpSerieNum],[ImpPassage],[ImpMedalID],[ImpPoints],[ImpPointsHidden],[ImpCcrsID]) VALUES (,,NULL,NULL,,);"]
[null,null,null,null,null,null,null,null,null,null,null,null,null,null,null,null,null,null,null,null,null,null,"INSERT INTO dbmanottbe.[dbo].Results_Import ([ImpSerieNum],[ImpPassage],[ImpMedalID],[ImpPoints],[ImpPointsHidden],[ImpCcrsID]) VALUES (,,NULL,NULL,,);"]
[null,null,null,null,null,null,null,null,null,null,null,null,null,null,null,null,null,null,null,null,null,null,"INSERT INTO dbmanottbe.[dbo].Results_Import ([ImpSerieNum],[ImpPassage],[ImpMedalID],[ImpPoints],[ImpPointsHidden],[ImpCcrsID]) VALUES (,,NULL,NULL,,);"]
[null,null,null,null,null,null,null,null,null,null,null,null,null,null,null,null,null,null,null,null,null,null,"INSERT INTO dbmanottbe.[dbo].Results_Import ([ImpSerieNum],[ImpPassage],[ImpMedalID],[ImpPoints],[ImpPointsHidden],[ImpCcrsID]) VALUES (,,NULL,NULL,,);"]
[null,null,null,null,null,null,null,null,null,null,null,null,null,null,null,null,null,null,null,null,null,null,"INSERT INTO dbmanottbe.[dbo].Results_Import ([ImpSerieNum],[ImpPassage],[ImpMedalID],[ImpPoints],[ImpPointsHidden],[ImpCcrsID]) VALUES (,,NULL,NULL,,);"]
[null,null,null,null,null,null,null,null,null,null,null,null,null,null,null,null,null,null,null,null,null,null,"INSERT INTO dbmanottbe.[dbo].Results_Import ([ImpSerieNum],[ImpPassage],[ImpMedalID],[ImpPoints],[ImpPointsHidden],[ImpCcrsID]) VALUES (,,NULL,NULL,,);"]
[null,null,null,null,null,null,null,null,null,null,null,null,null,null,null,null,null,null,null,null,null,null,"INSERT INTO dbmanottbe.[dbo].Results_Import ([ImpSerieNum],[ImpPassage],[ImpMedalID],[ImpPoints],[ImpPointsHidden],[ImpCcrsID]) VALUES (,,NULL,NULL,,);"]
[null,null,null,null,null,null,null,null,null,null,null,null,null,null,null,null,null,null,null,null,null,null,"INSERT INTO dbmanottbe.[dbo].Results_Import ([ImpSerieNum],[ImpPassage],[ImpMedalID],[ImpPoints],[ImpPointsHidden],[ImpCcrsID]) VALUES (,,NULL,NULL,,);"]
[null,null,null,null,null,null,null,null,null,null,null,null,null,null,null,null,null,null,null,null,null,null,"INSERT INTO dbmanottbe.[dbo].Results_Import ([ImpSerieNum],[ImpPassage],[ImpMedalID],[ImpPoints],[ImpPointsHidden],[ImpCcrsID]) VALUES (,,NULL,NULL,,);"]
[null,null,null,null,null,null,null,null,null,null,null,null,null,null,null,null,null,null,null,null,null,null,"INSERT INTO dbmanottbe.[dbo].Results_Import ([ImpSerieNum],[ImpPassage],[ImpMedalID],[ImpPoints],[ImpPointsHidden],[ImpCcrsID]) VALUES (,,NULL,NULL,,);"]
[null,null,null,null,null,null,null,null,null,null,null,null,null,null,null,null,null,null,null,null,null,null,"INSERT INTO dbmanottbe.[dbo].Results_Import ([ImpSerieNum],[ImpPassage],[ImpMedalID],[ImpPoints],[ImpPointsHidden],[ImpCcrsID]) VALUES (,,NULL,NULL,,);"]
[null,null,null,null,null,null,null,null,null,null,null,null,null,null,null,null,null,null,null,null,null,null,"INSERT INTO dbmanottbe.[dbo].Results_Import ([ImpSerieNum],[ImpPassage],[ImpMedalID],[ImpPoints],[ImpPointsHidden],[ImpCcrsID]) VALUES (,,NULL,NULL,,);"]
[null,null,null,null,null,null,null,null,null,null,null,null,null,null,null,null,null,null,null,null,null,null,"INSERT INTO dbmanottbe.[dbo].Results_Import ([ImpSerieNum],[ImpPassage],[ImpMedalID],[ImpPoints],[ImpPointsHidden],[ImpCcrsID]) VALUES (,,NULL,NULL,,);"]
[null,null,null,null,null,null,null,null,null,null,null,null,null,null,null,null,null,null,null,null,null,null,{"$f":"\"INSERT INTO \"&$U$2&\" ([ImpSerieNum],[ImpPassage],[ImpMedalID],[ImpPoints],[ImpPointsHidden],[ImpCcrsID]) VALUES (\"&B643&\",\"&C643&\",\"&IF(D643=\"\",\"NULL\",\"'\"&D643&\"'\")&\",\"&IF(E643=\"\",\"NULL\",SUBSTITUTE(E643,\",\",\".\"))&\",\"&SUBSTITUTE(F643,\",\",\".\")&\",\"&G643&\");\"","v":"INSERT INTO dbmanottbe.[dbo].Results_Import ([ImpSerieNum],[ImpPassage],[ImpMedalID],[ImpPoints],[ImpPointsHidden],[ImpCcrsID]) VALUES (,,NULL,NULL,,);"}]
[null,null,null,null,null,null,null,null,null,null,null,null,null,null,null,null,null,null,null,null,null,null,"INSERT INTO dbmanottbe.[dbo].Results_Import ([ImpSerieNum],[ImpPassage],[ImpMedalID],[ImpPoints],[ImpPointsHidden],[ImpCcrsID]) VALUES (,,NULL,NULL,,);"]
[null,null,null,null,null,null,null,null,null,null,null,null,null,null,null,null,null,null,null,null,null,null,"INSERT INTO dbmanottbe.[dbo].Results_Import ([ImpSerieNum],[ImpPassage],[ImpMedalID],[ImpPoints],[ImpPointsHidden],[ImpCcrsID]) VALUES (,,NULL,NULL,,);"]
[null,null,null,null,null,null,null,null,null,null,null,null,null,null,null,null,null,null,null,null,null,null,"INSERT INTO dbmanottbe.[dbo].Results_Import ([ImpSerieNum],[ImpPassage],[ImpMedalID],[ImpPoints],[ImpPointsHidden],[ImpCcrsID]) VALUES (,,NULL,NULL,,);"]
[null,null,null,null,null,null,null,null,null,null,null,null,null,null,null,null,null,null,null,null,null,null,"INSERT INTO dbmanottbe.[dbo].Results_Import ([ImpSerieNum],[ImpPassage],[ImpMedalID],[ImpPoints],[ImpPointsHidden],[ImpCcrsID]) VALUES (,,NULL,NULL,,);"]
[null,null,null,null,null,null,null,null,null,null,null,null,null,null,null,null,null,null,null,null,null,null,"INSERT INTO dbmanottbe.[dbo].Results_Import ([ImpSerieNum],[ImpPassage],[ImpMedalID],[ImpPoints],[ImpPointsHidden],[ImpCcrsID]) VALUES (,,NULL,NULL,,);"]
[null,null,null,null,null,null,null,null,null,null,null,null,null,null,null,null,null,null,null,null,null,null,"INSERT INTO dbmanottbe.[dbo].Results_Import ([ImpSerieNum],[ImpPassage],[ImpMedalID],[ImpPoints],[ImpPointsHidden],[ImpCcrsID]) VALUES (,,NULL,NULL,,);"]
[null,null,null,null,null,null,null,null,null,null,null,null,null,null,null,null,null,null,null,null,null,null,"INSERT INTO dbmanottbe.[dbo].Results_Import ([ImpSerieNum],[ImpPassage],[ImpMedalID],[ImpPoints],[ImpPointsHidden],[ImpCcrsID]) VALUES (,,NULL,NULL,,);"]
[null,null,null,null,null,null,null,null,null,null,null,null,null,null,null,null,null,null,null,null,null,null,"INSERT INTO dbmanottbe.[dbo].Results_Import ([ImpSerieNum],[ImpPassage],[ImpMedalID],[ImpPoints],[ImpPointsHidden],[ImpCcrsID]) VALUES (,,NULL,NULL,,);"]
[null,null,null,null,null,null,null,null,null,null,null,null,null,null,null,null,null,null,null,null,null,null,"INSERT INTO dbmanottbe.[dbo].Results_Import ([ImpSerieNum],[ImpPassage],[ImpMedalID],[ImpPoints],[ImpPointsHidden],[ImpCcrsID]) VALUES (,,NULL,NULL,,);"]
[null,null,null,null,null,null,null,null,null,null,null,null,null,null,null,null,null,null,null,null,null,null,"INSERT INTO dbmanottbe.[dbo].Results_Import ([ImpSerieNum],[ImpPassage],[ImpMedalID],[ImpPoints],[ImpPointsHidden],[ImpCcrsID]) VALUES (,,NULL,NULL,,);"]
[null,null,null,null,null,null,null,null,null,null,null,null,null,null,null,null,null,null,null,null,null,null,"INSERT INTO dbmanottbe.[dbo].Results_Import ([ImpSerieNum],[ImpPassage],[ImpMedalID],[ImpPoints],[ImpPointsHidden],[ImpCcrsID]) VALUES (,,NULL,NULL,,);"]
[null,null,null,null,null,null,null,null,null,null,null,null,null,null,null,null,null,null,null,null,null,null,"INSERT INTO dbmanottbe.[dbo].Results_Import ([ImpSerieNum],[ImpPassage],[ImpMedalID],[ImpPoints],[ImpPointsHidden],[ImpCcrsID]) VALUES (,,NULL,NULL,,);"]
[null,null,null,null,null,null,null,null,null,null,null,null,null,null,null,null,null,null,null,null,null,null,"INSERT INTO dbmanottbe.[dbo].Results_Import ([ImpSerieNum],[ImpPassage],[ImpMedalID],[ImpPoints],[ImpPointsHidden],[ImpCcrsID]) VALUES (,,NULL,NULL,,);"]
[null,null,null,null,null,null,null,null,null,null,null,null,null,null,null,null,null,null,null,null,null,null,"INSERT INTO dbmanottbe.[dbo].Results_Import ([ImpSerieNum],[ImpPassage],[ImpMedalID],[ImpPoints],[ImpPointsHidden],[ImpCcrsID]) VALUES (,,NULL,NULL,,);"]
[null,null,null,null,null,null,null,null,null,null,null,null,null,null,null,null,null,null,null,null,null,null,"INSERT INTO dbmanottbe.[dbo].Results_Import ([ImpSerieNum],[ImpPassage],[ImpMedalID],[ImpPoints],[ImpPointsHidden],[ImpCcrsID]) VALUES (,,NULL,NULL,,);"]
[null,null,null,null,null,null,null,null,null,null,null,null,null,null,null,null,null,null,null,null,null,null,"INSERT INTO dbmanottbe.[dbo].Results_Import ([ImpSerieNum],[ImpPassage],[ImpMedalID],[ImpPoints],[ImpPointsHidden],[ImpCcrsID]) VALUES (,,NULL,NULL,,);"]
[null,null,null,null,null,null,null,null,null,null,null,null,null,null,null,null,null,null,null,null,null,null,"INSERT INTO dbmanottbe.[dbo].Results_Import ([ImpSerieNum],[ImpPassage],[ImpMedalID],[ImpPoints],[ImpPointsHidden],[ImpCcrsID]) VALUES (,,NULL,NULL,,);"]
[null,null,null,null,null,null,null,null,null,null,null,null,null,null,null,null,null,null,null,null,null,null,"INSERT INTO dbmanottbe.[dbo].Results_Import ([ImpSerieNum],[ImpPassage],[ImpMedalID],[ImpPoints],[ImpPointsHidden],[ImpCcrsID]) VALUES (,,NULL,NULL,,);"]
[null,null,null,null,null,null,null,null,null,null,null,null,null,null,null,null,null,null,null,null,null,null,"INSERT INTO dbmanottbe.[dbo].Results_Import ([ImpSerieNum],[ImpPassage],[ImpMedalID],[ImpPoints],[ImpPointsHidden],[ImpCcrsID]) VALUES (,,NULL,NULL,,);"]
[null,null,null,null,null,null,null,null,null,null,null,null,null,null,null,null,null,null,null,null,null,null,"INSERT INTO dbmanottbe.[dbo].Results_Import ([ImpSerieNum],[ImpPassage],[ImpMedalID],[ImpPoints],[ImpPointsHidden],[ImpCcrsID]) VALUES (,,NULL,NULL,,);"]
[null,null,null,null,null,null,null,null,null,null,null,null,null,null,null,null,null,null,null,null,null,null,"INSERT INTO dbmanottbe.[dbo].Results_Import ([ImpSerieNum],[ImpPassage],[ImpMedalID],[ImpPoints],[ImpPointsHidden],[ImpCcrsID]) VALUES (,,NULL,NULL,,);"]
[null,null,null,null,null,null,null,null,null,null,null,null,null,null,null,null,null,null,null,null,null,null,"INSERT INTO dbmanottbe.[dbo].Results_Import ([ImpSerieNum],[ImpPassage],[ImpMedalID],[ImpPoints],[ImpPointsHidden],[ImpCcrsID]) VALUES (,,NULL,NULL,,);"]
[null,null,null,null,null,null,null,null,null,null,null,null,null,null,null,null,null,null,null,null,null,null,"INSERT INTO dbmanottbe.[dbo].Results_Import ([ImpSerieNum],[ImpPassage],[ImpMedalID],[ImpPoints],[ImpPointsHidden],[ImpCcrsID]) VALUES (,,NULL,NULL,,);"]
[null,null,null,null,null,null,null,null,null,null,null,null,null,null,null,null,null,null,null,null,null,null,"INSERT INTO dbmanottbe.[dbo].Results_Import ([ImpSerieNum],[ImpPassage],[ImpMedalID],[ImpPoints],[ImpPointsHidden],[ImpCcrsID]) VALUES (,,NULL,NULL,,);"]
[null,null,null,null,null,null,null,null,null,null,null,null,null,null,null,null,null,null,null,null,null,null,"INSERT INTO dbmanottbe.[dbo].Results_Import ([ImpSerieNum],[ImpPassage],[ImpMedalID],[ImpPoints],[ImpPointsHidden],[ImpCcrsID]) VALUES (,,NULL,NULL,,);"]
[null,null,null,null,null,null,null,null,null,null,null,null,null,null,null,null,null,null,null,null,null,null,"INSERT INTO dbmanottbe.[dbo].Results_Import ([ImpSerieNum],[ImpPassage],[ImpMedalID],[ImpPoints],[ImpPointsHidden],[ImpCcrsID]) VALUES (,,NULL,NULL,,);"]
[null,null,null,null,null,null,null,null,null,null,null,null,null,null,null,null,null,null,null,null,null,null,"INSERT INTO dbmanottbe.[dbo].Results_Import ([ImpSerieNum],[ImpPassage],[ImpMedalID],[ImpPoints],[ImpPointsHidden],[ImpCcrsID]) VALUES (,,NULL,NULL,,);"]
[null,null,null,null,null,null,null,null,null,null,null,null,null,null,null,null,null,null,null,null,null,null,"INSERT INTO dbmanottbe.[dbo].Results_Import ([ImpSerieNum],[ImpPassage],[ImpMedalID],[ImpPoints],[ImpPointsHidden],[ImpCcrsID]) VALUES (,,NULL,NULL,,);"]
[null,null,null,null,null,null,null,null,null,null,null,null,null,null,null,null,null,null,null,null,null,null,"INSERT INTO dbmanottbe.[dbo].Results_Import ([ImpSerieNum],[ImpPassage],[ImpMedalID],[ImpPoints],[ImpPointsHidden],[ImpCcrsID]) VALUES (,,NULL,NULL,,);"]
[null,null,null,null,null,null,null,null,null,null,null,null,null,null,null,null,null,null,null,null,null,null,"INSERT INTO dbmanottbe.[dbo].Results_Import ([ImpSerieNum],[ImpPassage],[ImpMedalID],[ImpPoints],[ImpPointsHidden],[ImpCcrsID]) VALUES (,,NULL,NULL,,);"]
[null,null,null,null,null,null,null,null,null,null,null,null,null,null,null,null,null,null,null,null,null,null,"INSERT INTO dbmanottbe.[dbo].Results_Import ([ImpSerieNum],[ImpPassage],[ImpMedalID],[ImpPoints],[ImpPointsHidden],[ImpCcrsID]) VALUES (,,NULL,NULL,,);"]
[null,null,null,null,null,null,null,null,null,null,null,null,null,null,null,null,null,null,null,null,null,null,"INSERT INTO dbmanottbe.[dbo].Results_Import ([ImpSerieNum],[ImpPassage],[ImpMedalID],[ImpPoints],[ImpPointsHidden],[ImpCcrsID]) VALUES (,,NULL,NULL,,);"]
[null,null,null,null,null,null,null,null,null,null,null,null,null,null,null,null,null,null,null,null,null,null,"INSERT INTO dbmanottbe.[dbo].Results_Import ([ImpSerieNum],[ImpPassage],[ImpMedalID],[ImpPoints],[ImpPointsHidden],[ImpCcrsID]) VALUES (,,NULL,NULL,,);"]
[null,null,null,null,null,null,null,null,null,null,null,null,null,null,null,null,null,null,null,null,null,null,"INSERT INTO dbmanottbe.[dbo].Results_Import ([ImpSerieNum],[ImpPassage],[ImpMedalID],[ImpPoints],[ImpPointsHidden],[ImpCcrsID]) VALUES (,,NULL,NULL,,);"]
[null,null,null,null,null,null,null,null,null,null,null,null,null,null,null,null,null,null,null,null,null,null,"INSERT INTO dbmanottbe.[dbo].Results_Import ([ImpSerieNum],[ImpPassage],[ImpMedalID],[ImpPoints],[ImpPointsHidden],[ImpCcrsID]) VALUES (,,NULL,NULL,,);"]
[null,null,null,null,null,null,null,null,null,null,null,null,null,null,null,null,null,null,null,null,null,null,"INSERT INTO dbmanottbe.[dbo].Results_Import ([ImpSerieNum],[ImpPassage],[ImpMedalID],[ImpPoints],[ImpPointsHidden],[ImpCcrsID]) VALUES (,,NULL,NULL,,);"]
[null,null,null,null,null,null,null,null,null,null,null,null,null,null,null,null,null,null,null,null,null,null,"INSERT INTO dbmanottbe.[dbo].Results_Import ([ImpSerieNum],[ImpPassage],[ImpMedalID],[ImpPoints],[ImpPointsHidden],[ImpCcrsID]) VALUES (,,NULL,NULL,,);"]
[null,null,null,null,null,null,null,null,null,null,null,null,null,null,null,null,null,null,null,null,null,null,"INSERT INTO dbmanottbe.[dbo].Results_Import ([ImpSerieNum],[ImpPassage],[ImpMedalID],[ImpPoints],[ImpPointsHidden],[ImpCcrsID]) VALUES (,,NULL,NULL,,);"]
[null,null,null,null,null,null,null,null,null,null,null,null,null,null,null,null,null,null,null,null,null,null,"INSERT INTO dbmanottbe.[dbo].Results_Import ([ImpSerieNum],[ImpPassage],[ImpMedalID],[ImpPoints],[ImpPointsHidden],[ImpCcrsID]) VALUES (,,NULL,NULL,,);"]
[null,null,null,null,null,null,null,null,null,null,null,null,null,null,null,null,null,null,null,null,null,null,"INSERT INTO dbmanottbe.[dbo].Results_Import ([ImpSerieNum],[ImpPassage],[ImpMedalID],[ImpPoints],[ImpPointsHidden],[ImpCcrsID]) VALUES (,,NULL,NULL,,);"]
[null,null,null,null,null,null,null,null,null,null,null,null,null,null,null,null,null,null,null,null,null,null,"INSERT INTO dbmanottbe.[dbo].Results_Import ([ImpSerieNum],[ImpPassage],[ImpMedalID],[ImpPoints],[ImpPointsHidden],[ImpCcrsID]) VALUES (,,NULL,NULL,,);"]
[null,null,null,null,null,null,null,null,null,null,null,null,null,null,null,null,null,null,null,null,null,null,"INSERT INTO dbmanottbe.[dbo].Results_Import ([ImpSerieNum],[ImpPassage],[ImpMedalID],[ImpPoints],[ImpPointsHidden],[ImpCcrsID]) VALUES (,,NULL,NULL,,);"]
[null,null,null,null,null,null,null,null,null,null,null,null,null,null,null,null,null,null,null,null,null,null,"INSERT INTO dbmanottbe.[dbo].Results_Import ([ImpSerieNum],[ImpPassage],[ImpMedalID],[ImpPoints],[ImpPointsHidden],[ImpCcrsID]) VALUES (,,NULL,NULL,,);"]
[null,null,null,null,null,null,null,null,null,null,null,null,null,null,null,null,null,null,null,null,null,null,"INSERT INTO dbmanottbe.[dbo].Results_Import ([ImpSerieNum],[ImpPassage],[ImpMedalID],[ImpPoints],[ImpPointsHidden],[ImpCcrsID]) VALUES (,,NULL,NULL,,);"]
[null,null,null,null,null,null,null,null,null,null,null,null,null,null,null,null,null,null,null,null,null,null,"INSERT INTO dbmanottbe.[dbo].Results_Import ([ImpSerieNum],[ImpPassage],[ImpMedalID],[ImpPoints],[ImpPointsHidden],[ImpCcrsID]) VALUES (,,NULL,NULL,,);"]
[null,null,null,null,null,null,null,null,null,null,null,null,null,null,null,null,null,null,null,null,null,null,"INSERT INTO dbmanottbe.[dbo].Results_Import ([ImpSerieNum],[ImpPassage],[ImpMedalID],[ImpPoints],[ImpPointsHidden],[ImpCcrsID]) VALUES (,,NULL,NULL,,);"]
[null,null,null,null,null,null,null,null,null,null,null,null,null,null,null,null,null,null,null,null,null,null,"INSERT INTO dbmanottbe.[dbo].Results_Import ([ImpSerieNum],[ImpPassage],[ImpMedalID],[ImpPoints],[ImpPointsHidden],[ImpCcrsID]) VALUES (,,NULL,NULL,,);"]
[null,null,null,null,null,null,null,null,null,null,null,null,null,null,null,null,null,null,null,null,null,null,"INSERT INTO dbmanottbe.[dbo].Results_Import ([ImpSerieNum],[ImpPassage],[ImpMedalID],[ImpPoints],[ImpPointsHidden],[ImpCcrsID]) VALUES (,,NULL,NULL,,);"]
[null,null,null,null,null,null,null,null,null,null,null,null,null,null,null,null,null,null,null,null,null,null,"INSERT INTO dbmanottbe.[dbo].Results_Import ([ImpSerieNum],[ImpPassage],[ImpMedalID],[ImpPoints],[ImpPointsHidden],[ImpCcrsID]) VALUES (,,NULL,NULL,,);"]
[null,null,null,null,null,null,null,null,null,null,null,null,null,null,null,null,null,null,null,null,null,null,"INSERT INTO dbmanottbe.[dbo].Results_Import ([ImpSerieNum],[ImpPassage],[ImpMedalID],[ImpPoints],[ImpPointsHidden],[ImpCcrsID]) VALUES (,,NULL,NULL,,);"]
[null,null,null,null,null,null,null,null,null,null,null,null,null,null,null,null,null,null,null,null,null,null,"INSERT INTO dbmanottbe.[dbo].Results_Import ([ImpSerieNum],[ImpPassage],[ImpMedalID],[ImpPoints],[ImpPointsHidden],[ImpCcrsID]) VALUES (,,NULL,NULL,,);"]
[null,null,null,null,null,null,null,null,null,null,null,null,null,null,null,null,null,null,null,null,null,null,"INSERT INTO dbmanottbe.[dbo].Results_Import ([ImpSerieNum],[ImpPassage],[ImpMedalID],[ImpPoints],[ImpPointsHidden],[ImpCcrsID]) VALUES (,,NULL,NULL,,);"]
[null,null,null,null,null,null,null,null,null,null,null,null,null,null,null,null,null,null,null,null,null,null,"INSERT INTO dbmanottbe.[dbo].Results_Import ([ImpSerieNum],[ImpPassage],[ImpMedalID],[ImpPoints],[ImpPointsHidden],[ImpCcrsID]) VALUES (,,NULL,NULL,,);"]
[null,null,null,null,null,null,null,null,null,null,null,null,null,null,null,null,null,null,null,null,null,null,"INSERT INTO dbmanottbe.[dbo].Results_Import ([ImpSerieNum],[ImpPassage],[ImpMedalID],[ImpPoints],[ImpPointsHidden],[ImpCcrsID]) VALUES (,,NULL,NULL,,);"]
[null,null,null,null,null,null,null,null,null,null,null,null,null,null,null,null,null,null,null,null,null,null,"INSERT INTO dbmanottbe.[dbo].Results_Import ([ImpSerieNum],[ImpPassage],[ImpMedalID],[ImpPoints],[ImpPointsHidden],[ImpCcrsID]) VALUES (,,NULL,NULL,,);"]
[null,null,null,null,null,null,null,null,null,null,null,null,null,null,null,null,null,null,null,null,null,null,"INSERT INTO dbmanottbe.[dbo].Results_Import ([ImpSerieNum],[ImpPassage],[ImpMedalID],[ImpPoints],[ImpPointsHidden],[ImpCcrsID]) VALUES (,,NULL,NULL,,);"]
[null,null,null,null,null,null,null,null,null,null,null,null,null,null,null,null,null,null,null,null,null,null,"INSERT INTO dbmanottbe.[dbo].Results_Import ([ImpSerieNum],[ImpPassage],[ImpMedalID],[ImpPoints],[ImpPointsHidden],[ImpCcrsID]) VALUES (,,NULL,NULL,,);"]
[null,null,null,null,null,null,null,null,null,null,null,null,null,null,null,null,null,null,null,null,null,null,"INSERT INTO dbmanottbe.[dbo].Results_Import ([ImpSerieNum],[ImpPassage],[ImpMedalID],[ImpPoints],[ImpPointsHidden],[ImpCcrsID]) VALUES (,,NULL,NULL,,);"]
[null,null,null,null,null,null,null,null,null,null,null,null,null,null,null,null,null,null,null,null,null,null,"INSERT INTO dbmanottbe.[dbo].Results_Import ([ImpSerieNum],[ImpPassage],[ImpMedalID],[ImpPoints],[ImpPointsHidden],[ImpCcrsID]) VALUES (,,NULL,NULL,,);"]
[null,null,null,null,null,null,null,null,null,null,null,null,null,null,null,null,null,null,null,null,null,null,"INSERT INTO dbmanottbe.[dbo].Results_Import ([ImpSerieNum],[ImpPassage],[ImpMedalID],[ImpPoints],[ImpPointsHidden],[ImpCcrsID]) VALUES (,,NULL,NULL,,);"]
[null,null,null,null,null,null,null,null,null,null,null,null,null,null,null,null,null,null,null,null,null,null,"INSERT INTO dbmanottbe.[dbo].Results_Import ([ImpSerieNum],[ImpPassage],[ImpMedalID],[ImpPoints],[ImpPointsHidden],[ImpCcrsID]) VALUES (,,NULL,NULL,,);"]
[null,null,null,null,null,null,null,null,null,null,null,null,null,null,null,null,null,null,null,null,null,null,"INSERT INTO dbmanottbe.[dbo].Results_Import ([ImpSerieNum],[ImpPassage],[ImpMedalID],[ImpPoints],[ImpPointsHidden],[ImpCcrsID]) VALUES (,,NULL,NULL,,);"]
[null,null,null,null,null,null,null,null,null,null,null,null,null,null,null,null,null,null,null,null,null,null,"INSERT INTO dbmanottbe.[dbo].Results_Import ([ImpSerieNum],[ImpPassage],[ImpMedalID],[ImpPoints],[ImpPointsHidden],[ImpCcrsID]) VALUES (,,NULL,NULL,,);"]
[null,null,null,null,null,null,null,null,null,null,null,null,null,null,null,null,null,null,null,null,null,null,{"$f":"\"INSERT INTO \"&$U$2&\" ([ImpSerieNum],[ImpPassage],[ImpMedalID],[ImpPoints],[ImpPointsHidden],[ImpCcrsID]) VALUES (\"&B707&\",\"&C707&\",\"&IF(D707=\"\",\"NULL\",\"'\"&D707&\"'\")&\",\"&IF(E707=\"\",\"NULL\",SUBSTITUTE(E707,\",\",\".\"))&\",\"&SUBSTITUTE(F707,\",\",\".\")&\",\"&G707&\");\"","v":"INSERT INTO dbmanottbe.[dbo].Results_Import ([ImpSerieNum],[ImpPassage],[ImpMedalID],[ImpPoints],[ImpPointsHidden],[ImpCcrsID]) VALUES (,,NULL,NULL,,);"}]
[null,null,null,null,null,null,null,null,null,null,null,null,null,null,null,null,null,null,null,null,null,null,"INSERT INTO dbmanottbe.[dbo].Results_Import ([ImpSerieNum],[ImpPassage],[ImpMedalID],[ImpPoints],[ImpPointsHidden],[ImpCcrsID]) VALUES (,,NULL,NULL,,);"]
[null,null,null,null,null,null,null,null,null,null,null,null,null,null,null,null,null,null,null,null,null,null,"INSERT INTO dbmanottbe.[dbo].Results_Import ([ImpSerieNum],[ImpPassage],[ImpMedalID],[ImpPoints],[ImpPointsHidden],[ImpCcrsID]) VALUES (,,NULL,NULL,,);"]
[null,null,null,null,null,null,null,null,null,null,null,null,null,null,null,null,null,null,null,null,null,null,"INSERT INTO dbmanottbe.[dbo].Results_Import ([ImpSerieNum],[ImpPassage],[ImpMedalID],[ImpPoints],[ImpPointsHidden],[ImpCcrsID]) VALUES (,,NULL,NULL,,);"]
[null,null,null,null,null,null,null,null,null,null,null,null,null,null,null,null,null,null,null,null,null,null,"INSERT INTO dbmanottbe.[dbo].Results_Import ([ImpSerieNum],[ImpPassage],[ImpMedalID],[ImpPoints],[ImpPointsHidden],[ImpCcrsID]) VALUES (,,NULL,NULL,,);"]
[null,null,null,null,null,null,null,null,null,null,null,null,null,null,null,null,null,null,null,null,null,null,"INSERT INTO dbmanottbe.[dbo].Results_Import ([ImpSerieNum],[ImpPassage],[ImpMedalID],[ImpPoints],[ImpPointsHidden],[ImpCcrsID]) VALUES (,,NULL,NULL,,);"]
[null,null,null,null,null,null,null,null,null,null,null,null,null,null,null,null,null,null,null,null,null,null,"INSERT INTO dbmanottbe.[dbo].Results_Import ([ImpSerieNum],[ImpPassage],[ImpMedalID],[ImpPoints],[ImpPointsHidden],[ImpCcrsID]) VALUES (,,NULL,NULL,,);"]
[null,null,null,null,null,null,null,null,null,null,null,null,null,null,null,null,null,null,null,null,null,null,"INSERT INTO dbmanottbe.[dbo].Results_Import ([ImpSerieNum],[ImpPassage],[ImpMedalID],[ImpPoints],[ImpPointsHidden],[ImpCcrsID]) VALUES (,,NULL,NULL,,);"]
[null,null,null,null,null,null,null,null,null,null,null,null,null,null,null,null,null,null,null,null,null,null,"INSERT INTO dbmanottbe.[dbo].Results_Import ([ImpSerieNum],[ImpPassage],[ImpMedalID],[ImpPoints],[ImpPointsHidden],[ImpCcrsID]) VALUES (,,NULL,NULL,,);"]
[null,null,null,null,null,null,null,null,null,null,null,null,null,null,null,null,null,null,null,null,null,null,"INSERT INTO dbmanottbe.[dbo].Results_Import ([ImpSerieNum],[ImpPassage],[ImpMedalID],[ImpPoints],[ImpPointsHidden],[ImpCcrsID]) VALUES (,,NULL,NULL,,);"]
[null,null,null,null,null,null,null,null,null,null,null,null,null,null,null,null,null,null,null,null,null,null,"INSERT INTO dbmanottbe.[dbo].Results_Import ([ImpSerieNum],[ImpPassage],[ImpMedalID],[ImpPoints],[ImpPointsHidden],[ImpCcrsID]) VALUES (,,NULL,NULL,,);"]
[null,null,null,null,null,null,null,null,null,null,null,null,null,null,null,null,null,null,null,null,null,null,"INSERT INTO dbmanottbe.[dbo].Results_Import ([ImpSerieNum],[ImpPassage],[ImpMedalID],[ImpPoints],[ImpPointsHidden],[ImpCcrsID]) VALUES (,,NULL,NULL,,);"]
[null,null,null,null,null,null,null,null,null,null,null,null,null,null,null,null,null,null,null,null,null,null,"INSERT INTO dbmanottbe.[dbo].Results_Import ([ImpSerieNum],[ImpPassage],[ImpMedalID],[ImpPoints],[ImpPointsHidden],[ImpCcrsID]) VALUES (,,NULL,NULL,,);"]
[null,null,null,null,null,null,null,null,null,null,null,null,null,null,null,null,null,null,null,null,null,null,"INSERT INTO dbmanottbe.[dbo].Results_Import ([ImpSerieNum],[ImpPassage],[ImpMedalID],[ImpPoints],[ImpPointsHidden],[ImpCcrsID]) VALUES (,,NULL,NULL,,);"]
[null,null,null,null,null,null,null,null,null,null,null,null,null,null,null,null,null,null,null,null,null,null,"INSERT INTO dbmanottbe.[dbo].Results_Import ([ImpSerieNum],[ImpPassage],[ImpMedalID],[ImpPoints],[ImpPointsHidden],[ImpCcrsID]) VALUES (,,NULL,NULL,,);"]
[null,null,null,null,null,null,null,null,null,null,null,null,null,null,null,null,null,null,null,null,null,null,"INSERT INTO dbmanottbe.[dbo].Results_Import ([ImpSerieNum],[ImpPassage],[ImpMedalID],[ImpPoints],[ImpPointsHidden],[ImpCcrsID]) VALUES (,,NULL,NULL,,);"]
[null,null,null,null,null,null,null,null,null,null,null,null,null,null,null,null,null,null,null,null,null,null,"INSERT INTO dbmanottbe.[dbo].Results_Import ([ImpSerieNum],[ImpPassage],[ImpMedalID],[ImpPoints],[ImpPointsHidden],[ImpCcrsID]) VALUES (,,NULL,NULL,,);"]
[null,null,null,null,null,null,null,null,null,null,null,null,null,null,null,null,null,null,null,null,null,null,"INSERT INTO dbmanottbe.[dbo].Results_Import ([ImpSerieNum],[ImpPassage],[ImpMedalID],[ImpPoints],[ImpPointsHidden],[ImpCcrsID]) VALUES (,,NULL,NULL,,);"]
[null,null,null,null,null,null,null,null,null,null,null,null,null,null,null,null,null,null,null,null,null,null,"INSERT INTO dbmanottbe.[dbo].Results_Import ([ImpSerieNum],[ImpPassage],[ImpMedalID],[ImpPoints],[ImpPointsHidden],[ImpCcrsID]) VALUES (,,NULL,NULL,,);"]
[null,null,null,null,null,null,null,null,null,null,null,null,null,null,null,null,null,null,null,null,null,null,"INSERT INTO dbmanottbe.[dbo].Results_Import ([ImpSerieNum],[ImpPassage],[ImpMedalID],[ImpPoints],[ImpPointsHidden],[ImpCcrsID]) VALUES (,,NULL,NULL,,);"]
[null,null,null,null,null,null,null,null,null,null,null,null,null,null,null,null,null,null,null,null,null,null,"INSERT INTO dbmanottbe.[dbo].Results_Import ([ImpSerieNum],[ImpPassage],[ImpMedalID],[ImpPoints],[ImpPointsHidden],[ImpCcrsID]) VALUES (,,NULL,NULL,,);"]
[null,null,null,null,null,null,null,null,null,null,null,null,null,null,null,null,null,null,null,null,null,null,"INSERT INTO dbmanottbe.[dbo].Results_Import ([ImpSerieNum],[ImpPassage],[ImpMedalID],[ImpPoints],[ImpPointsHidden],[ImpCcrsID]) VALUES (,,NULL,NULL,,);"]
[null,null,null,null,null,null,null,null,null,null,null,null,null,null,null,null,null,null,null,null,null,null,"INSERT INTO dbmanottbe.[dbo].Results_Import ([ImpSerieNum],[ImpPassage],[ImpMedalID],[ImpPoints],[ImpPointsHidden],[ImpCcrsID]) VALUES (,,NULL,NULL,,);"]
[null,null,null,null,null,null,null,null,null,null,null,null,null,null,null,null,null,null,null,null,null,null,"INSERT INTO dbmanottbe.[dbo].Results_Import ([ImpSerieNum],[ImpPassage],[ImpMedalID],[ImpPoints],[ImpPointsHidden],[ImpCcrsID]) VALUES (,,NULL,NULL,,);"]
[null,null,null,null,null,null,null,null,null,null,null,null,null,null,null,null,null,null,null,null,null,null,"INSERT INTO dbmanottbe.[dbo].Results_Import ([ImpSerieNum],[ImpPassage],[ImpMedalID],[ImpPoints],[ImpPointsHidden],[ImpCcrsID]) VALUES (,,NULL,NULL,,);"]
[null,null,null,null,null,null,null,null,null,null,null,null,null,null,null,null,null,null,null,null,null,null,"INSERT INTO dbmanottbe.[dbo].Results_Import ([ImpSerieNum],[ImpPassage],[ImpMedalID],[ImpPoints],[ImpPointsHidden],[ImpCcrsID]) VALUES (,,NULL,NULL,,);"]
[null,null,null,null,null,null,null,null,null,null,null,null,null,null,null,null,null,null,null,null,null,null,"INSERT INTO dbmanottbe.[dbo].Results_Import ([ImpSerieNum],[ImpPassage],[ImpMedalID],[ImpPoints],[ImpPointsHidden],[ImpCcrsID]) VALUES (,,NULL,NULL,,);"]
[null,null,null,null,null,null,null,null,null,null,null,null,null,null,null,null,null,null,null,null,null,null,"INSERT INTO dbmanottbe.[dbo].Results_Import ([ImpSerieNum],[ImpPassage],[ImpMedalID],[ImpPoints],[ImpPointsHidden],[ImpCcrsID]) VALUES (,,NULL,NULL,,);"]
[null,null,null,null,null,null,null,null,null,null,null,null,null,null,null,null,null,null,null,null,null,null,"INSERT INTO dbmanottbe.[dbo].Results_Import ([ImpSerieNum],[ImpPassage],[ImpMedalID],[ImpPoints],[ImpPointsHidden],[ImpCcrsID]) VALUES (,,NULL,NULL,,);"]
[null,null,null,null,null,null,null,null,null,null,null,null,null,null,null,null,null,null,null,null,null,null,"INSERT INTO dbmanottbe.[dbo].Results_Import ([ImpSerieNum],[ImpPassage],[ImpMedalID],[ImpPoints],[ImpPointsHidden],[ImpCcrsID]) VALUES (,,NULL,NULL,,);"]
[null,null,null,null,null,null,null,null,null,null,null,null,null,null,null,null,null,null,null,null,null,null,"INSERT INTO dbmanottbe.[dbo].Results_Import ([ImpSerieNum],[ImpPassage],[ImpMedalID],[ImpPoints],[ImpPointsHidden],[ImpCcrsID]) VALUES (,,NULL,NULL,,);"]
[null,null,null,null,null,null,null,null,null,null,null,null,null,null,null,null,null,null,null,null,null,null,"INSERT INTO dbmanottbe.[dbo].Results_Import ([ImpSerieNum],[ImpPassage],[ImpMedalID],[ImpPoints],[ImpPointsHidden],[ImpCcrsID]) VALUES (,,NULL,NULL,,);"]
[null,null,null,null,null,null,null,null,null,null,null,null,null,null,null,null,null,null,null,null,null,null,"INSERT INTO dbmanottbe.[dbo].Results_Import ([ImpSerieNum],[ImpPassage],[ImpMedalID],[ImpPoints],[ImpPointsHidden],[ImpCcrsID]) VALUES (,,NULL,NULL,,);"]
[null,null,null,null,null,null,null,null,null,null,null,null,null,null,null,null,null,null,null,null,null,null,"INSERT INTO dbmanottbe.[dbo].Results_Import ([ImpSerieNum],[ImpPassage],[ImpMedalID],[ImpPoints],[ImpPointsHidden],[ImpCcrsID]) VALUES (,,NULL,NULL,,);"]
[null,null,null,null,null,null,null,null,null,null,null,null,null,null,null,null,null,null,null,null,null,null,"INSERT INTO dbmanottbe.[dbo].Results_Import ([ImpSerieNum],[ImpPassage],[ImpMedalID],[ImpPoints],[ImpPointsHidden],[ImpCcrsID]) VALUES (,,NULL,NULL,,);"]
[null,null,null,null,null,null,null,null,null,null,null,null,null,null,null,null,null,null,null,null,null,null,"INSERT INTO dbmanottbe.[dbo].Results_Import ([ImpSerieNum],[ImpPassage],[ImpMedalID],[ImpPoints],[ImpPointsHidden],[ImpCcrsID]) VALUES (,,NULL,NULL,,);"]
[null,null,null,null,null,null,null,null,null,null,null,null,null,null,null,null,null,null,null,null,null,null,"INSERT INTO dbmanottbe.[dbo].Results_Import ([ImpSerieNum],[ImpPassage],[ImpMedalID],[ImpPoints],[ImpPointsHidden],[ImpCcrsID]) VALUES (,,NULL,NULL,,);"]
[null,null,null,null,null,null,null,null,null,null,null,null,null,null,null,null,null,null,null,null,null,null,"INSERT INTO dbmanottbe.[dbo].Results_Import ([ImpSerieNum],[ImpPassage],[ImpMedalID],[ImpPoints],[ImpPointsHidden],[ImpCcrsID]) VALUES (,,NULL,NULL,,);"]
[null,null,null,null,null,null,null,null,null,null,null,null,null,null,null,null,null,null,null,null,null,null,"INSERT INTO dbmanottbe.[dbo].Results_Import ([ImpSerieNum],[ImpPassage],[ImpMedalID],[ImpPoints],[ImpPointsHidden],[ImpCcrsID]) VALUES (,,NULL,NULL,,);"]
[null,null,null,null,null,null,null,null,null,null,null,null,null,null,null,null,null,null,null,null,null,null,"INSERT INTO dbmanottbe.[dbo].Results_Import ([ImpSerieNum],[ImpPassage],[ImpMedalID],[ImpPoints],[ImpPointsHidden],[ImpCcrsID]) VALUES (,,NULL,NULL,,);"]
[null,null,null,null,null,null,null,null,null,null,null,null,null,null,null,null,null,null,null,null,null,null,"INSERT INTO dbmanottbe.[dbo].Results_Import ([ImpSerieNum],[ImpPassage],[ImpMedalID],[ImpPoints],[ImpPointsHidden],[ImpCcrsID]) VALUES (,,NULL,NULL,,);"]
[null,null,null,null,null,null,null,null,null,null,null,null,null,null,null,null,null,null,null,null,null,null,"INSERT INTO dbmanottbe.[dbo].Results_Import ([ImpSerieNum],[ImpPassage],[ImpMedalID],[ImpPoints],[ImpPointsHidden],[ImpCcrsID]) VALUES (,,NULL,NULL,,);"]
[null,null,null,null,null,null,null,null,null,null,null,null,null,null,null,null,null,null,null,null,null,null,"INSERT INTO dbmanottbe.[dbo].Results_Import ([ImpSerieNum],[ImpPassage],[ImpMedalID],[ImpPoints],[ImpPointsHidden],[ImpCcrsID]) VALUES (,,NULL,NULL,,);"]
[null,null,null,null,null,null,null,null,null,null,null,null,null,null,null,null,null,null,null,null,null,null,"INSERT INTO dbmanottbe.[dbo].Results_Import ([ImpSerieNum],[ImpPassage],[ImpMedalID],[ImpPoints],[ImpPointsHidden],[ImpCcrsID]) VALUES (,,NULL,NULL,,);"]
[null,null,null,null,null,null,null,null,null,null,null,null,null,null,null,null,null,null,null,null,null,null,"INSERT INTO dbmanottbe.[dbo].Results_Import ([ImpSerieNum],[ImpPassage],[ImpMedalID],[ImpPoints],[ImpPointsHidden],[ImpCcrsID]) VALUES (,,NULL,NULL,,);"]
[null,null,null,null,null,null,null,null,null,null,null,null,null,null,null,null,null,null,null,null,null,null,"INSERT INTO dbmanottbe.[dbo].Results_Import ([ImpSerieNum],[ImpPassage],[ImpMedalID],[ImpPoints],[ImpPointsHidden],[ImpCcrsID]) VALUES (,,NULL,NULL,,);"]
[null,null,null,null,null,null,null,null,null,null,null,null,null,null,null,null,null,null,null,null,null,null,"INSERT INTO dbmanottbe.[dbo].Results_Import ([ImpSerieNum],[ImpPassage],[ImpMedalID],[ImpPoints],[ImpPointsHidden],[ImpCcrsID]) VALUES (,,NULL,NULL,,);"]
[null,null,null,null,null,null,null,null,null,null,null,null,null,null,null,null,null,null,null,null,null,null,"INSERT INTO dbmanottbe.[dbo].Results_Import ([ImpSerieNum],[ImpPassage],[ImpMedalID],[ImpPoints],[ImpPointsHidden],[ImpCcrsID]) VALUES (,,NULL,NULL,,);"]
[null,null,null,null,null,null,null,null,null,null,null,null,null,null,null,null,null,null,null,null,null,null,"INSERT INTO dbmanottbe.[dbo].Results_Import ([ImpSerieNum],[ImpPassage],[ImpMedalID],[ImpPoints],[ImpPointsHidden],[ImpCcrsID]) VALUES (,,NULL,NULL,,);"]
[null,null,null,null,null,null,null,null,null,null,null,null,null,null,null,null,null,null,null,null,null,null,"INSERT INTO dbmanottbe.[dbo].Results_Import ([ImpSerieNum],[ImpPassage],[ImpMedalID],[ImpPoints],[ImpPointsHidden],[ImpCcrsID]) VALUES (,,NULL,NULL,,);"]
[null,null,null,null,null,null,null,null,null,null,null,null,null,null,null,null,null,null,null,null,null,null,"INSERT INTO dbmanottbe.[dbo].Results_Import ([ImpSerieNum],[ImpPassage],[ImpMedalID],[ImpPoints],[ImpPointsHidden],[ImpCcrsID]) VALUES (,,NULL,NULL,,);"]
[null,null,null,null,null,null,null,null,null,null,null,null,null,null,null,null,null,null,null,null,null,null,"INSERT INTO dbmanottbe.[dbo].Results_Import ([ImpSerieNum],[ImpPassage],[ImpMedalID],[ImpPoints],[ImpPointsHidden],[ImpCcrsID]) VALUES (,,NULL,NULL,,);"]
[null,null,null,null,null,null,null,null,null,null,null,null,null,null,null,null,null,null,null,null,null,null,"INSERT INTO dbmanottbe.[dbo].Results_Import ([ImpSerieNum],[ImpPassage],[ImpMedalID],[ImpPoints],[ImpPointsHidden],[ImpCcrsID]) VALUES (,,NULL,NULL,,);"]
[null,null,null,null,null,null,null,null,null,null,null,null,null,null,null,null,null,null,null,null,null,null,"INSERT INTO dbmanottbe.[dbo].Results_Import ([ImpSerieNum],[ImpPassage],[ImpMedalID],[ImpPoints],[ImpPointsHidden],[ImpCcrsID]) VALUES (,,NULL,NULL,,);"]
[null,null,null,null,null,null,null,null,null,null,null,null,null,null,null,null,null,null,null,null,null,null,"INSERT INTO dbmanottbe.[dbo].Results_Import ([ImpSerieNum],[ImpPassage],[ImpMedalID],[ImpPoints],[ImpPointsHidden],[ImpCcrsID]) VALUES (,,NULL,NULL,,);"]
[null,null,null,null,null,null,null,null,null,null,null,null,null,null,null,null,null,null,null,null,null,null,"INSERT INTO dbmanottbe.[dbo].Results_Import ([ImpSerieNum],[ImpPassage],[ImpMedalID],[ImpPoints],[ImpPointsHidden],[ImpCcrsID]) VALUES (,,NULL,NULL,,);"]
[null,null,null,null,null,null,null,null,null,null,null,null,null,null,null,null,null,null,null,null,null,null,"INSERT INTO dbmanottbe.[dbo].Results_Import ([ImpSerieNum],[ImpPassage],[ImpMedalID],[ImpPoints],[ImpPointsHidden],[ImpCcrsID]) VALUES (,,NULL,NULL,,);"]
[null,null,null,null,null,null,null,null,null,null,null,null,null,null,null,null,null,null,null,null,null,null,"INSERT INTO dbmanottbe.[dbo].Results_Import ([ImpSerieNum],[ImpPassage],[ImpMedalID],[ImpPoints],[ImpPointsHidden],[ImpCcrsID]) VALUES (,,NULL,NULL,,);"]
[null,null,null,null,null,null,null,null,null,null,null,null,null,null,null,null,null,null,null,null,null,null,"INSERT INTO dbmanottbe.[dbo].Results_Import ([ImpSerieNum],[ImpPassage],[ImpMedalID],[ImpPoints],[ImpPointsHidden],[ImpCcrsID]) VALUES (,,NULL,NULL,,);"]
[null,null,null,null,null,null,null,null,null,null,null,null,null,null,null,null,null,null,null,null,null,null,"INSERT INTO dbmanottbe.[dbo].Results_Import ([ImpSerieNum],[ImpPassage],[ImpMedalID],[ImpPoints],[ImpPointsHidden],[ImpCcrsID]) VALUES (,,NULL,NULL,,);"]
[null,null,null,null,null,null,null,null,null,null,null,null,null,null,null,null,null,null,null,null,null,null,"INSERT INTO dbmanottbe.[dbo].Results_Import ([ImpSerieNum],[ImpPassage],[ImpMedalID],[ImpPoints],[ImpPointsHidden],[ImpCcrsID]) VALUES (,,NULL,NULL,,);"]
[null,null,null,null,null,null,null,null,null,null,null,null,null,null,null,null,null,null,null,null,null,null,"INSERT INTO dbmanottbe.[dbo].Results_Import ([ImpSerieNum],[ImpPassage],[ImpMedalID],[ImpPoints],[ImpPointsHidden],[ImpCcrsID]) VALUES (,,NULL,NULL,,);"]
[null,null,null,null,null,null,null,null,null,null,null,null,null,null,null,null,null,null,null,null,null,null,"INSERT INTO dbmanottbe.[dbo].Results_Import ([ImpSerieNum],[ImpPassage],[ImpMedalID],[ImpPoints],[ImpPointsHidden],[ImpCcrsID]) VALUES (,,NULL,NULL,,);"]
[null,null,null,null,null,null,null,null,null,null,null,null,null,null,null,null,null,null,null,null,null,null,"INSERT INTO dbmanottbe.[dbo].Results_Import ([ImpSerieNum],[ImpPassage],[ImpMedalID],[ImpPoints],[ImpPointsHidden],[ImpCcrsID]) VALUES (,,NULL,NULL,,);"]
[null,null,null,null,null,null,null,null,null,null,null,null,null,null,null,null,null,null,null,null,null,null,{"$f":"\"INSERT INTO \"&$U$2&\" ([ImpSerieNum],[ImpPassage],[ImpMedalID],[ImpPoints],[ImpPointsHidden],[ImpCcrsID]) VALUES (\"&B771&\",\"&C771&\",\"&IF(D771=\"\",\"NULL\",\"'\"&D771&\"'\")&\",\"&IF(E771=\"\",\"NULL\",SUBSTITUTE(E771,\",\",\".\"))&\",\"&SUBSTITUTE(F771,\",\",\".\")&\",\"&G771&\");\"","v":"INSERT INTO dbmanottbe.[dbo].Results_Import ([ImpSerieNum],[ImpPassage],[ImpMedalID],[ImpPoints],[ImpPointsHidden],[ImpCcrsID]) VALUES (,,NULL,NULL,,);"}]
[null,null,null,null,null,null,null,null,null,null,null,null,null,null,null,null,null,null,null,null,null,null,"INSERT INTO dbmanottbe.[dbo].Results_Import ([ImpSerieNum],[ImpPassage],[ImpMedalID],[ImpPoints],[ImpPointsHidden],[ImpCcrsID]) VALUES (,,NULL,NULL,,);"]
[null,null,null,null,null,null,null,null,null,null,null,null,null,null,null,null,null,null,null,null,null,null,"INSERT INTO dbmanottbe.[dbo].Results_Import ([ImpSerieNum],[ImpPassage],[ImpMedalID],[ImpPoints],[ImpPointsHidden],[ImpCcrsID]) VALUES (,,NULL,NULL,,);"]
[null,null,null,null,null,null,null,null,null,null,null,null,null,null,null,null,null,null,null,null,null,null,"INSERT INTO dbmanottbe.[dbo].Results_Import ([ImpSerieNum],[ImpPassage],[ImpMedalID],[ImpPoints],[ImpPointsHidden],[ImpCcrsID]) VALUES (,,NULL,NULL,,);"]
[null,null,null,null,null,null,null,null,null,null,null,null,null,null,null,null,null,null,null,null,null,null,"INSERT INTO dbmanottbe.[dbo].Results_Import ([ImpSerieNum],[ImpPassage],[ImpMedalID],[ImpPoints],[ImpPointsHidden],[ImpCcrsID]) VALUES (,,NULL,NULL,,);"]
[null,null,null,null,null,null,null,null,null,null,null,null,null,null,null,null,null,null,null,null,null,null,"INSERT INTO dbmanottbe.[dbo].Results_Import ([ImpSerieNum],[ImpPassage],[ImpMedalID],[ImpPoints],[ImpPointsHidden],[ImpCcrsID]) VALUES (,,NULL,NULL,,);"]
[null,null,null,null,null,null,null,null,null,null,null,null,null,null,null,null,null,null,null,null,null,null,"INSERT INTO dbmanottbe.[dbo].Results_Import ([ImpSerieNum],[ImpPassage],[ImpMedalID],[ImpPoints],[ImpPointsHidden],[ImpCcrsID]) VALUES (,,NULL,NULL,,);"]
[null,null,null,null,null,null,null,null,null,null,null,null,null,null,null,null,null,null,null,null,null,null,"INSERT INTO dbmanottbe.[dbo].Results_Import ([ImpSerieNum],[ImpPassage],[ImpMedalID],[ImpPoints],[ImpPointsHidden],[ImpCcrsID]) VALUES (,,NULL,NULL,,);"]
[null,null,null,null,null,null,null,null,null,null,null,null,null,null,null,null,null,null,null,null,null,null,"INSERT INTO dbmanottbe.[dbo].Results_Import ([ImpSerieNum],[ImpPassage],[ImpMedalID],[ImpPoints],[ImpPointsHidden],[ImpCcrsID]) VALUES (,,NULL,NULL,,);"]
[null,null,null,null,null,null,null,null,null,null,null,null,null,null,null,null,null,null,null,null,null,null,"INSERT INTO dbmanottbe.[dbo].Results_Import ([ImpSerieNum],[ImpPassage],[ImpMedalID],[ImpPoints],[ImpPointsHidden],[ImpCcrsID]) VALUES (,,NULL,NULL,,);"]
[null,null,null,null,null,null,null,null,null,null,null,null,null,null,null,null,null,null,null,null,null,null,"INSERT INTO dbmanottbe.[dbo].Results_Import ([ImpSerieNum],[ImpPassage],[ImpMedalID],[ImpPoints],[ImpPointsHidden],[ImpCcrsID]) VALUES (,,NULL,NULL,,);"]
[null,null,null,null,null,null,null,null,null,null,null,null,null,null,null,null,null,null,null,null,null,null,"INSERT INTO dbmanottbe.[dbo].Results_Import ([ImpSerieNum],[ImpPassage],[ImpMedalID],[ImpPoints],[ImpPointsHidden],[ImpCcrsID]) VALUES (,,NULL,NULL,,);"]
[null,null,null,null,null,null,null,null,null,null,null,null,null,null,null,null,null,null,null,null,null,null,"INSERT INTO dbmanottbe.[dbo].Results_Import ([ImpSerieNum],[ImpPassage],[ImpMedalID],[ImpPoints],[ImpPointsHidden],[ImpCcrsID]) VALUES (,,NULL,NULL,,);"]
[null,null,null,null,null,null,null,null,null,null,null,null,null,null,null,null,null,null,null,null,null,null,"INSERT INTO dbmanottbe.[dbo].Results_Import ([ImpSerieNum],[ImpPassage],[ImpMedalID],[ImpPoints],[ImpPointsHidden],[ImpCcrsID]) VALUES (,,NULL,NULL,,);"]
[null,null,null,null,null,null,null,null,null,null,null,null,null,null,null,null,null,null,null,null,null,null,"INSERT INTO dbmanottbe.[dbo].Results_Import ([ImpSerieNum],[ImpPassage],[ImpMedalID],[ImpPoints],[ImpPointsHidden],[ImpCcrsID]) VALUES (,,NULL,NULL,,);"]
[null,null,null,null,null,null,null,null,null,null,null,null,null,null,null,null,null,null,null,null,null,null,"INSERT INTO dbmanottbe.[dbo].Results_Import ([ImpSerieNum],[ImpPassage],[ImpMedalID],[ImpPoints],[ImpPointsHidden],[ImpCcrsID]) VALUES (,,NULL,NULL,,);"]
[null,null,null,null,null,null,null,null,null,null,null,null,null,null,null,null,null,null,null,null,null,null,"INSERT INTO dbmanottbe.[dbo].Results_Import ([ImpSerieNum],[ImpPassage],[ImpMedalID],[ImpPoints],[ImpPointsHidden],[ImpCcrsID]) VALUES (,,NULL,NULL,,);"]
[null,null,null,null,null,null,null,null,null,null,null,null,null,null,null,null,null,null,null,null,null,null,"INSERT INTO dbmanottbe.[dbo].Results_Import ([ImpSerieNum],[ImpPassage],[ImpMedalID],[ImpPoints],[ImpPointsHidden],[ImpCcrsID]) VALUES (,,NULL,NULL,,);"]
[null,null,null,null,null,null,null,null,null,null,null,null,null,null,null,null,null,null,null,null,null,null,"INSERT INTO dbmanottbe.[dbo].Results_Import ([ImpSerieNum],[ImpPassage],[ImpMedalID],[ImpPoints],[ImpPointsHidden],[ImpCcrsID]) VALUES (,,NULL,NULL,,);"]
[null,null,null,null,null,null,null,null,null,null,null,null,null,null,null,null,null,null,null,null,null,null,"INSERT INTO dbmanottbe.[dbo].Results_Import ([ImpSerieNum],[ImpPassage],[ImpMedalID],[ImpPoints],[ImpPointsHidden],[ImpCcrsID]) VALUES (,,NULL,NULL,,);"]
[null,null,null,null,null,null,null,null,null,null,null,null,null,null,null,null,null,null,null,null,null,null,"INSERT INTO dbmanottbe.[dbo].Results_Import ([ImpSerieNum],[ImpPassage],[ImpMedalID],[ImpPoints],[ImpPointsHidden],[ImpCcrsID]) VALUES (,,NULL,NULL,,);"]
[null,null,null,null,null,null,null,null,null,null,null,null,null,null,null,null,null,null,null,null,null,null,"INSERT INTO dbmanottbe.[dbo].Results_Import ([ImpSerieNum],[ImpPassage],[ImpMedalID],[ImpPoints],[ImpPointsHidden],[ImpCcrsID]) VALUES (,,NULL,NULL,,);"]
[null,null,null,null,null,null,null,null,null,null,null,null,null,null,null,null,null,null,null,null,null,null,"INSERT INTO dbmanottbe.[dbo].Results_Import ([ImpSerieNum],[ImpPassage],[ImpMedalID],[ImpPoints],[ImpPointsHidden],[ImpCcrsID]) VALUES (,,NULL,NULL,,);"]
[null,null,null,null,null,null,null,null,null,null,null,null,null,null,null,null,null,null,null,null,null,null,"INSERT INTO dbmanottbe.[dbo].Results_Import ([ImpSerieNum],[ImpPassage],[ImpMedalID],[ImpPoints],[ImpPointsHidden],[ImpCcrsID]) VALUES (,,NULL,NULL,,);"]
[null,null,null,null,null,null,null,null,null,null,null,null,null,null,null,null,null,null,null,null,null,null,"INSERT INTO dbmanottbe.[dbo].Results_Import ([ImpSerieNum],[ImpPassage],[ImpMedalID],[ImpPoints],[ImpPointsHidden],[ImpCcrsID]) VALUES (,,NULL,NULL,,);"]
[null,null,null,null,null,null,null,null,null,null,null,null,null,null,null,null,null,null,null,null,null,null,"INSERT INTO dbmanottbe.[dbo].Results_Import ([ImpSerieNum],[ImpPassage],[ImpMedalID],[ImpPoints],[ImpPointsHidden],[ImpCcrsID]) VALUES (,,NULL,NULL,,);"]
[null,null,null,null,null,null,null,null,null,null,null,null,null,null,null,null,null,null,null,null,null,null,"INSERT INTO dbmanottbe.[dbo].Results_Import ([ImpSerieNum],[ImpPassage],[ImpMedalID],[ImpPoints],[ImpPointsHidden],[ImpCcrsID]) VALUES (,,NULL,NULL,,);"]
[null,null,null,null,null,null,null,null,null,null,null,null,null,null,null,null,null,null,null,null,null,null,"INSERT INTO dbmanottbe.[dbo].Results_Import ([ImpSerieNum],[ImpPassage],[ImpMedalID],[ImpPoints],[ImpPointsHidden],[ImpCcrsID]) VALUES (,,NULL,NULL,,);"]
[null,null,null,null,null,null,null,null,null,null,null,null,null,null,null,null,null,null,null,null,null,null,"INSERT INTO dbmanottbe.[dbo].Results_Import ([ImpSerieNum],[ImpPassage],[ImpMedalID],[ImpPoints],[ImpPointsHidden],[ImpCcrsID]) VALUES (,,NULL,NULL,,);"]
[null,null,null,null,null,null,null,null,null,null,null,null,null,null,null,null,null,null,null,null,null,null,"INSERT INTO dbmanottbe.[dbo].Results_Import ([ImpSerieNum],[ImpPassage],[ImpMedalID],[ImpPoints],[ImpPointsHidden],[ImpCcrsID]) VALUES (,,NULL,NULL,,);"]
[null,null,null,null,null,null,null,null,null,null,null,null,null,null,null,null,null,null,null,null,null,null,"INSERT INTO dbmanottbe.[dbo].Results_Import ([ImpSerieNum],[ImpPassage],[ImpMedalID],[ImpPoints],[ImpPointsHidden],[ImpCcrsID]) VALUES (,,NULL,NULL,,);"]
[null,null,null,null,null,null,null,null,null,null,null,null,null,null,null,null,null,null,null,null,null,null,"INSERT INTO dbmanottbe.[dbo].Results_Import ([ImpSerieNum],[ImpPassage],[ImpMedalID],[ImpPoints],[ImpPointsHidden],[ImpCcrsID]) VALUES (,,NULL,NULL,,);"]
[null,null,null,null,null,null,null,null,null,null,null,null,null,null,null,null,null,null,null,null,null,null,"INSERT INTO dbmanottbe.[dbo].Results_Import ([ImpSerieNum],[ImpPassage],[ImpMedalID],[ImpPoints],[ImpPointsHidden],[ImpCcrsID]) VALUES (,,NULL,NULL,,);"]
[null,null,null,null,null,null,null,null,null,null,null,null,null,null,null,null,null,null,null,null,null,null,"INSERT INTO dbmanottbe.[dbo].Results_Import ([ImpSerieNum],[ImpPassage],[ImpMedalID],[ImpPoints],[ImpPointsHidden],[ImpCcrsID]) VALUES (,,NULL,NULL,,);"]
[null,null,null,null,null,null,null,null,null,null,null,null,null,null,null,null,null,null,null,null,null,null,"INSERT INTO dbmanottbe.[dbo].Results_Import ([ImpSerieNum],[ImpPassage],[ImpMedalID],[ImpPoints],[ImpPointsHidden],[ImpCcrsID]) VALUES (,,NULL,NULL,,);"]
[null,null,null,null,null,null,null,null,null,null,null,null,null,null,null,null,null,null,null,null,null,null,"INSERT INTO dbmanottbe.[dbo].Results_Import ([ImpSerieNum],[ImpPassage],[ImpMedalID],[ImpPoints],[ImpPointsHidden],[ImpCcrsID]) VALUES (,,NULL,NULL,,);"]
[null,null,null,null,null,null,null,null,null,null,null,null,null,null,null,null,null,null,null,null,null,null,"INSERT INTO dbmanottbe.[dbo].Results_Import ([ImpSerieNum],[ImpPassage],[ImpMedalID],[ImpPoints],[ImpPointsHidden],[ImpCcrsID]) VALUES (,,NULL,NULL,,);"]
[null,null,null,null,null,null,null,null,null,null,null,null,null,null,null,null,null,null,null,null,null,null,"INSERT INTO dbmanottbe.[dbo].Results_Import ([ImpSerieNum],[ImpPassage],[ImpMedalID],[ImpPoints],[ImpPointsHidden],[ImpCcrsID]) VALUES (,,NULL,NULL,,);"]
[null,null,null,null,null,null,null,null,null,null,null,null,null,null,null,null,null,null,null,null,null,null,"INSERT INTO dbmanottbe.[dbo].Results_Import ([ImpSerieNum],[ImpPassage],[ImpMedalID],[ImpPoints],[ImpPointsHidden],[ImpCcrsID]) VALUES (,,NULL,NULL,,);"]
[null,null,null,null,null,null,null,null,null,null,null,null,null,null,null,null,null,null,null,null,null,null,"INSERT INTO dbmanottbe.[dbo].Results_Import ([ImpSerieNum],[ImpPassage],[ImpMedalID],[ImpPoints],[ImpPointsHidden],[ImpCcrsID]) VALUES (,,NULL,NULL,,);"]
[null,null,null,null,null,null,null,null,null,null,null,null,null,null,null,null,null,null,null,null,null,null,"INSERT INTO dbmanottbe.[dbo].Results_Import ([ImpSerieNum],[ImpPassage],[ImpMedalID],[ImpPoints],[ImpPointsHidden],[ImpCcrsID]) VALUES (,,NULL,NULL,,);"]
[null,null,null,null,null,null,null,null,null,null,null,null,null,null,null,null,null,null,null,null,null,null,"INSERT INTO dbmanottbe.[dbo].Results_Import ([ImpSerieNum],[ImpPassage],[ImpMedalID],[ImpPoints],[ImpPointsHidden],[ImpCcrsID]) VALUES (,,NULL,NULL,,);"]
[null,null,null,null,null,null,null,null,null,null,null,null,null,null,null,null,null,null,null,null,null,null,"INSERT INTO dbmanottbe.[dbo].Results_Import ([ImpSerieNum],[ImpPassage],[ImpMedalID],[ImpPoints],[ImpPointsHidden],[ImpCcrsID]) VALUES (,,NULL,NULL,,);"]
[null,null,null,null,null,null,null,null,null,null,null,null,null,null,null,null,null,null,null,null,null,null,"INSERT INTO dbmanottbe.[dbo].Results_Import ([ImpSerieNum],[ImpPassage],[ImpMedalID],[ImpPoints],[ImpPointsHidden],[ImpCcrsID]) VALUES (,,NULL,NULL,,);"]
[null,null,null,null,null,null,null,null,null,null,null,null,null,null,null,null,null,null,null,null,null,null,"INSERT INTO dbmanottbe.[dbo].Results_Import ([ImpSerieNum],[ImpPassage],[ImpMedalID],[ImpPoints],[ImpPointsHidden],[ImpCcrsID]) VALUES (,,NULL,NULL,,);"]
[null,null,null,null,null,null,null,null,null,null,null,null,null,null,null,null,null,null,null,null,null,null,"INSERT INTO dbmanottbe.[dbo].Results_Import ([ImpSerieNum],[ImpPassage],[ImpMedalID],[ImpPoints],[ImpPointsHidden],[ImpCcrsID]) VALUES (,,NULL,NULL,,);"]
[null,null,null,null,null,null,null,null,null,null,null,null,null,null,null,null,null,null,null,null,null,null,"INSERT INTO dbmanottbe.[dbo].Results_Import ([ImpSerieNum],[ImpPassage],[ImpMedalID],[ImpPoints],[ImpPointsHidden],[ImpCcrsID]) VALUES (,,NULL,NULL,,);"]
[null,null,null,null,null,null,null,null,null,null,null,null,null,null,null,null,null,null,null,null,null,null,"INSERT INTO dbmanottbe.[dbo].Results_Import ([ImpSerieNum],[ImpPassage],[ImpMedalID],[ImpPoints],[ImpPointsHidden],[ImpCcrsID]) VALUES (,,NULL,NULL,,);"]
[null,null,null,null,null,null,null,null,null,null,null,null,null,null,null,null,null,null,null,null,null,null,"INSERT INTO dbmanottbe.[dbo].Results_Import ([ImpSerieNum],[ImpPassage],[ImpMedalID],[ImpPoints],[ImpPointsHidden],[ImpCcrsID]) VALUES (,,NULL,NULL,,);"]
[null,null,null,null,null,null,null,null,null,null,null,null,null,null,null,null,null,null,null,null,null,null,"INSERT INTO dbmanottbe.[dbo].Results_Import ([ImpSerieNum],[ImpPassage],[ImpMedalID],[ImpPoints],[ImpPointsHidden],[ImpCcrsID]) VALUES (,,NULL,NULL,,);"]
[null,null,null,null,null,null,null,null,null,null,null,null,null,null,null,null,null,null,null,null,null,null,"INSERT INTO dbmanottbe.[dbo].Results_Import ([ImpSerieNum],[ImpPassage],[ImpMedalID],[ImpPoints],[ImpPointsHidden],[ImpCcrsID]) VALUES (,,NULL,NULL,,);"]
[null,null,null,null,null,null,null,null,null,null,null,null,null,null,null,null,null,null,null,null,null,null,"INSERT INTO dbmanottbe.[dbo].Results_Import ([ImpSerieNum],[ImpPassage],[ImpMedalID],[ImpPoints],[ImpPointsHidden],[ImpCcrsID]) VALUES (,,NULL,NULL,,);"]
[null,null,null,null,null,null,null,null,null,null,null,null,null,null,null,null,null,null,null,null,null,null,"INSERT INTO dbmanottbe.[dbo].Results_Import ([ImpSerieNum],[ImpPassage],[ImpMedalID],[ImpPoints],[ImpPointsHidden],[ImpCcrsID]) VALUES (,,NULL,NULL,,);"]
[null,null,null,null,null,null,null,null,null,null,null,null,null,null,null,null,null,null,null,null,null,null,"INSERT INTO dbmanottbe.[dbo].Results_Import ([ImpSerieNum],[ImpPassage],[ImpMedalID],[ImpPoints],[ImpPointsHidden],[ImpCcrsID]) VALUES (,,NULL,NULL,,);"]
[null,null,null,null,null,null,null,null,null,null,null,null,null,null,null,null,null,null,null,null,null,null,"INSERT INTO dbmanottbe.[dbo].Results_Import ([ImpSerieNum],[ImpPassage],[ImpMedalID],[ImpPoints],[ImpPointsHidden],[ImpCcrsID]) VALUES (,,NULL,NULL,,);"]
[null,null,null,null,null,null,null,null,null,null,null,null,null,null,null,null,null,null,null,null,null,null,"INSERT INTO dbmanottbe.[dbo].Results_Import ([ImpSerieNum],[ImpPassage],[ImpMedalID],[ImpPoints],[ImpPointsHidden],[ImpCcrsID]) VALUES (,,NULL,NULL,,);"]
[null,null,null,null,null,null,null,null,null,null,null,null,null,null,null,null,null,null,null,null,null,null,"INSERT INTO dbmanottbe.[dbo].Results_Import ([ImpSerieNum],[ImpPassage],[ImpMedalID],[ImpPoints],[ImpPointsHidden],[ImpCcrsID]) VALUES (,,NULL,NULL,,);"]
[null,null,null,null,null,null,null,null,null,null,null,null,null,null,null,null,null,null,null,null,null,null,"INSERT INTO dbmanottbe.[dbo].Results_Import ([ImpSerieNum],[ImpPassage],[ImpMedalID],[ImpPoints],[ImpPointsHidden],[ImpCcrsID]) VALUES (,,NULL,NULL,,);"]
[null,null,null,null,null,null,null,null,null,null,null,null,null,null,null,null,null,null,null,null,null,null,"INSERT INTO dbmanottbe.[dbo].Results_Import ([ImpSerieNum],[ImpPassage],[ImpMedalID],[ImpPoints],[ImpPointsHidden],[ImpCcrsID]) VALUES (,,NULL,NULL,,);"]
[null,null,null,null,null,null,null,null,null,null,null,null,null,null,null,null,null,null,null,null,null,null,"INSERT INTO dbmanottbe.[dbo].Results_Import ([ImpSerieNum],[ImpPassage],[ImpMedalID],[ImpPoints],[ImpPointsHidden],[ImpCcrsID]) VALUES (,,NULL,NULL,,);"]
[null,null,null,null,null,null,null,null,null,null,null,null,null,null,null,null,null,null,null,null,null,null,"INSERT INTO dbmanottbe.[dbo].Results_Import ([ImpSerieNum],[ImpPassage],[ImpMedalID],[ImpPoints],[ImpPointsHidden],[ImpCcrsID]) VALUES (,,NULL,NULL,,);"]
[null,null,null,null,null,null,null,null,null,null,null,null,null,null,null,null,null,null,null,null,null,null,"INSERT INTO dbmanottbe.[dbo].Results_Import ([ImpSerieNum],[ImpPassage],[ImpMedalID],[ImpPoints],[ImpPointsHidden],[ImpCcrsID]) VALUES (,,NULL,NULL,,);"]
[null,null,null,null,null,null,null,null,null,null,null,null,null,null,null,null,null,null,null,null,null,null,"INSERT INTO dbmanottbe.[dbo].Results_Import ([ImpSerieNum],[ImpPassage],[ImpMedalID],[ImpPoints],[ImpPointsHidden],[ImpCcrsID]) VALUES (,,NULL,NULL,,);"]
[null,null,null,null,null,null,null,null,null,null,null,null,null,null,null,null,null,null,null,null,null,null,"INSERT INTO dbmanottbe.[dbo].Results_Import ([ImpSerieNum],[ImpPassage],[ImpMedalID],[ImpPoints],[ImpPointsHidden],[ImpCcrsID]) VALUES (,,NULL,NULL,,);"]
[null,null,null,null,null,null,null,null,null,null,null,null,null,null,null,null,null,null,null,null,null,null,{"$f":"\"INSERT INTO \"&$U$2&\" ([ImpSerieNum],[ImpPassage],[ImpMedalID],[ImpPoints],[ImpPointsHidden],[ImpCcrsID]) VALUES (\"&B835&\",\"&C835&\",\"&IF(D835=\"\",\"NULL\",\"'\"&D835&\"'\")&\",\"&IF(E835=\"\",\"NULL\",SUBSTITUTE(E835,\",\",\".\"))&\",\"&SUBSTITUTE(F835,\",\",\".\")&\",\"&G835&\");\"","v":"INSERT INTO dbmanottbe.[dbo].Results_Import ([ImpSerieNum],[ImpPassage],[ImpMedalID],[ImpPoints],[ImpPointsHidden],[ImpCcrsID]) VALUES (,,NULL,NULL,,);"}]
[null,null,null,null,null,null,null,null,null,null,null,null,null,null,null,null,null,null,null,null,null,null,"INSERT INTO dbmanottbe.[dbo].Results_Import ([ImpSerieNum],[ImpPassage],[ImpMedalID],[ImpPoints],[ImpPointsHidden],[ImpCcrsID]) VALUES (,,NULL,NULL,,);"]
[null,null,null,null,null,null,null,null,null,null,null,null,null,null,null,null,null,null,null,null,null,null,"INSERT INTO dbmanottbe.[dbo].Results_Import ([ImpSerieNum],[ImpPassage],[ImpMedalID],[ImpPoints],[ImpPointsHidden],[ImpCcrsID]) VALUES (,,NULL,NULL,,);"]
[null,null,null,null,null,null,null,null,null,null,null,null,null,null,null,null,null,null,null,null,null,null,"INSERT INTO dbmanottbe.[dbo].Results_Import ([ImpSerieNum],[ImpPassage],[ImpMedalID],[ImpPoints],[ImpPointsHidden],[ImpCcrsID]) VALUES (,,NULL,NULL,,);"]
[null,null,null,null,null,null,null,null,null,null,null,null,null,null,null,null,null,null,null,null,null,null,"INSERT INTO dbmanottbe.[dbo].Results_Import ([ImpSerieNum],[ImpPassage],[ImpMedalID],[ImpPoints],[ImpPointsHidden],[ImpCcrsID]) VALUES (,,NULL,NULL,,);"]
[null,null,null,null,null,null,null,null,null,null,null,null,null,null,null,null,null,null,null,null,null,null,"INSERT INTO dbmanottbe.[dbo].Results_Import ([ImpSerieNum],[ImpPassage],[ImpMedalID],[ImpPoints],[ImpPointsHidden],[ImpCcrsID]) VALUES (,,NULL,NULL,,);"]
[null,null,null,null,null,null,null,null,null,null,null,null,null,null,null,null,null,null,null,null,null,null,"INSERT INTO dbmanottbe.[dbo].Results_Import ([ImpSerieNum],[ImpPassage],[ImpMedalID],[ImpPoints],[ImpPointsHidden],[ImpCcrsID]) VALUES (,,NULL,NULL,,);"]
[null,null,null,null,null,null,null,null,null,null,null,null,null,null,null,null,null,null,null,null,null,null,"INSERT INTO dbmanottbe.[dbo].Results_Import ([ImpSerieNum],[ImpPassage],[ImpMedalID],[ImpPoints],[ImpPointsHidden],[ImpCcrsID]) VALUES (,,NULL,NULL,,);"]
[null,null,null,null,null,null,null,null,null,null,null,null,null,null,null,null,null,null,null,null,null,null,"INSERT INTO dbmanottbe.[dbo].Results_Import ([ImpSerieNum],[ImpPassage],[ImpMedalID],[ImpPoints],[ImpPointsHidden],[ImpCcrsID]) VALUES (,,NULL,NULL,,);"]
[null,null,null,null,null,null,null,null,null,null,null,null,null,null,null,null,null,null,null,null,null,null,"INSERT INTO dbmanottbe.[dbo].Results_Import ([ImpSerieNum],[ImpPassage],[ImpMedalID],[ImpPoints],[ImpPointsHidden],[ImpCcrsID]) VALUES (,,NULL,NULL,,);"]
[null,null,null,null,null,null,null,null,null,null,null,null,null,null,null,null,null,null,null,null,null,null,"INSERT INTO dbmanottbe.[dbo].Results_Import ([ImpSerieNum],[ImpPassage],[ImpMedalID],[ImpPoints],[ImpPointsHidden],[ImpCcrsID]) VALUES (,,NULL,NULL,,);"]
[null,null,null,null,null,null,null,null,null,null,null,null,null,null,null,null,null,null,null,null,null,null,"INSERT INTO dbmanottbe.[dbo].Results_Import ([ImpSerieNum],[ImpPassage],[ImpMedalID],[ImpPoints],[ImpPointsHidden],[ImpCcrsID]) VALUES (,,NULL,NULL,,);"]
[null,null,null,null,null,null,null,null,null,null,null,null,null,null,null,null,null,null,null,null,null,null,"INSERT INTO dbmanottbe.[dbo].Results_Import ([ImpSerieNum],[ImpPassage],[ImpMedalID],[ImpPoints],[ImpPointsHidden],[ImpCcrsID]) VALUES (,,NULL,NULL,,);"]
[null,null,null,null,null,null,null,null,null,null,null,null,null,null,null,null,null,null,null,null,null,null,"INSERT INTO dbmanottbe.[dbo].Results_Import ([ImpSerieNum],[ImpPassage],[ImpMedalID],[ImpPoints],[ImpPointsHidden],[ImpCcrsID]) VALUES (,,NULL,NULL,,);"]
[null,null,null,null,null,null,null,null,null,null,null,null,null,null,null,null,null,null,null,null,null,null,"INSERT INTO dbmanottbe.[dbo].Results_Import ([ImpSerieNum],[ImpPassage],[ImpMedalID],[ImpPoints],[ImpPointsHidden],[ImpCcrsID]) VALUES (,,NULL,NULL,,);"]
[null,null,null,null,null,null,null,null,null,null,null,null,null,null,null,null,null,null,null,null,null,null,"INSERT INTO dbmanottbe.[dbo].Results_Import ([ImpSerieNum],[ImpPassage],[ImpMedalID],[ImpPoints],[ImpPointsHidden],[ImpCcrsID]) VALUES (,,NULL,NULL,,);"]
[null,null,null,null,null,null,null,null,null,null,null,null,null,null,null,null,null,null,null,null,null,null,"INSERT INTO dbmanottbe.[dbo].Results_Import ([ImpSerieNum],[ImpPassage],[ImpMedalID],[ImpPoints],[ImpPointsHidden],[ImpCcrsID]) VALUES (,,NULL,NULL,,);"]
[null,null,null,null,null,null,null,null,null,null,null,null,null,null,null,null,null,null,null,null,null,null,"INSERT INTO dbmanottbe.[dbo].Results_Import ([ImpSerieNum],[ImpPassage],[ImpMedalID],[ImpPoints],[ImpPointsHidden],[ImpCcrsID]) VALUES (,,NULL,NULL,,);"]
[null,null,null,null,null,null,null,null,null,null,null,null,null,null,null,null,null,null,null,null,null,null,"INSERT INTO dbmanottbe.[dbo].Results_Import ([ImpSerieNum],[ImpPassage],[ImpMedalID],[ImpPoints],[ImpPointsHidden],[ImpCcrsID]) VALUES (,,NULL,NULL,,);"]
[null,null,null,null,null,null,null,null,null,null,null,null,null,null,null,null,null,null,null,null,null,null,"INSERT INTO dbmanottbe.[dbo].Results_Import ([ImpSerieNum],[ImpPassage],[ImpMedalID],[ImpPoints],[ImpPointsHidden],[ImpCcrsID]) VALUES (,,NULL,NULL,,);"]
[null,null,null,null,null,null,null,null,null,null,null,null,null,null,null,null,null,null,null,null,null,null,"INSERT INTO dbmanottbe.[dbo].Results_Import ([ImpSerieNum],[ImpPassage],[ImpMedalID],[ImpPoints],[ImpPointsHidden],[ImpCcrsID]) VALUES (,,NULL,NULL,,);"]
[null,null,null,null,null,null,null,null,null,null,null,null,null,null,null,null,null,null,null,null,null,null,"INSERT INTO dbmanottbe.[dbo].Results_Import ([ImpSerieNum],[ImpPassage],[ImpMedalID],[ImpPoints],[ImpPointsHidden],[ImpCcrsID]) VALUES (,,NULL,NULL,,);"]
[null,null,null,null,null,null,null,null,null,null,null,null,null,null,null,null,null,null,null,null,null,null,"INSERT INTO dbmanottbe.[dbo].Results_Import ([ImpSerieNum],[ImpPassage],[ImpMedalID],[ImpPoints],[ImpPointsHidden],[ImpCcrsID]) VALUES (,,NULL,NULL,,);"]
[null,null,null,null,null,null,null,null,null,null,null,null,null,null,null,null,null,null,null,null,null,null,"INSERT INTO dbmanottbe.[dbo].Results_Import ([ImpSerieNum],[ImpPassage],[ImpMedalID],[ImpPoints],[ImpPointsHidden],[ImpCcrsID]) VALUES (,,NULL,NULL,,);"]
[null,null,null,null,null,null,null,null,null,null,null,null,null,null,null,null,null,null,null,null,null,null,"INSERT INTO dbmanottbe.[dbo].Results_Import ([ImpSerieNum],[ImpPassage],[ImpMedalID],[ImpPoints],[ImpPointsHidden],[ImpCcrsID]) VALUES (,,NULL,NULL,,);"]
[null,null,null,null,null,null,null,null,null,null,null,null,null,null,null,null,null,null,null,null,null,null,"INSERT INTO dbmanottbe.[dbo].Results_Import ([ImpSerieNum],[ImpPassage],[ImpMedalID],[ImpPoints],[ImpPointsHidden],[ImpCcrsID]) VALUES (,,NULL,NULL,,);"]
[null,null,null,null,null,null,null,null,null,null,null,null,null,null,null,null,null,null,null,null,null,null,"INSERT INTO dbmanottbe.[dbo].Results_Import ([ImpSerieNum],[ImpPassage],[ImpMedalID],[ImpPoints],[ImpPointsHidden],[ImpCcrsID]) VALUES (,,NULL,NULL,,);"]
[null,null,null,null,null,null,null,null,null,null,null,null,null,null,null,null,null,null,null,null,null,null,"INSERT INTO dbmanottbe.[dbo].Results_Import ([ImpSerieNum],[ImpPassage],[ImpMedalID],[ImpPoints],[ImpPointsHidden],[ImpCcrsID]) VALUES (,,NULL,NULL,,);"]
[null,null,null,null,null,null,null,null,null,null,null,null,null,null,null,null,null,null,null,null,null,null,"INSERT INTO dbmanottbe.[dbo].Results_Import ([ImpSerieNum],[ImpPassage],[ImpMedalID],[ImpPoints],[ImpPointsHidden],[ImpCcrsID]) VALUES (,,NULL,NULL,,);"]
[null,null,null,null,null,null,null,null,null,null,null,null,null,null,null,null,null,null,null,null,null,null,"INSERT INTO dbmanottbe.[dbo].Results_Import ([ImpSerieNum],[ImpPassage],[ImpMedalID],[ImpPoints],[ImpPointsHidden],[ImpCcrsID]) VALUES (,,NULL,NULL,,);"]
[null,null,null,null,null,null,null,null,null,null,null,null,null,null,null,null,null,null,null,null,null,null,"INSERT INTO dbmanottbe.[dbo].Results_Import ([ImpSerieNum],[ImpPassage],[ImpMedalID],[ImpPoints],[ImpPointsHidden],[ImpCcrsID]) VALUES (,,NULL,NULL,,);"]
[null,null,null,null,null,null,null,null,null,null,null,null,null,null,null,null,null,null,null,null,null,null,"INSERT INTO dbmanottbe.[dbo].Results_Import ([ImpSerieNum],[ImpPassage],[ImpMedalID],[ImpPoints],[ImpPointsHidden],[ImpCcrsID]) VALUES (,,NULL,NULL,,);"]
[null,null,null,null,null,null,null,null,null,null,null,null,null,null,null,null,null,null,null,null,null,null,"INSERT INTO dbmanottbe.[dbo].Results_Import ([ImpSerieNum],[ImpPassage],[ImpMedalID],[ImpPoints],[ImpPointsHidden],[ImpCcrsID]) VALUES (,,NULL,NULL,,);"]
[null,null,null,null,null,null,null,null,null,null,null,null,null,null,null,null,null,null,null,null,null,null,"INSERT INTO dbmanottbe.[dbo].Results_Import ([ImpSerieNum],[ImpPassage],[ImpMedalID],[ImpPoints],[ImpPointsHidden],[ImpCcrsID]) VALUES (,,NULL,NULL,,);"]
[null,null,null,null,null,null,null,null,null,null,null,null,null,null,null,null,null,null,null,null,null,null,"INSERT INTO dbmanottbe.[dbo].Results_Import ([ImpSerieNum],[ImpPassage],[ImpMedalID],[ImpPoints],[ImpPointsHidden],[ImpCcrsID]) VALUES (,,NULL,NULL,,);"]
[null,null,null,null,null,null,null,null,null,null,null,null,null,null,null,null,null,null,null,null,null,null,"INSERT INTO dbmanottbe.[dbo].Results_Import ([ImpSerieNum],[ImpPassage],[ImpMedalID],[ImpPoints],[ImpPointsHidden],[ImpCcrsID]) VALUES (,,NULL,NULL,,);"]
[null,null,null,null,null,null,null,null,null,null,null,null,null,null,null,null,null,null,null,null,null,null,"INSERT INTO dbmanottbe.[dbo].Results_Import ([ImpSerieNum],[ImpPassage],[ImpMedalID],[ImpPoints],[ImpPointsHidden],[ImpCcrsID]) VALUES (,,NULL,NULL,,);"]
[null,null,null,null,null,null,null,null,null,null,null,null,null,null,null,null,null,null,null,null,null,null,"INSERT INTO dbmanottbe.[dbo].Results_Import ([ImpSerieNum],[ImpPassage],[ImpMedalID],[ImpPoints],[ImpPointsHidden],[ImpCcrsID]) VALUES (,,NULL,NULL,,);"]
[null,null,null,null,null,null,null,null,null,null,null,null,null,null,null,null,null,null,null,null,null,null,"INSERT INTO dbmanottbe.[dbo].Results_Import ([ImpSerieNum],[ImpPassage],[ImpMedalID],[ImpPoints],[ImpPointsHidden],[ImpCcrsID]) VALUES (,,NULL,NULL,,);"]
[null,null,null,null,null,null,null,null,null,null,null,null,null,null,null,null,null,null,null,null,null,null,"INSERT INTO dbmanottbe.[dbo].Results_Import ([ImpSerieNum],[ImpPassage],[ImpMedalID],[ImpPoints],[ImpPointsHidden],[ImpCcrsID]) VALUES (,,NULL,NULL,,);"]
[null,null,null,null,null,null,null,null,null,null,null,null,null,null,null,null,null,null,null,null,null,null,"INSERT INTO dbmanottbe.[dbo].Results_Import ([ImpSerieNum],[ImpPassage],[ImpMedalID],[ImpPoints],[ImpPointsHidden],[ImpCcrsID]) VALUES (,,NULL,NULL,,);"]
[null,null,null,null,null,null,null,null,null,null,null,null,null,null,null,null,null,null,null,null,null,null,"INSERT INTO dbmanottbe.[dbo].Results_Import ([ImpSerieNum],[ImpPassage],[ImpMedalID],[ImpPoints],[ImpPointsHidden],[ImpCcrsID]) VALUES (,,NULL,NULL,,);"]
[null,null,null,null,null,null,null,null,null,null,null,null,null,null,null,null,null,null,null,null,null,null,"INSERT INTO dbmanottbe.[dbo].Results_Import ([ImpSerieNum],[ImpPassage],[ImpMedalID],[ImpPoints],[ImpPointsHidden],[ImpCcrsID]) VALUES (,,NULL,NULL,,);"]
[null,null,null,null,null,null,null,null,null,null,null,null,null,null,null,null,null,null,null,null,null,null,"INSERT INTO dbmanottbe.[dbo].Results_Import ([ImpSerieNum],[ImpPassage],[ImpMedalID],[ImpPoints],[ImpPointsHidden],[ImpCcrsID]) VALUES (,,NULL,NULL,,);"]
[null,null,null,null,null,null,null,null,null,null,null,null,null,null,null,null,null,null,null,null,null,null,"INSERT INTO dbmanottbe.[dbo].Results_Import ([ImpSerieNum],[ImpPassage],[ImpMedalID],[ImpPoints],[ImpPointsHidden],[ImpCcrsID]) VALUES (,,NULL,NULL,,);"]
[null,null,null,null,null,null,null,null,null,null,null,null,null,null,null,null,null,null,null,null,null,null,"INSERT INTO dbmanottbe.[dbo].Results_Import ([ImpSerieNum],[ImpPassage],[ImpMedalID],[ImpPoints],[ImpPointsHidden],[ImpCcrsID]) VALUES (,,NULL,NULL,,);"]
[null,null,null,null,null,null,null,null,null,null,null,null,null,null,null,null,null,null,null,null,null,null,"INSERT INTO dbmanottbe.[dbo].Results_Import ([ImpSerieNum],[ImpPassage],[ImpMedalID],[ImpPoints],[ImpPointsHidden],[ImpCcrsID]) VALUES (,,NULL,NULL,,);"]
[null,null,null,null,null,null,null,null,null,null,null,null,null,null,null,null,null,null,null,null,null,null,"INSERT INTO dbmanottbe.[dbo].Results_Import ([ImpSerieNum],[ImpPassage],[ImpMedalID],[ImpPoints],[ImpPointsHidden],[ImpCcrsID]) VALUES (,,NULL,NULL,,);"]
[null,null,null,null,null,null,null,null,null,null,null,null,null,null,null,null,null,null,null,null,null,null,"INSERT INTO dbmanottbe.[dbo].Results_Import ([ImpSerieNum],[ImpPassage],[ImpMedalID],[ImpPoints],[ImpPointsHidden],[ImpCcrsID]) VALUES (,,NULL,NULL,,);"]
[null,null,null,null,null,null,null,null,null,null,null,null,null,null,null,null,null,null,null,null,null,null,"INSERT INTO dbmanottbe.[dbo].Results_Import ([ImpSerieNum],[ImpPassage],[ImpMedalID],[ImpPoints],[ImpPointsHidden],[ImpCcrsID]) VALUES (,,NULL,NULL,,);"]
[null,null,null,null,null,null,null,null,null,null,null,null,null,null,null,null,null,null,null,null,null,null,"INSERT INTO dbmanottbe.[dbo].Results_Import ([ImpSerieNum],[ImpPassage],[ImpMedalID],[ImpPoints],[ImpPointsHidden],[ImpCcrsID]) VALUES (,,NULL,NULL,,);"]
[null,null,null,null,null,null,null,null,null,null,null,null,null,null,null,null,null,null,null,null,null,null,"INSERT INTO dbmanottbe.[dbo].Results_Import ([ImpSerieNum],[ImpPassage],[ImpMedalID],[ImpPoints],[ImpPointsHidden],[ImpCcrsID]) VALUES (,,NULL,NULL,,);"]
[null,null,null,null,null,null,null,null,null,null,null,null,null,null,null,null,null,null,null,null,null,null,"INSERT INTO dbmanottbe.[dbo].Results_Import ([ImpSerieNum],[ImpPassage],[ImpMedalID],[ImpPoints],[ImpPointsHidden],[ImpCcrsID]) VALUES (,,NULL,NULL,,);"]
[null,null,null,null,null,null,null,null,null,null,null,null,null,null,null,null,null,null,null,null,null,null,"INSERT INTO dbmanottbe.[dbo].Results_Import ([ImpSerieNum],[ImpPassage],[ImpMedalID],[ImpPoints],[ImpPointsHidden],[ImpCcrsID]) VALUES (,,NULL,NULL,,);"]
[null,null,null,null,null,null,null,null,null,null,null,null,null,null,null,null,null,null,null,null,null,null,"INSERT INTO dbmanottbe.[dbo].Results_Import ([ImpSerieNum],[ImpPassage],[ImpMedalID],[ImpPoints],[ImpPointsHidden],[ImpCcrsID]) VALUES (,,NULL,NULL,,);"]
[null,null,null,null,null,null,null,null,null,null,null,null,null,null,null,null,null,null,null,null,null,null,"INSERT INTO dbmanottbe.[dbo].Results_Import ([ImpSerieNum],[ImpPassage],[ImpMedalID],[ImpPoints],[ImpPointsHidden],[ImpCcrsID]) VALUES (,,NULL,NULL,,);"]
[null,null,null,null,null,null,null,null,null,null,null,null,null,null,null,null,null,null,null,null,null,null,"INSERT INTO dbmanottbe.[dbo].Results_Import ([ImpSerieNum],[ImpPassage],[ImpMedalID],[ImpPoints],[ImpPointsHidden],[ImpCcrsID]) VALUES (,,NULL,NULL,,);"]
[null,null,null,null,null,null,null,null,null,null,null,null,null,null,null,null,null,null,null,null,null,null,"INSERT INTO dbmanottbe.[dbo].Results_Import ([ImpSerieNum],[ImpPassage],[ImpMedalID],[ImpPoints],[ImpPointsHidden],[ImpCcrsID]) VALUES (,,NULL,NULL,,);"]
[null,null,null,null,null,null,null,null,null,null,null,null,null,null,null,null,null,null,null,null,null,null,"INSERT INTO dbmanottbe.[dbo].Results_Import ([ImpSerieNum],[ImpPassage],[ImpMedalID],[ImpPoints],[ImpPointsHidden],[ImpCcrsID]) VALUES (,,NULL,NULL,,);"]
[null,null,null,null,null,null,null,null,null,null,null,null,null,null,null,null,null,null,null,null,null,null,"INSERT INTO dbmanottbe.[dbo].Results_Import ([ImpSerieNum],[ImpPassage],[ImpMedalID],[ImpPoints],[ImpPointsHidden],[ImpCcrsID]) VALUES (,,NULL,NULL,,);"]
[null,null,null,null,null,null,null,null,null,null,null,null,null,null,null,null,null,null,null,null,null,null,"INSERT INTO dbmanottbe.[dbo].Results_Import ([ImpSerieNum],[ImpPassage],[ImpMedalID],[ImpPoints],[ImpPointsHidden],[ImpCcrsID]) VALUES (,,NULL,NULL,,);"]
[null,null,null,null,null,null,null,null,null,null,null,null,null,null,null,null,null,null,null,null,null,null,"INSERT INTO dbmanottbe.[dbo].Results_Import ([ImpSerieNum],[ImpPassage],[ImpMedalID],[ImpPoints],[ImpPointsHidden],[ImpCcrsID]) VALUES (,,NULL,NULL,,);"]
[null,null,null,null,null,null,null,null,null,null,null,null,null,null,null,null,null,null,null,null,null,null,"INSERT INTO dbmanottbe.[dbo].Results_Import ([ImpSerieNum],[ImpPassage],[ImpMedalID],[ImpPoints],[ImpPointsHidden],[ImpCcrsID]) VALUES (,,NULL,NULL,,);"]
[null,null,null,null,null,null,null,null,null,null,null,null,null,null,null,null,null,null,null,null,null,null,"INSERT INTO dbmanottbe.[dbo].Results_Import ([ImpSerieNum],[ImpPassage],[ImpMedalID],[ImpPoints],[ImpPointsHidden],[ImpCcrsID]) VALUES (,,NULL,NULL,,);"]
[null,null,null,null,null,null,null,null,null,null,null,null,null,null,null,null,null,null,null,null,null,null,{"$f":"\"INSERT INTO \"&$U$2&\" ([ImpSerieNum],[ImpPassage],[ImpMedalID],[ImpPoints],[ImpPointsHidden],[ImpCcrsID]) VALUES (\"&B899&\",\"&C899&\",\"&IF(D899=\"\",\"NULL\",\"'\"&D899&\"'\")&\",\"&IF(E899=\"\",\"NULL\",SUBSTITUTE(E899,\",\",\".\"))&\",\"&SUBSTITUTE(F899,\",\",\".\")&\",\"&G899&\");\"","v":"INSERT INTO dbmanottbe.[dbo].Results_Import ([ImpSerieNum],[ImpPassage],[ImpMedalID],[ImpPoints],[ImpPointsHidden],[ImpCcrsID]) VALUES (,,NULL,NULL,,);"}]
[null,null,null,null,null,null,null,null,null,null,null,null,null,null,null,null,null,null,null,null,null,null,"INSERT INTO dbmanottbe.[dbo].Results_Import ([ImpSerieNum],[ImpPassage],[ImpMedalID],[ImpPoints],[ImpPointsHidden],[ImpCcrsID]) VALUES (,,NULL,NULL,,);"]
[null,null,null,null,null,null,null,null,null,null,null,null,null,null,null,null,null,null,null,null,null,null,"INSERT INTO dbmanottbe.[dbo].Results_Import ([ImpSerieNum],[ImpPassage],[ImpMedalID],[ImpPoints],[ImpPointsHidden],[ImpCcrsID]) VALUES (,,NULL,NULL,,);"]
[null,null,null,null,null,null,null,null,null,null,null,null,null,null,null,null,null,null,null,null,null,null,"INSERT INTO dbmanottbe.[dbo].Results_Import ([ImpSerieNum],[ImpPassage],[ImpMedalID],[ImpPoints],[ImpPointsHidden],[ImpCcrsID]) VALUES (,,NULL,NULL,,);"]
[null,null,null,null,null,null,null,null,null,null,null,null,null,null,null,null,null,null,null,null,null,null,"INSERT INTO dbmanottbe.[dbo].Results_Import ([ImpSerieNum],[ImpPassage],[ImpMedalID],[ImpPoints],[ImpPointsHidden],[ImpCcrsID]) VALUES (,,NULL,NULL,,);"]
[null,null,null,null,null,null,null,null,null,null,null,null,null,null,null,null,null,null,null,null,null,null,"INSERT INTO dbmanottbe.[dbo].Results_Import ([ImpSerieNum],[ImpPassage],[ImpMedalID],[ImpPoints],[ImpPointsHidden],[ImpCcrsID]) VALUES (,,NULL,NULL,,);"]
[null,null,null,null,null,null,null,null,null,null,null,null,null,null,null,null,null,null,null,null,null,null,"INSERT INTO dbmanottbe.[dbo].Results_Import ([ImpSerieNum],[ImpPassage],[ImpMedalID],[ImpPoints],[ImpPointsHidden],[ImpCcrsID]) VALUES (,,NULL,NULL,,);"]
[null,null,null,null,null,null,null,null,null,null,null,null,null,null,null,null,null,null,null,null,null,null,"INSERT INTO dbmanottbe.[dbo].Results_Import ([ImpSerieNum],[ImpPassage],[ImpMedalID],[ImpPoints],[ImpPointsHidden],[ImpCcrsID]) VALUES (,,NULL,NULL,,);"]
[null,null,null,null,null,null,null,null,null,null,null,null,null,null,null,null,null,null,null,null,null,null,"INSERT INTO dbmanottbe.[dbo].Results_Import ([ImpSerieNum],[ImpPassage],[ImpMedalID],[ImpPoints],[ImpPointsHidden],[ImpCcrsID]) VALUES (,,NULL,NULL,,);"]
[null,null,null,null,null,null,null,null,null,null,null,null,null,null,null,null,null,null,null,null,null,null,"INSERT INTO dbmanottbe.[dbo].Results_Import ([ImpSerieNum],[ImpPassage],[ImpMedalID],[ImpPoints],[ImpPointsHidden],[ImpCcrsID]) VALUES (,,NULL,NULL,,);"]
[null,null,null,null,null,null,null,null,null,null,null,null,null,null,null,null,null,null,null,null,null,null,"INSERT INTO dbmanottbe.[dbo].Results_Import ([ImpSerieNum],[ImpPassage],[ImpMedalID],[ImpPoints],[ImpPointsHidden],[ImpCcrsID]) VALUES (,,NULL,NULL,,);"]
[null,null,null,null,null,null,null,null,null,null,null,null,null,null,null,null,null,null,null,null,null,null,"INSERT INTO dbmanottbe.[dbo].Results_Import ([ImpSerieNum],[ImpPassage],[ImpMedalID],[ImpPoints],[ImpPointsHidden],[ImpCcrsID]) VALUES (,,NULL,NULL,,);"]
[null,null,null,null,null,null,null,null,null,null,null,null,null,null,null,null,null,null,null,null,null,null,"INSERT INTO dbmanottbe.[dbo].Results_Import ([ImpSerieNum],[ImpPassage],[ImpMedalID],[ImpPoints],[ImpPointsHidden],[ImpCcrsID]) VALUES (,,NULL,NULL,,);"]
[null,null,null,null,null,null,null,null,null,null,null,null,null,null,null,null,null,null,null,null,null,null,"INSERT INTO dbmanottbe.[dbo].Results_Import ([ImpSerieNum],[ImpPassage],[ImpMedalID],[ImpPoints],[ImpPointsHidden],[ImpCcrsID]) VALUES (,,NULL,NULL,,);"]
[null,null,null,null,null,null,null,null,null,null,null,null,null,null,null,null,null,null,null,null,null,null,"INSERT INTO dbmanottbe.[dbo].Results_Import ([ImpSerieNum],[ImpPassage],[ImpMedalID],[ImpPoints],[ImpPointsHidden],[ImpCcrsID]) VALUES (,,NULL,NULL,,);"]
[null,null,null,null,null,null,null,null,null,null,null,null,null,null,null,null,null,null,null,null,null,null,"INSERT INTO dbmanottbe.[dbo].Results_Import ([ImpSerieNum],[ImpPassage],[ImpMedalID],[ImpPoints],[ImpPointsHidden],[ImpCcrsID]) VALUES (,,NULL,NULL,,);"]
[null,null,null,null,null,null,null,null,null,null,null,null,null,null,null,null,null,null,null,null,null,null,"INSERT INTO dbmanottbe.[dbo].Results_Import ([ImpSerieNum],[ImpPassage],[ImpMedalID],[ImpPoints],[ImpPointsHidden],[ImpCcrsID]) VALUES (,,NULL,NULL,,);"]
[null,null,null,null,null,null,null,null,null,null,null,null,null,null,null,null,null,null,null,null,null,null,"INSERT INTO dbmanottbe.[dbo].Results_Import ([ImpSerieNum],[ImpPassage],[ImpMedalID],[ImpPoints],[ImpPointsHidden],[ImpCcrsID]) VALUES (,,NULL,NULL,,);"]
[null,null,null,null,null,null,null,null,null,null,null,null,null,null,null,null,null,null,null,null,null,null,"INSERT INTO dbmanottbe.[dbo].Results_Import ([ImpSerieNum],[ImpPassage],[ImpMedalID],[ImpPoints],[ImpPointsHidden],[ImpCcrsID]) VALUES (,,NULL,NULL,,);"]
[null,null,null,null,null,null,null,null,null,null,null,null,null,null,null,null,null,null,null,null,null,null,"INSERT INTO dbmanottbe.[dbo].Results_Import ([ImpSerieNum],[ImpPassage],[ImpMedalID],[ImpPoints],[ImpPointsHidden],[ImpCcrsID]) VALUES (,,NULL,NULL,,);"]
[null,null,null,null,null,null,null,null,null,null,null,null,null,null,null,null,null,null,null,null,null,null,"INSERT INTO dbmanottbe.[dbo].Results_Import ([ImpSerieNum],[ImpPassage],[ImpMedalID],[ImpPoints],[ImpPointsHidden],[ImpCcrsID]) VALUES (,,NULL,NULL,,);"]
[null,null,null,null,null,null,null,null,null,null,null,null,null,null,null,null,null,null,null,null,null,null,"INSERT INTO dbmanottbe.[dbo].Results_Import ([ImpSerieNum],[ImpPassage],[ImpMedalID],[ImpPoints],[ImpPointsHidden],[ImpCcrsID]) VALUES (,,NULL,NULL,,);"]
[null,null,null,null,null,null,null,null,null,null,null,null,null,null,null,null,null,null,null,null,null,null,"INSERT INTO dbmanottbe.[dbo].Results_Import ([ImpSerieNum],[ImpPassage],[ImpMedalID],[ImpPoints],[ImpPointsHidden],[ImpCcrsID]) VALUES (,,NULL,NULL,,);"]
[null,null,null,null,null,null,null,null,null,null,null,null,null,null,null,null,null,null,null,null,null,null,"INSERT INTO dbmanottbe.[dbo].Results_Import ([ImpSerieNum],[ImpPassage],[ImpMedalID],[ImpPoints],[ImpPointsHidden],[ImpCcrsID]) VALUES (,,NULL,NULL,,);"]
[null,null,null,null,null,null,null,null,null,null,null,null,null,null,null,null,null,null,null,null,null,null,"INSERT INTO dbmanottbe.[dbo].Results_Import ([ImpSerieNum],[ImpPassage],[ImpMedalID],[ImpPoints],[ImpPointsHidden],[ImpCcrsID]) VALUES (,,NULL,NULL,,);"]
[null,null,null,null,null,null,null,null,null,null,null,null,null,null,null,null,null,null,null,null,null,null,"INSERT INTO dbmanottbe.[dbo].Results_Import ([ImpSerieNum],[ImpPassage],[ImpMedalID],[ImpPoints],[ImpPointsHidden],[ImpCcrsID]) VALUES (,,NULL,NULL,,);"]
[null,null,null,null,null,null,null,null,null,null,null,null,null,null,null,null,null,null,null,null,null,null,"INSERT INTO dbmanottbe.[dbo].Results_Import ([ImpSerieNum],[ImpPassage],[ImpMedalID],[ImpPoints],[ImpPointsHidden],[ImpCcrsID]) VALUES (,,NULL,NULL,,);"]
[null,null,null,null,null,null,null,null,null,null,null,null,null,null,null,null,null,null,null,null,null,null,"INSERT INTO dbmanottbe.[dbo].Results_Import ([ImpSerieNum],[ImpPassage],[ImpMedalID],[ImpPoints],[ImpPointsHidden],[ImpCcrsID]) VALUES (,,NULL,NULL,,);"]
[null,null,null,null,null,null,null,null,null,null,null,null,null,null,null,null,null,null,null,null,null,null,"INSERT INTO dbmanottbe.[dbo].Results_Import ([ImpSerieNum],[ImpPassage],[ImpMedalID],[ImpPoints],[ImpPointsHidden],[ImpCcrsID]) VALUES (,,NULL,NULL,,);"]
[null,null,null,null,null,null,null,null,null,null,null,null,null,null,null,null,null,null,null,null,null,null,"INSERT INTO dbmanottbe.[dbo].Results_Import ([ImpSerieNum],[ImpPassage],[ImpMedalID],[ImpPoints],[ImpPointsHidden],[ImpCcrsID]) VALUES (,,NULL,NULL,,);"]
[null,null,null,null,null,null,null,null,null,null,null,null,null,null,null,null,null,null,null,null,null,null,"INSERT INTO dbmanottbe.[dbo].Results_Import ([ImpSerieNum],[ImpPassage],[ImpMedalID],[ImpPoints],[ImpPointsHidden],[ImpCcrsID]) VALUES (,,NULL,NULL,,);"]
[null,null,null,null,null,null,null,null,null,null,null,null,null,null,null,null,null,null,null,null,null,null,"INSERT INTO dbmanottbe.[dbo].Results_Import ([ImpSerieNum],[ImpPassage],[ImpMedalID],[ImpPoints],[ImpPointsHidden],[ImpCcrsID]) VALUES (,,NULL,NULL,,);"]
[null,null,null,null,null,null,null,null,null,null,null,null,null,null,null,null,null,null,null,null,null,null,"INSERT INTO dbmanottbe.[dbo].Results_Import ([ImpSerieNum],[ImpPassage],[ImpMedalID],[ImpPoints],[ImpPointsHidden],[ImpCcrsID]) VALUES (,,NULL,NULL,,);"]
[null,null,null,null,null,null,null,null,null,null,null,null,null,null,null,null,null,null,null,null,null,null,"INSERT INTO dbmanottbe.[dbo].Results_Import ([ImpSerieNum],[ImpPassage],[ImpMedalID],[ImpPoints],[ImpPointsHidden],[ImpCcrsID]) VALUES (,,NULL,NULL,,);"]
[null,null,null,null,null,null,null,null,null,null,null,null,null,null,null,null,null,null,null,null,null,null,"INSERT INTO dbmanottbe.[dbo].Results_Import ([ImpSerieNum],[ImpPassage],[ImpMedalID],[ImpPoints],[ImpPointsHidden],[ImpCcrsID]) VALUES (,,NULL,NULL,,);"]
[null,null,null,null,null,null,null,null,null,null,null,null,null,null,null,null,null,null,null,null,null,null,"INSERT INTO dbmanottbe.[dbo].Results_Import ([ImpSerieNum],[ImpPassage],[ImpMedalID],[ImpPoints],[ImpPointsHidden],[ImpCcrsID]) VALUES (,,NULL,NULL,,);"]
[null,null,null,null,null,null,null,null,null,null,null,null,null,null,null,null,null,null,null,null,null,null,"INSERT INTO dbmanottbe.[dbo].Results_Import ([ImpSerieNum],[ImpPassage],[ImpMedalID],[ImpPoints],[ImpPointsHidden],[ImpCcrsID]) VALUES (,,NULL,NULL,,);"]
[null,null,null,null,null,null,null,null,null,null,null,null,null,null,null,null,null,null,null,null,null,null,"INSERT INTO dbmanottbe.[dbo].Results_Import ([ImpSerieNum],[ImpPassage],[ImpMedalID],[ImpPoints],[ImpPointsHidden],[ImpCcrsID]) VALUES (,,NULL,NULL,,);"]
[null,null,null,null,null,null,null,null,null,null,null,null,null,null,null,null,null,null,null,null,null,null,"INSERT INTO dbmanottbe.[dbo].Results_Import ([ImpSerieNum],[ImpPassage],[ImpMedalID],[ImpPoints],[ImpPointsHidden],[ImpCcrsID]) VALUES (,,NULL,NULL,,);"]
[null,null,null,null,null,null,null,null,null,null,null,null,null,null,null,null,null,null,null,null,null,null,"INSERT INTO dbmanottbe.[dbo].Results_Import ([ImpSerieNum],[ImpPassage],[ImpMedalID],[ImpPoints],[ImpPointsHidden],[ImpCcrsID]) VALUES (,,NULL,NULL,,);"]
[null,null,null,null,null,null,null,null,null,null,null,null,null,null,null,null,null,null,null,null,null,null,"INSERT INTO dbmanottbe.[dbo].Results_Import ([ImpSerieNum],[ImpPassage],[ImpMedalID],[ImpPoints],[ImpPointsHidden],[ImpCcrsID]) VALUES (,,NULL,NULL,,);"]
[null,null,null,null,null,null,null,null,null,null,null,null,null,null,null,null,null,null,null,null,null,null,"INSERT INTO dbmanottbe.[dbo].Results_Import ([ImpSerieNum],[ImpPassage],[ImpMedalID],[ImpPoints],[ImpPointsHidden],[ImpCcrsID]) VALUES (,,NULL,NULL,,);"]
[null,null,null,null,null,null,null,null,null,null,null,null,null,null,null,null,null,null,null,null,null,null,"INSERT INTO dbmanottbe.[dbo].Results_Import ([ImpSerieNum],[ImpPassage],[ImpMedalID],[ImpPoints],[ImpPointsHidden],[ImpCcrsID]) VALUES (,,NULL,NULL,,);"]
[null,null,null,null,null,null,null,null,null,null,null,null,null,null,null,null,null,null,null,null,null,null,"INSERT INTO dbmanottbe.[dbo].Results_Import ([ImpSerieNum],[ImpPassage],[ImpMedalID],[ImpPoints],[ImpPointsHidden],[ImpCcrsID]) VALUES (,,NULL,NULL,,);"]
[null,null,null,null,null,null,null,null,null,null,null,null,null,null,null,null,null,null,null,null,null,null,"INSERT INTO dbmanottbe.[dbo].Results_Import ([ImpSerieNum],[ImpPassage],[ImpMedalID],[ImpPoints],[ImpPointsHidden],[ImpCcrsID]) VALUES (,,NULL,NULL,,);"]
[null,null,null,null,null,null,null,null,null,null,null,null,null,null,null,null,null,null,null,null,null,null,"INSERT INTO dbmanottbe.[dbo].Results_Import ([ImpSerieNum],[ImpPassage],[ImpMedalID],[ImpPoints],[ImpPointsHidden],[ImpCcrsID]) VALUES (,,NULL,NULL,,);"]
[null,null,null,null,null,null,null,null,null,null,null,null,null,null,null,null,null,null,null,null,null,null,"INSERT INTO dbmanottbe.[dbo].Results_Import ([ImpSerieNum],[ImpPassage],[ImpMedalID],[ImpPoints],[ImpPointsHidden],[ImpCcrsID]) VALUES (,,NULL,NULL,,);"]
[null,null,null,null,null,null,null,null,null,null,null,null,null,null,null,null,null,null,null,null,null,null,"INSERT INTO dbmanottbe.[dbo].Results_Import ([ImpSerieNum],[ImpPassage],[ImpMedalID],[ImpPoints],[ImpPointsHidden],[ImpCcrsID]) VALUES (,,NULL,NULL,,);"]
[null,null,null,null,null,null,null,null,null,null,null,null,null,null,null,null,null,null,null,null,null,null,"INSERT INTO dbmanottbe.[dbo].Results_Import ([ImpSerieNum],[ImpPassage],[ImpMedalID],[ImpPoints],[ImpPointsHidden],[ImpCcrsID]) VALUES (,,NULL,NULL,,);"]
[null,null,null,null,null,null,null,null,null,null,null,null,null,null,null,null,null,null,null,null,null,null,"INSERT INTO dbmanottbe.[dbo].Results_Import ([ImpSerieNum],[ImpPassage],[ImpMedalID],[ImpPoints],[ImpPointsHidden],[ImpCcrsID]) VALUES (,,NULL,NULL,,);"]
[null,null,null,null,null,null,null,null,null,null,null,null,null,null,null,null,null,null,null,null,null,null,"INSERT INTO dbmanottbe.[dbo].Results_Import ([ImpSerieNum],[ImpPassage],[ImpMedalID],[ImpPoints],[ImpPointsHidden],[ImpCcrsID]) VALUES (,,NULL,NULL,,);"]
[null,null,null,null,null,null,null,null,null,null,null,null,null,null,null,null,null,null,null,null,null,null,"INSERT INTO dbmanottbe.[dbo].Results_Import ([ImpSerieNum],[ImpPassage],[ImpMedalID],[ImpPoints],[ImpPointsHidden],[ImpCcrsID]) VALUES (,,NULL,NULL,,);"]
[null,null,null,null,null,null,null,null,null,null,null,null,null,null,null,null,null,null,null,null,null,null,"INSERT INTO dbmanottbe.[dbo].Results_Import ([ImpSerieNum],[ImpPassage],[ImpMedalID],[ImpPoints],[ImpPointsHidden],[ImpCcrsID]) VALUES (,,NULL,NULL,,);"]
[null,null,null,null,null,null,null,null,null,null,null,null,null,null,null,null,null,null,null,null,null,null,"INSERT INTO dbmanottbe.[dbo].Results_Import ([ImpSerieNum],[ImpPassage],[ImpMedalID],[ImpPoints],[ImpPointsHidden],[ImpCcrsID]) VALUES (,,NULL,NULL,,);"]
[null,null,null,null,null,null,null,null,null,null,null,null,null,null,null,null,null,null,null,null,null,null,"INSERT INTO dbmanottbe.[dbo].Results_Import ([ImpSerieNum],[ImpPassage],[ImpMedalID],[ImpPoints],[ImpPointsHidden],[ImpCcrsID]) VALUES (,,NULL,NULL,,);"]
[null,null,null,null,null,null,null,null,null,null,null,null,null,null,null,null,null,null,null,null,null,null,"INSERT INTO dbmanottbe.[dbo].Results_Import ([ImpSerieNum],[ImpPassage],[ImpMedalID],[ImpPoints],[ImpPointsHidden],[ImpCcrsID]) VALUES (,,NULL,NULL,,);"]
[null,null,null,null,null,null,null,null,null,null,null,null,null,null,null,null,null,null,null,null,null,null,"INSERT INTO dbmanottbe.[dbo].Results_Import ([ImpSerieNum],[ImpPassage],[ImpMedalID],[ImpPoints],[ImpPointsHidden],[ImpCcrsID]) VALUES (,,NULL,NULL,,);"]
[null,null,null,null,null,null,null,null,null,null,null,null,null,null,null,null,null,null,null,null,null,null,"INSERT INTO dbmanottbe.[dbo].Results_Import ([ImpSerieNum],[ImpPassage],[ImpMedalID],[ImpPoints],[ImpPointsHidden],[ImpCcrsID]) VALUES (,,NULL,NULL,,);"]
[null,null,null,null,null,null,null,null,null,null,null,null,null,null,null,null,null,null,null,null,null,null,"INSERT INTO dbmanottbe.[dbo].Results_Import ([ImpSerieNum],[ImpPassage],[ImpMedalID],[ImpPoints],[ImpPointsHidden],[ImpCcrsID]) VALUES (,,NULL,NULL,,);"]
[null,null,null,null,null,null,null,null,null,null,null,null,null,null,null,null,null,null,null,null,null,null,"INSERT INTO dbmanottbe.[dbo].Results_Import ([ImpSerieNum],[ImpPassage],[ImpMedalID],[ImpPoints],[ImpPointsHidden],[ImpCcrsID]) VALUES (,,NULL,NULL,,);"]
[null,null,null,null,null,null,null,null,null,null,null,null,null,null,null,null,null,null,null,null,null,null,"INSERT INTO dbmanottbe.[dbo].Results_Import ([ImpSerieNum],[ImpPassage],[ImpMedalID],[ImpPoints],[ImpPointsHidden],[ImpCcrsID]) VALUES (,,NULL,NULL,,);"]
[null,null,null,null,null,null,null,null,null,null,null,null,null,null,null,null,null,null,null,null,null,null,"INSERT INTO dbmanottbe.[dbo].Results_Import ([ImpSerieNum],[ImpPassage],[ImpMedalID],[ImpPoints],[ImpPointsHidden],[ImpCcrsID]) VALUES (,,NULL,NULL,,);"]
[null,null,null,null,null,null,null,null,null,null,null,null,null,null,null,null,null,null,null,null,null,null,"INSERT INTO dbmanottbe.[dbo].Results_Import ([ImpSerieNum],[ImpPassage],[ImpMedalID],[ImpPoints],[ImpPointsHidden],[ImpCcrsID]) VALUES (,,NULL,NULL,,);"]
[null,null,null,null,null,null,null,null,null,null,null,null,null,null,null,null,null,null,null,null,null,null,"INSERT INTO dbmanottbe.[dbo].Results_Import ([ImpSerieNum],[ImpPassage],[ImpMedalID],[ImpPoints],[ImpPointsHidden],[ImpCcrsID]) VALUES (,,NULL,NULL,,);"]
[null,null,null,null,null,null,null,null,null,null,null,null,null,null,null,null,null,null,null,null,null,null,{"$f":"\"INSERT INTO \"&$U$2&\" ([ImpSerieNum],[ImpPassage],[ImpMedalID],[ImpPoints],[ImpPointsHidden],[ImpCcrsID]) VALUES (\"&B963&\",\"&C963&\",\"&IF(D963=\"\",\"NULL\",\"'\"&D963&\"'\")&\",\"&IF(E963=\"\",\"NULL\",SUBSTITUTE(E963,\",\",\".\"))&\",\"&SUBSTITUTE(F963,\",\",\".\")&\",\"&G963&\");\"","v":"INSERT INTO dbmanottbe.[dbo].Results_Import ([ImpSerieNum],[ImpPassage],[ImpMedalID],[ImpPoints],[ImpPointsHidden],[ImpCcrsID]) VALUES (,,NULL,NULL,,);"}]
[null,null,null,null,null,null,null,null,null,null,null,null,null,null,null,null,null,null,null,null,null,null,"INSERT INTO dbmanottbe.[dbo].Results_Import ([ImpSerieNum],[ImpPassage],[ImpMedalID],[ImpPoints],[ImpPointsHidden],[ImpCcrsID]) VALUES (,,NULL,NULL,,);"]
[null,null,null,null,null,null,null,null,null,null,null,null,null,null,null,null,null,null,null,null,null,null,"INSERT INTO dbmanottbe.[dbo].Results_Import ([ImpSerieNum],[ImpPassage],[ImpMedalID],[ImpPoints],[ImpPointsHidden],[ImpCcrsID]) VALUES (,,NULL,NULL,,);"]
[null,null,null,null,null,null,null,null,null,null,null,null,null,null,null,null,null,null,null,null,null,null,"INSERT INTO dbmanottbe.[dbo].Results_Import ([ImpSerieNum],[ImpPassage],[ImpMedalID],[ImpPoints],[ImpPointsHidden],[ImpCcrsID]) VALUES (,,NULL,NULL,,);"]
[null,null,null,null,null,null,null,null,null,null,null,null,null,null,null,null,null,null,null,null,null,null,"INSERT INTO dbmanottbe.[dbo].Results_Import ([ImpSerieNum],[ImpPassage],[ImpMedalID],[ImpPoints],[ImpPointsHidden],[ImpCcrsID]) VALUES (,,NULL,NULL,,);"]
[null,null,null,null,null,null,null,null,null,null,null,null,null,null,null,null,null,null,null,null,null,null,"INSERT INTO dbmanottbe.[dbo].Results_Import ([ImpSerieNum],[ImpPassage],[ImpMedalID],[ImpPoints],[ImpPointsHidden],[ImpCcrsID]) VALUES (,,NULL,NULL,,);"]
[null,null,null,null,null,null,null,null,null,null,null,null,null,null,null,null,null,null,null,null,null,null,"INSERT INTO dbmanottbe.[dbo].Results_Import ([ImpSerieNum],[ImpPassage],[ImpMedalID],[ImpPoints],[ImpPointsHidden],[ImpCcrsID]) VALUES (,,NULL,NULL,,);"]
[null,null,null,null,null,null,null,null,null,null,null,null,null,null,null,null,null,null,null,null,null,null,"INSERT INTO dbmanottbe.[dbo].Results_Import ([ImpSerieNum],[ImpPassage],[ImpMedalID],[ImpPoints],[ImpPointsHidden],[ImpCcrsID]) VALUES (,,NULL,NULL,,);"]
[null,null,null,null,null,null,null,null,null,null,null,null,null,null,null,null,null,null,null,null,null,null,"INSERT INTO dbmanottbe.[dbo].Results_Import ([ImpSerieNum],[ImpPassage],[ImpMedalID],[ImpPoints],[ImpPointsHidden],[ImpCcrsID]) VALUES (,,NULL,NULL,,);"]
[null,null,null,null,null,null,null,null,null,null,null,null,null,null,null,null,null,null,null,null,null,null,"INSERT INTO dbmanottbe.[dbo].Results_Import ([ImpSerieNum],[ImpPassage],[ImpMedalID],[ImpPoints],[ImpPointsHidden],[ImpCcrsID]) VALUES (,,NULL,NULL,,);"]
[null,null,null,null,null,null,null,null,null,null,null,null,null,null,null,null,null,null,null,null,null,null,"INSERT INTO dbmanottbe.[dbo].Results_Import ([ImpSerieNum],[ImpPassage],[ImpMedalID],[ImpPoints],[ImpPointsHidden],[ImpCcrsID]) VALUES (,,NULL,NULL,,);"]
[null,null,null,null,null,null,null,null,null,null,null,null,null,null,null,null,null,null,null,null,null,null,"INSERT INTO dbmanottbe.[dbo].Results_Import ([ImpSerieNum],[ImpPassage],[ImpMedalID],[ImpPoints],[ImpPointsHidden],[ImpCcrsID]) VALUES (,,NULL,NULL,,);"]
[null,null,null,null,null,null,null,null,null,null,null,null,null,null,null,null,null,null,null,null,null,null,"INSERT INTO dbmanottbe.[dbo].Results_Import ([ImpSerieNum],[ImpPassage],[ImpMedalID],[ImpPoints],[ImpPointsHidden],[ImpCcrsID]) VALUES (,,NULL,NULL,,);"]
[null,null,null,null,null,null,null,null,null,null,null,null,null,null,null,null,null,null,null,null,null,null,"INSERT INTO dbmanottbe.[dbo].Results_Import ([ImpSerieNum],[ImpPassage],[ImpMedalID],[ImpPoints],[ImpPointsHidden],[ImpCcrsID]) VALUES (,,NULL,NULL,,);"]
[null,null,null,null,null,null,null,null,null,null,null,null,null,null,null,null,null,null,null,null,null,null,"INSERT INTO dbmanottbe.[dbo].Results_Import ([ImpSerieNum],[ImpPassage],[ImpMedalID],[ImpPoints],[ImpPointsHidden],[ImpCcrsID]) VALUES (,,NULL,NULL,,);"]
[null,null,null,null,null,null,null,null,null,null,null,null,null,null,null,null,null,null,null,null,null,null,"INSERT INTO dbmanottbe.[dbo].Results_Import ([ImpSerieNum],[ImpPassage],[ImpMedalID],[ImpPoints],[ImpPointsHidden],[ImpCcrsID]) VALUES (,,NULL,NULL,,);"]
[null,null,null,null,null,null,null,null,null,null,null,null,null,null,null,null,null,null,null,null,null,null,"INSERT INTO dbmanottbe.[dbo].Results_Import ([ImpSerieNum],[ImpPassage],[ImpMedalID],[ImpPoints],[ImpPointsHidden],[ImpCcrsID]) VALUES (,,NULL,NULL,,);"]
[null,null,null,null,null,null,null,null,null,null,null,null,null,null,null,null,null,null,null,null,null,null,"INSERT INTO dbmanottbe.[dbo].Results_Import ([ImpSerieNum],[ImpPassage],[ImpMedalID],[ImpPoints],[ImpPointsHidden],[ImpCcrsID]) VALUES (,,NULL,NULL,,);"]
[null,null,null,null,null,null,null,null,null,null,null,null,null,null,null,null,null,null,null,null,null,null,"INSERT INTO dbmanottbe.[dbo].Results_Import ([ImpSerieNum],[ImpPassage],[ImpMedalID],[ImpPoints],[ImpPointsHidden],[ImpCcrsID]) VALUES (,,NULL,NULL,,);"]
[null,null,null,null,null,null,null,null,null,null,null,null,null,null,null,null,null,null,null,null,null,null,"INSERT INTO dbmanottbe.[dbo].Results_Import ([ImpSerieNum],[ImpPassage],[ImpMedalID],[ImpPoints],[ImpPointsHidden],[ImpCcrsID]) VALUES (,,NULL,NULL,,);"]
[null,null,null,null,null,null,null,null,null,null,null,null,null,null,null,null,null,null,null,null,null,null,"INSERT INTO dbmanottbe.[dbo].Results_Import ([ImpSerieNum],[ImpPassage],[ImpMedalID],[ImpPoints],[ImpPointsHidden],[ImpCcrsID]) VALUES (,,NULL,NULL,,);"]
[null,null,null,null,null,null,null,null,null,null,null,null,null,null,null,null,null,null,null,null,null,null,"INSERT INTO dbmanottbe.[dbo].Results_Import ([ImpSerieNum],[ImpPassage],[ImpMedalID],[ImpPoints],[ImpPointsHidden],[ImpCcrsID]) VALUES (,,NULL,NULL,,);"]
[null,null,null,null,null,null,null,null,null,null,null,null,null,null,null,null,null,null,null,null,null,null,"INSERT INTO dbmanottbe.[dbo].Results_Import ([ImpSerieNum],[ImpPassage],[ImpMedalID],[ImpPoints],[ImpPointsHidden],[ImpCcrsID]) VALUES (,,NULL,NULL,,);"]
[null,null,null,null,null,null,null,null,null,null,null,null,null,null,null,null,null,null,null,null,null,null,"INSERT INTO dbmanottbe.[dbo].Results_Import ([ImpSerieNum],[ImpPassage],[ImpMedalID],[ImpPoints],[ImpPointsHidden],[ImpCcrsID]) VALUES (,,NULL,NULL,,);"]
[null,null,null,null,null,null,null,null,null,null,null,null,null,null,null,null,null,null,null,null,null,null,"INSERT INTO dbmanottbe.[dbo].Results_Import ([ImpSerieNum],[ImpPassage],[ImpMedalID],[ImpPoints],[ImpPointsHidden],[ImpCcrsID]) VALUES (,,NULL,NULL,,);"]
[null,null,null,null,null,null,null,null,null,null,null,null,null,null,null,null,null,null,null,null,null,null,"INSERT INTO dbmanottbe.[dbo].Results_Import ([ImpSerieNum],[ImpPassage],[ImpMedalID],[ImpPoints],[ImpPointsHidden],[ImpCcrsID]) VALUES (,,NULL,NULL,,);"]
[null,null,null,null,null,null,null,null,null,null,null,null,null,null,null,null,null,null,null,null,null,null,"INSERT INTO dbmanottbe.[dbo].Results_Import ([ImpSerieNum],[ImpPassage],[ImpMedalID],[ImpPoints],[ImpPointsHidden],[ImpCcrsID]) VALUES (,,NULL,NULL,,);"]
[null,null,null,null,null,null,null,null,null,null,null,null,null,null,null,null,null,null,null,null,null,null,"INSERT INTO dbmanottbe.[dbo].Results_Import ([ImpSerieNum],[ImpPassage],[ImpMedalID],[ImpPoints],[ImpPointsHidden],[ImpCcrsID]) VALUES (,,NULL,NULL,,);"]
[null,null,null,null,null,null,null,null,null,null,null,null,null,null,null,null,null,null,null,null,null,null,"INSERT INTO dbmanottbe.[dbo].Results_Import ([ImpSerieNum],[ImpPassage],[ImpMedalID],[ImpPoints],[ImpPointsHidden],[ImpCcrsID]) VALUES (,,NULL,NULL,,);"]
[null,null,null,null,null,null,null,null,null,null,null,null,null,null,null,null,null,null,null,null,null,null,"INSERT INTO dbmanottbe.[dbo].Results_Import ([ImpSerieNum],[ImpPassage],[ImpMedalID],[ImpPoints],[ImpPointsHidden],[ImpCcrsID]) VALUES (,,NULL,NULL,,);"]
[null,null,null,null,null,null,null,null,null,null,null,null,null,null,null,null,null,null,null,null,null,null,"INSERT INTO dbmanottbe.[dbo].Results_Import ([ImpSerieNum],[ImpPassage],[ImpMedalID],[ImpPoints],[ImpPointsHidden],[ImpCcrsID]) VALUES (,,NULL,NULL,,);"]
[null,null,null,null,null,null,null,null,null,null,null,null,null,null,null,null,null,null,null,null,null,null,"INSERT INTO dbmanottbe.[dbo].Results_Import ([ImpSerieNum],[ImpPassage],[ImpMedalID],[ImpPoints],[ImpPointsHidden],[ImpCcrsID]) VALUES (,,NULL,NULL,,);"]
[null,null,null,null,null,null,null,null,null,null,null,null,null,null,null,null,null,null,null,null,null,null,"INSERT INTO dbmanottbe.[dbo].Results_Import ([ImpSerieNum],[ImpPassage],[ImpMedalID],[ImpPoints],[ImpPointsHidden],[ImpCcrsID]) VALUES (,,NULL,NULL,,);"]
[null,null,null,null,null,null,null,null,null,null,null,null,null,null,null,null,null,null,null,null,null,null,"INSERT INTO dbmanottbe.[dbo].Results_Import ([ImpSerieNum],[ImpPassage],[ImpMedalID],[ImpPoints],[ImpPointsHidden],[ImpCcrsID]) VALUES (,,NULL,NULL,,);"]
[null,null,null,null,null,null,null,null,null,null,null,null,null,null,null,null,null,null,null,null,null,null,"INSERT INTO dbmanottbe.[dbo].Results_Import ([ImpSerieNum],[ImpPassage],[ImpMedalID],[ImpPoints],[ImpPointsHidden],[ImpCcrsID]) VALUES (,,NULL,NULL,,);"]
[null,null,null,null,null,null,null,null,null,null,null,null,null,null,null,null,null,null,null,null,null,null,"INSERT INTO dbmanottbe.[dbo].Results_Import ([ImpSerieNum],[ImpPassage],[ImpMedalID],[ImpPoints],[ImpPointsHidden],[ImpCcrsID]) VALUES (,,NULL,NULL,,);"]
[null,null,null,null,null,null,null,null,null,null,null,null,null,null,null,null,null,null,null,null,null,null,"INSERT INTO dbmanottbe.[dbo].Results_Import ([ImpSerieNum],[ImpPassage],[ImpMedalID],[ImpPoints],[ImpPointsHidden],[ImpCcrsID]) VALUES (,,NULL,NULL,,);"]
[null,null,null,null,null,null,null,null,null,null,null,null,null,null,null,null,null,null,null,null,null,null,"INSERT INTO dbmanottbe.[dbo].Results_Import ([ImpSerieNum],[ImpPassage],[ImpMedalID],[ImpPoints],[ImpPointsHidden],[ImpCcrsID]) VALUES (,,NULL,NULL,,);"]
[null,null,null,null,null,null,null,null,null,null,null,null,null,null,null,null,null,null,null,null,null,null,"INSERT INTO dbmanottbe.[dbo].Results_Import ([ImpSerieNum],[ImpPassage],[ImpMedalID],[ImpPoints],[ImpPointsHidden],[ImpCcrsID]) VALUES (,,NULL,NULL,,);"]
[null,null,null,null,null,null,null,null,null,null,null,null,null,null,null,null,null,null,null,null,null,null,"INSERT INTO dbmanottbe.[dbo].Results_Import ([ImpSerieNum],[ImpPassage],[ImpMedalID],[ImpPoints],[ImpPointsHidden],[ImpCcrsID]) VALUES (,,NULL,NULL,,);"]
[null,null,null,null,null,null,null,null,null,null,null,null,null,null,null,null,null,null,null,null,null,null,"INSERT INTO dbmanottbe.[dbo].Results_Import ([ImpSerieNum],[ImpPassage],[ImpMedalID],[ImpPoints],[ImpPointsHidden],[ImpCcrsID]) VALUES (,,NULL,NULL,,);"]
[null,null,null,null,null,null,null,null,null,null,null,null,null,null,null,null,null,null,null,null,null,null,"INSERT INTO dbmanottbe.[dbo].Results_Import ([ImpSerieNum],[ImpPassage],[ImpMedalID],[ImpPoints],[ImpPointsHidden],[ImpCcrsID]) VALUES (,,NULL,NULL,,);"]
[null,null,null,null,null,null,null,null,null,null,null,null,null,null,null,null,null,null,null,null,null,null,"INSERT INTO dbmanottbe.[dbo].Results_Import ([ImpSerieNum],[ImpPassage],[ImpMedalID],[ImpPoints],[ImpPointsHidden],[ImpCcrsID]) VALUES (,,NULL,NULL,,);"]
[null,null,null,null,null,null,null,null,null,null,null,null,null,null,null,null,null,null,null,null,null,null,"INSERT INTO dbmanottbe.[dbo].Results_Import ([ImpSerieNum],[ImpPassage],[ImpMedalID],[ImpPoints],[ImpPointsHidden],[ImpCcrsID]) VALUES (,,NULL,NULL,,);"]
[null,null,null,null,null,null,null,null,null,null,null,null,null,null,null,null,null,null,null,null,null,null,"INSERT INTO dbmanottbe.[dbo].Results_Import ([ImpSerieNum],[ImpPassage],[ImpMedalID],[ImpPoints],[ImpPointsHidden],[ImpCcrsID]) VALUES (,,NULL,NULL,,);"]
[null,null,null,null,null,null,null,null,null,null,null,null,null,null,null,null,null,null,null,null,null,null,"INSERT INTO dbmanottbe.[dbo].Results_Import ([ImpSerieNum],[ImpPassage],[ImpMedalID],[ImpPoints],[ImpPointsHidden],[ImpCcrsID]) VALUES (,,NULL,NULL,,);"]
[null,null,null,null,null,null,null,null,null,null,null,null,null,null,null,null,null,null,null,null,null,null,"INSERT INTO dbmanottbe.[dbo].Results_Import ([ImpSerieNum],[ImpPassage],[ImpMedalID],[ImpPoints],[ImpPointsHidden],[ImpCcrsID]) VALUES (,,NULL,NULL,,);"]
[null,null,null,null,null,null,null,null,null,null,null,null,null,null,null,null,null,null,null,null,null,null,"INSERT INTO dbmanottbe.[dbo].Results_Import ([ImpSerieNum],[ImpPassage],[ImpMedalID],[ImpPoints],[ImpPointsHidden],[ImpCcrsID]) VALUES (,,NULL,NULL,,);"]
[null,null,null,null,null,null,null,null,null,null,null,null,null,null,null,null,null,null,null,null,null,null,"INSERT INTO dbmanottbe.[dbo].Results_Import ([ImpSerieNum],[ImpPassage],[ImpMedalID],[ImpPoints],[ImpPointsHidden],[ImpCcrsID]) VALUES (,,NULL,NULL,,);"]
[null,null,null,null,null,null,null,null,null,null,null,null,null,null,null,null,null,null,null,null,null,null,"INSERT INTO dbmanottbe.[dbo].Results_Import ([ImpSerieNum],[ImpPassage],[ImpMedalID],[ImpPoints],[ImpPointsHidden],[ImpCcrsID]) VALUES (,,NULL,NULL,,);"]
[null,null,null,null,null,null,null,null,null,null,null,null,null,null,null,null,null,null,null,null,null,null,"INSERT INTO dbmanottbe.[dbo].Results_Import ([ImpSerieNum],[ImpPassage],[ImpMedalID],[ImpPoints],[ImpPointsHidden],[ImpCcrsID]) VALUES (,,NULL,NULL,,);"]
[null,null,null,null,null,null,null,null,null,null,null,null,null,null,null,null,null,null,null,null,null,null,"INSERT INTO dbmanottbe.[dbo].Results_Import ([ImpSerieNum],[ImpPassage],[ImpMedalID],[ImpPoints],[ImpPointsHidden],[ImpCcrsID]) VALUES (,,NULL,NULL,,);"]
[null,null,null,null,null,null,null,null,null,null,null,null,null,null,null,null,null,null,null,null,null,null,"INSERT INTO dbmanottbe.[dbo].Results_Import ([ImpSerieNum],[ImpPassage],[ImpMedalID],[ImpPoints],[ImpPointsHidden],[ImpCcrsID]) VALUES (,,NULL,NULL,,);"]
[null,null,null,null,null,null,null,null,null,null,null,null,null,null,null,null,null,null,null,null,null,null,"INSERT INTO dbmanottbe.[dbo].Results_Import ([ImpSerieNum],[ImpPassage],[ImpMedalID],[ImpPoints],[ImpPointsHidden],[ImpCcrsID]) VALUES (,,NULL,NULL,,);"]
[null,null,null,null,null,null,null,null,null,null,null,null,null,null,null,null,null,null,null,null,null,null,"INSERT INTO dbmanottbe.[dbo].Results_Import ([ImpSerieNum],[ImpPassage],[ImpMedalID],[ImpPoints],[ImpPointsHidden],[ImpCcrsID]) VALUES (,,NULL,NULL,,);"]
[null,null,null,null,null,null,null,null,null,null,null,null,null,null,null,null,null,null,null,null,null,null,"INSERT INTO dbmanottbe.[dbo].Results_Import ([ImpSerieNum],[ImpPassage],[ImpMedalID],[ImpPoints],[ImpPointsHidden],[ImpCcrsID]) VALUES (,,NULL,NULL,,);"]
[null,null,null,null,null,null,null,null,null,null,null,null,null,null,null,null,null,null,null,null,null,null,"INSERT INTO dbmanottbe.[dbo].Results_Import ([ImpSerieNum],[ImpPassage],[ImpMedalID],[ImpPoints],[ImpPointsHidden],[ImpCcrsID]) VALUES (,,NULL,NULL,,);"]
[null,null,null,null,null,null,null,null,null,null,null,null,null,null,null,null,null,null,null,null,null,null,"INSERT INTO dbmanottbe.[dbo].Results_Import ([ImpSerieNum],[ImpPassage],[ImpMedalID],[ImpPoints],[ImpPointsHidden],[ImpCcrsID]) VALUES (,,NULL,NULL,,);"]
[null,null,null,null,null,null,null,null,null,null,null,null,null,null,null,null,null,null,null,null,null,null,"INSERT INTO dbmanottbe.[dbo].Results_Import ([ImpSerieNum],[ImpPassage],[ImpMedalID],[ImpPoints],[ImpPointsHidden],[ImpCcrsID]) VALUES (,,NULL,NULL,,);"]
[null,null,null,null,null,null,null,null,null,null,null,null,null,null,null,null,null,null,null,null,null,null,"INSERT INTO dbmanottbe.[dbo].Results_Import ([ImpSerieNum],[ImpPassage],[ImpMedalID],[ImpPoints],[ImpPointsHidden],[ImpCcrsID]) VALUES (,,NULL,NULL,,);"]
[null,null,null,null,null,null,null,null,null,null,null,null,null,null,null,null,null,null,null,null,null,null,"INSERT INTO dbmanottbe.[dbo].Results_Import ([ImpSerieNum],[ImpPassage],[ImpMedalID],[ImpPoints],[ImpPointsHidden],[ImpCcrsID]) VALUES (,,NULL,NULL,,);"]
[null,null,null,null,null,null,null,null,null,null,null,null,null,null,null,null,null,null,null,null,null,null,"INSERT INTO dbmanottbe.[dbo].Results_Import ([ImpSerieNum],[ImpPassage],[ImpMedalID],[ImpPoints],[ImpPointsHidden],[ImpCcrsID]) VALUES (,,NULL,NULL,,);"]
[null,null,null,null,null,null,null,null,null,null,null,null,null,null,null,null,null,null,null,null,null,null,"INSERT INTO dbmanottbe.[dbo].Results_Import ([ImpSerieNum],[ImpPassage],[ImpMedalID],[ImpPoints],[ImpPointsHidden],[ImpCcrsID]) VALUES (,,NULL,NULL,,);"]
[null,null,null,null,null,null,null,null,null,null,null,null,null,null,null,null,null,null,null,null,null,null,"INSERT INTO dbmanottbe.[dbo].Results_Import ([ImpSerieNum],[ImpPassage],[ImpMedalID],[ImpPoints],[ImpPointsHidden],[ImpCcrsID]) VALUES (,,NULL,NULL,,);"]
[null,null,null,null,null,null,null,null,null,null,null,null,null,null,null,null,null,null,null,null,null,null,{"$f":"\"INSERT INTO \"&$U$2&\" ([ImpSerieNum],[ImpPassage],[ImpMedalID],[ImpPoints],[ImpPointsHidden],[ImpCcrsID]) VALUES (\"&B1027&\",\"&C1027&\",\"&IF(D1027=\"\",\"NULL\",\"'\"&D1027&\"'\")&\",\"&IF(E1027=\"\",\"NULL\",SUBSTITUTE(E1027,\",\",\".\"))&\",\"&SUBSTITUTE(F1027,\",\",\".\")&\",\"&G1027&\");\"","v":"INSERT INTO dbmanottbe.[dbo].Results_Import ([ImpSerieNum],[ImpPassage],[ImpMedalID],[ImpPoints],[ImpPointsHidden],[ImpCcrsID]) VALUES (,,NULL,NULL,,);"}]
[null,null,null,null,null,null,null,null,null,null,null,null,null,null,null,null,null,null,null,null,null,null,"INSERT INTO dbmanottbe.[dbo].Results_Import ([ImpSerieNum],[ImpPassage],[ImpMedalID],[ImpPoints],[ImpPointsHidden],[ImpCcrsID]) VALUES (,,NULL,NULL,,);"]
[null,null,null,null,null,null,null,null,null,null,null,null,null,null,null,null,null,null,null,null,null,null,"INSERT INTO dbmanottbe.[dbo].Results_Import ([ImpSerieNum],[ImpPassage],[ImpMedalID],[ImpPoints],[ImpPointsHidden],[ImpCcrsID]) VALUES (,,NULL,NULL,,);"]
[null,null,null,null,null,null,null,null,null,null,null,null,null,null,null,null,null,null,null,null,null,null,"INSERT INTO dbmanottbe.[dbo].Results_Import ([ImpSerieNum],[ImpPassage],[ImpMedalID],[ImpPoints],[ImpPointsHidden],[ImpCcrsID]) VALUES (,,NULL,NULL,,);"]
[null,null,null,null,null,null,null,null,null,null,null,null,null,null,null,null,null,null,null,null,null,null,"INSERT INTO dbmanottbe.[dbo].Results_Import ([ImpSerieNum],[ImpPassage],[ImpMedalID],[ImpPoints],[ImpPointsHidden],[ImpCcrsID]) VALUES (,,NULL,NULL,,);"]
[null,null,null,null,null,null,null,null,null,null,null,null,null,null,null,null,null,null,null,null,null,null,"INSERT INTO dbmanottbe.[dbo].Results_Import ([ImpSerieNum],[ImpPassage],[ImpMedalID],[ImpPoints],[ImpPointsHidden],[ImpCcrsID]) VALUES (,,NULL,NULL,,);"]
[null,null,null,null,null,null,null,null,null,null,null,null,null,null,null,null,null,null,null,null,null,null,"INSERT INTO dbmanottbe.[dbo].Results_Import ([ImpSerieNum],[ImpPassage],[ImpMedalID],[ImpPoints],[ImpPointsHidden],[ImpCcrsID]) VALUES (,,NULL,NULL,,);"]
[null,null,null,null,null,null,null,null,null,null,null,null,null,null,null,null,null,null,null,null,null,null,"INSERT INTO dbmanottbe.[dbo].Results_Import ([ImpSerieNum],[ImpPassage],[ImpMedalID],[ImpPoints],[ImpPointsHidden],[ImpCcrsID]) VALUES (,,NULL,NULL,,);"]
[null,null,null,null,null,null,null,null,null,null,null,null,null,null,null,null,null,null,null,null,null,null,"INSERT INTO dbmanottbe.[dbo].Results_Import ([ImpSerieNum],[ImpPassage],[ImpMedalID],[ImpPoints],[ImpPointsHidden],[ImpCcrsID]) VALUES (,,NULL,NULL,,);"]
[null,null,null,null,null,null,null,null,null,null,null,null,null,null,null,null,null,null,null,null,null,null,"INSERT INTO dbmanottbe.[dbo].Results_Import ([ImpSerieNum],[ImpPassage],[ImpMedalID],[ImpPoints],[ImpPointsHidden],[ImpCcrsID]) VALUES (,,NULL,NULL,,);"]
[null,null,null,null,null,null,null,null,null,null,null,null,null,null,null,null,null,null,null,null,null,null,"INSERT INTO dbmanottbe.[dbo].Results_Import ([ImpSerieNum],[ImpPassage],[ImpMedalID],[ImpPoints],[ImpPointsHidden],[ImpCcrsID]) VALUES (,,NULL,NULL,,);"]
[null,null,null,null,null,null,null,null,null,null,null,null,null,null,null,null,null,null,null,null,null,null,"INSERT INTO dbmanottbe.[dbo].Results_Import ([ImpSerieNum],[ImpPassage],[ImpMedalID],[ImpPoints],[ImpPointsHidden],[ImpCcrsID]) VALUES (,,NULL,NULL,,);"]
[null,null,null,null,null,null,null,null,null,null,null,null,null,null,null,null,null,null,null,null,null,null,"INSERT INTO dbmanottbe.[dbo].Results_Import ([ImpSerieNum],[ImpPassage],[ImpMedalID],[ImpPoints],[ImpPointsHidden],[ImpCcrsID]) VALUES (,,NULL,NULL,,);"]
[null,null,null,null,null,null,null,null,null,null,null,null,null,null,null,null,null,null,null,null,null,null,"INSERT INTO dbmanottbe.[dbo].Results_Import ([ImpSerieNum],[ImpPassage],[ImpMedalID],[ImpPoints],[ImpPointsHidden],[ImpCcrsID]) VALUES (,,NULL,NULL,,);"]
[null,null,null,null,null,null,null,null,null,null,null,null,null,null,null,null,null,null,null,null,null,null,"INSERT INTO dbmanottbe.[dbo].Results_Import ([ImpSerieNum],[ImpPassage],[ImpMedalID],[ImpPoints],[ImpPointsHidden],[ImpCcrsID]) VALUES (,,NULL,NULL,,);"]
[null,null,null,null,null,null,null,null,null,null,null,null,null,null,null,null,null,null,null,null,null,null,"INSERT INTO dbmanottbe.[dbo].Results_Import ([ImpSerieNum],[ImpPassage],[ImpMedalID],[ImpPoints],[ImpPointsHidden],[ImpCcrsID]) VALUES (,,NULL,NULL,,);"]
[null,null,null,null,null,null,null,null,null,null,null,null,null,null,null,null,null,null,null,null,null,null,"INSERT INTO dbmanottbe.[dbo].Results_Import ([ImpSerieNum],[ImpPassage],[ImpMedalID],[ImpPoints],[ImpPointsHidden],[ImpCcrsID]) VALUES (,,NULL,NULL,,);"]
[null,null,null,null,null,null,null,null,null,null,null,null,null,null,null,null,null,null,null,null,null,null,"INSERT INTO dbmanottbe.[dbo].Results_Import ([ImpSerieNum],[ImpPassage],[ImpMedalID],[ImpPoints],[ImpPointsHidden],[ImpCcrsID]) VALUES (,,NULL,NULL,,);"]
[null,null,null,null,null,null,null,null,null,null,null,null,null,null,null,null,null,null,null,null,null,null,"INSERT INTO dbmanottbe.[dbo].Results_Import ([ImpSerieNum],[ImpPassage],[ImpMedalID],[ImpPoints],[ImpPointsHidden],[ImpCcrsID]) VALUES (,,NULL,NULL,,);"]
[null,null,null,null,null,null,null,null,null,null,null,null,null,null,null,null,null,null,null,null,null,null,"INSERT INTO dbmanottbe.[dbo].Results_Import ([ImpSerieNum],[ImpPassage],[ImpMedalID],[ImpPoints],[ImpPointsHidden],[ImpCcrsID]) VALUES (,,NULL,NULL,,);"]
[null,null,null,null,null,null,null,null,null,null,null,null,null,null,null,null,null,null,null,null,null,null,"INSERT INTO dbmanottbe.[dbo].Results_Import ([ImpSerieNum],[ImpPassage],[ImpMedalID],[ImpPoints],[ImpPointsHidden],[ImpCcrsID]) VALUES (,,NULL,NULL,,);"]
[null,null,null,null,null,null,null,null,null,null,null,null,null,null,null,null,null,null,null,null,null,null,"INSERT INTO dbmanottbe.[dbo].Results_Import ([ImpSerieNum],[ImpPassage],[ImpMedalID],[ImpPoints],[ImpPointsHidden],[ImpCcrsID]) VALUES (,,NULL,NULL,,);"]
[null,null,null,null,null,null,null,null,null,null,null,null,null,null,null,null,null,null,null,null,null,null,"INSERT INTO dbmanottbe.[dbo].Results_Import ([ImpSerieNum],[ImpPassage],[ImpMedalID],[ImpPoints],[ImpPointsHidden],[ImpCcrsID]) VALUES (,,NULL,NULL,,);"]
[null,null,null,null,null,null,null,null,null,null,null,null,null,null,null,null,null,null,null,null,null,null,"INSERT INTO dbmanottbe.[dbo].Results_Import ([ImpSerieNum],[ImpPassage],[ImpMedalID],[ImpPoints],[ImpPointsHidden],[ImpCcrsID]) VALUES (,,NULL,NULL,,);"]
[null,null,null,null,null,null,null,null,null,null,null,null,null,null,null,null,null,null,null,null,null,null,"INSERT INTO dbmanottbe.[dbo].Results_Import ([ImpSerieNum],[ImpPassage],[ImpMedalID],[ImpPoints],[ImpPointsHidden],[ImpCcrsID]) VALUES (,,NULL,NULL,,);"]
[null,null,null,null,null,null,null,null,null,null,null,null,null,null,null,null,null,null,null,null,null,null,"INSERT INTO dbmanottbe.[dbo].Results_Import ([ImpSerieNum],[ImpPassage],[ImpMedalID],[ImpPoints],[ImpPointsHidden],[ImpCcrsID]) VALUES (,,NULL,NULL,,);"]
[null,null,null,null,null,null,null,null,null,null,null,null,null,null,null,null,null,null,null,null,null,null,"INSERT INTO dbmanottbe.[dbo].Results_Import ([ImpSerieNum],[ImpPassage],[ImpMedalID],[ImpPoints],[ImpPointsHidden],[ImpCcrsID]) VALUES (,,NULL,NULL,,);"]
[null,null,null,null,null,null,null,null,null,null,null,null,null,null,null,null,null,null,null,null,null,null,"INSERT INTO dbmanottbe.[dbo].Results_Import ([ImpSerieNum],[ImpPassage],[ImpMedalID],[ImpPoints],[ImpPointsHidden],[ImpCcrsID]) VALUES (,,NULL,NULL,,);"]
[null,null,null,null,null,null,null,null,null,null,null,null,null,null,null,null,null,null,null,null,null,null,"INSERT INTO dbmanottbe.[dbo].Results_Import ([ImpSerieNum],[ImpPassage],[ImpMedalID],[ImpPoints],[ImpPointsHidden],[ImpCcrsID]) VALUES (,,NULL,NULL,,);"]
[null,null,null,null,null,null,null,null,null,null,null,null,null,null,null,null,null,null,null,null,null,null,"INSERT INTO dbmanottbe.[dbo].Results_Import ([ImpSerieNum],[ImpPassage],[ImpMedalID],[ImpPoints],[ImpPointsHidden],[ImpCcrsID]) VALUES (,,NULL,NULL,,);"]
[null,null,null,null,null,null,null,null,null,null,null,null,null,null,null,null,null,null,null,null,null,null,"INSERT INTO dbmanottbe.[dbo].Results_Import ([ImpSerieNum],[ImpPassage],[ImpMedalID],[ImpPoints],[ImpPointsHidden],[ImpCcrsID]) VALUES (,,NULL,NULL,,);"]
[null,null,null,null,null,null,null,null,null,null,null,null,null,null,null,null,null,null,null,null,null,null,"INSERT INTO dbmanottbe.[dbo].Results_Import ([ImpSerieNum],[ImpPassage],[ImpMedalID],[ImpPoints],[ImpPointsHidden],[ImpCcrsID]) VALUES (,,NULL,NULL,,);"]
[null,null,null,null,null,null,null,null,null,null,null,null,null,null,null,null,null,null,null,null,null,null,"INSERT INTO dbmanottbe.[dbo].Results_Import ([ImpSerieNum],[ImpPassage],[ImpMedalID],[ImpPoints],[ImpPointsHidden],[ImpCcrsID]) VALUES (,,NULL,NULL,,);"]
[null,null,null,null,null,null,null,null,null,null,null,null,null,null,null,null,null,null,null,null,null,null,"INSERT INTO dbmanottbe.[dbo].Results_Import ([ImpSerieNum],[ImpPassage],[ImpMedalID],[ImpPoints],[ImpPointsHidden],[ImpCcrsID]) VALUES (,,NULL,NULL,,);"]
[null,null,null,null,null,null,null,null,null,null,null,null,null,null,null,null,null,null,null,null,null,null,"INSERT INTO dbmanottbe.[dbo].Results_Import ([ImpSerieNum],[ImpPassage],[ImpMedalID],[ImpPoints],[ImpPointsHidden],[ImpCcrsID]) VALUES (,,NULL,NULL,,);"]
[null,null,null,null,null,null,null,null,null,null,null,null,null,null,null,null,null,null,null,null,null,null,"INSERT INTO dbmanottbe.[dbo].Results_Import ([ImpSerieNum],[ImpPassage],[ImpMedalID],[ImpPoints],[ImpPointsHidden],[ImpCcrsID]) VALUES (,,NULL,NULL,,);"]
[null,null,null,null,null,null,null,null,null,null,null,null,null,null,null,null,null,null,null,null,null,null,"INSERT INTO dbmanottbe.[dbo].Results_Import ([ImpSerieNum],[ImpPassage],[ImpMedalID],[ImpPoints],[ImpPointsHidden],[ImpCcrsID]) VALUES (,,NULL,NULL,,);"]
[null,null,null,null,null,null,null,null,null,null,null,null,null,null,null,null,null,null,null,null,null,null,"INSERT INTO dbmanottbe.[dbo].Results_Import ([ImpSerieNum],[ImpPassage],[ImpMedalID],[ImpPoints],[ImpPointsHidden],[ImpCcrsID]) VALUES (,,NULL,NULL,,);"]
[null,null,null,null,null,null,null,null,null,null,null,null,null,null,null,null,null,null,null,null,null,null,"INSERT INTO dbmanottbe.[dbo].Results_Import ([ImpSerieNum],[ImpPassage],[ImpMedalID],[ImpPoints],[ImpPointsHidden],[ImpCcrsID]) VALUES (,,NULL,NULL,,);"]
[null,null,null,null,null,null,null,null,null,null,null,null,null,null,null,null,null,null,null,null,null,null,"INSERT INTO dbmanottbe.[dbo].Results_Import ([ImpSerieNum],[ImpPassage],[ImpMedalID],[ImpPoints],[ImpPointsHidden],[ImpCcrsID]) VALUES (,,NULL,NULL,,);"]
[null,null,null,null,null,null,null,null,null,null,null,null,null,null,null,null,null,null,null,null,null,null,"INSERT INTO dbmanottbe.[dbo].Results_Import ([ImpSerieNum],[ImpPassage],[ImpMedalID],[ImpPoints],[ImpPointsHidden],[ImpCcrsID]) VALUES (,,NULL,NULL,,);"]
[null,null,null,null,null,null,null,null,null,null,null,null,null,null,null,null,null,null,null,null,null,null,"INSERT INTO dbmanottbe.[dbo].Results_Import ([ImpSerieNum],[ImpPassage],[ImpMedalID],[ImpPoints],[ImpPointsHidden],[ImpCcrsID]) VALUES (,,NULL,NULL,,);"]
[null,null,null,null,null,null,null,null,null,null,null,null,null,null,null,null,null,null,null,null,null,null,"INSERT INTO dbmanottbe.[dbo].Results_Import ([ImpSerieNum],[ImpPassage],[ImpMedalID],[ImpPoints],[ImpPointsHidden],[ImpCcrsID]) VALUES (,,NULL,NULL,,);"]
[null,null,null,null,null,null,null,null,null,null,null,null,null,null,null,null,null,null,null,null,null,null,"INSERT INTO dbmanottbe.[dbo].Results_Import ([ImpSerieNum],[ImpPassage],[ImpMedalID],[ImpPoints],[ImpPointsHidden],[ImpCcrsID]) VALUES (,,NULL,NULL,,);"]
[null,null,null,null,null,null,null,null,null,null,null,null,null,null,null,null,null,null,null,null,null,null,"INSERT INTO dbmanottbe.[dbo].Results_Import ([ImpSerieNum],[ImpPassage],[ImpMedalID],[ImpPoints],[ImpPointsHidden],[ImpCcrsID]) VALUES (,,NULL,NULL,,);"]
[null,null,null,null,null,null,null,null,null,null,null,null,null,null,null,null,null,null,null,null,null,null,"INSERT INTO dbmanottbe.[dbo].Results_Import ([ImpSerieNum],[ImpPassage],[ImpMedalID],[ImpPoints],[ImpPointsHidden],[ImpCcrsID]) VALUES (,,NULL,NULL,,);"]
[null,null,null,null,null,null,null,null,null,null,null,null,null,null,null,null,null,null,null,null,null,null,"INSERT INTO dbmanottbe.[dbo].Results_Import ([ImpSerieNum],[ImpPassage],[ImpMedalID],[ImpPoints],[ImpPointsHidden],[ImpCcrsID]) VALUES (,,NULL,NULL,,);"]
[null,null,null,null,null,null,null,null,null,null,null,null,null,null,null,null,null,null,null,null,null,null,"INSERT INTO dbmanottbe.[dbo].Results_Import ([ImpSerieNum],[ImpPassage],[ImpMedalID],[ImpPoints],[ImpPointsHidden],[ImpCcrsID]) VALUES (,,NULL,NULL,,);"]
[null,null,null,null,null,null,null,null,null,null,null,null,null,null,null,null,null,null,null,null,null,null,"INSERT INTO dbmanottbe.[dbo].Results_Import ([ImpSerieNum],[ImpPassage],[ImpMedalID],[ImpPoints],[ImpPointsHidden],[ImpCcrsID]) VALUES (,,NULL,NULL,,);"]
[null,null,null,null,null,null,null,null,null,null,null,null,null,null,null,null,null,null,null,null,null,null,"INSERT INTO dbmanottbe.[dbo].Results_Import ([ImpSerieNum],[ImpPassage],[ImpMedalID],[ImpPoints],[ImpPointsHidden],[ImpCcrsID]) VALUES (,,NULL,NULL,,);"]
[null,null,null,null,null,null,null,null,null,null,null,null,null,null,null,null,null,null,null,null,null,null,"INSERT INTO dbmanottbe.[dbo].Results_Import ([ImpSerieNum],[ImpPassage],[ImpMedalID],[ImpPoints],[ImpPointsHidden],[ImpCcrsID]) VALUES (,,NULL,NULL,,);"]
[null,null,null,null,null,null,null,null,null,null,null,null,null,null,null,null,null,null,null,null,null,null,"INSERT INTO dbmanottbe.[dbo].Results_Import ([ImpSerieNum],[ImpPassage],[ImpMedalID],[ImpPoints],[ImpPointsHidden],[ImpCcrsID]) VALUES (,,NULL,NULL,,);"]
[null,null,null,null,null,null,null,null,null,null,null,null,null,null,null,null,null,null,null,null,null,null,"INSERT INTO dbmanottbe.[dbo].Results_Import ([ImpSerieNum],[ImpPassage],[ImpMedalID],[ImpPoints],[ImpPointsHidden],[ImpCcrsID]) VALUES (,,NULL,NULL,,);"]
[null,null,null,null,null,null,null,null,null,null,null,null,null,null,null,null,null,null,null,null,null,null,"INSERT INTO dbmanottbe.[dbo].Results_Import ([ImpSerieNum],[ImpPassage],[ImpMedalID],[ImpPoints],[ImpPointsHidden],[ImpCcrsID]) VALUES (,,NULL,NULL,,);"]
[null,null,null,null,null,null,null,null,null,null,null,null,null,null,null,null,null,null,null,null,null,null,"INSERT INTO dbmanottbe.[dbo].Results_Import ([ImpSerieNum],[ImpPassage],[ImpMedalID],[ImpPoints],[ImpPointsHidden],[ImpCcrsID]) VALUES (,,NULL,NULL,,);"]
[null,null,null,null,null,null,null,null,null,null,null,null,null,null,null,null,null,null,null,null,null,null,"INSERT INTO dbmanottbe.[dbo].Results_Import ([ImpSerieNum],[ImpPassage],[ImpMedalID],[ImpPoints],[ImpPointsHidden],[ImpCcrsID]) VALUES (,,NULL,NULL,,);"]
[null,null,null,null,null,null,null,null,null,null,null,null,null,null,null,null,null,null,null,null,null,null,"INSERT INTO dbmanottbe.[dbo].Results_Import ([ImpSerieNum],[ImpPassage],[ImpMedalID],[ImpPoints],[ImpPointsHidden],[ImpCcrsID]) VALUES (,,NULL,NULL,,);"]
[null,null,null,null,null,null,null,null,null,null,null,null,null,null,null,null,null,null,null,null,null,null,"INSERT INTO dbmanottbe.[dbo].Results_Import ([ImpSerieNum],[ImpPassage],[ImpMedalID],[ImpPoints],[ImpPointsHidden],[ImpCcrsID]) VALUES (,,NULL,NULL,,);"]
[null,null,null,null,null,null,null,null,null,null,null,null,null,null,null,null,null,null,null,null,null,null,"INSERT INTO dbmanottbe.[dbo].Results_Import ([ImpSerieNum],[ImpPassage],[ImpMedalID],[ImpPoints],[ImpPointsHidden],[ImpCcrsID]) VALUES (,,NULL,NULL,,);"]
[null,null,null,null,null,null,null,null,null,null,null,null,null,null,null,null,null,null,null,null,null,null,"INSERT INTO dbmanottbe.[dbo].Results_Import ([ImpSerieNum],[ImpPassage],[ImpMedalID],[ImpPoints],[ImpPointsHidden],[ImpCcrsID]) VALUES (,,NULL,NULL,,);"]
[null,null,null,null,null,null,null,null,null,null,null,null,null,null,null,null,null,null,null,null,null,null,"INSERT INTO dbmanottbe.[dbo].Results_Import ([ImpSerieNum],[ImpPassage],[ImpMedalID],[ImpPoints],[ImpPointsHidden],[ImpCcrsID]) VALUES (,,NULL,NULL,,);"]
[null,null,null,null,null,null,null,null,null,null,null,null,null,null,null,null,null,null,null,null,null,null,"INSERT INTO dbmanottbe.[dbo].Results_Import ([ImpSerieNum],[ImpPassage],[ImpMedalID],[ImpPoints],[ImpPointsHidden],[ImpCcrsID]) VALUES (,,NULL,NULL,,);"]
[null,null,null,null,null,null,null,null,null,null,null,null,null,null,null,null,null,null,null,null,null,null,"INSERT INTO dbmanottbe.[dbo].Results_Import ([ImpSerieNum],[ImpPassage],[ImpMedalID],[ImpPoints],[ImpPointsHidden],[ImpCcrsID]) VALUES (,,NULL,NULL,,);"]
[null,null,null,null,null,null,null,null,null,null,null,null,null,null,null,null,null,null,null,null,null,null,"INSERT INTO dbmanottbe.[dbo].Results_Import ([ImpSerieNum],[ImpPassage],[ImpMedalID],[ImpPoints],[ImpPointsHidden],[ImpCcrsID]) VALUES (,,NULL,NULL,,);"]
[null,null,null,null,null,null,null,null,null,null,null,null,null,null,null,null,null,null,null,null,null,null,{"$f":"\"INSERT INTO \"&$U$2&\" ([ImpSerieNum],[ImpPassage],[ImpMedalID],[ImpPoints],[ImpPointsHidden],[ImpCcrsID]) VALUES (\"&B1091&\",\"&C1091&\",\"&IF(D1091=\"\",\"NULL\",\"'\"&D1091&\"'\")&\",\"&IF(E1091=\"\",\"NULL\",SUBSTITUTE(E1091,\",\",\".\"))&\",\"&SUBSTITUTE(F1091,\",\",\".\")&\",\"&G1091&\");\"","v":"INSERT INTO dbmanottbe.[dbo].Results_Import ([ImpSerieNum],[ImpPassage],[ImpMedalID],[ImpPoints],[ImpPointsHidden],[ImpCcrsID]) VALUES (,,NULL,NULL,,);"}]
[null,null,null,null,null,null,null,null,null,null,null,null,null,null,null,null,null,null,null,null,null,null,"INSERT INTO dbmanottbe.[dbo].Results_Import ([ImpSerieNum],[ImpPassage],[ImpMedalID],[ImpPoints],[ImpPointsHidden],[ImpCcrsID]) VALUES (,,NULL,NULL,,);"]
[null,null,null,null,null,null,null,null,null,null,null,null,null,null,null,null,null,null,null,null,null,null,"INSERT INTO dbmanottbe.[dbo].Results_Import ([ImpSerieNum],[ImpPassage],[ImpMedalID],[ImpPoints],[ImpPointsHidden],[ImpCcrsID]) VALUES (,,NULL,NULL,,);"]
[null,null,null,null,null,null,null,null,null,null,null,null,null,null,null,null,null,null,null,null,null,null,"INSERT INTO dbmanottbe.[dbo].Results_Import ([ImpSerieNum],[ImpPassage],[ImpMedalID],[ImpPoints],[ImpPointsHidden],[ImpCcrsID]) VALUES (,,NULL,NULL,,);"]
[null,null,null,null,null,null,null,null,null,null,null,null,null,null,null,null,null,null,null,null,null,null,"INSERT INTO dbmanottbe.[dbo].Results_Import ([ImpSerieNum],[ImpPassage],[ImpMedalID],[ImpPoints],[ImpPointsHidden],[ImpCcrsID]) VALUES (,,NULL,NULL,,);"]
[null,null,null,null,null,null,null,null,null,null,null,null,null,null,null,null,null,null,null,null,null,null,"INSERT INTO dbmanottbe.[dbo].Results_Import ([ImpSerieNum],[ImpPassage],[ImpMedalID],[ImpPoints],[ImpPointsHidden],[ImpCcrsID]) VALUES (,,NULL,NULL,,);"]
[null,null,null,null,null,null,null,null,null,null,null,null,null,null,null,null,null,null,null,null,null,null,"INSERT INTO dbmanottbe.[dbo].Results_Import ([ImpSerieNum],[ImpPassage],[ImpMedalID],[ImpPoints],[ImpPointsHidden],[ImpCcrsID]) VALUES (,,NULL,NULL,,);"]
[null,null,null,null,null,null,null,null,null,null,null,null,null,null,null,null,null,null,null,null,null,null,"INSERT INTO dbmanottbe.[dbo].Results_Import ([ImpSerieNum],[ImpPassage],[ImpMedalID],[ImpPoints],[ImpPointsHidden],[ImpCcrsID]) VALUES (,,NULL,NULL,,);"]
[null,null,null,null,null,null,null,null,null,null,null,null,null,null,null,null,null,null,null,null,null,null,"INSERT INTO dbmanottbe.[dbo].Results_Import ([ImpSerieNum],[ImpPassage],[ImpMedalID],[ImpPoints],[ImpPointsHidden],[ImpCcrsID]) VALUES (,,NULL,NULL,,);"]
[null,null,null,null,null,null,null,null,null,null,null,null,null,null,null,null,null,null,null,null,null,null,"INSERT INTO dbmanottbe.[dbo].Results_Import ([ImpSerieNum],[ImpPassage],[ImpMedalID],[ImpPoints],[ImpPointsHidden],[ImpCcrsID]) VALUES (,,NULL,NULL,,);"]
[null,null,null,null,null,null,null,null,null,null,null,null,null,null,null,null,null,null,null,null,null,null,"INSERT INTO dbmanottbe.[dbo].Results_Import ([ImpSerieNum],[ImpPassage],[ImpMedalID],[ImpPoints],[ImpPointsHidden],[ImpCcrsID]) VALUES (,,NULL,NULL,,);"]
[null,null,null,null,null,null,null,null,null,null,null,null,null,null,null,null,null,null,null,null,null,null,"INSERT INTO dbmanottbe.[dbo].Results_Import ([ImpSerieNum],[ImpPassage],[ImpMedalID],[ImpPoints],[ImpPointsHidden],[ImpCcrsID]) VALUES (,,NULL,NULL,,);"]
[null,null,null,null,null,null,null,null,null,null,null,null,null,null,null,null,null,null,null,null,null,null,"INSERT INTO dbmanottbe.[dbo].Results_Import ([ImpSerieNum],[ImpPassage],[ImpMedalID],[ImpPoints],[ImpPointsHidden],[ImpCcrsID]) VALUES (,,NULL,NULL,,);"]
[null,null,null,null,null,null,null,null,null,null,null,null,null,null,null,null,null,null,null,null,null,null,"INSERT INTO dbmanottbe.[dbo].Results_Import ([ImpSerieNum],[ImpPassage],[ImpMedalID],[ImpPoints],[ImpPointsHidden],[ImpCcrsID]) VALUES (,,NULL,NULL,,);"]
[null,null,null,null,null,null,null,null,null,null,null,null,null,null,null,null,null,null,null,null,null,null,"INSERT INTO dbmanottbe.[dbo].Results_Import ([ImpSerieNum],[ImpPassage],[ImpMedalID],[ImpPoints],[ImpPointsHidden],[ImpCcrsID]) VALUES (,,NULL,NULL,,);"]
[null,null,null,null,null,null,null,null,null,null,null,null,null,null,null,null,null,null,null,null,null,null,"INSERT INTO dbmanottbe.[dbo].Results_Import ([ImpSerieNum],[ImpPassage],[ImpMedalID],[ImpPoints],[ImpPointsHidden],[ImpCcrsID]) VALUES (,,NULL,NULL,,);"]
[null,null,null,null,null,null,null,null,null,null,null,null,null,null,null,null,null,null,null,null,null,null,"INSERT INTO dbmanottbe.[dbo].Results_Import ([ImpSerieNum],[ImpPassage],[ImpMedalID],[ImpPoints],[ImpPointsHidden],[ImpCcrsID]) VALUES (,,NULL,NULL,,);"]
[null,null,null,null,null,null,null,null,null,null,null,null,null,null,null,null,null,null,null,null,null,null,"INSERT INTO dbmanottbe.[dbo].Results_Import ([ImpSerieNum],[ImpPassage],[ImpMedalID],[ImpPoints],[ImpPointsHidden],[ImpCcrsID]) VALUES (,,NULL,NULL,,);"]
[null,null,null,null,null,null,null,null,null,null,null,null,null,null,null,null,null,null,null,null,null,null,"INSERT INTO dbmanottbe.[dbo].Results_Import ([ImpSerieNum],[ImpPassage],[ImpMedalID],[ImpPoints],[ImpPointsHidden],[ImpCcrsID]) VALUES (,,NULL,NULL,,);"]
[null,null,null,null,null,null,null,null,null,null,null,null,null,null,null,null,null,null,null,null,null,null,"INSERT INTO dbmanottbe.[dbo].Results_Import ([ImpSerieNum],[ImpPassage],[ImpMedalID],[ImpPoints],[ImpPointsHidden],[ImpCcrsID]) VALUES (,,NULL,NULL,,);"]
[null,null,null,null,null,null,null,null,null,null,null,null,null,null,null,null,null,null,null,null,null,null,"INSERT INTO dbmanottbe.[dbo].Results_Import ([ImpSerieNum],[ImpPassage],[ImpMedalID],[ImpPoints],[ImpPointsHidden],[ImpCcrsID]) VALUES (,,NULL,NULL,,);"]
[null,null,null,null,null,null,null,null,null,null,null,null,null,null,null,null,null,null,null,null,null,null,"INSERT INTO dbmanottbe.[dbo].Results_Import ([ImpSerieNum],[ImpPassage],[ImpMedalID],[ImpPoints],[ImpPointsHidden],[ImpCcrsID]) VALUES (,,NULL,NULL,,);"]
[null,null,null,null,null,null,null,null,null,null,null,null,null,null,null,null,null,null,null,null,null,null,"INSERT INTO dbmanottbe.[dbo].Results_Import ([ImpSerieNum],[ImpPassage],[ImpMedalID],[ImpPoints],[ImpPointsHidden],[ImpCcrsID]) VALUES (,,NULL,NULL,,);"]
[null,null,null,null,null,null,null,null,null,null,null,null,null,null,null,null,null,null,null,null,null,null,"INSERT INTO dbmanottbe.[dbo].Results_Import ([ImpSerieNum],[ImpPassage],[ImpMedalID],[ImpPoints],[ImpPointsHidden],[ImpCcrsID]) VALUES (,,NULL,NULL,,);"]
[null,null,null,null,null,null,null,null,null,null,null,null,null,null,null,null,null,null,null,null,null,null,"INSERT INTO dbmanottbe.[dbo].Results_Import ([ImpSerieNum],[ImpPassage],[ImpMedalID],[ImpPoints],[ImpPointsHidden],[ImpCcrsID]) VALUES (,,NULL,NULL,,);"]
[null,null,null,null,null,null,null,null,null,null,null,null,null,null,null,null,null,null,null,null,null,null,"INSERT INTO dbmanottbe.[dbo].Results_Import ([ImpSerieNum],[ImpPassage],[ImpMedalID],[ImpPoints],[ImpPointsHidden],[ImpCcrsID]) VALUES (,,NULL,NULL,,);"]
[null,null,null,null,null,null,null,null,null,null,null,null,null,null,null,null,null,null,null,null,null,null,"INSERT INTO dbmanottbe.[dbo].Results_Import ([ImpSerieNum],[ImpPassage],[ImpMedalID],[ImpPoints],[ImpPointsHidden],[ImpCcrsID]) VALUES (,,NULL,NULL,,);"]
[null,null,null,null,null,null,null,null,null,null,null,null,null,null,null,null,null,null,null,null,null,null,"INSERT INTO dbmanottbe.[dbo].Results_Import ([ImpSerieNum],[ImpPassage],[ImpMedalID],[ImpPoints],[ImpPointsHidden],[ImpCcrsID]) VALUES (,,NULL,NULL,,);"]
[null,null,null,null,null,null,null,null,null,null,null,null,null,null,null,null,null,null,null,null,null,null,"INSERT INTO dbmanottbe.[dbo].Results_Import ([ImpSerieNum],[ImpPassage],[ImpMedalID],[ImpPoints],[ImpPointsHidden],[ImpCcrsID]) VALUES (,,NULL,NULL,,);"]
[null,null,null,null,null,null,null,null,null,null,null,null,null,null,null,null,null,null,null,null,null,null,"INSERT INTO dbmanottbe.[dbo].Results_Import ([ImpSerieNum],[ImpPassage],[ImpMedalID],[ImpPoints],[ImpPointsHidden],[ImpCcrsID]) VALUES (,,NULL,NULL,,);"]
[null,null,null,null,null,null,null,null,null,null,null,null,null,null,null,null,null,null,null,null,null,null,"INSERT INTO dbmanottbe.[dbo].Results_Import ([ImpSerieNum],[ImpPassage],[ImpMedalID],[ImpPoints],[ImpPointsHidden],[ImpCcrsID]) VALUES (,,NULL,NULL,,);"]
[null,null,null,null,null,null,null,null,null,null,null,null,null,null,null,null,null,null,null,null,null,null,"INSERT INTO dbmanottbe.[dbo].Results_Import ([ImpSerieNum],[ImpPassage],[ImpMedalID],[ImpPoints],[ImpPointsHidden],[ImpCcrsID]) VALUES (,,NULL,NULL,,);"]
[null,null,null,null,null,null,null,null,null,null,null,null,null,null,null,null,null,null,null,null,null,null,"INSERT INTO dbmanottbe.[dbo].Results_Import ([ImpSerieNum],[ImpPassage],[ImpMedalID],[ImpPoints],[ImpPointsHidden],[ImpCcrsID]) VALUES (,,NULL,NULL,,);"]
[null,null,null,null,null,null,null,null,null,null,null,null,null,null,null,null,null,null,null,null,null,null,"INSERT INTO dbmanottbe.[dbo].Results_Import ([ImpSerieNum],[ImpPassage],[ImpMedalID],[ImpPoints],[ImpPointsHidden],[ImpCcrsID]) VALUES (,,NULL,NULL,,);"]
[null,null,null,null,null,null,null,null,null,null,null,null,null,null,null,null,null,null,null,null,null,null,"INSERT INTO dbmanottbe.[dbo].Results_Import ([ImpSerieNum],[ImpPassage],[ImpMedalID],[ImpPoints],[ImpPointsHidden],[ImpCcrsID]) VALUES (,,NULL,NULL,,);"]
[null,null,null,null,null,null,null,null,null,null,null,null,null,null,null,null,null,null,null,null,null,null,"INSERT INTO dbmanottbe.[dbo].Results_Import ([ImpSerieNum],[ImpPassage],[ImpMedalID],[ImpPoints],[ImpPointsHidden],[ImpCcrsID]) VALUES (,,NULL,NULL,,);"]
[null,null,null,null,null,null,null,null,null,null,null,null,null,null,null,null,null,null,null,null,null,null,"INSERT INTO dbmanottbe.[dbo].Results_Import ([ImpSerieNum],[ImpPassage],[ImpMedalID],[ImpPoints],[ImpPointsHidden],[ImpCcrsID]) VALUES (,,NULL,NULL,,);"]
[null,null,null,null,null,null,null,null,null,null,null,null,null,null,null,null,null,null,null,null,null,null,"INSERT INTO dbmanottbe.[dbo].Results_Import ([ImpSerieNum],[ImpPassage],[ImpMedalID],[ImpPoints],[ImpPointsHidden],[ImpCcrsID]) VALUES (,,NULL,NULL,,);"]
[null,null,null,null,null,null,null,null,null,null,null,null,null,null,null,null,null,null,null,null,null,null,"INSERT INTO dbmanottbe.[dbo].Results_Import ([ImpSerieNum],[ImpPassage],[ImpMedalID],[ImpPoints],[ImpPointsHidden],[ImpCcrsID]) VALUES (,,NULL,NULL,,);"]
[null,null,null,null,null,null,null,null,null,null,null,null,null,null,null,null,null,null,null,null,null,null,"INSERT INTO dbmanottbe.[dbo].Results_Import ([ImpSerieNum],[ImpPassage],[ImpMedalID],[ImpPoints],[ImpPointsHidden],[ImpCcrsID]) VALUES (,,NULL,NULL,,);"]
[null,null,null,null,null,null,null,null,null,null,null,null,null,null,null,null,null,null,null,null,null,null,"INSERT INTO dbmanottbe.[dbo].Results_Import ([ImpSerieNum],[ImpPassage],[ImpMedalID],[ImpPoints],[ImpPointsHidden],[ImpCcrsID]) VALUES (,,NULL,NULL,,);"]
[null,null,null,null,null,null,null,null,null,null,null,null,null,null,null,null,null,null,null,null,null,null,"INSERT INTO dbmanottbe.[dbo].Results_Import ([ImpSerieNum],[ImpPassage],[ImpMedalID],[ImpPoints],[ImpPointsHidden],[ImpCcrsID]) VALUES (,,NULL,NULL,,);"]
[null,null,null,null,null,null,null,null,null,null,null,null,null,null,null,null,null,null,null,null,null,null,"INSERT INTO dbmanottbe.[dbo].Results_Import ([ImpSerieNum],[ImpPassage],[ImpMedalID],[ImpPoints],[ImpPointsHidden],[ImpCcrsID]) VALUES (,,NULL,NULL,,);"]
[null,null,null,null,null,null,null,null,null,null,null,null,null,null,null,null,null,null,null,null,null,null,"INSERT INTO dbmanottbe.[dbo].Results_Import ([ImpSerieNum],[ImpPassage],[ImpMedalID],[ImpPoints],[ImpPointsHidden],[ImpCcrsID]) VALUES (,,NULL,NULL,,);"]
[null,null,null,null,null,null,null,null,null,null,null,null,null,null,null,null,null,null,null,null,null,null,"INSERT INTO dbmanottbe.[dbo].Results_Import ([ImpSerieNum],[ImpPassage],[ImpMedalID],[ImpPoints],[ImpPointsHidden],[ImpCcrsID]) VALUES (,,NULL,NULL,,);"]
[null,null,null,null,null,null,null,null,null,null,null,null,null,null,null,null,null,null,null,null,null,null,"INSERT INTO dbmanottbe.[dbo].Results_Import ([ImpSerieNum],[ImpPassage],[ImpMedalID],[ImpPoints],[ImpPointsHidden],[ImpCcrsID]) VALUES (,,NULL,NULL,,);"]
[null,null,null,null,null,null,null,null,null,null,null,null,null,null,null,null,null,null,null,null,null,null,"INSERT INTO dbmanottbe.[dbo].Results_Import ([ImpSerieNum],[ImpPassage],[ImpMedalID],[ImpPoints],[ImpPointsHidden],[ImpCcrsID]) VALUES (,,NULL,NULL,,);"]
[null,null,null,null,null,null,null,null,null,null,null,null,null,null,null,null,null,null,null,null,null,null,"INSERT INTO dbmanottbe.[dbo].Results_Import ([ImpSerieNum],[ImpPassage],[ImpMedalID],[ImpPoints],[ImpPointsHidden],[ImpCcrsID]) VALUES (,,NULL,NULL,,);"]
[null,null,null,null,null,null,null,null,null,null,null,null,null,null,null,null,null,null,null,null,null,null,"INSERT INTO dbmanottbe.[dbo].Results_Import ([ImpSerieNum],[ImpPassage],[ImpMedalID],[ImpPoints],[ImpPointsHidden],[ImpCcrsID]) VALUES (,,NULL,NULL,,);"]
[null,null,null,null,null,null,null,null,null,null,null,null,null,null,null,null,null,null,null,null,null,null,"INSERT INTO dbmanottbe.[dbo].Results_Import ([ImpSerieNum],[ImpPassage],[ImpMedalID],[ImpPoints],[ImpPointsHidden],[ImpCcrsID]) VALUES (,,NULL,NULL,,);"]
[null,null,null,null,null,null,null,null,null,null,null,null,null,null,null,null,null,null,null,null,null,null,"INSERT INTO dbmanottbe.[dbo].Results_Import ([ImpSerieNum],[ImpPassage],[ImpMedalID],[ImpPoints],[ImpPointsHidden],[ImpCcrsID]) VALUES (,,NULL,NULL,,);"]
[null,null,null,null,null,null,null,null,null,null,null,null,null,null,null,null,null,null,null,null,null,null,"INSERT INTO dbmanottbe.[dbo].Results_Import ([ImpSerieNum],[ImpPassage],[ImpMedalID],[ImpPoints],[ImpPointsHidden],[ImpCcrsID]) VALUES (,,NULL,NULL,,);"]
[null,null,null,null,null,null,null,null,null,null,null,null,null,null,null,null,null,null,null,null,null,null,"INSERT INTO dbmanottbe.[dbo].Results_Import ([ImpSerieNum],[ImpPassage],[ImpMedalID],[ImpPoints],[ImpPointsHidden],[ImpCcrsID]) VALUES (,,NULL,NULL,,);"]
[null,null,null,null,null,null,null,null,null,null,null,null,null,null,null,null,null,null,null,null,null,null,"INSERT INTO dbmanottbe.[dbo].Results_Import ([ImpSerieNum],[ImpPassage],[ImpMedalID],[ImpPoints],[ImpPointsHidden],[ImpCcrsID]) VALUES (,,NULL,NULL,,);"]
[null,null,null,null,null,null,null,null,null,null,null,null,null,null,null,null,null,null,null,null,null,null,"INSERT INTO dbmanottbe.[dbo].Results_Import ([ImpSerieNum],[ImpPassage],[ImpMedalID],[ImpPoints],[ImpPointsHidden],[ImpCcrsID]) VALUES (,,NULL,NULL,,);"]
[null,null,null,null,null,null,null,null,null,null,null,null,null,null,null,null,null,null,null,null,null,null,"INSERT INTO dbmanottbe.[dbo].Results_Import ([ImpSerieNum],[ImpPassage],[ImpMedalID],[ImpPoints],[ImpPointsHidden],[ImpCcrsID]) VALUES (,,NULL,NULL,,);"]
[null,null,null,null,null,null,null,null,null,null,null,null,null,null,null,null,null,null,null,null,null,null,"INSERT INTO dbmanottbe.[dbo].Results_Import ([ImpSerieNum],[ImpPassage],[ImpMedalID],[ImpPoints],[ImpPointsHidden],[ImpCcrsID]) VALUES (,,NULL,NULL,,);"]
[null,null,null,null,null,null,null,null,null,null,null,null,null,null,null,null,null,null,null,null,null,null,"INSERT INTO dbmanottbe.[dbo].Results_Import ([ImpSerieNum],[ImpPassage],[ImpMedalID],[ImpPoints],[ImpPointsHidden],[ImpCcrsID]) VALUES (,,NULL,NULL,,);"]
[null,null,null,null,null,null,null,null,null,null,null,null,null,null,null,null,null,null,null,null,null,null,"INSERT INTO dbmanottbe.[dbo].Results_Import ([ImpSerieNum],[ImpPassage],[ImpMedalID],[ImpPoints],[ImpPointsHidden],[ImpCcrsID]) VALUES (,,NULL,NULL,,);"]
[null,null,null,null,null,null,null,null,null,null,null,null,null,null,null,null,null,null,null,null,null,null,"INSERT INTO dbmanottbe.[dbo].Results_Import ([ImpSerieNum],[ImpPassage],[ImpMedalID],[ImpPoints],[ImpPointsHidden],[ImpCcrsID]) VALUES (,,NULL,NULL,,);"]
[null,null,null,null,null,null,null,null,null,null,null,null,null,null,null,null,null,null,null,null,null,null,"INSERT INTO dbmanottbe.[dbo].Results_Import ([ImpSerieNum],[ImpPassage],[ImpMedalID],[ImpPoints],[ImpPointsHidden],[ImpCcrsID]) VALUES (,,NULL,NULL,,);"]
[null,null,null,null,null,null,null,null,null,null,null,null,null,null,null,null,null,null,null,null,null,null,"INSERT INTO dbmanottbe.[dbo].Results_Import ([ImpSerieNum],[ImpPassage],[ImpMedalID],[ImpPoints],[ImpPointsHidden],[ImpCcrsID]) VALUES (,,NULL,NULL,,);"]
[null,null,null,null,null,null,null,null,null,null,null,null,null,null,null,null,null,null,null,null,null,null,"INSERT INTO dbmanottbe.[dbo].Results_Import ([ImpSerieNum],[ImpPassage],[ImpMedalID],[ImpPoints],[ImpPointsHidden],[ImpCcrsID]) VALUES (,,NULL,NULL,,);"]
[null,null,null,null,null,null,null,null,null,null,null,null,null,null,null,null,null,null,null,null,null,null,"INSERT INTO dbmanottbe.[dbo].Results_Import ([ImpSerieNum],[ImpPassage],[ImpMedalID],[ImpPoints],[ImpPointsHidden],[ImpCcrsID]) VALUES (,,NULL,NULL,,);"]
[null,null,null,null,null,null,null,null,null,null,null,null,null,null,null,null,null,null,null,null,null,null,{"$f":"\"INSERT INTO \"&$U$2&\" ([ImpSerieNum],[ImpPassage],[ImpMedalID],[ImpPoints],[ImpPointsHidden],[ImpCcrsID]) VALUES (\"&B1155&\",\"&C1155&\",\"&IF(D1155=\"\",\"NULL\",\"'\"&D1155&\"'\")&\",\"&IF(E1155=\"\",\"NULL\",SUBSTITUTE(E1155,\",\",\".\"))&\",\"&SUBSTITUTE(F1155,\",\",\".\")&\",\"&G1155&\");\"","v":"INSERT INTO dbmanottbe.[dbo].Results_Import ([ImpSerieNum],[ImpPassage],[ImpMedalID],[ImpPoints],[ImpPointsHidden],[ImpCcrsID]) VALUES (,,NULL,NULL,,);"}]
[null,null,null,null,null,null,null,null,null,null,null,null,null,null,null,null,null,null,null,null,null,null,"INSERT INTO dbmanottbe.[dbo].Results_Import ([ImpSerieNum],[ImpPassage],[ImpMedalID],[ImpPoints],[ImpPointsHidden],[ImpCcrsID]) VALUES (,,NULL,NULL,,);"]
[null,null,null,null,null,null,null,null,null,null,null,null,null,null,null,null,null,null,null,null,null,null,"INSERT INTO dbmanottbe.[dbo].Results_Import ([ImpSerieNum],[ImpPassage],[ImpMedalID],[ImpPoints],[ImpPointsHidden],[ImpCcrsID]) VALUES (,,NULL,NULL,,);"]
[null,null,null,null,null,null,null,null,null,null,null,null,null,null,null,null,null,null,null,null,null,null,"INSERT INTO dbmanottbe.[dbo].Results_Import ([ImpSerieNum],[ImpPassage],[ImpMedalID],[ImpPoints],[ImpPointsHidden],[ImpCcrsID]) VALUES (,,NULL,NULL,,);"]
[null,null,null,null,null,null,null,null,null,null,null,null,null,null,null,null,null,null,null,null,null,null,"INSERT INTO dbmanottbe.[dbo].Results_Import ([ImpSerieNum],[ImpPassage],[ImpMedalID],[ImpPoints],[ImpPointsHidden],[ImpCcrsID]) VALUES (,,NULL,NULL,,);"]
[null,null,null,null,null,null,null,null,null,null,null,null,null,null,null,null,null,null,null,null,null,null,"INSERT INTO dbmanottbe.[dbo].Results_Import ([ImpSerieNum],[ImpPassage],[ImpMedalID],[ImpPoints],[ImpPointsHidden],[ImpCcrsID]) VALUES (,,NULL,NULL,,);"]
[null,null,null,null,null,null,null,null,null,null,null,null,null,null,null,null,null,null,null,null,null,null,"INSERT INTO dbmanottbe.[dbo].Results_Import ([ImpSerieNum],[ImpPassage],[ImpMedalID],[ImpPoints],[ImpPointsHidden],[ImpCcrsID]) VALUES (,,NULL,NULL,,);"]
[null,null,null,null,null,null,null,null,null,null,null,null,null,null,null,null,null,null,null,null,null,null,"INSERT INTO dbmanottbe.[dbo].Results_Import ([ImpSerieNum],[ImpPassage],[ImpMedalID],[ImpPoints],[ImpPointsHidden],[ImpCcrsID]) VALUES (,,NULL,NULL,,);"]
[null,null,null,null,null,null,null,null,null,null,null,null,null,null,null,null,null,null,null,null,null,null,"INSERT INTO dbmanottbe.[dbo].Results_Import ([ImpSerieNum],[ImpPassage],[ImpMedalID],[ImpPoints],[ImpPointsHidden],[ImpCcrsID]) VALUES (,,NULL,NULL,,);"]
[null,null,null,null,null,null,null,null,null,null,null,null,null,null,null,null,null,null,null,null,null,null,"INSERT INTO dbmanottbe.[dbo].Results_Import ([ImpSerieNum],[ImpPassage],[ImpMedalID],[ImpPoints],[ImpPointsHidden],[ImpCcrsID]) VALUES (,,NULL,NULL,,);"]
[null,null,null,null,null,null,null,null,null,null,null,null,null,null,null,null,null,null,null,null,null,null,"INSERT INTO dbmanottbe.[dbo].Results_Import ([ImpSerieNum],[ImpPassage],[ImpMedalID],[ImpPoints],[ImpPointsHidden],[ImpCcrsID]) VALUES (,,NULL,NULL,,);"]
[null,null,null,null,null,null,null,null,null,null,null,null,null,null,null,null,null,null,null,null,null,null,"INSERT INTO dbmanottbe.[dbo].Results_Import ([ImpSerieNum],[ImpPassage],[ImpMedalID],[ImpPoints],[ImpPointsHidden],[ImpCcrsID]) VALUES (,,NULL,NULL,,);"]
[null,null,null,null,null,null,null,null,null,null,null,null,null,null,null,null,null,null,null,null,null,null,"INSERT INTO dbmanottbe.[dbo].Results_Import ([ImpSerieNum],[ImpPassage],[ImpMedalID],[ImpPoints],[ImpPointsHidden],[ImpCcrsID]) VALUES (,,NULL,NULL,,);"]
[null,null,null,null,null,null,null,null,null,null,null,null,null,null,null,null,null,null,null,null,null,null,"INSERT INTO dbmanottbe.[dbo].Results_Import ([ImpSerieNum],[ImpPassage],[ImpMedalID],[ImpPoints],[ImpPointsHidden],[ImpCcrsID]) VALUES (,,NULL,NULL,,);"]
[null,null,null,null,null,null,null,null,null,null,null,null,null,null,null,null,null,null,null,null,null,null,"INSERT INTO dbmanottbe.[dbo].Results_Import ([ImpSerieNum],[ImpPassage],[ImpMedalID],[ImpPoints],[ImpPointsHidden],[ImpCcrsID]) VALUES (,,NULL,NULL,,);"]
[null,null,null,null,null,null,null,null,null,null,null,null,null,null,null,null,null,null,null,null,null,null,"INSERT INTO dbmanottbe.[dbo].Results_Import ([ImpSerieNum],[ImpPassage],[ImpMedalID],[ImpPoints],[ImpPointsHidden],[ImpCcrsID]) VALUES (,,NULL,NULL,,);"]
[null,null,null,null,null,null,null,null,null,null,null,null,null,null,null,null,null,null,null,null,null,null,"INSERT INTO dbmanottbe.[dbo].Results_Import ([ImpSerieNum],[ImpPassage],[ImpMedalID],[ImpPoints],[ImpPointsHidden],[ImpCcrsID]) VALUES (,,NULL,NULL,,);"]
[null,null,null,null,null,null,null,null,null,null,null,null,null,null,null,null,null,null,null,null,null,null,"INSERT INTO dbmanottbe.[dbo].Results_Import ([ImpSerieNum],[ImpPassage],[ImpMedalID],[ImpPoints],[ImpPointsHidden],[ImpCcrsID]) VALUES (,,NULL,NULL,,);"]
[null,null,null,null,null,null,null,null,null,null,null,null,null,null,null,null,null,null,null,null,null,null,"INSERT INTO dbmanottbe.[dbo].Results_Import ([ImpSerieNum],[ImpPassage],[ImpMedalID],[ImpPoints],[ImpPointsHidden],[ImpCcrsID]) VALUES (,,NULL,NULL,,);"]
[null,null,null,null,null,null,null,null,null,null,null,null,null,null,null,null,null,null,null,null,null,null,"INSERT INTO dbmanottbe.[dbo].Results_Import ([ImpSerieNum],[ImpPassage],[ImpMedalID],[ImpPoints],[ImpPointsHidden],[ImpCcrsID]) VALUES (,,NULL,NULL,,);"]
[null,null,null,null,null,null,null,null,null,null,null,null,null,null,null,null,null,null,null,null,null,null,"INSERT INTO dbmanottbe.[dbo].Results_Import ([ImpSerieNum],[ImpPassage],[ImpMedalID],[ImpPoints],[ImpPointsHidden],[ImpCcrsID]) VALUES (,,NULL,NULL,,);"]
[null,null,null,null,null,null,null,null,null,null,null,null,null,null,null,null,null,null,null,null,null,null,"INSERT INTO dbmanottbe.[dbo].Results_Import ([ImpSerieNum],[ImpPassage],[ImpMedalID],[ImpPoints],[ImpPointsHidden],[ImpCcrsID]) VALUES (,,NULL,NULL,,);"]
[null,null,null,null,null,null,null,null,null,null,null,null,null,null,null,null,null,null,null,null,null,null,"INSERT INTO dbmanottbe.[dbo].Results_Import ([ImpSerieNum],[ImpPassage],[ImpMedalID],[ImpPoints],[ImpPointsHidden],[ImpCcrsID]) VALUES (,,NULL,NULL,,);"]
[null,null,null,null,null,null,null,null,null,null,null,null,null,null,null,null,null,null,null,null,null,null,"INSERT INTO dbmanottbe.[dbo].Results_Import ([ImpSerieNum],[ImpPassage],[ImpMedalID],[ImpPoints],[ImpPointsHidden],[ImpCcrsID]) VALUES (,,NULL,NULL,,);"]
[null,null,null,null,null,null,null,null,null,null,null,null,null,null,null,null,null,null,null,null,null,null,"INSERT INTO dbmanottbe.[dbo].Results_Import ([ImpSerieNum],[ImpPassage],[ImpMedalID],[ImpPoints],[ImpPointsHidden],[ImpCcrsID]) VALUES (,,NULL,NULL,,);"]
[null,null,null,null,null,null,null,null,null,null,null,null,null,null,null,null,null,null,null,null,null,null,"INSERT INTO dbmanottbe.[dbo].Results_Import ([ImpSerieNum],[ImpPassage],[ImpMedalID],[ImpPoints],[ImpPointsHidden],[ImpCcrsID]) VALUES (,,NULL,NULL,,);"]
[null,null,null,null,null,null,null,null,null,null,null,null,null,null,null,null,null,null,null,null,null,null,"INSERT INTO dbmanottbe.[dbo].Results_Import ([ImpSerieNum],[ImpPassage],[ImpMedalID],[ImpPoints],[ImpPointsHidden],[ImpCcrsID]) VALUES (,,NULL,NULL,,);"]
[null,null,null,null,null,null,null,null,null,null,null,null,null,null,null,null,null,null,null,null,null,null,"INSERT INTO dbmanottbe.[dbo].Results_Import ([ImpSerieNum],[ImpPassage],[ImpMedalID],[ImpPoints],[ImpPointsHidden],[ImpCcrsID]) VALUES (,,NULL,NULL,,);"]
[null,null,null,null,null,null,null,null,null,null,null,null,null,null,null,null,null,null,null,null,null,null,"INSERT INTO dbmanottbe.[dbo].Results_Import ([ImpSerieNum],[ImpPassage],[ImpMedalID],[ImpPoints],[ImpPointsHidden],[ImpCcrsID]) VALUES (,,NULL,NULL,,);"]
[null,null,null,null,null,null,null,null,null,null,null,null,null,null,null,null,null,null,null,null,null,null,"INSERT INTO dbmanottbe.[dbo].Results_Import ([ImpSerieNum],[ImpPassage],[ImpMedalID],[ImpPoints],[ImpPointsHidden],[ImpCcrsID]) VALUES (,,NULL,NULL,,);"]
[null,null,null,null,null,null,null,null,null,null,null,null,null,null,null,null,null,null,null,null,null,null,"INSERT INTO dbmanottbe.[dbo].Results_Import ([ImpSerieNum],[ImpPassage],[ImpMedalID],[ImpPoints],[ImpPointsHidden],[ImpCcrsID]) VALUES (,,NULL,NULL,,);"]
[null,null,null,null,null,null,null,null,null,null,null,null,null,null,null,null,null,null,null,null,null,null,"INSERT INTO dbmanottbe.[dbo].Results_Import ([ImpSerieNum],[ImpPassage],[ImpMedalID],[ImpPoints],[ImpPointsHidden],[ImpCcrsID]) VALUES (,,NULL,NULL,,);"]
[null,null,null,null,null,null,null,null,null,null,null,null,null,null,null,null,null,null,null,null,null,null,"INSERT INTO dbmanottbe.[dbo].Results_Import ([ImpSerieNum],[ImpPassage],[ImpMedalID],[ImpPoints],[ImpPointsHidden],[ImpCcrsID]) VALUES (,,NULL,NULL,,);"]
[null,null,null,null,null,null,null,null,null,null,null,null,null,null,null,null,null,null,null,null,null,null,"INSERT INTO dbmanottbe.[dbo].Results_Import ([ImpSerieNum],[ImpPassage],[ImpMedalID],[ImpPoints],[ImpPointsHidden],[ImpCcrsID]) VALUES (,,NULL,NULL,,);"]
[null,null,null,null,null,null,null,null,null,null,null,null,null,null,null,null,null,null,null,null,null,null,"INSERT INTO dbmanottbe.[dbo].Results_Import ([ImpSerieNum],[ImpPassage],[ImpMedalID],[ImpPoints],[ImpPointsHidden],[ImpCcrsID]) VALUES (,,NULL,NULL,,);"]
[null,null,null,null,null,null,null,null,null,null,null,null,null,null,null,null,null,null,null,null,null,null,"INSERT INTO dbmanottbe.[dbo].Results_Import ([ImpSerieNum],[ImpPassage],[ImpMedalID],[ImpPoints],[ImpPointsHidden],[ImpCcrsID]) VALUES (,,NULL,NULL,,);"]
[null,null,null,null,null,null,null,null,null,null,null,null,null,null,null,null,null,null,null,null,null,null,"INSERT INTO dbmanottbe.[dbo].Results_Import ([ImpSerieNum],[ImpPassage],[ImpMedalID],[ImpPoints],[ImpPointsHidden],[ImpCcrsID]) VALUES (,,NULL,NULL,,);"]
[null,null,null,null,null,null,null,null,null,null,null,null,null,null,null,null,null,null,null,null,null,null,"INSERT INTO dbmanottbe.[dbo].Results_Import ([ImpSerieNum],[ImpPassage],[ImpMedalID],[ImpPoints],[ImpPointsHidden],[ImpCcrsID]) VALUES (,,NULL,NULL,,);"]
[null,null,null,null,null,null,null,null,null,null,null,null,null,null,null,null,null,null,null,null,null,null,"INSERT INTO dbmanottbe.[dbo].Results_Import ([ImpSerieNum],[ImpPassage],[ImpMedalID],[ImpPoints],[ImpPointsHidden],[ImpCcrsID]) VALUES (,,NULL,NULL,,);"]
[null,null,null,null,null,null,null,null,null,null,null,null,null,null,null,null,null,null,null,null,null,null,"INSERT INTO dbmanottbe.[dbo].Results_Import ([ImpSerieNum],[ImpPassage],[ImpMedalID],[ImpPoints],[ImpPointsHidden],[ImpCcrsID]) VALUES (,,NULL,NULL,,);"]
[null,null,null,null,null,null,null,null,null,null,null,null,null,null,null,null,null,null,null,null,null,null,"INSERT INTO dbmanottbe.[dbo].Results_Import ([ImpSerieNum],[ImpPassage],[ImpMedalID],[ImpPoints],[ImpPointsHidden],[ImpCcrsID]) VALUES (,,NULL,NULL,,);"]
[null,null,null,null,null,null,null,null,null,null,null,null,null,null,null,null,null,null,null,null,null,null,"INSERT INTO dbmanottbe.[dbo].Results_Import ([ImpSerieNum],[ImpPassage],[ImpMedalID],[ImpPoints],[ImpPointsHidden],[ImpCcrsID]) VALUES (,,NULL,NULL,,);"]
[null,null,null,null,null,null,null,null,null,null,null,null,null,null,null,null,null,null,null,null,null,null,"INSERT INTO dbmanottbe.[dbo].Results_Import ([ImpSerieNum],[ImpPassage],[ImpMedalID],[ImpPoints],[ImpPointsHidden],[ImpCcrsID]) VALUES (,,NULL,NULL,,);"]
[null,null,null,null,null,null,null,null,null,null,null,null,null,null,null,null,null,null,null,null,null,null,"INSERT INTO dbmanottbe.[dbo].Results_Import ([ImpSerieNum],[ImpPassage],[ImpMedalID],[ImpPoints],[ImpPointsHidden],[ImpCcrsID]) VALUES (,,NULL,NULL,,);"]
[null,null,null,null,null,null,null,null,null,null,null,null,null,null,null,null,null,null,null,null,null,null,"INSERT INTO dbmanottbe.[dbo].Results_Import ([ImpSerieNum],[ImpPassage],[ImpMedalID],[ImpPoints],[ImpPointsHidden],[ImpCcrsID]) VALUES (,,NULL,NULL,,);"]
[null,null,null,null,null,null,null,null,null,null,null,null,null,null,null,null,null,null,null,null,null,null,"INSERT INTO dbmanottbe.[dbo].Results_Import ([ImpSerieNum],[ImpPassage],[ImpMedalID],[ImpPoints],[ImpPointsHidden],[ImpCcrsID]) VALUES (,,NULL,NULL,,);"]
[null,null,null,null,null,null,null,null,null,null,null,null,null,null,null,null,null,null,null,null,null,null,"INSERT INTO dbmanottbe.[dbo].Results_Import ([ImpSerieNum],[ImpPassage],[ImpMedalID],[ImpPoints],[ImpPointsHidden],[ImpCcrsID]) VALUES (,,NULL,NULL,,);"]
[null,null,null,null,null,null,null,null,null,null,null,null,null,null,null,null,null,null,null,null,null,null,"INSERT INTO dbmanottbe.[dbo].Results_Import ([ImpSerieNum],[ImpPassage],[ImpMedalID],[ImpPoints],[ImpPointsHidden],[ImpCcrsID]) VALUES (,,NULL,NULL,,);"]
[null,null,null,null,null,null,null,null,null,null,null,null,null,null,null,null,null,null,null,null,null,null,"INSERT INTO dbmanottbe.[dbo].Results_Import ([ImpSerieNum],[ImpPassage],[ImpMedalID],[ImpPoints],[ImpPointsHidden],[ImpCcrsID]) VALUES (,,NULL,NULL,,);"]
[null,null,null,null,null,null,null,null,null,null,null,null,null,null,null,null,null,null,null,null,null,null,"INSERT INTO dbmanottbe.[dbo].Results_Import ([ImpSerieNum],[ImpPassage],[ImpMedalID],[ImpPoints],[ImpPointsHidden],[ImpCcrsID]) VALUES (,,NULL,NULL,,);"]
[null,null,null,null,null,null,null,null,null,null,null,null,null,null,null,null,null,null,null,null,null,null,"INSERT INTO dbmanottbe.[dbo].Results_Import ([ImpSerieNum],[ImpPassage],[ImpMedalID],[ImpPoints],[ImpPointsHidden],[ImpCcrsID]) VALUES (,,NULL,NULL,,);"]
[null,null,null,null,null,null,null,null,null,null,null,null,null,null,null,null,null,null,null,null,null,null,"INSERT INTO dbmanottbe.[dbo].Results_Import ([ImpSerieNum],[ImpPassage],[ImpMedalID],[ImpPoints],[ImpPointsHidden],[ImpCcrsID]) VALUES (,,NULL,NULL,,);"]
[null,null,null,null,null,null,null,null,null,null,null,null,null,null,null,null,null,null,null,null,null,null,"INSERT INTO dbmanottbe.[dbo].Results_Import ([ImpSerieNum],[ImpPassage],[ImpMedalID],[ImpPoints],[ImpPointsHidden],[ImpCcrsID]) VALUES (,,NULL,NULL,,);"]
[null,null,null,null,null,null,null,null,null,null,null,null,null,null,null,null,null,null,null,null,null,null,"INSERT INTO dbmanottbe.[dbo].Results_Import ([ImpSerieNum],[ImpPassage],[ImpMedalID],[ImpPoints],[ImpPointsHidden],[ImpCcrsID]) VALUES (,,NULL,NULL,,);"]
[null,null,null,null,null,null,null,null,null,null,null,null,null,null,null,null,null,null,null,null,null,null,"INSERT INTO dbmanottbe.[dbo].Results_Import ([ImpSerieNum],[ImpPassage],[ImpMedalID],[ImpPoints],[ImpPointsHidden],[ImpCcrsID]) VALUES (,,NULL,NULL,,);"]
[null,null,null,null,null,null,null,null,null,null,null,null,null,null,null,null,null,null,null,null,null,null,"INSERT INTO dbmanottbe.[dbo].Results_Import ([ImpSerieNum],[ImpPassage],[ImpMedalID],[ImpPoints],[ImpPointsHidden],[ImpCcrsID]) VALUES (,,NULL,NULL,,);"]
[null,null,null,null,null,null,null,null,null,null,null,null,null,null,null,null,null,null,null,null,null,null,"INSERT INTO dbmanottbe.[dbo].Results_Import ([ImpSerieNum],[ImpPassage],[ImpMedalID],[ImpPoints],[ImpPointsHidden],[ImpCcrsID]) VALUES (,,NULL,NULL,,);"]
[null,null,null,null,null,null,null,null,null,null,null,null,null,null,null,null,null,null,null,null,null,null,"INSERT INTO dbmanottbe.[dbo].Results_Import ([ImpSerieNum],[ImpPassage],[ImpMedalID],[ImpPoints],[ImpPointsHidden],[ImpCcrsID]) VALUES (,,NULL,NULL,,);"]
[null,null,null,null,null,null,null,null,null,null,null,null,null,null,null,null,null,null,null,null,null,null,"INSERT INTO dbmanottbe.[dbo].Results_Import ([ImpSerieNum],[ImpPassage],[ImpMedalID],[ImpPoints],[ImpPointsHidden],[ImpCcrsID]) VALUES (,,NULL,NULL,,);"]
[null,null,null,null,null,null,null,null,null,null,null,null,null,null,null,null,null,null,null,null,null,null,"INSERT INTO dbmanottbe.[dbo].Results_Import ([ImpSerieNum],[ImpPassage],[ImpMedalID],[ImpPoints],[ImpPointsHidden],[ImpCcrsID]) VALUES (,,NULL,NULL,,);"]
[null,null,null,null,null,null,null,null,null,null,null,null,null,null,null,null,null,null,null,null,null,null,"INSERT INTO dbmanottbe.[dbo].Results_Import ([ImpSerieNum],[ImpPassage],[ImpMedalID],[ImpPoints],[ImpPointsHidden],[ImpCcrsID]) VALUES (,,NULL,NULL,,);"]
[null,null,null,null,null,null,null,null,null,null,null,null,null,null,null,null,null,null,null,null,null,null,"INSERT INTO dbmanottbe.[dbo].Results_Import ([ImpSerieNum],[ImpPassage],[ImpMedalID],[ImpPoints],[ImpPointsHidden],[ImpCcrsID]) VALUES (,,NULL,NULL,,);"]
[null,null,null,null,null,null,null,null,null,null,null,null,null,null,null,null,null,null,null,null,null,null,"INSERT INTO dbmanottbe.[dbo].Results_Import ([ImpSerieNum],[ImpPassage],[ImpMedalID],[ImpPoints],[ImpPointsHidden],[ImpCcrsID]) VALUES (,,NULL,NULL,,);"]
[null,null,null,null,null,null,null,null,null,null,null,null,null,null,null,null,null,null,null,null,null,null,"INSERT INTO dbmanottbe.[dbo].Results_Import ([ImpSerieNum],[ImpPassage],[ImpMedalID],[ImpPoints],[ImpPointsHidden],[ImpCcrsID]) VALUES (,,NULL,NULL,,);"]
[null,null,null,null,null,null,null,null,null,null,null,null,null,null,null,null,null,null,null,null,null,null,{"$f":"\"INSERT INTO \"&$U$2&\" ([ImpSerieNum],[ImpPassage],[ImpMedalID],[ImpPoints],[ImpPointsHidden],[ImpCcrsID]) VALUES (\"&B1219&\",\"&C1219&\",\"&IF(D1219=\"\",\"NULL\",\"'\"&D1219&\"'\")&\",\"&IF(E1219=\"\",\"NULL\",SUBSTITUTE(E1219,\",\",\".\"))&\",\"&SUBSTITUTE(F1219,\",\",\".\")&\",\"&G1219&\");\"","v":"INSERT INTO dbmanottbe.[dbo].Results_Import ([ImpSerieNum],[ImpPassage],[ImpMedalID],[ImpPoints],[ImpPointsHidden],[ImpCcrsID]) VALUES (,,NULL,NULL,,);"}]
[null,null,null,null,null,null,null,null,null,null,null,null,null,null,null,null,null,null,null,null,null,null,"INSERT INTO dbmanottbe.[dbo].Results_Import ([ImpSerieNum],[ImpPassage],[ImpMedalID],[ImpPoints],[ImpPointsHidden],[ImpCcrsID]) VALUES (,,NULL,NULL,,);"]
[null,null,null,null,null,null,null,null,null,null,null,null,null,null,null,null,null,null,null,null,null,null,"INSERT INTO dbmanottbe.[dbo].Results_Import ([ImpSerieNum],[ImpPassage],[ImpMedalID],[ImpPoints],[ImpPointsHidden],[ImpCcrsID]) VALUES (,,NULL,NULL,,);"]
[null,null,null,null,null,null,null,null,null,null,null,null,null,null,null,null,null,null,null,null,null,null,"INSERT INTO dbmanottbe.[dbo].Results_Import ([ImpSerieNum],[ImpPassage],[ImpMedalID],[ImpPoints],[ImpPointsHidden],[ImpCcrsID]) VALUES (,,NULL,NULL,,);"]
[null,null,null,null,null,null,null,null,null,null,null,null,null,null,null,null,null,null,null,null,null,null,"INSERT INTO dbmanottbe.[dbo].Results_Import ([ImpSerieNum],[ImpPassage],[ImpMedalID],[ImpPoints],[ImpPointsHidden],[ImpCcrsID]) VALUES (,,NULL,NULL,,);"]
[null,null,null,null,null,null,null,null,null,null,null,null,null,null,null,null,null,null,null,null,null,null,"INSERT INTO dbmanottbe.[dbo].Results_Import ([ImpSerieNum],[ImpPassage],[ImpMedalID],[ImpPoints],[ImpPointsHidden],[ImpCcrsID]) VALUES (,,NULL,NULL,,);"]
[null,null,null,null,null,null,null,null,null,null,null,null,null,null,null,null,null,null,null,null,null,null,"INSERT INTO dbmanottbe.[dbo].Results_Import ([ImpSerieNum],[ImpPassage],[ImpMedalID],[ImpPoints],[ImpPointsHidden],[ImpCcrsID]) VALUES (,,NULL,NULL,,);"]
[null,null,null,null,null,null,null,null,null,null,null,null,null,null,null,null,null,null,null,null,null,null,"INSERT INTO dbmanottbe.[dbo].Results_Import ([ImpSerieNum],[ImpPassage],[ImpMedalID],[ImpPoints],[ImpPointsHidden],[ImpCcrsID]) VALUES (,,NULL,NULL,,);"]
[null,null,null,null,null,null,null,null,null,null,null,null,null,null,null,null,null,null,null,null,null,null,"INSERT INTO dbmanottbe.[dbo].Results_Import ([ImpSerieNum],[ImpPassage],[ImpMedalID],[ImpPoints],[ImpPointsHidden],[ImpCcrsID]) VALUES (,,NULL,NULL,,);"]
[null,null,null,null,null,null,null,null,null,null,null,null,null,null,null,null,null,null,null,null,null,null,"INSERT INTO dbmanottbe.[dbo].Results_Import ([ImpSerieNum],[ImpPassage],[ImpMedalID],[ImpPoints],[ImpPointsHidden],[ImpCcrsID]) VALUES (,,NULL,NULL,,);"]
[null,null,null,null,null,null,null,null,null,null,null,null,null,null,null,null,null,null,null,null,null,null,"INSERT INTO dbmanottbe.[dbo].Results_Import ([ImpSerieNum],[ImpPassage],[ImpMedalID],[ImpPoints],[ImpPointsHidden],[ImpCcrsID]) VALUES (,,NULL,NULL,,);"]
[null,null,null,null,null,null,null,null,null,null,null,null,null,null,null,null,null,null,null,null,null,null,"INSERT INTO dbmanottbe.[dbo].Results_Import ([ImpSerieNum],[ImpPassage],[ImpMedalID],[ImpPoints],[ImpPointsHidden],[ImpCcrsID]) VALUES (,,NULL,NULL,,);"]
[null,null,null,null,null,null,null,null,null,null,null,null,null,null,null,null,null,null,null,null,null,null,"INSERT INTO dbmanottbe.[dbo].Results_Import ([ImpSerieNum],[ImpPassage],[ImpMedalID],[ImpPoints],[ImpPointsHidden],[ImpCcrsID]) VALUES (,,NULL,NULL,,);"]
[null,null,null,null,null,null,null,null,null,null,null,null,null,null,null,null,null,null,null,null,null,null,"INSERT INTO dbmanottbe.[dbo].Results_Import ([ImpSerieNum],[ImpPassage],[ImpMedalID],[ImpPoints],[ImpPointsHidden],[ImpCcrsID]) VALUES (,,NULL,NULL,,);"]
[null,null,null,null,null,null,null,null,null,null,null,null,null,null,null,null,null,null,null,null,null,null,"INSERT INTO dbmanottbe.[dbo].Results_Import ([ImpSerieNum],[ImpPassage],[ImpMedalID],[ImpPoints],[ImpPointsHidden],[ImpCcrsID]) VALUES (,,NULL,NULL,,);"]
[null,null,null,null,null,null,null,null,null,null,null,null,null,null,null,null,null,null,null,null,null,null,"INSERT INTO dbmanottbe.[dbo].Results_Import ([ImpSerieNum],[ImpPassage],[ImpMedalID],[ImpPoints],[ImpPointsHidden],[ImpCcrsID]) VALUES (,,NULL,NULL,,);"]
[null,null,null,null,null,null,null,null,null,null,null,null,null,null,null,null,null,null,null,null,null,null,"INSERT INTO dbmanottbe.[dbo].Results_Import ([ImpSerieNum],[ImpPassage],[ImpMedalID],[ImpPoints],[ImpPointsHidden],[ImpCcrsID]) VALUES (,,NULL,NULL,,);"]
[null,null,null,null,null,null,null,null,null,null,null,null,null,null,null,null,null,null,null,null,null,null,"INSERT INTO dbmanottbe.[dbo].Results_Import ([ImpSerieNum],[ImpPassage],[ImpMedalID],[ImpPoints],[ImpPointsHidden],[ImpCcrsID]) VALUES (,,NULL,NULL,,);"]
[null,null,null,null,null,null,null,null,null,null,null,null,null,null,null,null,null,null,null,null,null,null,"INSERT INTO dbmanottbe.[dbo].Results_Import ([ImpSerieNum],[ImpPassage],[ImpMedalID],[ImpPoints],[ImpPointsHidden],[ImpCcrsID]) VALUES (,,NULL,NULL,,);"]
[null,null,null,null,null,null,null,null,null,null,null,null,null,null,null,null,null,null,null,null,null,null,"INSERT INTO dbmanottbe.[dbo].Results_Import ([ImpSerieNum],[ImpPassage],[ImpMedalID],[ImpPoints],[ImpPointsHidden],[ImpCcrsID]) VALUES (,,NULL,NULL,,);"]
[null,null,null,null,null,null,null,null,null,null,null,null,null,null,null,null,null,null,null,null,null,null,"INSERT INTO dbmanottbe.[dbo].Results_Import ([ImpSerieNum],[ImpPassage],[ImpMedalID],[ImpPoints],[ImpPointsHidden],[ImpCcrsID]) VALUES (,,NULL,NULL,,);"]
[null,null,null,null,null,null,null,null,null,null,null,null,null,null,null,null,null,null,null,null,null,null,"INSERT INTO dbmanottbe.[dbo].Results_Import ([ImpSerieNum],[ImpPassage],[ImpMedalID],[ImpPoints],[ImpPointsHidden],[ImpCcrsID]) VALUES (,,NULL,NULL,,);"]
[null,null,null,null,null,null,null,null,null,null,null,null,null,null,null,null,null,null,null,null,null,null,"INSERT INTO dbmanottbe.[dbo].Results_Import ([ImpSerieNum],[ImpPassage],[ImpMedalID],[ImpPoints],[ImpPointsHidden],[ImpCcrsID]) VALUES (,,NULL,NULL,,);"]
[null,null,null,null,null,null,null,null,null,null,null,null,null,null,null,null,null,null,null,null,null,null,"INSERT INTO dbmanottbe.[dbo].Results_Import ([ImpSerieNum],[ImpPassage],[ImpMedalID],[ImpPoints],[ImpPointsHidden],[ImpCcrsID]) VALUES (,,NULL,NULL,,);"]
[null,null,null,null,null,null,null,null,null,null,null,null,null,null,null,null,null,null,null,null,null,null,"INSERT INTO dbmanottbe.[dbo].Results_Import ([ImpSerieNum],[ImpPassage],[ImpMedalID],[ImpPoints],[ImpPointsHidden],[ImpCcrsID]) VALUES (,,NULL,NULL,,);"]
[null,null,null,null,null,null,null,null,null,null,null,null,null,null,null,null,null,null,null,null,null,null,"INSERT INTO dbmanottbe.[dbo].Results_Import ([ImpSerieNum],[ImpPassage],[ImpMedalID],[ImpPoints],[ImpPointsHidden],[ImpCcrsID]) VALUES (,,NULL,NULL,,);"]
[null,null,null,null,null,null,null,null,null,null,null,null,null,null,null,null,null,null,null,null,null,null,"INSERT INTO dbmanottbe.[dbo].Results_Import ([ImpSerieNum],[ImpPassage],[ImpMedalID],[ImpPoints],[ImpPointsHidden],[ImpCcrsID]) VALUES (,,NULL,NULL,,);"]
[null,null,null,null,null,null,null,null,null,null,null,null,null,null,null,null,null,null,null,null,null,null,"INSERT INTO dbmanottbe.[dbo].Results_Import ([ImpSerieNum],[ImpPassage],[ImpMedalID],[ImpPoints],[ImpPointsHidden],[ImpCcrsID]) VALUES (,,NULL,NULL,,);"]
[null,null,null,null,null,null,null,null,null,null,null,null,null,null,null,null,null,null,null,null,null,null,"INSERT INTO dbmanottbe.[dbo].Results_Import ([ImpSerieNum],[ImpPassage],[ImpMedalID],[ImpPoints],[ImpPointsHidden],[ImpCcrsID]) VALUES (,,NULL,NULL,,);"]
[null,null,null,null,null,null,null,null,null,null,null,null,null,null,null,null,null,null,null,null,null,null,"INSERT INTO dbmanottbe.[dbo].Results_Import ([ImpSerieNum],[ImpPassage],[ImpMedalID],[ImpPoints],[ImpPointsHidden],[ImpCcrsID]) VALUES (,,NULL,NULL,,);"]
[null,null,null,null,null,null,null,null,null,null,null,null,null,null,null,null,null,null,null,null,null,null,"INSERT INTO dbmanottbe.[dbo].Results_Import ([ImpSerieNum],[ImpPassage],[ImpMedalID],[ImpPoints],[ImpPointsHidden],[ImpCcrsID]) VALUES (,,NULL,NULL,,);"]
[null,null,null,null,null,null,null,null,null,null,null,null,null,null,null,null,null,null,null,null,null,null,"INSERT INTO dbmanottbe.[dbo].Results_Import ([ImpSerieNum],[ImpPassage],[ImpMedalID],[ImpPoints],[ImpPointsHidden],[ImpCcrsID]) VALUES (,,NULL,NULL,,);"]
[null,null,null,null,null,null,null,null,null,null,null,null,null,null,null,null,null,null,null,null,null,null,"INSERT INTO dbmanottbe.[dbo].Results_Import ([ImpSerieNum],[ImpPassage],[ImpMedalID],[ImpPoints],[ImpPointsHidden],[ImpCcrsID]) VALUES (,,NULL,NULL,,);"]
[null,null,null,null,null,null,null,null,null,null,null,null,null,null,null,null,null,null,null,null,null,null,"INSERT INTO dbmanottbe.[dbo].Results_Import ([ImpSerieNum],[ImpPassage],[ImpMedalID],[ImpPoints],[ImpPointsHidden],[ImpCcrsID]) VALUES (,,NULL,NULL,,);"]
[null,null,null,null,null,null,null,null,null,null,null,null,null,null,null,null,null,null,null,null,null,null,"INSERT INTO dbmanottbe.[dbo].Results_Import ([ImpSerieNum],[ImpPassage],[ImpMedalID],[ImpPoints],[ImpPointsHidden],[ImpCcrsID]) VALUES (,,NULL,NULL,,);"]
[null,null,null,null,null,null,null,null,null,null,null,null,null,null,null,null,null,null,null,null,null,null,"INSERT INTO dbmanottbe.[dbo].Results_Import ([ImpSerieNum],[ImpPassage],[ImpMedalID],[ImpPoints],[ImpPointsHidden],[ImpCcrsID]) VALUES (,,NULL,NULL,,);"]
[null,null,null,null,null,null,null,null,null,null,null,null,null,null,null,null,null,null,null,null,null,null,"INSERT INTO dbmanottbe.[dbo].Results_Import ([ImpSerieNum],[ImpPassage],[ImpMedalID],[ImpPoints],[ImpPointsHidden],[ImpCcrsID]) VALUES (,,NULL,NULL,,);"]
[null,null,null,null,null,null,null,null,null,null,null,null,null,null,null,null,null,null,null,null,null,null,"INSERT INTO dbmanottbe.[dbo].Results_Import ([ImpSerieNum],[ImpPassage],[ImpMedalID],[ImpPoints],[ImpPointsHidden],[ImpCcrsID]) VALUES (,,NULL,NULL,,);"]
[null,null,null,null,null,null,null,null,null,null,null,null,null,null,null,null,null,null,null,null,null,null,"INSERT INTO dbmanottbe.[dbo].Results_Import ([ImpSerieNum],[ImpPassage],[ImpMedalID],[ImpPoints],[ImpPointsHidden],[ImpCcrsID]) VALUES (,,NULL,NULL,,);"]
[null,null,null,null,null,null,null,null,null,null,null,null,null,null,null,null,null,null,null,null,null,null,"INSERT INTO dbmanottbe.[dbo].Results_Import ([ImpSerieNum],[ImpPassage],[ImpMedalID],[ImpPoints],[ImpPointsHidden],[ImpCcrsID]) VALUES (,,NULL,NULL,,);"]
[null,null,null,null,null,null,null,null,null,null,null,null,null,null,null,null,null,null,null,null,null,null,"INSERT INTO dbmanottbe.[dbo].Results_Import ([ImpSerieNum],[ImpPassage],[ImpMedalID],[ImpPoints],[ImpPointsHidden],[ImpCcrsID]) VALUES (,,NULL,NULL,,);"]
[null,null,null,null,null,null,null,null,null,null,null,null,null,null,null,null,null,null,null,null,null,null,"INSERT INTO dbmanottbe.[dbo].Results_Import ([ImpSerieNum],[ImpPassage],[ImpMedalID],[ImpPoints],[ImpPointsHidden],[ImpCcrsID]) VALUES (,,NULL,NULL,,);"]
[null,null,null,null,null,null,null,null,null,null,null,null,null,null,null,null,null,null,null,null,null,null,"INSERT INTO dbmanottbe.[dbo].Results_Import ([ImpSerieNum],[ImpPassage],[ImpMedalID],[ImpPoints],[ImpPointsHidden],[ImpCcrsID]) VALUES (,,NULL,NULL,,);"]
[null,null,null,null,null,null,null,null,null,null,null,null,null,null,null,null,null,null,null,null,null,null,"INSERT INTO dbmanottbe.[dbo].Results_Import ([ImpSerieNum],[ImpPassage],[ImpMedalID],[ImpPoints],[ImpPointsHidden],[ImpCcrsID]) VALUES (,,NULL,NULL,,);"]
[null,null,null,null,null,null,null,null,null,null,null,null,null,null,null,null,null,null,null,null,null,null,"INSERT INTO dbmanottbe.[dbo].Results_Import ([ImpSerieNum],[ImpPassage],[ImpMedalID],[ImpPoints],[ImpPointsHidden],[ImpCcrsID]) VALUES (,,NULL,NULL,,);"]
[null,null,null,null,null,null,null,null,null,null,null,null,null,null,null,null,null,null,null,null,null,null,"INSERT INTO dbmanottbe.[dbo].Results_Import ([ImpSerieNum],[ImpPassage],[ImpMedalID],[ImpPoints],[ImpPointsHidden],[ImpCcrsID]) VALUES (,,NULL,NULL,,);"]
[null,null,null,null,null,null,null,null,null,null,null,null,null,null,null,null,null,null,null,null,null,null,"INSERT INTO dbmanottbe.[dbo].Results_Import ([ImpSerieNum],[ImpPassage],[ImpMedalID],[ImpPoints],[ImpPointsHidden],[ImpCcrsID]) VALUES (,,NULL,NULL,,);"]
[null,null,null,null,null,null,null,null,null,null,null,null,null,null,null,null,null,null,null,null,null,null,"INSERT INTO dbmanottbe.[dbo].Results_Import ([ImpSerieNum],[ImpPassage],[ImpMedalID],[ImpPoints],[ImpPointsHidden],[ImpCcrsID]) VALUES (,,NULL,NULL,,);"]
[null,null,null,null,null,null,null,null,null,null,null,null,null,null,null,null,null,null,null,null,null,null,"INSERT INTO dbmanottbe.[dbo].Results_Import ([ImpSerieNum],[ImpPassage],[ImpMedalID],[ImpPoints],[ImpPointsHidden],[ImpCcrsID]) VALUES (,,NULL,NULL,,);"]
[null,null,null,null,null,null,null,null,null,null,null,null,null,null,null,null,null,null,null,null,null,null,"INSERT INTO dbmanottbe.[dbo].Results_Import ([ImpSerieNum],[ImpPassage],[ImpMedalID],[ImpPoints],[ImpPointsHidden],[ImpCcrsID]) VALUES (,,NULL,NULL,,);"]
[null,null,null,null,null,null,null,null,null,null,null,null,null,null,null,null,null,null,null,null,null,null,"INSERT INTO dbmanottbe.[dbo].Results_Import ([ImpSerieNum],[ImpPassage],[ImpMedalID],[ImpPoints],[ImpPointsHidden],[ImpCcrsID]) VALUES (,,NULL,NULL,,);"]
[null,null,null,null,null,null,null,null,null,null,null,null,null,null,null,null,null,null,null,null,null,null,"INSERT INTO dbmanottbe.[dbo].Results_Import ([ImpSerieNum],[ImpPassage],[ImpMedalID],[ImpPoints],[ImpPointsHidden],[ImpCcrsID]) VALUES (,,NULL,NULL,,);"]
[null,null,null,null,null,null,null,null,null,null,null,null,null,null,null,null,null,null,null,null,null,null,"INSERT INTO dbmanottbe.[dbo].Results_Import ([ImpSerieNum],[ImpPassage],[ImpMedalID],[ImpPoints],[ImpPointsHidden],[ImpCcrsID]) VALUES (,,NULL,NULL,,);"]
[null,null,null,null,null,null,null,null,null,null,null,null,null,null,null,null,null,null,null,null,null,null,"INSERT INTO dbmanottbe.[dbo].Results_Import ([ImpSerieNum],[ImpPassage],[ImpMedalID],[ImpPoints],[ImpPointsHidden],[ImpCcrsID]) VALUES (,,NULL,NULL,,);"]
[null,null,null,null,null,null,null,null,null,null,null,null,null,null,null,null,null,null,null,null,null,null,"INSERT INTO dbmanottbe.[dbo].Results_Import ([ImpSerieNum],[ImpPassage],[ImpMedalID],[ImpPoints],[ImpPointsHidden],[ImpCcrsID]) VALUES (,,NULL,NULL,,);"]
[null,null,null,null,null,null,null,null,null,null,null,null,null,null,null,null,null,null,null,null,null,null,"INSERT INTO dbmanottbe.[dbo].Results_Import ([ImpSerieNum],[ImpPassage],[ImpMedalID],[ImpPoints],[ImpPointsHidden],[ImpCcrsID]) VALUES (,,NULL,NULL,,);"]
[null,null,null,null,null,null,null,null,null,null,null,null,null,null,null,null,null,null,null,null,null,null,"INSERT INTO dbmanottbe.[dbo].Results_Import ([ImpSerieNum],[ImpPassage],[ImpMedalID],[ImpPoints],[ImpPointsHidden],[ImpCcrsID]) VALUES (,,NULL,NULL,,);"]
[null,null,null,null,null,null,null,null,null,null,null,null,null,null,null,null,null,null,null,null,null,null,"INSERT INTO dbmanottbe.[dbo].Results_Import ([ImpSerieNum],[ImpPassage],[ImpMedalID],[ImpPoints],[ImpPointsHidden],[ImpCcrsID]) VALUES (,,NULL,NULL,,);"]
[null,null,null,null,null,null,null,null,null,null,null,null,null,null,null,null,null,null,null,null,null,null,"INSERT INTO dbmanottbe.[dbo].Results_Import ([ImpSerieNum],[ImpPassage],[ImpMedalID],[ImpPoints],[ImpPointsHidden],[ImpCcrsID]) VALUES (,,NULL,NULL,,);"]
[null,null,null,null,null,null,null,null,null,null,null,null,null,null,null,null,null,null,null,null,null,null,"INSERT INTO dbmanottbe.[dbo].Results_Import ([ImpSerieNum],[ImpPassage],[ImpMedalID],[ImpPoints],[ImpPointsHidden],[ImpCcrsID]) VALUES (,,NULL,NULL,,);"]
[null,null,null,null,null,null,null,null,null,null,null,null,null,null,null,null,null,null,null,null,null,null,"INSERT INTO dbmanottbe.[dbo].Results_Import ([ImpSerieNum],[ImpPassage],[ImpMedalID],[ImpPoints],[ImpPointsHidden],[ImpCcrsID]) VALUES (,,NULL,NULL,,);"]
[null,null,null,null,null,null,null,null,null,null,null,null,null,null,null,null,null,null,null,null,null,null,"INSERT INTO dbmanottbe.[dbo].Results_Import ([ImpSerieNum],[ImpPassage],[ImpMedalID],[ImpPoints],[ImpPointsHidden],[ImpCcrsID]) VALUES (,,NULL,NULL,,);"]
[null,null,null,null,null,null,null,null,null,null,null,null,null,null,null,null,null,null,null,null,null,null,"INSERT INTO dbmanottbe.[dbo].Results_Import ([ImpSerieNum],[ImpPassage],[ImpMedalID],[ImpPoints],[ImpPointsHidden],[ImpCcrsID]) VALUES (,,NULL,NULL,,);"]
[null,null,null,null,null,null,null,null,null,null,null,null,null,null,null,null,null,null,null,null,null,null,"INSERT INTO dbmanottbe.[dbo].Results_Import ([ImpSerieNum],[ImpPassage],[ImpMedalID],[ImpPoints],[ImpPointsHidden],[ImpCcrsID]) VALUES (,,NULL,NULL,,);"]
[null,null,null,null,null,null,null,null,null,null,null,null,null,null,null,null,null,null,null,null,null,null,{"$f":"\"INSERT INTO \"&$U$2&\" ([ImpSerieNum],[ImpPassage],[ImpMedalID],[ImpPoints],[ImpPointsHidden],[ImpCcrsID]) VALUES (\"&B1283&\",\"&C1283&\",\"&IF(D1283=\"\",\"NULL\",\"'\"&D1283&\"'\")&\",\"&IF(E1283=\"\",\"NULL\",SUBSTITUTE(E1283,\",\",\".\"))&\",\"&SUBSTITUTE(F1283,\",\",\".\")&\",\"&G1283&\");\"","v":"INSERT INTO dbmanottbe.[dbo].Results_Import ([ImpSerieNum],[ImpPassage],[ImpMedalID],[ImpPoints],[ImpPointsHidden],[ImpCcrsID]) VALUES (,,NULL,NULL,,);"}]
[null,null,null,null,null,null,null,null,null,null,null,null,null,null,null,null,null,null,null,null,null,null,"INSERT INTO dbmanottbe.[dbo].Results_Import ([ImpSerieNum],[ImpPassage],[ImpMedalID],[ImpPoints],[ImpPointsHidden],[ImpCcrsID]) VALUES (,,NULL,NULL,,);"]
[null,null,null,null,null,null,null,null,null,null,null,null,null,null,null,null,null,null,null,null,null,null,"INSERT INTO dbmanottbe.[dbo].Results_Import ([ImpSerieNum],[ImpPassage],[ImpMedalID],[ImpPoints],[ImpPointsHidden],[ImpCcrsID]) VALUES (,,NULL,NULL,,);"]
[null,null,null,null,null,null,null,null,null,null,null,null,null,null,null,null,null,null,null,null,null,null,"INSERT INTO dbmanottbe.[dbo].Results_Import ([ImpSerieNum],[ImpPassage],[ImpMedalID],[ImpPoints],[ImpPointsHidden],[ImpCcrsID]) VALUES (,,NULL,NULL,,);"]
[null,null,null,null,null,null,null,null,null,null,null,null,null,null,null,null,null,null,null,null,null,null,"INSERT INTO dbmanottbe.[dbo].Results_Import ([ImpSerieNum],[ImpPassage],[ImpMedalID],[ImpPoints],[ImpPointsHidden],[ImpCcrsID]) VALUES (,,NULL,NULL,,);"]
[null,null,null,null,null,null,null,null,null,null,null,null,null,null,null,null,null,null,null,null,null,null,"INSERT INTO dbmanottbe.[dbo].Results_Import ([ImpSerieNum],[ImpPassage],[ImpMedalID],[ImpPoints],[ImpPointsHidden],[ImpCcrsID]) VALUES (,,NULL,NULL,,);"]
[null,null,null,null,null,null,null,null,null,null,null,null,null,null,null,null,null,null,null,null,null,null,"INSERT INTO dbmanottbe.[dbo].Results_Import ([ImpSerieNum],[ImpPassage],[ImpMedalID],[ImpPoints],[ImpPointsHidden],[ImpCcrsID]) VALUES (,,NULL,NULL,,);"]
[null,null,null,null,null,null,null,null,null,null,null,null,null,null,null,null,null,null,null,null,null,null,"INSERT INTO dbmanottbe.[dbo].Results_Import ([ImpSerieNum],[ImpPassage],[ImpMedalID],[ImpPoints],[ImpPointsHidden],[ImpCcrsID]) VALUES (,,NULL,NULL,,);"]
[null,null,null,null,null,null,null,null,null,null,null,null,null,null,null,null,null,null,null,null,null,null,"INSERT INTO dbmanottbe.[dbo].Results_Import ([ImpSerieNum],[ImpPassage],[ImpMedalID],[ImpPoints],[ImpPointsHidden],[ImpCcrsID]) VALUES (,,NULL,NULL,,);"]
[null,null,null,null,null,null,null,null,null,null,null,null,null,null,null,null,null,null,null,null,null,null,"INSERT INTO dbmanottbe.[dbo].Results_Import ([ImpSerieNum],[ImpPassage],[ImpMedalID],[ImpPoints],[ImpPointsHidden],[ImpCcrsID]) VALUES (,,NULL,NULL,,);"]
[null,null,null,null,null,null,null,null,null,null,null,null,null,null,null,null,null,null,null,null,null,null,"INSERT INTO dbmanottbe.[dbo].Results_Import ([ImpSerieNum],[ImpPassage],[ImpMedalID],[ImpPoints],[ImpPointsHidden],[ImpCcrsID]) VALUES (,,NULL,NULL,,);"]
[null,null,null,null,null,null,null,null,null,null,null,null,null,null,null,null,null,null,null,null,null,null,"INSERT INTO dbmanottbe.[dbo].Results_Import ([ImpSerieNum],[ImpPassage],[ImpMedalID],[ImpPoints],[ImpPointsHidden],[ImpCcrsID]) VALUES (,,NULL,NULL,,);"]
[null,null,null,null,null,null,null,null,null,null,null,null,null,null,null,null,null,null,null,null,null,null,"INSERT INTO dbmanottbe.[dbo].Results_Import ([ImpSerieNum],[ImpPassage],[ImpMedalID],[ImpPoints],[ImpPointsHidden],[ImpCcrsID]) VALUES (,,NULL,NULL,,);"]
[null,null,null,null,null,null,null,null,null,null,null,null,null,null,null,null,null,null,null,null,null,null,"INSERT INTO dbmanottbe.[dbo].Results_Import ([ImpSerieNum],[ImpPassage],[ImpMedalID],[ImpPoints],[ImpPointsHidden],[ImpCcrsID]) VALUES (,,NULL,NULL,,);"]
[null,null,null,null,null,null,null,null,null,null,null,null,null,null,null,null,null,null,null,null,null,null,"INSERT INTO dbmanottbe.[dbo].Results_Import ([ImpSerieNum],[ImpPassage],[ImpMedalID],[ImpPoints],[ImpPointsHidden],[ImpCcrsID]) VALUES (,,NULL,NULL,,);"]
[null,null,null,null,null,null,null,null,null,null,null,null,null,null,null,null,null,null,null,null,null,null,"INSERT INTO dbmanottbe.[dbo].Results_Import ([ImpSerieNum],[ImpPassage],[ImpMedalID],[ImpPoints],[ImpPointsHidden],[ImpCcrsID]) VALUES (,,NULL,NULL,,);"]
[null,null,null,null,null,null,null,null,null,null,null,null,null,null,null,null,null,null,null,null,null,null,"INSERT INTO dbmanottbe.[dbo].Results_Import ([ImpSerieNum],[ImpPassage],[ImpMedalID],[ImpPoints],[ImpPointsHidden],[ImpCcrsID]) VALUES (,,NULL,NULL,,);"]
[null,null,null,null,null,null,null,null,null,null,null,null,null,null,null,null,null,null,null,null,null,null,"INSERT INTO dbmanottbe.[dbo].Results_Import ([ImpSerieNum],[ImpPassage],[ImpMedalID],[ImpPoints],[ImpPointsHidden],[ImpCcrsID]) VALUES (,,NULL,NULL,,);"]
[null,null,null,null,null,null,null,null,null,null,null,null,null,null,null,null,null,null,null,null,null,null,"INSERT INTO dbmanottbe.[dbo].Results_Import ([ImpSerieNum],[ImpPassage],[ImpMedalID],[ImpPoints],[ImpPointsHidden],[ImpCcrsID]) VALUES (,,NULL,NULL,,);"]
[null,null,null,null,null,null,null,null,null,null,null,null,null,null,null,null,null,null,null,null,null,null,"INSERT INTO dbmanottbe.[dbo].Results_Import ([ImpSerieNum],[ImpPassage],[ImpMedalID],[ImpPoints],[ImpPointsHidden],[ImpCcrsID]) VALUES (,,NULL,NULL,,);"]
[null,null,null,null,null,null,null,null,null,null,null,null,null,null,null,null,null,null,null,null,null,null,"INSERT INTO dbmanottbe.[dbo].Results_Import ([ImpSerieNum],[ImpPassage],[ImpMedalID],[ImpPoints],[ImpPointsHidden],[ImpCcrsID]) VALUES (,,NULL,NULL,,);"]
[null,null,null,null,null,null,null,null,null,null,null,null,null,null,null,null,null,null,null,null,null,null,"INSERT INTO dbmanottbe.[dbo].Results_Import ([ImpSerieNum],[ImpPassage],[ImpMedalID],[ImpPoints],[ImpPointsHidden],[ImpCcrsID]) VALUES (,,NULL,NULL,,);"]
[null,null,null,null,null,null,null,null,null,null,null,null,null,null,null,null,null,null,null,null,null,null,"INSERT INTO dbmanottbe.[dbo].Results_Import ([ImpSerieNum],[ImpPassage],[ImpMedalID],[ImpPoints],[ImpPointsHidden],[ImpCcrsID]) VALUES (,,NULL,NULL,,);"]
[null,null,null,null,null,null,null,null,null,null,null,null,null,null,null,null,null,null,null,null,null,null,"INSERT INTO dbmanottbe.[dbo].Results_Import ([ImpSerieNum],[ImpPassage],[ImpMedalID],[ImpPoints],[ImpPointsHidden],[ImpCcrsID]) VALUES (,,NULL,NULL,,);"]
[null,null,null,null,null,null,null,null,null,null,null,null,null,null,null,null,null,null,null,null,null,null,"INSERT INTO dbmanottbe.[dbo].Results_Import ([ImpSerieNum],[ImpPassage],[ImpMedalID],[ImpPoints],[ImpPointsHidden],[ImpCcrsID]) VALUES (,,NULL,NULL,,);"]
[null,null,null,null,null,null,null,null,null,null,null,null,null,null,null,null,null,null,null,null,null,null,"INSERT INTO dbmanottbe.[dbo].Results_Import ([ImpSerieNum],[ImpPassage],[ImpMedalID],[ImpPoints],[ImpPointsHidden],[ImpCcrsID]) VALUES (,,NULL,NULL,,);"]
[null,null,null,null,null,null,null,null,null,null,null,null,null,null,null,null,null,null,null,null,null,null,"INSERT INTO dbmanottbe.[dbo].Results_Import ([ImpSerieNum],[ImpPassage],[ImpMedalID],[ImpPoints],[ImpPointsHidden],[ImpCcrsID]) VALUES (,,NULL,NULL,,);"]
[null,null,null,null,null,null,null,null,null,null,null,null,null,null,null,null,null,null,null,null,null,null,"INSERT INTO dbmanottbe.[dbo].Results_Import ([ImpSerieNum],[ImpPassage],[ImpMedalID],[ImpPoints],[ImpPointsHidden],[ImpCcrsID]) VALUES (,,NULL,NULL,,);"]
[null,null,null,null,null,null,null,null,null,null,null,null,null,null,null,null,null,null,null,null,null,null,"INSERT INTO dbmanottbe.[dbo].Results_Import ([ImpSerieNum],[ImpPassage],[ImpMedalID],[ImpPoints],[ImpPointsHidden],[ImpCcrsID]) VALUES (,,NULL,NULL,,);"]
[null,null,null,null,null,null,null,null,null,null,null,null,null,null,null,null,null,null,null,null,null,null,"INSERT INTO dbmanottbe.[dbo].Results_Import ([ImpSerieNum],[ImpPassage],[ImpMedalID],[ImpPoints],[ImpPointsHidden],[ImpCcrsID]) VALUES (,,NULL,NULL,,);"]
[null,null,null,null,null,null,null,null,null,null,null,null,null,null,null,null,null,null,null,null,null,null,"INSERT INTO dbmanottbe.[dbo].Results_Import ([ImpSerieNum],[ImpPassage],[ImpMedalID],[ImpPoints],[ImpPointsHidden],[ImpCcrsID]) VALUES (,,NULL,NULL,,);"]
[null,null,null,null,null,null,null,null,null,null,null,null,null,null,null,null,null,null,null,null,null,null,"INSERT INTO dbmanottbe.[dbo].Results_Import ([ImpSerieNum],[ImpPassage],[ImpMedalID],[ImpPoints],[ImpPointsHidden],[ImpCcrsID]) VALUES (,,NULL,NULL,,);"]
[null,null,null,null,null,null,null,null,null,null,null,null,null,null,null,null,null,null,null,null,null,null,"INSERT INTO dbmanottbe.[dbo].Results_Import ([ImpSerieNum],[ImpPassage],[ImpMedalID],[ImpPoints],[ImpPointsHidden],[ImpCcrsID]) VALUES (,,NULL,NULL,,);"]
[null,null,null,null,null,null,null,null,null,null,null,null,null,null,null,null,null,null,null,null,null,null,"INSERT INTO dbmanottbe.[dbo].Results_Import ([ImpSerieNum],[ImpPassage],[ImpMedalID],[ImpPoints],[ImpPointsHidden],[ImpCcrsID]) VALUES (,,NULL,NULL,,);"]
[null,null,null,null,null,null,null,null,null,null,null,null,null,null,null,null,null,null,null,null,null,null,"INSERT INTO dbmanottbe.[dbo].Results_Import ([ImpSerieNum],[ImpPassage],[ImpMedalID],[ImpPoints],[ImpPointsHidden],[ImpCcrsID]) VALUES (,,NULL,NULL,,);"]
[null,null,null,null,null,null,null,null,null,null,null,null,null,null,null,null,null,null,null,null,null,null,"INSERT INTO dbmanottbe.[dbo].Results_Import ([ImpSerieNum],[ImpPassage],[ImpMedalID],[ImpPoints],[ImpPointsHidden],[ImpCcrsID]) VALUES (,,NULL,NULL,,);"]
[null,null,null,null,null,null,null,null,null,null,null,null,null,null,null,null,null,null,null,null,null,null,"INSERT INTO dbmanottbe.[dbo].Results_Import ([ImpSerieNum],[ImpPassage],[ImpMedalID],[ImpPoints],[ImpPointsHidden],[ImpCcrsID]) VALUES (,,NULL,NULL,,);"]
[null,null,null,null,null,null,null,null,null,null,null,null,null,null,null,null,null,null,null,null,null,null,"INSERT INTO dbmanottbe.[dbo].Results_Import ([ImpSerieNum],[ImpPassage],[ImpMedalID],[ImpPoints],[ImpPointsHidden],[ImpCcrsID]) VALUES (,,NULL,NULL,,);"]
[null,null,null,null,null,null,null,null,null,null,null,null,null,null,null,null,null,null,null,null,null,null,"INSERT INTO dbmanottbe.[dbo].Results_Import ([ImpSerieNum],[ImpPassage],[ImpMedalID],[ImpPoints],[ImpPointsHidden],[ImpCcrsID]) VALUES (,,NULL,NULL,,);"]
[null,null,null,null,null,null,null,null,null,null,null,null,null,null,null,null,null,null,null,null,null,null,"INSERT INTO dbmanottbe.[dbo].Results_Import ([ImpSerieNum],[ImpPassage],[ImpMedalID],[ImpPoints],[ImpPointsHidden],[ImpCcrsID]) VALUES (,,NULL,NULL,,);"]
[null,null,null,null,null,null,null,null,null,null,null,null,null,null,null,null,null,null,null,null,null,null,"INSERT INTO dbmanottbe.[dbo].Results_Import ([ImpSerieNum],[ImpPassage],[ImpMedalID],[ImpPoints],[ImpPointsHidden],[ImpCcrsID]) VALUES (,,NULL,NULL,,);"]
[null,null,null,null,null,null,null,null,null,null,null,null,null,null,null,null,null,null,null,null,null,null,"INSERT INTO dbmanottbe.[dbo].Results_Import ([ImpSerieNum],[ImpPassage],[ImpMedalID],[ImpPoints],[ImpPointsHidden],[ImpCcrsID]) VALUES (,,NULL,NULL,,);"]
[null,null,null,null,null,null,null,null,null,null,null,null,null,null,null,null,null,null,null,null,null,null,"INSERT INTO dbmanottbe.[dbo].Results_Import ([ImpSerieNum],[ImpPassage],[ImpMedalID],[ImpPoints],[ImpPointsHidden],[ImpCcrsID]) VALUES (,,NULL,NULL,,);"]
[null,null,null,null,null,null,null,null,null,null,null,null,null,null,null,null,null,null,null,null,null,null,"INSERT INTO dbmanottbe.[dbo].Results_Import ([ImpSerieNum],[ImpPassage],[ImpMedalID],[ImpPoints],[ImpPointsHidden],[ImpCcrsID]) VALUES (,,NULL,NULL,,);"]
[null,null,null,null,null,null,null,null,null,null,null,null,null,null,null,null,null,null,null,null,null,null,"INSERT INTO dbmanottbe.[dbo].Results_Import ([ImpSerieNum],[ImpPassage],[ImpMedalID],[ImpPoints],[ImpPointsHidden],[ImpCcrsID]) VALUES (,,NULL,NULL,,);"]
[null,null,null,null,null,null,null,null,null,null,null,null,null,null,null,null,null,null,null,null,null,null,"INSERT INTO dbmanottbe.[dbo].Results_Import ([ImpSerieNum],[ImpPassage],[ImpMedalID],[ImpPoints],[ImpPointsHidden],[ImpCcrsID]) VALUES (,,NULL,NULL,,);"]
[null,null,null,null,null,null,null,null,null,null,null,null,null,null,null,null,null,null,null,null,null,null,"INSERT INTO dbmanottbe.[dbo].Results_Import ([ImpSerieNum],[ImpPassage],[ImpMedalID],[ImpPoints],[ImpPointsHidden],[ImpCcrsID]) VALUES (,,NULL,NULL,,);"]
[null,null,null,null,null,null,null,null,null,null,null,null,null,null,null,null,null,null,null,null,null,null,"INSERT INTO dbmanottbe.[dbo].Results_Import ([ImpSerieNum],[ImpPassage],[ImpMedalID],[ImpPoints],[ImpPointsHidden],[ImpCcrsID]) VALUES (,,NULL,NULL,,);"]
[null,null,null,null,null,null,null,null,null,null,null,null,null,null,null,null,null,null,null,null,null,null,"INSERT INTO dbmanottbe.[dbo].Results_Import ([ImpSerieNum],[ImpPassage],[ImpMedalID],[ImpPoints],[ImpPointsHidden],[ImpCcrsID]) VALUES (,,NULL,NULL,,);"]
[null,null,null,null,null,null,null,null,null,null,null,null,null,null,null,null,null,null,null,null,null,null,"INSERT INTO dbmanottbe.[dbo].Results_Import ([ImpSerieNum],[ImpPassage],[ImpMedalID],[ImpPoints],[ImpPointsHidden],[ImpCcrsID]) VALUES (,,NULL,NULL,,);"]
[null,null,null,null,null,null,null,null,null,null,null,null,null,null,null,null,null,null,null,null,null,null,"INSERT INTO dbmanottbe.[dbo].Results_Import ([ImpSerieNum],[ImpPassage],[ImpMedalID],[ImpPoints],[ImpPointsHidden],[ImpCcrsID]) VALUES (,,NULL,NULL,,);"]
[null,null,null,null,null,null,null,null,null,null,null,null,null,null,null,null,null,null,null,null,null,null,"INSERT INTO dbmanottbe.[dbo].Results_Import ([ImpSerieNum],[ImpPassage],[ImpMedalID],[ImpPoints],[ImpPointsHidden],[ImpCcrsID]) VALUES (,,NULL,NULL,,);"]
[null,null,null,null,null,null,null,null,null,null,null,null,null,null,null,null,null,null,null,null,null,null,"INSERT INTO dbmanottbe.[dbo].Results_Import ([ImpSerieNum],[ImpPassage],[ImpMedalID],[ImpPoints],[ImpPointsHidden],[ImpCcrsID]) VALUES (,,NULL,NULL,,);"]
[null,null,null,null,null,null,null,null,null,null,null,null,null,null,null,null,null,null,null,null,null,null,"INSERT INTO dbmanottbe.[dbo].Results_Import ([ImpSerieNum],[ImpPassage],[ImpMedalID],[ImpPoints],[ImpPointsHidden],[ImpCcrsID]) VALUES (,,NULL,NULL,,);"]
[null,null,null,null,null,null,null,null,null,null,null,null,null,null,null,null,null,null,null,null,null,null,"INSERT INTO dbmanottbe.[dbo].Results_Import ([ImpSerieNum],[ImpPassage],[ImpMedalID],[ImpPoints],[ImpPointsHidden],[ImpCcrsID]) VALUES (,,NULL,NULL,,);"]
[null,null,null,null,null,null,null,null,null,null,null,null,null,null,null,null,null,null,null,null,null,null,"INSERT INTO dbmanottbe.[dbo].Results_Import ([ImpSerieNum],[ImpPassage],[ImpMedalID],[ImpPoints],[ImpPointsHidden],[ImpCcrsID]) VALUES (,,NULL,NULL,,);"]
[null,null,null,null,null,null,null,null,null,null,null,null,null,null,null,null,null,null,null,null,null,null,"INSERT INTO dbmanottbe.[dbo].Results_Import ([ImpSerieNum],[ImpPassage],[ImpMedalID],[ImpPoints],[ImpPointsHidden],[ImpCcrsID]) VALUES (,,NULL,NULL,,);"]
[null,null,null,null,null,null,null,null,null,null,null,null,null,null,null,null,null,null,null,null,null,null,"INSERT INTO dbmanottbe.[dbo].Results_Import ([ImpSerieNum],[ImpPassage],[ImpMedalID],[ImpPoints],[ImpPointsHidden],[ImpCcrsID]) VALUES (,,NULL,NULL,,);"]
[null,null,null,null,null,null,null,null,null,null,null,null,null,null,null,null,null,null,null,null,null,null,"INSERT INTO dbmanottbe.[dbo].Results_Import ([ImpSerieNum],[ImpPassage],[ImpMedalID],[ImpPoints],[ImpPointsHidden],[ImpCcrsID]) VALUES (,,NULL,NULL,,);"]
[null,null,null,null,null,null,null,null,null,null,null,null,null,null,null,null,null,null,null,null,null,null,"INSERT INTO dbmanottbe.[dbo].Results_Import ([ImpSerieNum],[ImpPassage],[ImpMedalID],[ImpPoints],[ImpPointsHidden],[ImpCcrsID]) VALUES (,,NULL,NULL,,);"]
[null,null,null,null,null,null,null,null,null,null,null,null,null,null,null,null,null,null,null,null,null,null,"INSERT INTO dbmanottbe.[dbo].Results_Import ([ImpSerieNum],[ImpPassage],[ImpMedalID],[ImpPoints],[ImpPointsHidden],[ImpCcrsID]) VALUES (,,NULL,NULL,,);"]
[null,null,null,null,null,null,null,null,null,null,null,null,null,null,null,null,null,null,null,null,null,null,"INSERT INTO dbmanottbe.[dbo].Results_Import ([ImpSerieNum],[ImpPassage],[ImpMedalID],[ImpPoints],[ImpPointsHidden],[ImpCcrsID]) VALUES (,,NULL,NULL,,);"]
[null,null,null,null,null,null,null,null,null,null,null,null,null,null,null,null,null,null,null,null,null,null,"INSERT INTO dbmanottbe.[dbo].Results_Import ([ImpSerieNum],[ImpPassage],[ImpMedalID],[ImpPoints],[ImpPointsHidden],[ImpCcrsID]) VALUES (,,NULL,NULL,,);"]
[null,null,null,null,null,null,null,null,null,null,null,null,null,null,null,null,null,null,null,null,null,null,"INSERT INTO dbmanottbe.[dbo].Results_Import ([ImpSerieNum],[ImpPassage],[ImpMedalID],[ImpPoints],[ImpPointsHidden],[ImpCcrsID]) VALUES (,,NULL,NULL,,);"]
[null,null,null,null,null,null,null,null,null,null,null,null,null,null,null,null,null,null,null,null,null,null,{"$f":"\"INSERT INTO \"&$U$2&\" ([ImpSerieNum],[ImpPassage],[ImpMedalID],[ImpPoints],[ImpPointsHidden],[ImpCcrsID]) VALUES (\"&B1347&\",\"&C1347&\",\"&IF(D1347=\"\",\"NULL\",\"'\"&D1347&\"'\")&\",\"&IF(E1347=\"\",\"NULL\",SUBSTITUTE(E1347,\",\",\".\"))&\",\"&SUBSTITUTE(F1347,\",\",\".\")&\",\"&G1347&\");\"","v":"INSERT INTO dbmanottbe.[dbo].Results_Import ([ImpSerieNum],[ImpPassage],[ImpMedalID],[ImpPoints],[ImpPointsHidden],[ImpCcrsID]) VALUES (,,NULL,NULL,,);"}]
[null,null,null,null,null,null,null,null,null,null,null,null,null,null,null,null,null,null,null,null,null,null,"INSERT INTO dbmanottbe.[dbo].Results_Import ([ImpSerieNum],[ImpPassage],[ImpMedalID],[ImpPoints],[ImpPointsHidden],[ImpCcrsID]) VALUES (,,NULL,NULL,,);"]
[null,null,null,null,null,null,null,null,null,null,null,null,null,null,null,null,null,null,null,null,null,null,"INSERT INTO dbmanottbe.[dbo].Results_Import ([ImpSerieNum],[ImpPassage],[ImpMedalID],[ImpPoints],[ImpPointsHidden],[ImpCcrsID]) VALUES (,,NULL,NULL,,);"]
[null,null,null,null,null,null,null,null,null,null,null,null,null,null,null,null,null,null,null,null,null,null,"INSERT INTO dbmanottbe.[dbo].Results_Import ([ImpSerieNum],[ImpPassage],[ImpMedalID],[ImpPoints],[ImpPointsHidden],[ImpCcrsID]) VALUES (,,NULL,NULL,,);"]
[null,null,null,null,null,null,null,null,null,null,null,null,null,null,null,null,null,null,null,null,null,null,"INSERT INTO dbmanottbe.[dbo].Results_Import ([ImpSerieNum],[ImpPassage],[ImpMedalID],[ImpPoints],[ImpPointsHidden],[ImpCcrsID]) VALUES (,,NULL,NULL,,);"]
[null,null,null,null,null,null,null,null,null,null,null,null,null,null,null,null,null,null,null,null,null,null,"INSERT INTO dbmanottbe.[dbo].Results_Import ([ImpSerieNum],[ImpPassage],[ImpMedalID],[ImpPoints],[ImpPointsHidden],[ImpCcrsID]) VALUES (,,NULL,NULL,,);"]
[null,null,null,null,null,null,null,null,null,null,null,null,null,null,null,null,null,null,null,null,null,null,"INSERT INTO dbmanottbe.[dbo].Results_Import ([ImpSerieNum],[ImpPassage],[ImpMedalID],[ImpPoints],[ImpPointsHidden],[ImpCcrsID]) VALUES (,,NULL,NULL,,);"]
[null,null,null,null,null,null,null,null,null,null,null,null,null,null,null,null,null,null,null,null,null,null,"INSERT INTO dbmanottbe.[dbo].Results_Import ([ImpSerieNum],[ImpPassage],[ImpMedalID],[ImpPoints],[ImpPointsHidden],[ImpCcrsID]) VALUES (,,NULL,NULL,,);"]
[null,null,null,null,null,null,null,null,null,null,null,null,null,null,null,null,null,null,null,null,null,null,"INSERT INTO dbmanottbe.[dbo].Results_Import ([ImpSerieNum],[ImpPassage],[ImpMedalID],[ImpPoints],[ImpPointsHidden],[ImpCcrsID]) VALUES (,,NULL,NULL,,);"]
[null,null,null,null,null,null,null,null,null,null,null,null,null,null,null,null,null,null,null,null,null,null,"INSERT INTO dbmanottbe.[dbo].Results_Import ([ImpSerieNum],[ImpPassage],[ImpMedalID],[ImpPoints],[ImpPointsHidden],[ImpCcrsID]) VALUES (,,NULL,NULL,,);"]
[null,null,null,null,null,null,null,null,null,null,null,null,null,null,null,null,null,null,null,null,null,null,"INSERT INTO dbmanottbe.[dbo].Results_Import ([ImpSerieNum],[ImpPassage],[ImpMedalID],[ImpPoints],[ImpPointsHidden],[ImpCcrsID]) VALUES (,,NULL,NULL,,);"]
[null,null,null,null,null,null,null,null,null,null,null,null,null,null,null,null,null,null,null,null,null,null,"INSERT INTO dbmanottbe.[dbo].Results_Import ([ImpSerieNum],[ImpPassage],[ImpMedalID],[ImpPoints],[ImpPointsHidden],[ImpCcrsID]) VALUES (,,NULL,NULL,,);"]
[null,null,null,null,null,null,null,null,null,null,null,null,null,null,null,null,null,null,null,null,null,null,"INSERT INTO dbmanottbe.[dbo].Results_Import ([ImpSerieNum],[ImpPassage],[ImpMedalID],[ImpPoints],[ImpPointsHidden],[ImpCcrsID]) VALUES (,,NULL,NULL,,);"]
[null,null,null,null,null,null,null,null,null,null,null,null,null,null,null,null,null,null,null,null,null,null,"INSERT INTO dbmanottbe.[dbo].Results_Import ([ImpSerieNum],[ImpPassage],[ImpMedalID],[ImpPoints],[ImpPointsHidden],[ImpCcrsID]) VALUES (,,NULL,NULL,,);"]
[null,null,null,null,null,null,null,null,null,null,null,null,null,null,null,null,null,null,null,null,null,null,"INSERT INTO dbmanottbe.[dbo].Results_Import ([ImpSerieNum],[ImpPassage],[ImpMedalID],[ImpPoints],[ImpPointsHidden],[ImpCcrsID]) VALUES (,,NULL,NULL,,);"]
[null,null,null,null,null,null,null,null,null,null,null,null,null,null,null,null,null,null,null,null,null,null,"INSERT INTO dbmanottbe.[dbo].Results_Import ([ImpSerieNum],[ImpPassage],[ImpMedalID],[ImpPoints],[ImpPointsHidden],[ImpCcrsID]) VALUES (,,NULL,NULL,,);"]
[null,null,null,null,null,null,null,null,null,null,null,null,null,null,null,null,null,null,null,null,null,null,"INSERT INTO dbmanottbe.[dbo].Results_Import ([ImpSerieNum],[ImpPassage],[ImpMedalID],[ImpPoints],[ImpPointsHidden],[ImpCcrsID]) VALUES (,,NULL,NULL,,);"]
[null,null,null,null,null,null,null,null,null,null,null,null,null,null,null,null,null,null,null,null,null,null,"INSERT INTO dbmanottbe.[dbo].Results_Import ([ImpSerieNum],[ImpPassage],[ImpMedalID],[ImpPoints],[ImpPointsHidden],[ImpCcrsID]) VALUES (,,NULL,NULL,,);"]
[null,null,null,null,null,null,null,null,null,null,null,null,null,null,null,null,null,null,null,null,null,null,"INSERT INTO dbmanottbe.[dbo].Results_Import ([ImpSerieNum],[ImpPassage],[ImpMedalID],[ImpPoints],[ImpPointsHidden],[ImpCcrsID]) VALUES (,,NULL,NULL,,);"]
[null,null,null,null,null,null,null,null,null,null,null,null,null,null,null,null,null,null,null,null,null,null,"INSERT INTO dbmanottbe.[dbo].Results_Import ([ImpSerieNum],[ImpPassage],[ImpMedalID],[ImpPoints],[ImpPointsHidden],[ImpCcrsID]) VALUES (,,NULL,NULL,,);"]
[null,null,null,null,null,null,null,null,null,null,null,null,null,null,null,null,null,null,null,null,null,null,"INSERT INTO dbmanottbe.[dbo].Results_Import ([ImpSerieNum],[ImpPassage],[ImpMedalID],[ImpPoints],[ImpPointsHidden],[ImpCcrsID]) VALUES (,,NULL,NULL,,);"]
[null,null,null,null,null,null,null,null,null,null,null,null,null,null,null,null,null,null,null,null,null,null,"INSERT INTO dbmanottbe.[dbo].Results_Import ([ImpSerieNum],[ImpPassage],[ImpMedalID],[ImpPoints],[ImpPointsHidden],[ImpCcrsID]) VALUES (,,NULL,NULL,,);"]
[null,null,null,null,null,null,null,null,null,null,null,null,null,null,null,null,null,null,null,null,null,null,"INSERT INTO dbmanottbe.[dbo].Results_Import ([ImpSerieNum],[ImpPassage],[ImpMedalID],[ImpPoints],[ImpPointsHidden],[ImpCcrsID]) VALUES (,,NULL,NULL,,);"]
[null,null,null,null,null,null,null,null,null,null,null,null,null,null,null,null,null,null,null,null,null,null,"INSERT INTO dbmanottbe.[dbo].Results_Import ([ImpSerieNum],[ImpPassage],[ImpMedalID],[ImpPoints],[ImpPointsHidden],[ImpCcrsID]) VALUES (,,NULL,NULL,,);"]
[null,null,null,null,null,null,null,null,null,null,null,null,null,null,null,null,null,null,null,null,null,null,"INSERT INTO dbmanottbe.[dbo].Results_Import ([ImpSerieNum],[ImpPassage],[ImpMedalID],[ImpPoints],[ImpPointsHidden],[ImpCcrsID]) VALUES (,,NULL,NULL,,);"]
[null,null,null,null,null,null,null,null,null,null,null,null,null,null,null,null,null,null,null,null,null,null,"INSERT INTO dbmanottbe.[dbo].Results_Import ([ImpSerieNum],[ImpPassage],[ImpMedalID],[ImpPoints],[ImpPointsHidden],[ImpCcrsID]) VALUES (,,NULL,NULL,,);"]
[null,null,null,null,null,null,null,null,null,null,null,null,null,null,null,null,null,null,null,null,null,null,"INSERT INTO dbmanottbe.[dbo].Results_Import ([ImpSerieNum],[ImpPassage],[ImpMedalID],[ImpPoints],[ImpPointsHidden],[ImpCcrsID]) VALUES (,,NULL,NULL,,);"]
[null,null,null,null,null,null,null,null,null,null,null,null,null,null,null,null,null,null,null,null,null,null,"INSERT INTO dbmanottbe.[dbo].Results_Import ([ImpSerieNum],[ImpPassage],[ImpMedalID],[ImpPoints],[ImpPointsHidden],[ImpCcrsID]) VALUES (,,NULL,NULL,,);"]
[null,null,null,null,null,null,null,null,null,null,null,null,null,null,null,null,null,null,null,null,null,null,"INSERT INTO dbmanottbe.[dbo].Results_Import ([ImpSerieNum],[ImpPassage],[ImpMedalID],[ImpPoints],[ImpPointsHidden],[ImpCcrsID]) VALUES (,,NULL,NULL,,);"]
[null,null,null,null,null,null,null,null,null,null,null,null,null,null,null,null,null,null,null,null,null,null,"INSERT INTO dbmanottbe.[dbo].Results_Import ([ImpSerieNum],[ImpPassage],[ImpMedalID],[ImpPoints],[ImpPointsHidden],[ImpCcrsID]) VALUES (,,NULL,NULL,,);"]
[null,null,null,null,null,null,null,null,null,null,null,null,null,null,null,null,null,null,null,null,null,null,"INSERT INTO dbmanottbe.[dbo].Results_Import ([ImpSerieNum],[ImpPassage],[ImpMedalID],[ImpPoints],[ImpPointsHidden],[ImpCcrsID]) VALUES (,,NULL,NULL,,);"]
[null,null,null,null,null,null,null,null,null,null,null,null,null,null,null,null,null,null,null,null,null,null,"INSERT INTO dbmanottbe.[dbo].Results_Import ([ImpSerieNum],[ImpPassage],[ImpMedalID],[ImpPoints],[ImpPointsHidden],[ImpCcrsID]) VALUES (,,NULL,NULL,,);"]
[null,null,null,null,null,null,null,null,null,null,null,null,null,null,null,null,null,null,null,null,null,null,"INSERT INTO dbmanottbe.[dbo].Results_Import ([ImpSerieNum],[ImpPassage],[ImpMedalID],[ImpPoints],[ImpPointsHidden],[ImpCcrsID]) VALUES (,,NULL,NULL,,);"]
[null,null,null,null,null,null,null,null,null,null,null,null,null,null,null,null,null,null,null,null,null,null,"INSERT INTO dbmanottbe.[dbo].Results_Import ([ImpSerieNum],[ImpPassage],[ImpMedalID],[ImpPoints],[ImpPointsHidden],[ImpCcrsID]) VALUES (,,NULL,NULL,,);"]
[null,null,null,null,null,null,null,null,null,null,null,null,null,null,null,null,null,null,null,null,null,null,"INSERT INTO dbmanottbe.[dbo].Results_Import ([ImpSerieNum],[ImpPassage],[ImpMedalID],[ImpPoints],[ImpPointsHidden],[ImpCcrsID]) VALUES (,,NULL,NULL,,);"]
[null,null,null,null,null,null,null,null,null,null,null,null,null,null,null,null,null,null,null,null,null,null,"INSERT INTO dbmanottbe.[dbo].Results_Import ([ImpSerieNum],[ImpPassage],[ImpMedalID],[ImpPoints],[ImpPointsHidden],[ImpCcrsID]) VALUES (,,NULL,NULL,,);"]
[null,null,null,null,null,null,null,null,null,null,null,null,null,null,null,null,null,null,null,null,null,null,"INSERT INTO dbmanottbe.[dbo].Results_Import ([ImpSerieNum],[ImpPassage],[ImpMedalID],[ImpPoints],[ImpPointsHidden],[ImpCcrsID]) VALUES (,,NULL,NULL,,);"]
[null,null,null,null,null,null,null,null,null,null,null,null,null,null,null,null,null,null,null,null,null,null,"INSERT INTO dbmanottbe.[dbo].Results_Import ([ImpSerieNum],[ImpPassage],[ImpMedalID],[ImpPoints],[ImpPointsHidden],[ImpCcrsID]) VALUES (,,NULL,NULL,,);"]
[null,null,null,null,null,null,null,null,null,null,null,null,null,null,null,null,null,null,null,null,null,null,"INSERT INTO dbmanottbe.[dbo].Results_Import ([ImpSerieNum],[ImpPassage],[ImpMedalID],[ImpPoints],[ImpPointsHidden],[ImpCcrsID]) VALUES (,,NULL,NULL,,);"]
[null,null,null,null,null,null,null,null,null,null,null,null,null,null,null,null,null,null,null,null,null,null,"INSERT INTO dbmanottbe.[dbo].Results_Import ([ImpSerieNum],[ImpPassage],[ImpMedalID],[ImpPoints],[ImpPointsHidden],[ImpCcrsID]) VALUES (,,NULL,NULL,,);"]
[null,null,null,null,null,null,null,null,null,null,null,null,null,null,null,null,null,null,null,null,null,null,"INSERT INTO dbmanottbe.[dbo].Results_Import ([ImpSerieNum],[ImpPassage],[ImpMedalID],[ImpPoints],[ImpPointsHidden],[ImpCcrsID]) VALUES (,,NULL,NULL,,);"]
[null,null,null,null,null,null,null,null,null,null,null,null,null,null,null,null,null,null,null,null,null,null,"INSERT INTO dbmanottbe.[dbo].Results_Import ([ImpSerieNum],[ImpPassage],[ImpMedalID],[ImpPoints],[ImpPointsHidden],[ImpCcrsID]) VALUES (,,NULL,NULL,,);"]
[null,null,null,null,null,null,null,null,null,null,null,null,null,null,null,null,null,null,null,null,null,null,"INSERT INTO dbmanottbe.[dbo].Results_Import ([ImpSerieNum],[ImpPassage],[ImpMedalID],[ImpPoints],[ImpPointsHidden],[ImpCcrsID]) VALUES (,,NULL,NULL,,);"]
[null,null,null,null,null,null,null,null,null,null,null,null,null,null,null,null,null,null,null,null,null,null,"INSERT INTO dbmanottbe.[dbo].Results_Import ([ImpSerieNum],[ImpPassage],[ImpMedalID],[ImpPoints],[ImpPointsHidden],[ImpCcrsID]) VALUES (,,NULL,NULL,,);"]
[null,null,null,null,null,null,null,null,null,null,null,null,null,null,null,null,null,null,null,null,null,null,"INSERT INTO dbmanottbe.[dbo].Results_Import ([ImpSerieNum],[ImpPassage],[ImpMedalID],[ImpPoints],[ImpPointsHidden],[ImpCcrsID]) VALUES (,,NULL,NULL,,);"]
[null,null,null,null,null,null,null,null,null,null,null,null,null,null,null,null,null,null,null,null,null,null,"INSERT INTO dbmanottbe.[dbo].Results_Import ([ImpSerieNum],[ImpPassage],[ImpMedalID],[ImpPoints],[ImpPointsHidden],[ImpCcrsID]) VALUES (,,NULL,NULL,,);"]
[null,null,null,null,null,null,null,null,null,null,null,null,null,null,null,null,null,null,null,null,null,null,"INSERT INTO dbmanottbe.[dbo].Results_Import ([ImpSerieNum],[ImpPassage],[ImpMedalID],[ImpPoints],[ImpPointsHidden],[ImpCcrsID]) VALUES (,,NULL,NULL,,);"]
[null,null,null,null,null,null,null,null,null,null,null,null,null,null,null,null,null,null,null,null,null,null,"INSERT INTO dbmanottbe.[dbo].Results_Import ([ImpSerieNum],[ImpPassage],[ImpMedalID],[ImpPoints],[ImpPointsHidden],[ImpCcrsID]) VALUES (,,NULL,NULL,,);"]
[null,null,null,null,null,null,null,null,null,null,null,null,null,null,null,null,null,null,null,null,null,null,"INSERT INTO dbmanottbe.[dbo].Results_Import ([ImpSerieNum],[ImpPassage],[ImpMedalID],[ImpPoints],[ImpPointsHidden],[ImpCcrsID]) VALUES (,,NULL,NULL,,);"]
[null,null,null,null,null,null,null,null,null,null,null,null,null,null,null,null,null,null,null,null,null,null,"INSERT INTO dbmanottbe.[dbo].Results_Import ([ImpSerieNum],[ImpPassage],[ImpMedalID],[ImpPoints],[ImpPointsHidden],[ImpCcrsID]) VALUES (,,NULL,NULL,,);"]
[null,null,null,null,null,null,null,null,null,null,null,null,null,null,null,null,null,null,null,null,null,null,"INSERT INTO dbmanottbe.[dbo].Results_Import ([ImpSerieNum],[ImpPassage],[ImpMedalID],[ImpPoints],[ImpPointsHidden],[ImpCcrsID]) VALUES (,,NULL,NULL,,);"]
[null,null,null,null,null,null,null,null,null,null,null,null,null,null,null,null,null,null,null,null,null,null,"INSERT INTO dbmanottbe.[dbo].Results_Import ([ImpSerieNum],[ImpPassage],[ImpMedalID],[ImpPoints],[ImpPointsHidden],[ImpCcrsID]) VALUES (,,NULL,NULL,,);"]
[null,null,null,null,null,null,null,null,null,null,null,null,null,null,null,null,null,null,null,null,null,null,"INSERT INTO dbmanottbe.[dbo].Results_Import ([ImpSerieNum],[ImpPassage],[ImpMedalID],[ImpPoints],[ImpPointsHidden],[ImpCcrsID]) VALUES (,,NULL,NULL,,);"]
[null,null,null,null,null,null,null,null,null,null,null,null,null,null,null,null,null,null,null,null,null,null,"INSERT INTO dbmanottbe.[dbo].Results_Import ([ImpSerieNum],[ImpPassage],[ImpMedalID],[ImpPoints],[ImpPointsHidden],[ImpCcrsID]) VALUES (,,NULL,NULL,,);"]
[null,null,null,null,null,null,null,null,null,null,null,null,null,null,null,null,null,null,null,null,null,null,"INSERT INTO dbmanottbe.[dbo].Results_Import ([ImpSerieNum],[ImpPassage],[ImpMedalID],[ImpPoints],[ImpPointsHidden],[ImpCcrsID]) VALUES (,,NULL,NULL,,);"]
[null,null,null,null,null,null,null,null,null,null,null,null,null,null,null,null,null,null,null,null,null,null,"INSERT INTO dbmanottbe.[dbo].Results_Import ([ImpSerieNum],[ImpPassage],[ImpMedalID],[ImpPoints],[ImpPointsHidden],[ImpCcrsID]) VALUES (,,NULL,NULL,,);"]
[null,null,null,null,null,null,null,null,null,null,null,null,null,null,null,null,null,null,null,null,null,null,"INSERT INTO dbmanottbe.[dbo].Results_Import ([ImpSerieNum],[ImpPassage],[ImpMedalID],[ImpPoints],[ImpPointsHidden],[ImpCcrsID]) VALUES (,,NULL,NULL,,);"]
[null,null,null,null,null,null,null,null,null,null,null,null,null,null,null,null,null,null,null,null,null,null,"INSERT INTO dbmanottbe.[dbo].Results_Import ([ImpSerieNum],[ImpPassage],[ImpMedalID],[ImpPoints],[ImpPointsHidden],[ImpCcrsID]) VALUES (,,NULL,NULL,,);"]
[null,null,null,null,null,null,null,null,null,null,null,null,null,null,null,null,null,null,null,null,null,null,"INSERT INTO dbmanottbe.[dbo].Results_Import ([ImpSerieNum],[ImpPassage],[ImpMedalID],[ImpPoints],[ImpPointsHidden],[ImpCcrsID]) VALUES (,,NULL,NULL,,);"]
[null,null,null,null,null,null,null,null,null,null,null,null,null,null,null,null,null,null,null,null,null,null,"INSERT INTO dbmanottbe.[dbo].Results_Import ([ImpSerieNum],[ImpPassage],[ImpMedalID],[ImpPoints],[ImpPointsHidden],[ImpCcrsID]) VALUES (,,NULL,NULL,,);"]
[null,null,null,null,null,null,null,null,null,null,null,null,null,null,null,null,null,null,null,null,null,null,"INSERT INTO dbmanottbe.[dbo].Results_Import ([ImpSerieNum],[ImpPassage],[ImpMedalID],[ImpPoints],[ImpPointsHidden],[ImpCcrsID]) VALUES (,,NULL,NULL,,);"]
[null,null,null,null,null,null,null,null,null,null,null,null,null,null,null,null,null,null,null,null,null,null,"INSERT INTO dbmanottbe.[dbo].Results_Import ([ImpSerieNum],[ImpPassage],[ImpMedalID],[ImpPoints],[ImpPointsHidden],[ImpCcrsID]) VALUES (,,NULL,NULL,,);"]
[null,null,null,null,null,null,null,null,null,null,null,null,null,null,null,null,null,null,null,null,null,null,"INSERT INTO dbmanottbe.[dbo].Results_Import ([ImpSerieNum],[ImpPassage],[ImpMedalID],[ImpPoints],[ImpPointsHidden],[ImpCcrsID]) VALUES (,,NULL,NULL,,);"]
[null,null,null,null,null,null,null,null,null,null,null,null,null,null,null,null,null,null,null,null,null,null,"INSERT INTO dbmanottbe.[dbo].Results_Import ([ImpSerieNum],[ImpPassage],[ImpMedalID],[ImpPoints],[ImpPointsHidden],[ImpCcrsID]) VALUES (,,NULL,NULL,,);"]
[null,null,null,null,null,null,null,null,null,null,null,null,null,null,null,null,null,null,null,null,null,null,{"$f":"\"INSERT INTO \"&$U$2&\" ([ImpSerieNum],[ImpPassage],[ImpMedalID],[ImpPoints],[ImpPointsHidden],[ImpCcrsID]) VALUES (\"&B1411&\",\"&C1411&\",\"&IF(D1411=\"\",\"NULL\",\"'\"&D1411&\"'\")&\",\"&IF(E1411=\"\",\"NULL\",SUBSTITUTE(E1411,\",\",\".\"))&\",\"&SUBSTITUTE(F1411,\",\",\".\")&\",\"&G1411&\");\"","v":"INSERT INTO dbmanottbe.[dbo].Results_Import ([ImpSerieNum],[ImpPassage],[ImpMedalID],[ImpPoints],[ImpPointsHidden],[ImpCcrsID]) VALUES (,,NULL,NULL,,);"}]
[null,null,null,null,null,null,null,null,null,null,null,null,null,null,null,null,null,null,null,null,null,null,"INSERT INTO dbmanottbe.[dbo].Results_Import ([ImpSerieNum],[ImpPassage],[ImpMedalID],[ImpPoints],[ImpPointsHidden],[ImpCcrsID]) VALUES (,,NULL,NULL,,);"]
[null,null,null,null,null,null,null,null,null,null,null,null,null,null,null,null,null,null,null,null,null,null,"INSERT INTO dbmanottbe.[dbo].Results_Import ([ImpSerieNum],[ImpPassage],[ImpMedalID],[ImpPoints],[ImpPointsHidden],[ImpCcrsID]) VALUES (,,NULL,NULL,,);"]
[null,null,null,null,null,null,null,null,null,null,null,null,null,null,null,null,null,null,null,null,null,null,"INSERT INTO dbmanottbe.[dbo].Results_Import ([ImpSerieNum],[ImpPassage],[ImpMedalID],[ImpPoints],[ImpPointsHidden],[ImpCcrsID]) VALUES (,,NULL,NULL,,);"]
[null,null,null,null,null,null,null,null,null,null,null,null,null,null,null,null,null,null,null,null,null,null,"INSERT INTO dbmanottbe.[dbo].Results_Import ([ImpSerieNum],[ImpPassage],[ImpMedalID],[ImpPoints],[ImpPointsHidden],[ImpCcrsID]) VALUES (,,NULL,NULL,,);"]
[null,null,null,null,null,null,null,null,null,null,null,null,null,null,null,null,null,null,null,null,null,null,"INSERT INTO dbmanottbe.[dbo].Results_Import ([ImpSerieNum],[ImpPassage],[ImpMedalID],[ImpPoints],[ImpPointsHidden],[ImpCcrsID]) VALUES (,,NULL,NULL,,);"]
[null,null,null,null,null,null,null,null,null,null,null,null,null,null,null,null,null,null,null,null,null,null,"INSERT INTO dbmanottbe.[dbo].Results_Import ([ImpSerieNum],[ImpPassage],[ImpMedalID],[ImpPoints],[ImpPointsHidden],[ImpCcrsID]) VALUES (,,NULL,NULL,,);"]
[null,null,null,null,null,null,null,null,null,null,null,null,null,null,null,null,null,null,null,null,null,null,"INSERT INTO dbmanottbe.[dbo].Results_Import ([ImpSerieNum],[ImpPassage],[ImpMedalID],[ImpPoints],[ImpPointsHidden],[ImpCcrsID]) VALUES (,,NULL,NULL,,);"]
[null,null,null,null,null,null,null,null,null,null,null,null,null,null,null,null,null,null,null,null,null,null,"INSERT INTO dbmanottbe.[dbo].Results_Import ([ImpSerieNum],[ImpPassage],[ImpMedalID],[ImpPoints],[ImpPointsHidden],[ImpCcrsID]) VALUES (,,NULL,NULL,,);"]
[null,null,null,null,null,null,null,null,null,null,null,null,null,null,null,null,null,null,null,null,null,null,"INSERT INTO dbmanottbe.[dbo].Results_Import ([ImpSerieNum],[ImpPassage],[ImpMedalID],[ImpPoints],[ImpPointsHidden],[ImpCcrsID]) VALUES (,,NULL,NULL,,);"]
[null,null,null,null,null,null,null,null,null,null,null,null,null,null,null,null,null,null,null,null,null,null,"INSERT INTO dbmanottbe.[dbo].Results_Import ([ImpSerieNum],[ImpPassage],[ImpMedalID],[ImpPoints],[ImpPointsHidden],[ImpCcrsID]) VALUES (,,NULL,NULL,,);"]
[null,null,null,null,null,null,null,null,null,null,null,null,null,null,null,null,null,null,null,null,null,null,"INSERT INTO dbmanottbe.[dbo].Results_Import ([ImpSerieNum],[ImpPassage],[ImpMedalID],[ImpPoints],[ImpPointsHidden],[ImpCcrsID]) VALUES (,,NULL,NULL,,);"]
[null,null,null,null,null,null,null,null,null,null,null,null,null,null,null,null,null,null,null,null,null,null,"INSERT INTO dbmanottbe.[dbo].Results_Import ([ImpSerieNum],[ImpPassage],[ImpMedalID],[ImpPoints],[ImpPointsHidden],[ImpCcrsID]) VALUES (,,NULL,NULL,,);"]
[null,null,null,null,null,null,null,null,null,null,null,null,null,null,null,null,null,null,null,null,null,null,"INSERT INTO dbmanottbe.[dbo].Results_Import ([ImpSerieNum],[ImpPassage],[ImpMedalID],[ImpPoints],[ImpPointsHidden],[ImpCcrsID]) VALUES (,,NULL,NULL,,);"]
[null,null,null,null,null,null,null,null,null,null,null,null,null,null,null,null,null,null,null,null,null,null,"INSERT INTO dbmanottbe.[dbo].Results_Import ([ImpSerieNum],[ImpPassage],[ImpMedalID],[ImpPoints],[ImpPointsHidden],[ImpCcrsID]) VALUES (,,NULL,NULL,,);"]
[null,null,null,null,null,null,null,null,null,null,null,null,null,null,null,null,null,null,null,null,null,null,"INSERT INTO dbmanottbe.[dbo].Results_Import ([ImpSerieNum],[ImpPassage],[ImpMedalID],[ImpPoints],[ImpPointsHidden],[ImpCcrsID]) VALUES (,,NULL,NULL,,);"]
[null,null,null,null,null,null,null,null,null,null,null,null,null,null,null,null,null,null,null,null,null,null,"INSERT INTO dbmanottbe.[dbo].Results_Import ([ImpSerieNum],[ImpPassage],[ImpMedalID],[ImpPoints],[ImpPointsHidden],[ImpCcrsID]) VALUES (,,NULL,NULL,,);"]
[null,null,null,null,null,null,null,null,null,null,null,null,null,null,null,null,null,null,null,null,null,null,"INSERT INTO dbmanottbe.[dbo].Results_Import ([ImpSerieNum],[ImpPassage],[ImpMedalID],[ImpPoints],[ImpPointsHidden],[ImpCcrsID]) VALUES (,,NULL,NULL,,);"]
[null,null,null,null,null,null,null,null,null,null,null,null,null,null,null,null,null,null,null,null,null,null,"INSERT INTO dbmanottbe.[dbo].Results_Import ([ImpSerieNum],[ImpPassage],[ImpMedalID],[ImpPoints],[ImpPointsHidden],[ImpCcrsID]) VALUES (,,NULL,NULL,,);"]
[null,null,null,null,null,null,null,null,null,null,null,null,null,null,null,null,null,null,null,null,null,null,"INSERT INTO dbmanottbe.[dbo].Results_Import ([ImpSerieNum],[ImpPassage],[ImpMedalID],[ImpPoints],[ImpPointsHidden],[ImpCcrsID]) VALUES (,,NULL,NULL,,);"]
[null,null,null,null,null,null,null,null,null,null,null,null,null,null,null,null,null,null,null,null,null,null,"INSERT INTO dbmanottbe.[dbo].Results_Import ([ImpSerieNum],[ImpPassage],[ImpMedalID],[ImpPoints],[ImpPointsHidden],[ImpCcrsID]) VALUES (,,NULL,NULL,,);"]
[null,null,null,null,null,null,null,null,null,null,null,null,null,null,null,null,null,null,null,null,null,null,"INSERT INTO dbmanottbe.[dbo].Results_Import ([ImpSerieNum],[ImpPassage],[ImpMedalID],[ImpPoints],[ImpPointsHidden],[ImpCcrsID]) VALUES (,,NULL,NULL,,);"]
[null,null,null,null,null,null,null,null,null,null,null,null,null,null,null,null,null,null,null,null,null,null,"INSERT INTO dbmanottbe.[dbo].Results_Import ([ImpSerieNum],[ImpPassage],[ImpMedalID],[ImpPoints],[ImpPointsHidden],[ImpCcrsID]) VALUES (,,NULL,NULL,,);"]
[null,null,null,null,null,null,null,null,null,null,null,null,null,null,null,null,null,null,null,null,null,null,"INSERT INTO dbmanottbe.[dbo].Results_Import ([ImpSerieNum],[ImpPassage],[ImpMedalID],[ImpPoints],[ImpPointsHidden],[ImpCcrsID]) VALUES (,,NULL,NULL,,);"]
[null,null,null,null,null,null,null,null,null,null,null,null,null,null,null,null,null,null,null,null,null,null,"INSERT INTO dbmanottbe.[dbo].Results_Import ([ImpSerieNum],[ImpPassage],[ImpMedalID],[ImpPoints],[ImpPointsHidden],[ImpCcrsID]) VALUES (,,NULL,NULL,,);"]
[null,null,null,null,null,null,null,null,null,null,null,null,null,null,null,null,null,null,null,null,null,null,"INSERT INTO dbmanottbe.[dbo].Results_Import ([ImpSerieNum],[ImpPassage],[ImpMedalID],[ImpPoints],[ImpPointsHidden],[ImpCcrsID]) VALUES (,,NULL,NULL,,);"]
[null,null,null,null,null,null,null,null,null,null,null,null,null,null,null,null,null,null,null,null,null,null,"INSERT INTO dbmanottbe.[dbo].Results_Import ([ImpSerieNum],[ImpPassage],[ImpMedalID],[ImpPoints],[ImpPointsHidden],[ImpCcrsID]) VALUES (,,NULL,NULL,,);"]
[null,null,null,null,null,null,null,null,null,null,null,null,null,null,null,null,null,null,null,null,null,null,"INSERT INTO dbmanottbe.[dbo].Results_Import ([ImpSerieNum],[ImpPassage],[ImpMedalID],[ImpPoints],[ImpPointsHidden],[ImpCcrsID]) VALUES (,,NULL,NULL,,);"]
[null,null,null,null,null,null,null,null,null,null,null,null,null,null,null,null,null,null,null,null,null,null,"INSERT INTO dbmanottbe.[dbo].Results_Import ([ImpSerieNum],[ImpPassage],[ImpMedalID],[ImpPoints],[ImpPointsHidden],[ImpCcrsID]) VALUES (,,NULL,NULL,,);"]
[null,null,null,null,null,null,null,null,null,null,null,null,null,null,null,null,null,null,null,null,null,null,"INSERT INTO dbmanottbe.[dbo].Results_Import ([ImpSerieNum],[ImpPassage],[ImpMedalID],[ImpPoints],[ImpPointsHidden],[ImpCcrsID]) VALUES (,,NULL,NULL,,);"]
[null,null,null,null,null,null,null,null,null,null,null,null,null,null,null,null,null,null,null,null,null,null,"INSERT INTO dbmanottbe.[dbo].Results_Import ([ImpSerieNum],[ImpPassage],[ImpMedalID],[ImpPoints],[ImpPointsHidden],[ImpCcrsID]) VALUES (,,NULL,NULL,,);"]
[null,null,null,null,null,null,null,null,null,null,null,null,null,null,null,null,null,null,null,null,null,null,"INSERT INTO dbmanottbe.[dbo].Results_Import ([ImpSerieNum],[ImpPassage],[ImpMedalID],[ImpPoints],[ImpPointsHidden],[ImpCcrsID]) VALUES (,,NULL,NULL,,);"]
[null,null,null,null,null,null,null,null,null,null,null,null,null,null,null,null,null,null,null,null,null,null,"INSERT INTO dbmanottbe.[dbo].Results_Import ([ImpSerieNum],[ImpPassage],[ImpMedalID],[ImpPoints],[ImpPointsHidden],[ImpCcrsID]) VALUES (,,NULL,NULL,,);"]
[null,null,null,null,null,null,null,null,null,null,null,null,null,null,null,null,null,null,null,null,null,null,"INSERT INTO dbmanottbe.[dbo].Results_Import ([ImpSerieNum],[ImpPassage],[ImpMedalID],[ImpPoints],[ImpPointsHidden],[ImpCcrsID]) VALUES (,,NULL,NULL,,);"]
[null,null,null,null,null,null,null,null,null,null,null,null,null,null,null,null,null,null,null,null,null,null,"INSERT INTO dbmanottbe.[dbo].Results_Import ([ImpSerieNum],[ImpPassage],[ImpMedalID],[ImpPoints],[ImpPointsHidden],[ImpCcrsID]) VALUES (,,NULL,NULL,,);"]
[null,null,null,null,null,null,null,null,null,null,null,null,null,null,null,null,null,null,null,null,null,null,"INSERT INTO dbmanottbe.[dbo].Results_Import ([ImpSerieNum],[ImpPassage],[ImpMedalID],[ImpPoints],[ImpPointsHidden],[ImpCcrsID]) VALUES (,,NULL,NULL,,);"]
[null,null,null,null,null,null,null,null,null,null,null,null,null,null,null,null,null,null,null,null,null,null,"INSERT INTO dbmanottbe.[dbo].Results_Import ([ImpSerieNum],[ImpPassage],[ImpMedalID],[ImpPoints],[ImpPointsHidden],[ImpCcrsID]) VALUES (,,NULL,NULL,,);"]
[null,null,null,null,null,null,null,null,null,null,null,null,null,null,null,null,null,null,null,null,null,null,"INSERT INTO dbmanottbe.[dbo].Results_Import ([ImpSerieNum],[ImpPassage],[ImpMedalID],[ImpPoints],[ImpPointsHidden],[ImpCcrsID]) VALUES (,,NULL,NULL,,);"]
[null,null,null,null,null,null,null,null,null,null,null,null,null,null,null,null,null,null,null,null,null,null,"INSERT INTO dbmanottbe.[dbo].Results_Import ([ImpSerieNum],[ImpPassage],[ImpMedalID],[ImpPoints],[ImpPointsHidden],[ImpCcrsID]) VALUES (,,NULL,NULL,,);"]
[null,null,null,null,null,null,null,null,null,null,null,null,null,null,null,null,null,null,null,null,null,null,"INSERT INTO dbmanottbe.[dbo].Results_Import ([ImpSerieNum],[ImpPassage],[ImpMedalID],[ImpPoints],[ImpPointsHidden],[ImpCcrsID]) VALUES (,,NULL,NULL,,);"]
[null,null,null,null,null,null,null,null,null,null,null,null,null,null,null,null,null,null,null,null,null,null,"INSERT INTO dbmanottbe.[dbo].Results_Import ([ImpSerieNum],[ImpPassage],[ImpMedalID],[ImpPoints],[ImpPointsHidden],[ImpCcrsID]) VALUES (,,NULL,NULL,,);"]
[null,null,null,null,null,null,null,null,null,null,null,null,null,null,null,null,null,null,null,null,null,null,"INSERT INTO dbmanottbe.[dbo].Results_Import ([ImpSerieNum],[ImpPassage],[ImpMedalID],[ImpPoints],[ImpPointsHidden],[ImpCcrsID]) VALUES (,,NULL,NULL,,);"]
[null,null,null,null,null,null,null,null,null,null,null,null,null,null,null,null,null,null,null,null,null,null,"INSERT INTO dbmanottbe.[dbo].Results_Import ([ImpSerieNum],[ImpPassage],[ImpMedalID],[ImpPoints],[ImpPointsHidden],[ImpCcrsID]) VALUES (,,NULL,NULL,,);"]
[null,null,null,null,null,null,null,null,null,null,null,null,null,null,null,null,null,null,null,null,null,null,"INSERT INTO dbmanottbe.[dbo].Results_Import ([ImpSerieNum],[ImpPassage],[ImpMedalID],[ImpPoints],[ImpPointsHidden],[ImpCcrsID]) VALUES (,,NULL,NULL,,);"]
[null,null,null,null,null,null,null,null,null,null,null,null,null,null,null,null,null,null,null,null,null,null,"INSERT INTO dbmanottbe.[dbo].Results_Import ([ImpSerieNum],[ImpPassage],[ImpMedalID],[ImpPoints],[ImpPointsHidden],[ImpCcrsID]) VALUES (,,NULL,NULL,,);"]
[null,null,null,null,null,null,null,null,null,null,null,null,null,null,null,null,null,null,null,null,null,null,"INSERT INTO dbmanottbe.[dbo].Results_Import ([ImpSerieNum],[ImpPassage],[ImpMedalID],[ImpPoints],[ImpPointsHidden],[ImpCcrsID]) VALUES (,,NULL,NULL,,);"]
[null,null,null,null,null,null,null,null,null,null,null,null,null,null,null,null,null,null,null,null,null,null,"INSERT INTO dbmanottbe.[dbo].Results_Import ([ImpSerieNum],[ImpPassage],[ImpMedalID],[ImpPoints],[ImpPointsHidden],[ImpCcrsID]) VALUES (,,NULL,NULL,,);"]
[null,null,null,null,null,null,null,null,null,null,null,null,null,null,null,null,null,null,null,null,null,null,"INSERT INTO dbmanottbe.[dbo].Results_Import ([ImpSerieNum],[ImpPassage],[ImpMedalID],[ImpPoints],[ImpPointsHidden],[ImpCcrsID]) VALUES (,,NULL,NULL,,);"]
[null,null,null,null,null,null,null,null,null,null,null,null,null,null,null,null,null,null,null,null,null,null,"INSERT INTO dbmanottbe.[dbo].Results_Import ([ImpSerieNum],[ImpPassage],[ImpMedalID],[ImpPoints],[ImpPointsHidden],[ImpCcrsID]) VALUES (,,NULL,NULL,,);"]
[null,null,null,null,null,null,null,null,null,null,null,null,null,null,null,null,null,null,null,null,null,null,"INSERT INTO dbmanottbe.[dbo].Results_Import ([ImpSerieNum],[ImpPassage],[ImpMedalID],[ImpPoints],[ImpPointsHidden],[ImpCcrsID]) VALUES (,,NULL,NULL,,);"]
[null,null,null,null,null,null,null,null,null,null,null,null,null,null,null,null,null,null,null,null,null,null,"INSERT INTO dbmanottbe.[dbo].Results_Import ([ImpSerieNum],[ImpPassage],[ImpMedalID],[ImpPoints],[ImpPointsHidden],[ImpCcrsID]) VALUES (,,NULL,NULL,,);"]
[null,null,null,null,null,null,null,null,null,null,null,null,null,null,null,null,null,null,null,null,null,null,"INSERT INTO dbmanottbe.[dbo].Results_Import ([ImpSerieNum],[ImpPassage],[ImpMedalID],[ImpPoints],[ImpPointsHidden],[ImpCcrsID]) VALUES (,,NULL,NULL,,);"]
[null,null,null,null,null,null,null,null,null,null,null,null,null,null,null,null,null,null,null,null,null,null,"INSERT INTO dbmanottbe.[dbo].Results_Import ([ImpSerieNum],[ImpPassage],[ImpMedalID],[ImpPoints],[ImpPointsHidden],[ImpCcrsID]) VALUES (,,NULL,NULL,,);"]
[null,null,null,null,null,null,null,null,null,null,null,null,null,null,null,null,null,null,null,null,null,null,"INSERT INTO dbmanottbe.[dbo].Results_Import ([ImpSerieNum],[ImpPassage],[ImpMedalID],[ImpPoints],[ImpPointsHidden],[ImpCcrsID]) VALUES (,,NULL,NULL,,);"]
[null,null,null,null,null,null,null,null,null,null,null,null,null,null,null,null,null,null,null,null,null,null,"INSERT INTO dbmanottbe.[dbo].Results_Import ([ImpSerieNum],[ImpPassage],[ImpMedalID],[ImpPoints],[ImpPointsHidden],[ImpCcrsID]) VALUES (,,NULL,NULL,,);"]
[null,null,null,null,null,null,null,null,null,null,null,null,null,null,null,null,null,null,null,null,null,null,"INSERT INTO dbmanottbe.[dbo].Results_Import ([ImpSerieNum],[ImpPassage],[ImpMedalID],[ImpPoints],[ImpPointsHidden],[ImpCcrsID]) VALUES (,,NULL,NULL,,);"]
[null,null,null,null,null,null,null,null,null,null,null,null,null,null,null,null,null,null,null,null,null,null,"INSERT INTO dbmanottbe.[dbo].Results_Import ([ImpSerieNum],[ImpPassage],[ImpMedalID],[ImpPoints],[ImpPointsHidden],[ImpCcrsID]) VALUES (,,NULL,NULL,,);"]
[null,null,null,null,null,null,null,null,null,null,null,null,null,null,null,null,null,null,null,null,null,null,"INSERT INTO dbmanottbe.[dbo].Results_Import ([ImpSerieNum],[ImpPassage],[ImpMedalID],[ImpPoints],[ImpPointsHidden],[ImpCcrsID]) VALUES (,,NULL,NULL,,);"]
[null,null,null,null,null,null,null,null,null,null,null,null,null,null,null,null,null,null,null,null,null,null,"INSERT INTO dbmanottbe.[dbo].Results_Import ([ImpSerieNum],[ImpPassage],[ImpMedalID],[ImpPoints],[ImpPointsHidden],[ImpCcrsID]) VALUES (,,NULL,NULL,,);"]
[null,null,null,null,null,null,null,null,null,null,null,null,null,null,null,null,null,null,null,null,null,null,"INSERT INTO dbmanottbe.[dbo].Results_Import ([ImpSerieNum],[ImpPassage],[ImpMedalID],[ImpPoints],[ImpPointsHidden],[ImpCcrsID]) VALUES (,,NULL,NULL,,);"]
[null,null,null,null,null,null,null,null,null,null,null,null,null,null,null,null,null,null,null,null,null,null,"INSERT INTO dbmanottbe.[dbo].Results_Import ([ImpSerieNum],[ImpPassage],[ImpMedalID],[ImpPoints],[ImpPointsHidden],[ImpCcrsID]) VALUES (,,NULL,NULL,,);"]
[null,null,null,null,null,null,null,null,null,null,null,null,null,null,null,null,null,null,null,null,null,null,"INSERT INTO dbmanottbe.[dbo].Results_Import ([ImpSerieNum],[ImpPassage],[ImpMedalID],[ImpPoints],[ImpPointsHidden],[ImpCcrsID]) VALUES (,,NULL,NULL,,);"]
[null,null,null,null,null,null,null,null,null,null,null,null,null,null,null,null,null,null,null,null,null,null,"INSERT INTO dbmanottbe.[dbo].Results_Import ([ImpSerieNum],[ImpPassage],[ImpMedalID],[ImpPoints],[ImpPointsHidden],[ImpCcrsID]) VALUES (,,NULL,NULL,,);"]
[null,null,null,null,null,null,null,null,null,null,null,null,null,null,null,null,null,null,null,null,null,null,"INSERT INTO dbmanottbe.[dbo].Results_Import ([ImpSerieNum],[ImpPassage],[ImpMedalID],[ImpPoints],[ImpPointsHidden],[ImpCcrsID]) VALUES (,,NULL,NULL,,);"]
[null,null,null,null,null,null,null,null,null,null,null,null,null,null,null,null,null,null,null,null,null,null,{"$f":"\"INSERT INTO \"&$U$2&\" ([ImpSerieNum],[ImpPassage],[ImpMedalID],[ImpPoints],[ImpPointsHidden],[ImpCcrsID]) VALUES (\"&B1475&\",\"&C1475&\",\"&IF(D1475=\"\",\"NULL\",\"'\"&D1475&\"'\")&\",\"&IF(E1475=\"\",\"NULL\",SUBSTITUTE(E1475,\",\",\".\"))&\",\"&SUBSTITUTE(F1475,\",\",\".\")&\",\"&G1475&\");\"","v":"INSERT INTO dbmanottbe.[dbo].Results_Import ([ImpSerieNum],[ImpPassage],[ImpMedalID],[ImpPoints],[ImpPointsHidden],[ImpCcrsID]) VALUES (,,NULL,NULL,,);"}]
[null,null,null,null,null,null,null,null,null,null,null,null,null,null,null,null,null,null,null,null,null,null,"INSERT INTO dbmanottbe.[dbo].Results_Import ([ImpSerieNum],[ImpPassage],[ImpMedalID],[ImpPoints],[ImpPointsHidden],[ImpCcrsID]) VALUES (,,NULL,NULL,,);"]
[null,null,null,null,null,null,null,null,null,null,null,null,null,null,null,null,null,null,null,null,null,null,"INSERT INTO dbmanottbe.[dbo].Results_Import ([ImpSerieNum],[ImpPassage],[ImpMedalID],[ImpPoints],[ImpPointsHidden],[ImpCcrsID]) VALUES (,,NULL,NULL,,);"]
[null,null,null,null,null,null,null,null,null,null,null,null,null,null,null,null,null,null,null,null,null,null,"INSERT INTO dbmanottbe.[dbo].Results_Import ([ImpSerieNum],[ImpPassage],[ImpMedalID],[ImpPoints],[ImpPointsHidden],[ImpCcrsID]) VALUES (,,NULL,NULL,,);"]
[null,null,null,null,null,null,null,null,null,null,null,null,null,null,null,null,null,null,null,null,null,null,"INSERT INTO dbmanottbe.[dbo].Results_Import ([ImpSerieNum],[ImpPassage],[ImpMedalID],[ImpPoints],[ImpPointsHidden],[ImpCcrsID]) VALUES (,,NULL,NULL,,);"]
[null,null,null,null,null,null,null,null,null,null,null,null,null,null,null,null,null,null,null,null,null,null,"INSERT INTO dbmanottbe.[dbo].Results_Import ([ImpSerieNum],[ImpPassage],[ImpMedalID],[ImpPoints],[ImpPointsHidden],[ImpCcrsID]) VALUES (,,NULL,NULL,,);"]
[null,null,null,null,null,null,null,null,null,null,null,null,null,null,null,null,null,null,null,null,null,null,"INSERT INTO dbmanottbe.[dbo].Results_Import ([ImpSerieNum],[ImpPassage],[ImpMedalID],[ImpPoints],[ImpPointsHidden],[ImpCcrsID]) VALUES (,,NULL,NULL,,);"]
[null,null,null,null,null,null,null,null,null,null,null,null,null,null,null,null,null,null,null,null,null,null,"INSERT INTO dbmanottbe.[dbo].Results_Import ([ImpSerieNum],[ImpPassage],[ImpMedalID],[ImpPoints],[ImpPointsHidden],[ImpCcrsID]) VALUES (,,NULL,NULL,,);"]
[null,null,null,null,null,null,null,null,null,null,null,null,null,null,null,null,null,null,null,null,null,null,"INSERT INTO dbmanottbe.[dbo].Results_Import ([ImpSerieNum],[ImpPassage],[ImpMedalID],[ImpPoints],[ImpPointsHidden],[ImpCcrsID]) VALUES (,,NULL,NULL,,);"]
[null,null,null,null,null,null,null,null,null,null,null,null,null,null,null,null,null,null,null,null,null,null,"INSERT INTO dbmanottbe.[dbo].Results_Import ([ImpSerieNum],[ImpPassage],[ImpMedalID],[ImpPoints],[ImpPointsHidden],[ImpCcrsID]) VALUES (,,NULL,NULL,,);"]
[null,null,null,null,null,null,null,null,null,null,null,null,null,null,null,null,null,null,null,null,null,null,"INSERT INTO dbmanottbe.[dbo].Results_Import ([ImpSerieNum],[ImpPassage],[ImpMedalID],[ImpPoints],[ImpPointsHidden],[ImpCcrsID]) VALUES (,,NULL,NULL,,);"]
[null,null,null,null,null,null,null,null,null,null,null,null,null,null,null,null,null,null,null,null,null,null,"INSERT INTO dbmanottbe.[dbo].Results_Import ([ImpSerieNum],[ImpPassage],[ImpMedalID],[ImpPoints],[ImpPointsHidden],[ImpCcrsID]) VALUES (,,NULL,NULL,,);"]
[null,null,null,null,null,null,null,null,null,null,null,null,null,null,null,null,null,null,null,null,null,null,"INSERT INTO dbmanottbe.[dbo].Results_Import ([ImpSerieNum],[ImpPassage],[ImpMedalID],[ImpPoints],[ImpPointsHidden],[ImpCcrsID]) VALUES (,,NULL,NULL,,);"]
[null,null,null,null,null,null,null,null,null,null,null,null,null,null,null,null,null,null,null,null,null,null,"INSERT INTO dbmanottbe.[dbo].Results_Import ([ImpSerieNum],[ImpPassage],[ImpMedalID],[ImpPoints],[ImpPointsHidden],[ImpCcrsID]) VALUES (,,NULL,NULL,,);"]
[null,null,null,null,null,null,null,null,null,null,null,null,null,null,null,null,null,null,null,null,null,null,"INSERT INTO dbmanottbe.[dbo].Results_Import ([ImpSerieNum],[ImpPassage],[ImpMedalID],[ImpPoints],[ImpPointsHidden],[ImpCcrsID]) VALUES (,,NULL,NULL,,);"]
[null,null,null,null,null,null,null,null,null,null,null,null,null,null,null,null,null,null,null,null,null,null,"INSERT INTO dbmanottbe.[dbo].Results_Import ([ImpSerieNum],[ImpPassage],[ImpMedalID],[ImpPoints],[ImpPointsHidden],[ImpCcrsID]) VALUES (,,NULL,NULL,,);"]
[null,null,null,null,null,null,null,null,null,null,null,null,null,null,null,null,null,null,null,null,null,null,"INSERT INTO dbmanottbe.[dbo].Results_Import ([ImpSerieNum],[ImpPassage],[ImpMedalID],[ImpPoints],[ImpPointsHidden],[ImpCcrsID]) VALUES (,,NULL,NULL,,);"]
[null,null,null,null,null,null,null,null,null,null,null,null,null,null,null,null,null,null,null,null,null,null,"INSERT INTO dbmanottbe.[dbo].Results_Import ([ImpSerieNum],[ImpPassage],[ImpMedalID],[ImpPoints],[ImpPointsHidden],[ImpCcrsID]) VALUES (,,NULL,NULL,,);"]
[null,null,null,null,null,null,null,null,null,null,null,null,null,null,null,null,null,null,null,null,null,null,"INSERT INTO dbmanottbe.[dbo].Results_Import ([ImpSerieNum],[ImpPassage],[ImpMedalID],[ImpPoints],[ImpPointsHidden],[ImpCcrsID]) VALUES (,,NULL,NULL,,);"]
[null,null,null,null,null,null,null,null,null,null,null,null,null,null,null,null,null,null,null,null,null,null,"INSERT INTO dbmanottbe.[dbo].Results_Import ([ImpSerieNum],[ImpPassage],[ImpMedalID],[ImpPoints],[ImpPointsHidden],[ImpCcrsID]) VALUES (,,NULL,NULL,,);"]
[null,null,null,null,null,null,null,null,null,null,null,null,null,null,null,null,null,null,null,null,null,null,"INSERT INTO dbmanottbe.[dbo].Results_Import ([ImpSerieNum],[ImpPassage],[ImpMedalID],[ImpPoints],[ImpPointsHidden],[ImpCcrsID]) VALUES (,,NULL,NULL,,);"]
[null,null,null,null,null,null,null,null,null,null,null,null,null,null,null,null,null,null,null,null,null,null,"INSERT INTO dbmanottbe.[dbo].Results_Import ([ImpSerieNum],[ImpPassage],[ImpMedalID],[ImpPoints],[ImpPointsHidden],[ImpCcrsID]) VALUES (,,NULL,NULL,,);"]
[null,null,null,null,null,null,null,null,null,null,null,null,null,null,null,null,null,null,null,null,null,null,"INSERT INTO dbmanottbe.[dbo].Results_Import ([ImpSerieNum],[ImpPassage],[ImpMedalID],[ImpPoints],[ImpPointsHidden],[ImpCcrsID]) VALUES (,,NULL,NULL,,);"]
[null,null,null,null,null,null,null,null,null,null,null,null,null,null,null,null,null,null,null,null,null,null,"INSERT INTO dbmanottbe.[dbo].Results_Import ([ImpSerieNum],[ImpPassage],[ImpMedalID],[ImpPoints],[ImpPointsHidden],[ImpCcrsID]) VALUES (,,NULL,NULL,,);"]
[null,null,null,null,null,null,null,null,null,null,null,null,null,null,null,null,null,null,null,null,null,null,"INSERT INTO dbmanottbe.[dbo].Results_Import ([ImpSerieNum],[ImpPassage],[ImpMedalID],[ImpPoints],[ImpPointsHidden],[ImpCcrsID]) VALUES (,,NULL,NULL,,);"]
[null,null,null,null,null,null,null,null,null,null,null,null,null,null,null,null,null,null,null,null,null,null,"INSERT INTO dbmanottbe.[dbo].Results_Import ([ImpSerieNum],[ImpPassage],[ImpMedalID],[ImpPoints],[ImpPointsHidden],[ImpCcrsID]) VALUES (,,NULL,NULL,,);"]
[null,null,null,null,null,null,null,null,null,null,null,null,null,null,null,null,null,null,null,null,null,null,"INSERT INTO dbmanottbe.[dbo].Results_Import ([ImpSerieNum],[ImpPassage],[ImpMedalID],[ImpPoints],[ImpPointsHidden],[ImpCcrsID]) VALUES (,,NULL,NULL,,);"]
[null,null,null,null,null,null,null,null,null,null,null,null,null,null,null,null,null,null,null,null,null,null,"INSERT INTO dbmanottbe.[dbo].Results_Import ([ImpSerieNum],[ImpPassage],[ImpMedalID],[ImpPoints],[ImpPointsHidden],[ImpCcrsID]) VALUES (,,NULL,NULL,,);"]
[null,null,null,null,null,null,null,null,null,null,null,null,null,null,null,null,null,null,null,null,null,null,"INSERT INTO dbmanottbe.[dbo].Results_Import ([ImpSerieNum],[ImpPassage],[ImpMedalID],[ImpPoints],[ImpPointsHidden],[ImpCcrsID]) VALUES (,,NULL,NULL,,);"]
[null,null,null,null,null,null,null,null,null,null,null,null,null,null,null,null,null,null,null,null,null,null,"INSERT INTO dbmanottbe.[dbo].Results_Import ([ImpSerieNum],[ImpPassage],[ImpMedalID],[ImpPoints],[ImpPointsHidden],[ImpCcrsID]) VALUES (,,NULL,NULL,,);"]
[null,null,null,null,null,null,null,null,null,null,null,null,null,null,null,null,null,null,null,null,null,null,"INSERT INTO dbmanottbe.[dbo].Results_Import ([ImpSerieNum],[ImpPassage],[ImpMedalID],[ImpPoints],[ImpPointsHidden],[ImpCcrsID]) VALUES (,,NULL,NULL,,);"]
[null,null,null,null,null,null,null,null,null,null,null,null,null,null,null,null,null,null,null,null,null,null,"INSERT INTO dbmanottbe.[dbo].Results_Import ([ImpSerieNum],[ImpPassage],[ImpMedalID],[ImpPoints],[ImpPointsHidden],[ImpCcrsID]) VALUES (,,NULL,NULL,,);"]
[null,null,null,null,null,null,null,null,null,null,null,null,null,null,null,null,null,null,null,null,null,null,"INSERT INTO dbmanottbe.[dbo].Results_Import ([ImpSerieNum],[ImpPassage],[ImpMedalID],[ImpPoints],[ImpPointsHidden],[ImpCcrsID]) VALUES (,,NULL,NULL,,);"]
[null,null,null,null,null,null,null,null,null,null,null,null,null,null,null,null,null,null,null,null,null,null,"INSERT INTO dbmanottbe.[dbo].Results_Import ([ImpSerieNum],[ImpPassage],[ImpMedalID],[ImpPoints],[ImpPointsHidden],[ImpCcrsID]) VALUES (,,NULL,NULL,,);"]
[null,null,null,null,null,null,null,null,null,null,null,null,null,null,null,null,null,null,null,null,null,null,"INSERT INTO dbmanottbe.[dbo].Results_Import ([ImpSerieNum],[ImpPassage],[ImpMedalID],[ImpPoints],[ImpPointsHidden],[ImpCcrsID]) VALUES (,,NULL,NULL,,);"]
[null,null,null,null,null,null,null,null,null,null,null,null,null,null,null,null,null,null,null,null,null,null,"INSERT INTO dbmanottbe.[dbo].Results_Import ([ImpSerieNum],[ImpPassage],[ImpMedalID],[ImpPoints],[ImpPointsHidden],[ImpCcrsID]) VALUES (,,NULL,NULL,,);"]
[null,null,null,null,null,null,null,null,null,null,null,null,null,null,null,null,null,null,null,null,null,null,"INSERT INTO dbmanottbe.[dbo].Results_Import ([ImpSerieNum],[ImpPassage],[ImpMedalID],[ImpPoints],[ImpPointsHidden],[ImpCcrsID]) VALUES (,,NULL,NULL,,);"]
[null,null,null,null,null,null,null,null,null,null,null,null,null,null,null,null,null,null,null,null,null,null,"INSERT INTO dbmanottbe.[dbo].Results_Import ([ImpSerieNum],[ImpPassage],[ImpMedalID],[ImpPoints],[ImpPointsHidden],[ImpCcrsID]) VALUES (,,NULL,NULL,,);"]
[null,null,null,null,null,null,null,null,null,null,null,null,null,null,null,null,null,null,null,null,null,null,"INSERT INTO dbmanottbe.[dbo].Results_Import ([ImpSerieNum],[ImpPassage],[ImpMedalID],[ImpPoints],[ImpPointsHidden],[ImpCcrsID]) VALUES (,,NULL,NULL,,);"]
[null,null,null,null,null,null,null,null,null,null,null,null,null,null,null,null,null,null,null,null,null,null,"INSERT INTO dbmanottbe.[dbo].Results_Import ([ImpSerieNum],[ImpPassage],[ImpMedalID],[ImpPoints],[ImpPointsHidden],[ImpCcrsID]) VALUES (,,NULL,NULL,,);"]
[null,null,null,null,null,null,null,null,null,null,null,null,null,null,null,null,null,null,null,null,null,null,"INSERT INTO dbmanottbe.[dbo].Results_Import ([ImpSerieNum],[ImpPassage],[ImpMedalID],[ImpPoints],[ImpPointsHidden],[ImpCcrsID]) VALUES (,,NULL,NULL,,);"]
[null,null,null,null,null,null,null,null,null,null,null,null,null,null,null,null,null,null,null,null,null,null,"INSERT INTO dbmanottbe.[dbo].Results_Import ([ImpSerieNum],[ImpPassage],[ImpMedalID],[ImpPoints],[ImpPointsHidden],[ImpCcrsID]) VALUES (,,NULL,NULL,,);"]
[null,null,null,null,null,null,null,null,null,null,null,null,null,null,null,null,null,null,null,null,null,null,"INSERT INTO dbmanottbe.[dbo].Results_Import ([ImpSerieNum],[ImpPassage],[ImpMedalID],[ImpPoints],[ImpPointsHidden],[ImpCcrsID]) VALUES (,,NULL,NULL,,);"]
[null,null,null,null,null,null,null,null,null,null,null,null,null,null,null,null,null,null,null,null,null,null,"INSERT INTO dbmanottbe.[dbo].Results_Import ([ImpSerieNum],[ImpPassage],[ImpMedalID],[ImpPoints],[ImpPointsHidden],[ImpCcrsID]) VALUES (,,NULL,NULL,,);"]
[null,null,null,null,null,null,null,null,null,null,null,null,null,null,null,null,null,null,null,null,null,null,"INSERT INTO dbmanottbe.[dbo].Results_Import ([ImpSerieNum],[ImpPassage],[ImpMedalID],[ImpPoints],[ImpPointsHidden],[ImpCcrsID]) VALUES (,,NULL,NULL,,);"]
[null,null,null,null,null,null,null,null,null,null,null,null,null,null,null,null,null,null,null,null,null,null,"INSERT INTO dbmanottbe.[dbo].Results_Import ([ImpSerieNum],[ImpPassage],[ImpMedalID],[ImpPoints],[ImpPointsHidden],[ImpCcrsID]) VALUES (,,NULL,NULL,,);"]
[null,null,null,null,null,null,null,null,null,null,null,null,null,null,null,null,null,null,null,null,null,null,"INSERT INTO dbmanottbe.[dbo].Results_Import ([ImpSerieNum],[ImpPassage],[ImpMedalID],[ImpPoints],[ImpPointsHidden],[ImpCcrsID]) VALUES (,,NULL,NULL,,);"]
[null,null,null,null,null,null,null,null,null,null,null,null,null,null,null,null,null,null,null,null,null,null,"INSERT INTO dbmanottbe.[dbo].Results_Import ([ImpSerieNum],[ImpPassage],[ImpMedalID],[ImpPoints],[ImpPointsHidden],[ImpCcrsID]) VALUES (,,NULL,NULL,,);"]
[null,null,null,null,null,null,null,null,null,null,null,null,null,null,null,null,null,null,null,null,null,null,"INSERT INTO dbmanottbe.[dbo].Results_Import ([ImpSerieNum],[ImpPassage],[ImpMedalID],[ImpPoints],[ImpPointsHidden],[ImpCcrsID]) VALUES (,,NULL,NULL,,);"]
[null,null,null,null,null,null,null,null,null,null,null,null,null,null,null,null,null,null,null,null,null,null,"INSERT INTO dbmanottbe.[dbo].Results_Import ([ImpSerieNum],[ImpPassage],[ImpMedalID],[ImpPoints],[ImpPointsHidden],[ImpCcrsID]) VALUES (,,NULL,NULL,,);"]
[null,null,null,null,null,null,null,null,null,null,null,null,null,null,null,null,null,null,null,null,null,null,"INSERT INTO dbmanottbe.[dbo].Results_Import ([ImpSerieNum],[ImpPassage],[ImpMedalID],[ImpPoints],[ImpPointsHidden],[ImpCcrsID]) VALUES (,,NULL,NULL,,);"]
[null,null,null,null,null,null,null,null,null,null,null,null,null,null,null,null,null,null,null,null,null,null,"INSERT INTO dbmanottbe.[dbo].Results_Import ([ImpSerieNum],[ImpPassage],[ImpMedalID],[ImpPoints],[ImpPointsHidden],[ImpCcrsID]) VALUES (,,NULL,NULL,,);"]
[null,null,null,null,null,null,null,null,null,null,null,null,null,null,null,null,null,null,null,null,null,null,"INSERT INTO dbmanottbe.[dbo].Results_Import ([ImpSerieNum],[ImpPassage],[ImpMedalID],[ImpPoints],[ImpPointsHidden],[ImpCcrsID]) VALUES (,,NULL,NULL,,);"]
[null,null,null,null,null,null,null,null,null,null,null,null,null,null,null,null,null,null,null,null,null,null,"INSERT INTO dbmanottbe.[dbo].Results_Import ([ImpSerieNum],[ImpPassage],[ImpMedalID],[ImpPoints],[ImpPointsHidden],[ImpCcrsID]) VALUES (,,NULL,NULL,,);"]
[null,null,null,null,null,null,null,null,null,null,null,null,null,null,null,null,null,null,null,null,null,null,"INSERT INTO dbmanottbe.[dbo].Results_Import ([ImpSerieNum],[ImpPassage],[ImpMedalID],[ImpPoints],[ImpPointsHidden],[ImpCcrsID]) VALUES (,,NULL,NULL,,);"]
[null,null,null,null,null,null,null,null,null,null,null,null,null,null,null,null,null,null,null,null,null,null,"INSERT INTO dbmanottbe.[dbo].Results_Import ([ImpSerieNum],[ImpPassage],[ImpMedalID],[ImpPoints],[ImpPointsHidden],[ImpCcrsID]) VALUES (,,NULL,NULL,,);"]
[null,null,null,null,null,null,null,null,null,null,null,null,null,null,null,null,null,null,null,null,null,null,"INSERT INTO dbmanottbe.[dbo].Results_Import ([ImpSerieNum],[ImpPassage],[ImpMedalID],[ImpPoints],[ImpPointsHidden],[ImpCcrsID]) VALUES (,,NULL,NULL,,);"]
[null,null,null,null,null,null,null,null,null,null,null,null,null,null,null,null,null,null,null,null,null,null,"INSERT INTO dbmanottbe.[dbo].Results_Import ([ImpSerieNum],[ImpPassage],[ImpMedalID],[ImpPoints],[ImpPointsHidden],[ImpCcrsID]) VALUES (,,NULL,NULL,,);"]
[null,null,null,null,null,null,null,null,null,null,null,null,null,null,null,null,null,null,null,null,null,null,"INSERT INTO dbmanottbe.[dbo].Results_Import ([ImpSerieNum],[ImpPassage],[ImpMedalID],[ImpPoints],[ImpPointsHidden],[ImpCcrsID]) VALUES (,,NULL,NULL,,);"]
[null,null,null,null,null,null,null,null,null,null,null,null,null,null,null,null,null,null,null,null,null,null,"INSERT INTO dbmanottbe.[dbo].Results_Import ([ImpSerieNum],[ImpPassage],[ImpMedalID],[ImpPoints],[ImpPointsHidden],[ImpCcrsID]) VALUES (,,NULL,NULL,,);"]
[null,null,null,null,null,null,null,null,null,null,null,null,null,null,null,null,null,null,null,null,null,null,"INSERT INTO dbmanottbe.[dbo].Results_Import ([ImpSerieNum],[ImpPassage],[ImpMedalID],[ImpPoints],[ImpPointsHidden],[ImpCcrsID]) VALUES (,,NULL,NULL,,);"]
[null,null,null,null,null,null,null,null,null,null,null,null,null,null,null,null,null,null,null,null,null,null,"INSERT INTO dbmanottbe.[dbo].Results_Import ([ImpSerieNum],[ImpPassage],[ImpMedalID],[ImpPoints],[ImpPointsHidden],[ImpCcrsID]) VALUES (,,NULL,NULL,,);"]
[null,null,null,null,null,null,null,null,null,null,null,null,null,null,null,null,null,null,null,null,null,null,"INSERT INTO dbmanottbe.[dbo].Results_Import ([ImpSerieNum],[ImpPassage],[ImpMedalID],[ImpPoints],[ImpPointsHidden],[ImpCcrsID]) VALUES (,,NULL,NULL,,);"]
[null,null,null,null,null,null,null,null,null,null,null,null,null,null,null,null,null,null,null,null,null,null,"INSERT INTO dbmanottbe.[dbo].Results_Import ([ImpSerieNum],[ImpPassage],[ImpMedalID],[ImpPoints],[ImpPointsHidden],[ImpCcrsID]) VALUES (,,NULL,NULL,,);"]
[null,null,null,null,null,null,null,null,null,null,null,null,null,null,null,null,null,null,null,null,null,null,{"$f":"\"INSERT INTO \"&$U$2&\" ([ImpSerieNum],[ImpPassage],[ImpMedalID],[ImpPoints],[ImpPointsHidden],[ImpCcrsID]) VALUES (\"&B1539&\",\"&C1539&\",\"&IF(D1539=\"\",\"NULL\",\"'\"&D1539&\"'\")&\",\"&IF(E1539=\"\",\"NULL\",SUBSTITUTE(E1539,\",\",\".\"))&\",\"&SUBSTITUTE(F1539,\",\",\".\")&\",\"&G1539&\");\"","v":"INSERT INTO dbmanottbe.[dbo].Results_Import ([ImpSerieNum],[ImpPassage],[ImpMedalID],[ImpPoints],[ImpPointsHidden],[ImpCcrsID]) VALUES (,,NULL,NULL,,);"}]
[null,null,null,null,null,null,null,null,null,null,null,null,null,null,null,null,null,null,null,null,null,null,"INSERT INTO dbmanottbe.[dbo].Results_Import ([ImpSerieNum],[ImpPassage],[ImpMedalID],[ImpPoints],[ImpPointsHidden],[ImpCcrsID]) VALUES (,,NULL,NULL,,);"]
[null,null,null,null,null,null,null,null,null,null,null,null,null,null,null,null,null,null,null,null,null,null,"INSERT INTO dbmanottbe.[dbo].Results_Import ([ImpSerieNum],[ImpPassage],[ImpMedalID],[ImpPoints],[ImpPointsHidden],[ImpCcrsID]) VALUES (,,NULL,NULL,,);"]
[null,null,null,null,null,null,null,null,null,null,null,null,null,null,null,null,null,null,null,null,null,null,"INSERT INTO dbmanottbe.[dbo].Results_Import ([ImpSerieNum],[ImpPassage],[ImpMedalID],[ImpPoints],[ImpPointsHidden],[ImpCcrsID]) VALUES (,,NULL,NULL,,);"]
[null,null,null,null,null,null,null,null,null,null,null,null,null,null,null,null,null,null,null,null,null,null,"INSERT INTO dbmanottbe.[dbo].Results_Import ([ImpSerieNum],[ImpPassage],[ImpMedalID],[ImpPoints],[ImpPointsHidden],[ImpCcrsID]) VALUES (,,NULL,NULL,,);"]
[null,null,null,null,null,null,null,null,null,null,null,null,null,null,null,null,null,null,null,null,null,null,"INSERT INTO dbmanottbe.[dbo].Results_Import ([ImpSerieNum],[ImpPassage],[ImpMedalID],[ImpPoints],[ImpPointsHidden],[ImpCcrsID]) VALUES (,,NULL,NULL,,);"]
[null,null,null,null,null,null,null,null,null,null,null,null,null,null,null,null,null,null,null,null,null,null,"INSERT INTO dbmanottbe.[dbo].Results_Import ([ImpSerieNum],[ImpPassage],[ImpMedalID],[ImpPoints],[ImpPointsHidden],[ImpCcrsID]) VALUES (,,NULL,NULL,,);"]
[null,null,null,null,null,null,null,null,null,null,null,null,null,null,null,null,null,null,null,null,null,null,"INSERT INTO dbmanottbe.[dbo].Results_Import ([ImpSerieNum],[ImpPassage],[ImpMedalID],[ImpPoints],[ImpPointsHidden],[ImpCcrsID]) VALUES (,,NULL,NULL,,);"]
[null,null,null,null,null,null,null,null,null,null,null,null,null,null,null,null,null,null,null,null,null,null,"INSERT INTO dbmanottbe.[dbo].Results_Import ([ImpSerieNum],[ImpPassage],[ImpMedalID],[ImpPoints],[ImpPointsHidden],[ImpCcrsID]) VALUES (,,NULL,NULL,,);"]
[null,null,null,null,null,null,null,null,null,null,null,null,null,null,null,null,null,null,null,null,null,null,"INSERT INTO dbmanottbe.[dbo].Results_Import ([ImpSerieNum],[ImpPassage],[ImpMedalID],[ImpPoints],[ImpPointsHidden],[ImpCcrsID]) VALUES (,,NULL,NULL,,);"]
[null,null,null,null,null,null,null,null,null,null,null,null,null,null,null,null,null,null,null,null,null,null,"INSERT INTO dbmanottbe.[dbo].Results_Import ([ImpSerieNum],[ImpPassage],[ImpMedalID],[ImpPoints],[ImpPointsHidden],[ImpCcrsID]) VALUES (,,NULL,NULL,,);"]
[null,null,null,null,null,null,null,null,null,null,null,null,null,null,null,null,null,null,null,null,null,null,"INSERT INTO dbmanottbe.[dbo].Results_Import ([ImpSerieNum],[ImpPassage],[ImpMedalID],[ImpPoints],[ImpPointsHidden],[ImpCcrsID]) VALUES (,,NULL,NULL,,);"]
[null,null,null,null,null,null,null,null,null,null,null,null,null,null,null,null,null,null,null,null,null,null,"INSERT INTO dbmanottbe.[dbo].Results_Import ([ImpSerieNum],[ImpPassage],[ImpMedalID],[ImpPoints],[ImpPointsHidden],[ImpCcrsID]) VALUES (,,NULL,NULL,,);"]
[null,null,null,null,null,null,null,null,null,null,null,null,null,null,null,null,null,null,null,null,null,null,"INSERT INTO dbmanottbe.[dbo].Results_Import ([ImpSerieNum],[ImpPassage],[ImpMedalID],[ImpPoints],[ImpPointsHidden],[ImpCcrsID]) VALUES (,,NULL,NULL,,);"]
[null,null,null,null,null,null,null,null,null,null,null,null,null,null,null,null,null,null,null,null,null,null,"INSERT INTO dbmanottbe.[dbo].Results_Import ([ImpSerieNum],[ImpPassage],[ImpMedalID],[ImpPoints],[ImpPointsHidden],[ImpCcrsID]) VALUES (,,NULL,NULL,,);"]
[null,null,null,null,null,null,null,null,null,null,null,null,null,null,null,null,null,null,null,null,null,null,"INSERT INTO dbmanottbe.[dbo].Results_Import ([ImpSerieNum],[ImpPassage],[ImpMedalID],[ImpPoints],[ImpPointsHidden],[ImpCcrsID]) VALUES (,,NULL,NULL,,);"]
[null,null,null,null,null,null,null,null,null,null,null,null,null,null,null,null,null,null,null,null,null,null,"INSERT INTO dbmanottbe.[dbo].Results_Import ([ImpSerieNum],[ImpPassage],[ImpMedalID],[ImpPoints],[ImpPointsHidden],[ImpCcrsID]) VALUES (,,NULL,NULL,,);"]
[null,null,null,null,null,null,null,null,null,null,null,null,null,null,null,null,null,null,null,null,null,null,"INSERT INTO dbmanottbe.[dbo].Results_Import ([ImpSerieNum],[ImpPassage],[ImpMedalID],[ImpPoints],[ImpPointsHidden],[ImpCcrsID]) VALUES (,,NULL,NULL,,);"]
[null,null,null,null,null,null,null,null,null,null,null,null,null,null,null,null,null,null,null,null,null,null,"INSERT INTO dbmanottbe.[dbo].Results_Import ([ImpSerieNum],[ImpPassage],[ImpMedalID],[ImpPoints],[ImpPointsHidden],[ImpCcrsID]) VALUES (,,NULL,NULL,,);"]
[null,null,null,null,null,null,null,null,null,null,null,null,null,null,null,null,null,null,null,null,null,null,"INSERT INTO dbmanottbe.[dbo].Results_Import ([ImpSerieNum],[ImpPassage],[ImpMedalID],[ImpPoints],[ImpPointsHidden],[ImpCcrsID]) VALUES (,,NULL,NULL,,);"]
[null,null,null,null,null,null,null,null,null,null,null,null,null,null,null,null,null,null,null,null,null,null,"INSERT INTO dbmanottbe.[dbo].Results_Import ([ImpSerieNum],[ImpPassage],[ImpMedalID],[ImpPoints],[ImpPointsHidden],[ImpCcrsID]) VALUES (,,NULL,NULL,,);"]
[null,null,null,null,null,null,null,null,null,null,null,null,null,null,null,null,null,null,null,null,null,null,"INSERT INTO dbmanottbe.[dbo].Results_Import ([ImpSerieNum],[ImpPassage],[ImpMedalID],[ImpPoints],[ImpPointsHidden],[ImpCcrsID]) VALUES (,,NULL,NULL,,);"]
[null,null,null,null,null,null,null,null,null,null,null,null,null,null,null,null,null,null,null,null,null,null,"INSERT INTO dbmanottbe.[dbo].Results_Import ([ImpSerieNum],[ImpPassage],[ImpMedalID],[ImpPoints],[ImpPointsHidden],[ImpCcrsID]) VALUES (,,NULL,NULL,,);"]
[null,null,null,null,null,null,null,null,null,null,null,null,null,null,null,null,null,null,null,null,null,null,"INSERT INTO dbmanottbe.[dbo].Results_Import ([ImpSerieNum],[ImpPassage],[ImpMedalID],[ImpPoints],[ImpPointsHidden],[ImpCcrsID]) VALUES (,,NULL,NULL,,);"]
[null,null,null,null,null,null,null,null,null,null,null,null,null,null,null,null,null,null,null,null,null,null,"INSERT INTO dbmanottbe.[dbo].Results_Import ([ImpSerieNum],[ImpPassage],[ImpMedalID],[ImpPoints],[ImpPointsHidden],[ImpCcrsID]) VALUES (,,NULL,NULL,,);"]
[null,null,null,null,null,null,null,null,null,null,null,null,null,null,null,null,null,null,null,null,null,null,"INSERT INTO dbmanottbe.[dbo].Results_Import ([ImpSerieNum],[ImpPassage],[ImpMedalID],[ImpPoints],[ImpPointsHidden],[ImpCcrsID]) VALUES (,,NULL,NULL,,);"]
[null,null,null,null,null,null,null,null,null,null,null,null,null,null,null,null,null,null,null,null,null,null,"INSERT INTO dbmanottbe.[dbo].Results_Import ([ImpSerieNum],[ImpPassage],[ImpMedalID],[ImpPoints],[ImpPointsHidden],[ImpCcrsID]) VALUES (,,NULL,NULL,,);"]
[null,null,null,null,null,null,null,null,null,null,null,null,null,null,null,null,null,null,null,null,null,null,"INSERT INTO dbmanottbe.[dbo].Results_Import ([ImpSerieNum],[ImpPassage],[ImpMedalID],[ImpPoints],[ImpPointsHidden],[ImpCcrsID]) VALUES (,,NULL,NULL,,);"]
[null,null,null,null,null,null,null,null,null,null,null,null,null,null,null,null,null,null,null,null,null,null,"INSERT INTO dbmanottbe.[dbo].Results_Import ([ImpSerieNum],[ImpPassage],[ImpMedalID],[ImpPoints],[ImpPointsHidden],[ImpCcrsID]) VALUES (,,NULL,NULL,,);"]
[null,null,null,null,null,null,null,null,null,null,null,null,null,null,null,null,null,null,null,null,null,null,"INSERT INTO dbmanottbe.[dbo].Results_Import ([ImpSerieNum],[ImpPassage],[ImpMedalID],[ImpPoints],[ImpPointsHidden],[ImpCcrsID]) VALUES (,,NULL,NULL,,);"]
[null,null,null,null,null,null,null,null,null,null,null,null,null,null,null,null,null,null,null,null,null,null,"INSERT INTO dbmanottbe.[dbo].Results_Import ([ImpSerieNum],[ImpPassage],[ImpMedalID],[ImpPoints],[ImpPointsHidden],[ImpCcrsID]) VALUES (,,NULL,NULL,,);"]
[null,null,null,null,null,null,null,null,null,null,null,null,null,null,null,null,null,null,null,null,null,null,"INSERT INTO dbmanottbe.[dbo].Results_Import ([ImpSerieNum],[ImpPassage],[ImpMedalID],[ImpPoints],[ImpPointsHidden],[ImpCcrsID]) VALUES (,,NULL,NULL,,);"]
[null,null,null,null,null,null,null,null,null,null,null,null,null,null,null,null,null,null,null,null,null,null,"INSERT INTO dbmanottbe.[dbo].Results_Import ([ImpSerieNum],[ImpPassage],[ImpMedalID],[ImpPoints],[ImpPointsHidden],[ImpCcrsID]) VALUES (,,NULL,NULL,,);"]
[null,null,null,null,null,null,null,null,null,null,null,null,null,null,null,null,null,null,null,null,null,null,"INSERT INTO dbmanottbe.[dbo].Results_Import ([ImpSerieNum],[ImpPassage],[ImpMedalID],[ImpPoints],[ImpPointsHidden],[ImpCcrsID]) VALUES (,,NULL,NULL,,);"]
[null,null,null,null,null,null,null,null,null,null,null,null,null,null,null,null,null,null,null,null,null,null,"INSERT INTO dbmanottbe.[dbo].Results_Import ([ImpSerieNum],[ImpPassage],[ImpMedalID],[ImpPoints],[ImpPointsHidden],[ImpCcrsID]) VALUES (,,NULL,NULL,,);"]
[null,null,null,null,null,null,null,null,null,null,null,null,null,null,null,null,null,null,null,null,null,null,"INSERT INTO dbmanottbe.[dbo].Results_Import ([ImpSerieNum],[ImpPassage],[ImpMedalID],[ImpPoints],[ImpPointsHidden],[ImpCcrsID]) VALUES (,,NULL,NULL,,);"]
[null,null,null,null,null,null,null,null,null,null,null,null,null,null,null,null,null,null,null,null,null,null,"INSERT INTO dbmanottbe.[dbo].Results_Import ([ImpSerieNum],[ImpPassage],[ImpMedalID],[ImpPoints],[ImpPointsHidden],[ImpCcrsID]) VALUES (,,NULL,NULL,,);"]
[null,null,null,null,null,null,null,null,null,null,null,null,null,null,null,null,null,null,null,null,null,null,"INSERT INTO dbmanottbe.[dbo].Results_Import ([ImpSerieNum],[ImpPassage],[ImpMedalID],[ImpPoints],[ImpPointsHidden],[ImpCcrsID]) VALUES (,,NULL,NULL,,);"]
[null,null,null,null,null,null,null,null,null,null,null,null,null,null,null,null,null,null,null,null,null,null,"INSERT INTO dbmanottbe.[dbo].Results_Import ([ImpSerieNum],[ImpPassage],[ImpMedalID],[ImpPoints],[ImpPointsHidden],[ImpCcrsID]) VALUES (,,NULL,NULL,,);"]
[null,null,null,null,null,null,null,null,null,null,null,null,null,null,null,null,null,null,null,null,null,null,"INSERT INTO dbmanottbe.[dbo].Results_Import ([ImpSerieNum],[ImpPassage],[ImpMedalID],[ImpPoints],[ImpPointsHidden],[ImpCcrsID]) VALUES (,,NULL,NULL,,);"]
[null,null,null,null,null,null,null,null,null,null,null,null,null,null,null,null,null,null,null,null,null,null,"INSERT INTO dbmanottbe.[dbo].Results_Import ([ImpSerieNum],[ImpPassage],[ImpMedalID],[ImpPoints],[ImpPointsHidden],[ImpCcrsID]) VALUES (,,NULL,NULL,,);"]
[null,null,null,null,null,null,null,null,null,null,null,null,null,null,null,null,null,null,null,null,null,null,"INSERT INTO dbmanottbe.[dbo].Results_Import ([ImpSerieNum],[ImpPassage],[ImpMedalID],[ImpPoints],[ImpPointsHidden],[ImpCcrsID]) VALUES (,,NULL,NULL,,);"]
[null,null,null,null,null,null,null,null,null,null,null,null,null,null,null,null,null,null,null,null,null,null,"INSERT INTO dbmanottbe.[dbo].Results_Import ([ImpSerieNum],[ImpPassage],[ImpMedalID],[ImpPoints],[ImpPointsHidden],[ImpCcrsID]) VALUES (,,NULL,NULL,,);"]
[null,null,null,null,null,null,null,null,null,null,null,null,null,null,null,null,null,null,null,null,null,null,"INSERT INTO dbmanottbe.[dbo].Results_Import ([ImpSerieNum],[ImpPassage],[ImpMedalID],[ImpPoints],[ImpPointsHidden],[ImpCcrsID]) VALUES (,,NULL,NULL,,);"]
[null,null,null,null,null,null,null,null,null,null,null,null,null,null,null,null,null,null,null,null,null,null,"INSERT INTO dbmanottbe.[dbo].Results_Import ([ImpSerieNum],[ImpPassage],[ImpMedalID],[ImpPoints],[ImpPointsHidden],[ImpCcrsID]) VALUES (,,NULL,NULL,,);"]
[null,null,null,null,null,null,null,null,null,null,null,null,null,null,null,null,null,null,null,null,null,null,"INSERT INTO dbmanottbe.[dbo].Results_Import ([ImpSerieNum],[ImpPassage],[ImpMedalID],[ImpPoints],[ImpPointsHidden],[ImpCcrsID]) VALUES (,,NULL,NULL,,);"]
[null,null,null,null,null,null,null,null,null,null,null,null,null,null,null,null,null,null,null,null,null,null,"INSERT INTO dbmanottbe.[dbo].Results_Import ([ImpSerieNum],[ImpPassage],[ImpMedalID],[ImpPoints],[ImpPointsHidden],[ImpCcrsID]) VALUES (,,NULL,NULL,,);"]
[null,null,null,null,null,null,null,null,null,null,null,null,null,null,null,null,null,null,null,null,null,null,"INSERT INTO dbmanottbe.[dbo].Results_Import ([ImpSerieNum],[ImpPassage],[ImpMedalID],[ImpPoints],[ImpPointsHidden],[ImpCcrsID]) VALUES (,,NULL,NULL,,);"]
[null,null,null,null,null,null,null,null,null,null,null,null,null,null,null,null,null,null,null,null,null,null,"INSERT INTO dbmanottbe.[dbo].Results_Import ([ImpSerieNum],[ImpPassage],[ImpMedalID],[ImpPoints],[ImpPointsHidden],[ImpCcrsID]) VALUES (,,NULL,NULL,,);"]
[null,null,null,null,null,null,null,null,null,null,null,null,null,null,null,null,null,null,null,null,null,null,"INSERT INTO dbmanottbe.[dbo].Results_Import ([ImpSerieNum],[ImpPassage],[ImpMedalID],[ImpPoints],[ImpPointsHidden],[ImpCcrsID]) VALUES (,,NULL,NULL,,);"]
[null,null,null,null,null,null,null,null,null,null,null,null,null,null,null,null,null,null,null,null,null,null,"INSERT INTO dbmanottbe.[dbo].Results_Import ([ImpSerieNum],[ImpPassage],[ImpMedalID],[ImpPoints],[ImpPointsHidden],[ImpCcrsID]) VALUES (,,NULL,NULL,,);"]
[null,null,null,null,null,null,null,null,null,null,null,null,null,null,null,null,null,null,null,null,null,null,"INSERT INTO dbmanottbe.[dbo].Results_Import ([ImpSerieNum],[ImpPassage],[ImpMedalID],[ImpPoints],[ImpPointsHidden],[ImpCcrsID]) VALUES (,,NULL,NULL,,);"]
[null,null,null,null,null,null,null,null,null,null,null,null,null,null,null,null,null,null,null,null,null,null,"INSERT INTO dbmanottbe.[dbo].Results_Import ([ImpSerieNum],[ImpPassage],[ImpMedalID],[ImpPoints],[ImpPointsHidden],[ImpCcrsID]) VALUES (,,NULL,NULL,,);"]
[null,null,null,null,null,null,null,null,null,null,null,null,null,null,null,null,null,null,null,null,null,null,"INSERT INTO dbmanottbe.[dbo].Results_Import ([ImpSerieNum],[ImpPassage],[ImpMedalID],[ImpPoints],[ImpPointsHidden],[ImpCcrsID]) VALUES (,,NULL,NULL,,);"]
[null,null,null,null,null,null,null,null,null,null,null,null,null,null,null,null,null,null,null,null,null,null,"INSERT INTO dbmanottbe.[dbo].Results_Import ([ImpSerieNum],[ImpPassage],[ImpMedalID],[ImpPoints],[ImpPointsHidden],[ImpCcrsID]) VALUES (,,NULL,NULL,,);"]
[null,null,null,null,null,null,null,null,null,null,null,null,null,null,null,null,null,null,null,null,null,null,"INSERT INTO dbmanottbe.[dbo].Results_Import ([ImpSerieNum],[ImpPassage],[ImpMedalID],[ImpPoints],[ImpPointsHidden],[ImpCcrsID]) VALUES (,,NULL,NULL,,);"]
[null,null,null,null,null,null,null,null,null,null,null,null,null,null,null,null,null,null,null,null,null,null,"INSERT INTO dbmanottbe.[dbo].Results_Import ([ImpSerieNum],[ImpPassage],[ImpMedalID],[ImpPoints],[ImpPointsHidden],[ImpCcrsID]) VALUES (,,NULL,NULL,,);"]
[null,null,null,null,null,null,null,null,null,null,null,null,null,null,null,null,null,null,null,null,null,null,"INSERT INTO dbmanottbe.[dbo].Results_Import ([ImpSerieNum],[ImpPassage],[ImpMedalID],[ImpPoints],[ImpPointsHidden],[ImpCcrsID]) VALUES (,,NULL,NULL,,);"]
[null,null,null,null,null,null,null,null,null,null,null,null,null,null,null,null,null,null,null,null,null,null,"INSERT INTO dbmanottbe.[dbo].Results_Import ([ImpSerieNum],[ImpPassage],[ImpMedalID],[ImpPoints],[ImpPointsHidden],[ImpCcrsID]) VALUES (,,NULL,NULL,,);"]
[null,null,null,null,null,null,null,null,null,null,null,null,null,null,null,null,null,null,null,null,null,null,"INSERT INTO dbmanottbe.[dbo].Results_Import ([ImpSerieNum],[ImpPassage],[ImpMedalID],[ImpPoints],[ImpPointsHidden],[ImpCcrsID]) VALUES (,,NULL,NULL,,);"]
[null,null,null,null,null,null,null,null,null,null,null,null,null,null,null,null,null,null,null,null,null,null,"INSERT INTO dbmanottbe.[dbo].Results_Import ([ImpSerieNum],[ImpPassage],[ImpMedalID],[ImpPoints],[ImpPointsHidden],[ImpCcrsID]) VALUES (,,NULL,NULL,,);"]
[null,null,null,null,null,null,null,null,null,null,null,null,null,null,null,null,null,null,null,null,null,null,"INSERT INTO dbmanottbe.[dbo].Results_Import ([ImpSerieNum],[ImpPassage],[ImpMedalID],[ImpPoints],[ImpPointsHidden],[ImpCcrsID]) VALUES (,,NULL,NULL,,);"]
[null,null,null,null,null,null,null,null,null,null,null,null,null,null,null,null,null,null,null,null,null,null,"INSERT INTO dbmanottbe.[dbo].Results_Import ([ImpSerieNum],[ImpPassage],[ImpMedalID],[ImpPoints],[ImpPointsHidden],[ImpCcrsID]) VALUES (,,NULL,NULL,,);"]
[null,null,null,null,null,null,null,null,null,null,null,null,null,null,null,null,null,null,null,null,null,null,"INSERT INTO dbmanottbe.[dbo].Results_Import ([ImpSerieNum],[ImpPassage],[ImpMedalID],[ImpPoints],[ImpPointsHidden],[ImpCcrsID]) VALUES (,,NULL,NULL,,);"]
[null,null,null,null,null,null,null,null,null,null,null,null,null,null,null,null,null,null,null,null,null,null,{"$f":"\"INSERT INTO \"&$U$2&\" ([ImpSerieNum],[ImpPassage],[ImpMedalID],[ImpPoints],[ImpPointsHidden],[ImpCcrsID]) VALUES (\"&B1603&\",\"&C1603&\",\"&IF(D1603=\"\",\"NULL\",\"'\"&D1603&\"'\")&\",\"&IF(E1603=\"\",\"NULL\",SUBSTITUTE(E1603,\",\",\".\"))&\",\"&SUBSTITUTE(F1603,\",\",\".\")&\",\"&G1603&\");\"","v":"INSERT INTO dbmanottbe.[dbo].Results_Import ([ImpSerieNum],[ImpPassage],[ImpMedalID],[ImpPoints],[ImpPointsHidden],[ImpCcrsID]) VALUES (,,NULL,NULL,,);"}]
[null,null,null,null,null,null,null,null,null,null,null,null,null,null,null,null,null,null,null,null,null,null,"INSERT INTO dbmanottbe.[dbo].Results_Import ([ImpSerieNum],[ImpPassage],[ImpMedalID],[ImpPoints],[ImpPointsHidden],[ImpCcrsID]) VALUES (,,NULL,NULL,,);"]
[null,null,null,null,null,null,null,null,null,null,null,null,null,null,null,null,null,null,null,null,null,null,"INSERT INTO dbmanottbe.[dbo].Results_Import ([ImpSerieNum],[ImpPassage],[ImpMedalID],[ImpPoints],[ImpPointsHidden],[ImpCcrsID]) VALUES (,,NULL,NULL,,);"]
[null,null,null,null,null,null,null,null,null,null,null,null,null,null,null,null,null,null,null,null,null,null,"INSERT INTO dbmanottbe.[dbo].Results_Import ([ImpSerieNum],[ImpPassage],[ImpMedalID],[ImpPoints],[ImpPointsHidden],[ImpCcrsID]) VALUES (,,NULL,NULL,,);"]
[null,null,null,null,null,null,null,null,null,null,null,null,null,null,null,null,null,null,null,null,null,null,"INSERT INTO dbmanottbe.[dbo].Results_Import ([ImpSerieNum],[ImpPassage],[ImpMedalID],[ImpPoints],[ImpPointsHidden],[ImpCcrsID]) VALUES (,,NULL,NULL,,);"]
[null,null,null,null,null,null,null,null,null,null,null,null,null,null,null,null,null,null,null,null,null,null,"INSERT INTO dbmanottbe.[dbo].Results_Import ([ImpSerieNum],[ImpPassage],[ImpMedalID],[ImpPoints],[ImpPointsHidden],[ImpCcrsID]) VALUES (,,NULL,NULL,,);"]
[null,null,null,null,null,null,null,null,null,null,null,null,null,null,null,null,null,null,null,null,null,null,"INSERT INTO dbmanottbe.[dbo].Results_Import ([ImpSerieNum],[ImpPassage],[ImpMedalID],[ImpPoints],[ImpPointsHidden],[ImpCcrsID]) VALUES (,,NULL,NULL,,);"]
[null,null,null,null,null,null,null,null,null,null,null,null,null,null,null,null,null,null,null,null,null,null,"INSERT INTO dbmanottbe.[dbo].Results_Import ([ImpSerieNum],[ImpPassage],[ImpMedalID],[ImpPoints],[ImpPointsHidden],[ImpCcrsID]) VALUES (,,NULL,NULL,,);"]
[null,null,null,null,null,null,null,null,null,null,null,null,null,null,null,null,null,null,null,null,null,null,"INSERT INTO dbmanottbe.[dbo].Results_Import ([ImpSerieNum],[ImpPassage],[ImpMedalID],[ImpPoints],[ImpPointsHidden],[ImpCcrsID]) VALUES (,,NULL,NULL,,);"]
[null,null,null,null,null,null,null,null,null,null,null,null,null,null,null,null,null,null,null,null,null,null,"INSERT INTO dbmanottbe.[dbo].Results_Import ([ImpSerieNum],[ImpPassage],[ImpMedalID],[ImpPoints],[ImpPointsHidden],[ImpCcrsID]) VALUES (,,NULL,NULL,,);"]
[null,null,null,null,null,null,null,null,null,null,null,null,null,null,null,null,null,null,null,null,null,null,"INSERT INTO dbmanottbe.[dbo].Results_Import ([ImpSerieNum],[ImpPassage],[ImpMedalID],[ImpPoints],[ImpPointsHidden],[ImpCcrsID]) VALUES (,,NULL,NULL,,);"]
[null,null,null,null,null,null,null,null,null,null,null,null,null,null,null,null,null,null,null,null,null,null,"INSERT INTO dbmanottbe.[dbo].Results_Import ([ImpSerieNum],[ImpPassage],[ImpMedalID],[ImpPoints],[ImpPointsHidden],[ImpCcrsID]) VALUES (,,NULL,NULL,,);"]
[null,null,null,null,null,null,null,null,null,null,null,null,null,null,null,null,null,null,null,null,null,null,"INSERT INTO dbmanottbe.[dbo].Results_Import ([ImpSerieNum],[ImpPassage],[ImpMedalID],[ImpPoints],[ImpPointsHidden],[ImpCcrsID]) VALUES (,,NULL,NULL,,);"]
[null,null,null,null,null,null,null,null,null,null,null,null,null,null,null,null,null,null,null,null,null,null,"INSERT INTO dbmanottbe.[dbo].Results_Import ([ImpSerieNum],[ImpPassage],[ImpMedalID],[ImpPoints],[ImpPointsHidden],[ImpCcrsID]) VALUES (,,NULL,NULL,,);"]
[null,null,null,null,null,null,null,null,null,null,null,null,null,null,null,null,null,null,null,null,null,null,"INSERT INTO dbmanottbe.[dbo].Results_Import ([ImpSerieNum],[ImpPassage],[ImpMedalID],[ImpPoints],[ImpPointsHidden],[ImpCcrsID]) VALUES (,,NULL,NULL,,);"]
[null,null,null,null,null,null,null,null,null,null,null,null,null,null,null,null,null,null,null,null,null,null,"INSERT INTO dbmanottbe.[dbo].Results_Import ([ImpSerieNum],[ImpPassage],[ImpMedalID],[ImpPoints],[ImpPointsHidden],[ImpCcrsID]) VALUES (,,NULL,NULL,,);"]
[null,null,null,null,null,null,null,null,null,null,null,null,null,null,null,null,null,null,null,null,null,null,"INSERT INTO dbmanottbe.[dbo].Results_Import ([ImpSerieNum],[ImpPassage],[ImpMedalID],[ImpPoints],[ImpPointsHidden],[ImpCcrsID]) VALUES (,,NULL,NULL,,);"]
[null,null,null,null,null,null,null,null,null,null,null,null,null,null,null,null,null,null,null,null,null,null,"INSERT INTO dbmanottbe.[dbo].Results_Import ([ImpSerieNum],[ImpPassage],[ImpMedalID],[ImpPoints],[ImpPointsHidden],[ImpCcrsID]) VALUES (,,NULL,NULL,,);"]
[null,null,null,null,null,null,null,null,null,null,null,null,null,null,null,null,null,null,null,null,null,null,"INSERT INTO dbmanottbe.[dbo].Results_Import ([ImpSerieNum],[ImpPassage],[ImpMedalID],[ImpPoints],[ImpPointsHidden],[ImpCcrsID]) VALUES (,,NULL,NULL,,);"]
[null,null,null,null,null,null,null,null,null,null,null,null,null,null,null,null,null,null,null,null,null,null,"INSERT INTO dbmanottbe.[dbo].Results_Import ([ImpSerieNum],[ImpPassage],[ImpMedalID],[ImpPoints],[ImpPointsHidden],[ImpCcrsID]) VALUES (,,NULL,NULL,,);"]
[null,null,null,null,null,null,null,null,null,null,null,null,null,null,null,null,null,null,null,null,null,null,"INSERT INTO dbmanottbe.[dbo].Results_Import ([ImpSerieNum],[ImpPassage],[ImpMedalID],[ImpPoints],[ImpPointsHidden],[ImpCcrsID]) VALUES (,,NULL,NULL,,);"]
[null,null,null,null,null,null,null,null,null,null,null,null,null,null,null,null,null,null,null,null,null,null,"INSERT INTO dbmanottbe.[dbo].Results_Import ([ImpSerieNum],[ImpPassage],[ImpMedalID],[ImpPoints],[ImpPointsHidden],[ImpCcrsID]) VALUES (,,NULL,NULL,,);"]
[null,null,null,null,null,null,null,null,null,null,null,null,null,null,null,null,null,null,null,null,null,null,"INSERT INTO dbmanottbe.[dbo].Results_Import ([ImpSerieNum],[ImpPassage],[ImpMedalID],[ImpPoints],[ImpPointsHidden],[ImpCcrsID]) VALUES (,,NULL,NULL,,);"]
[null,null,null,null,null,null,null,null,null,null,null,null,null,null,null,null,null,null,null,null,null,null,"INSERT INTO dbmanottbe.[dbo].Results_Import ([ImpSerieNum],[ImpPassage],[ImpMedalID],[ImpPoints],[ImpPointsHidden],[ImpCcrsID]) VALUES (,,NULL,NULL,,);"]
[null,null,null,null,null,null,null,null,null,null,null,null,null,null,null,null,null,null,null,null,null,null,"INSERT INTO dbmanottbe.[dbo].Results_Import ([ImpSerieNum],[ImpPassage],[ImpMedalID],[ImpPoints],[ImpPointsHidden],[ImpCcrsID]) VALUES (,,NULL,NULL,,);"]
[null,null,null,null,null,null,null,null,null,null,null,null,null,null,null,null,null,null,null,null,null,null,"INSERT INTO dbmanottbe.[dbo].Results_Import ([ImpSerieNum],[ImpPassage],[ImpMedalID],[ImpPoints],[ImpPointsHidden],[ImpCcrsID]) VALUES (,,NULL,NULL,,);"]
[null,null,null,null,null,null,null,null,null,null,null,null,null,null,null,null,null,null,null,null,null,null,"INSERT INTO dbmanottbe.[dbo].Results_Import ([ImpSerieNum],[ImpPassage],[ImpMedalID],[ImpPoints],[ImpPointsHidden],[ImpCcrsID]) VALUES (,,NULL,NULL,,);"]
[null,null,null,null,null,null,null,null,null,null,null,null,null,null,null,null,null,null,null,null,null,null,"INSERT INTO dbmanottbe.[dbo].Results_Import ([ImpSerieNum],[ImpPassage],[ImpMedalID],[ImpPoints],[ImpPointsHidden],[ImpCcrsID]) VALUES (,,NULL,NULL,,);"]
[null,null,null,null,null,null,null,null,null,null,null,null,null,null,null,null,null,null,null,null,null,null,"INSERT INTO dbmanottbe.[dbo].Results_Import ([ImpSerieNum],[ImpPassage],[ImpMedalID],[ImpPoints],[ImpPointsHidden],[ImpCcrsID]) VALUES (,,NULL,NULL,,);"]
[null,null,null,null,null,null,null,null,null,null,null,null,null,null,null,null,null,null,null,null,null,null,"INSERT INTO dbmanottbe.[dbo].Results_Import ([ImpSerieNum],[ImpPassage],[ImpMedalID],[ImpPoints],[ImpPointsHidden],[ImpCcrsID]) VALUES (,,NULL,NULL,,);"]
[null,null,null,null,null,null,null,null,null,null,null,null,null,null,null,null,null,null,null,null,null,null,"INSERT INTO dbmanottbe.[dbo].Results_Import ([ImpSerieNum],[ImpPassage],[ImpMedalID],[ImpPoints],[ImpPointsHidden],[ImpCcrsID]) VALUES (,,NULL,NULL,,);"]
[null,null,null,null,null,null,null,null,null,null,null,null,null,null,null,null,null,null,null,null,null,null,"INSERT INTO dbmanottbe.[dbo].Results_Import ([ImpSerieNum],[ImpPassage],[ImpMedalID],[ImpPoints],[ImpPointsHidden],[ImpCcrsID]) VALUES (,,NULL,NULL,,);"]

{"sheet":"Template FBC","index":2,"n_rows":7,"n_cols":20,"rows_kept":7,"cut":false,"hidden":true,"merged":[[0,3,0,6],[2,3,2,6],[5,6,5,8]]}
[null,null,null,"France Bière Challenge",null,null,null,null,"Jury :",null,{"$f":"IF($M$1<L1,\"-\",IFERROR(LARGE($J$7:$J$196,L1),\"-\"))","v":0},1,{"$f":"COUNTA($L$7:$L$77)","v":1},"NbSample",null,null,null,null,null,"Series"]
[null,null,null,null,null,null,null,null,"Date :",null,{"$f":"IF($M$1<L2,\"-\",IFERROR(LARGE($J$7:$J$196,L2),\"-\"))","v":"-"},2,0,"Min pour discussion"]
[null,null,null,null,null,null,null,null,"Série :",null,{"$f":"IF($M$1<L3,\"-\",IFERROR(LARGE($J$7:$J$196,L3),\"-\"))","v":"-"},3,{"$f":"IF(M6=\"\",\"\",IF(COUNTA($L$7:$L$77)-COUNTA(M$7:M$77)=0,\"\",COUNTA($L$7:$L$77)-COUNTA(M$7:M$77)))","v":""},"","","","","","",""]
[null,null,null,null,null,null,null,null,null,null,{"$f":"IF($M$1<L4,\"-\",IFERROR(LARGE($J$7:$J$196,L4),\"-\"))","v":"-"},4]
[null,"Or","Argent"," Bronze",null,"Sans médaille",null,null,null,null,null,null," "," "," "," "," "," "," "," "]
["Sample","O","A","B",null,null,"Comment",null,null,"Winsorized","Medal","Sample"]
[1,{"$f":"IF($M$1>=$M$2,IFERROR(IF($J7>=$K$4,B$6,\"\"),\"\"),IF($K7=B$6,$K7,\"\"))","v":""},{"$f":"IF($M$1>=$M$2,IFERROR(IF($J7>=$K$4,C$6,\"\"),\"\"),IF($K7=C$6,$K7,\"\"))","v":""},{"$f":"IF($M$1>=$M$2,IFERROR(IF($J7>=$K$4,D$6,\"\"),\"\"),IF($K7=D$6,$K7,\"\"))","v":""},null,null,null,null,null,{"$f":"IF(COUNT(M7:T7)<2,0,ROUND((SUM(M7:T7)-LARGE(M7:T7,1)-SMALL(M7:T7,1)+LARGE(M7:T7,2)+SMALL(M7:T7,2))/COUNT(M7:T7),1))","v":0},null,{"$f":"A7","v":1}]

{"sheet":"Template BBC","index":3,"n_rows":7,"n_cols":20,"rows_kept":7,"cut":false,"hidden":true,"merged":[[0,3,0,6],[2,3,2,6],[5,6,5,8]]}
[null,null,null,null,null,null,null,null,"Jury :",null,{"$f":"IF($M$1<L1,\"-\",IFERROR(LARGE($J$7:$J$196,L1),\"-\"))","v":0},1,{"$f":"COUNTA($L$7:$L$77)","v":1},"NbSample",null,null,null,null,null,"Series"]
[null,null,null,null,null,null,null,null,"Date :",null,{"$f":"IF($M$1<L2,\"-\",IFERROR(LARGE($J$7:$J$196,L2),\"-\"))","v":"-"},2,0,"Min pour discussion"]
[null,null,null,null,null,null,null,null,"Flight : ",null,{"$f":"IF($M$1<L3,\"-\",IFERROR(LARGE($J$7:$J$196,L3),\"-\"))","v":"-"},3,{"$f":"IF(M6=\"\",\"\",IF(COUNTA($L$7:$L$77)-COUNTA(M$7:M$77)=0,\"\",COUNTA($L$7:$L$77)-COUNTA(M$7:M$77)))","v":""},"","","","","","",""]
[null,null,null,null,null,null,null,null,null,null,{"$f":"IF($M$1<L4,\"-\",IFERROR(LARGE($J$7:$J$196,L4),\"-\"))","v":"-"},4]
[null," Gold"," Silver"," Bronze","No medal",null,null,null,null,null,null,null," "," "," "," "," "," "," "," "]
["Sample","G","S","B","No",null,"Comment",null,null,"Winsorized","Medal","Sample"]
[1,{"$f":"IF($M$1>=$M$2,IFERROR(IF($J7>=$K$4,B$6,\"\"),\"\"),IF($K7=B$6,$K7,\"\"))","v":""},{"$f":"IF($M$1>=$M$2,IFERROR(IF($J7>=$K$4,C$6,\"\"),\"\"),IF($K7=C$6,$K7,\"\"))","v":""},{"$f":"IF($M$1>=$M$2,IFERROR(IF($J7>=$K$4,D$6,\"\"),\"\"),IF($K7=D$6,$K7,\"\"))","v":""},null,null,null,null,null,{"$f":"IF(COUNT(M7:T7)<2,0,ROUND((SUM(M7:T7)-LARGE(M7:T7,1)-SMALL(M7:T7,1)+LARGE(M7:T7,2)+SMALL(M7:T7,2))/COUNT(M7:T7),1))","v":0},null,{"$f":"A7","v":1}]

{"sheet":"Template Spirits","index":4,"n_rows":7,"n_cols":20,"rows_kept":7,"cut":false,"hidden":true,"merged":[[0,3,0,6],[1,3,1,6],[2,3,2,6],[5,5,5,8]]}
[null,null,null,"Spirits Selection",null,null,null,null,"Jury :",null,{"$f":"IF($M$1<L1,\"-\",IFERROR(LARGE($J$7:$J$196,L1),\"-\"))","v":0},1,{"$f":"COUNTA($L$7:$L$77)","v":1},"NbSample",null,null,null,null,null,"Series"]
[null,null,null,"by Concours Mondial",null,null,null,null,"Date :",null,{"$f":"IF($M$1<L2,\"-\",IFERROR(LARGE($J$7:$J$196,L2),\"-\"))","v":"-"},2,0,"Min pour discussion"]
[null,null,null,null,null,null,null,null,"Flight : ",null,{"$f":"IF($M$1<L3,\"-\",IFERROR(LARGE($J$7:$J$196,L3),\"-\"))","v":"-"},3,{"$f":"IF(M6=\"\",\"\",IF(COUNTA($L$7:$L$77)-COUNTA(M$7:M$77)=0,\"\",COUNTA($L$7:$L$77)-COUNTA(M$7:M$77)))","v":""},"","","","","","",""]
[null,null,null,null,null,null,null,null,null,null,{"$f":"IF($M$1<L4,\"-\",IFERROR(LARGE($J$7:$J$196,L4),\"-\"))","v":"-"},4]
[null,"Grand Gold Medal","Gold Medal","Silver Medal","No medal",null,null,null,null,null,null,null," "," "," "," "," "," "," "," "]
["Sample","G","O","A","No","Comment",null,null,null,"Winsorized","Medal","Sample"]
[1,{"$f":"IF($M$1>=$M$2,IFERROR(IF($J7>=$K$4,B$6,\"\"),\"\"),IF($K7=B$6,$K7,\"\"))","v":""},{"$f":"IF($M$1>=$M$2,IFERROR(IF($J7>=$K$4,C$6,\"\"),\"\"),IF($K7=C$6,$K7,\"\"))","v":""},{"$f":"IF($M$1>=$M$2,IFERROR(IF($J7>=$K$4,D$6,\"\"),\"\"),IF($K7=D$6,$K7,\"\"))","v":""},"No",{"$f":"IF(COUNTA($M$6:$T$6)-COUNTA(M7:T7)=0,\"\",\"Missing : \"&COUNTA($M$6:$T$6)-COUNTA(M7:T7))","v":""},null,null,null,{"$f":"IF(COUNT(M7:T7)<2,0,ROUND((SUM(M7:T7)-LARGE(M7:T7,1)-SMALL(M7:T7,1)+LARGE(M7:T7,2)+SMALL(M7:T7,2))/COUNT(M7:T7),1))","v":0},null,{"$f":"A7","v":1}]

{"sheet":"Template Sake","index":5,"n_rows":7,"n_cols":20,"rows_kept":7,"cut":false,"hidden":true,"merged":[[0,3,0,6],[1,3,1,6],[2,3,2,6],[5,5,5,8]]}
[null,null,null,"Sake Selection",null,null,null,null,"Jury :",null,{"$f":"IF($M$1<L1,\"-\",IFERROR(LARGE($J$7:$J$196,L1),\"-\"))","v":0},1,{"$f":"COUNTA($L$7:$L$77)","v":1},"NbSample",null,null,null,null,null,"Series"]
[null,null,null,"by Concours Mondial",null,null,null,null,"Date :",null,{"$f":"IF($M$1<L2,\"-\",IFERROR(LARGE($J$7:$J$196,L2),\"-\"))","v":"-"},2,0,"Min pour discussion"]
[null,null,null,null,null,null,null,null,"Flight : ",null,{"$f":"IF($M$1<L3,\"-\",IFERROR(LARGE($J$7:$J$196,L3),\"-\"))","v":"-"},3,{"$f":"IF(M6=\"\",\"\",IF(COUNTA($L$7:$L$77)-COUNTA(M$7:M$77)=0,\"\",COUNTA($L$7:$L$77)-COUNTA(M$7:M$77)))","v":""},"","","","","","",""]
[null,null,null,null,null,null,null,null,null,null,{"$f":"IF($M$1<L4,\"-\",IFERROR(LARGE($J$7:$J$196,L4),\"-\"))","v":"-"},4]
[null,"Platinum Masu","Golden Masu","Silver Masu","No award",null,null,null,null,null,null,null," "," "," "," "," "," "," "," "]
["Sample","P","G","S","No","Comment",null,null,null,"Winsorized","Medal","Sample"]
[1,{"$f":"IF($M$1>=$M$2,IFERROR(IF($J7>=$K$4,B$6,\"\"),\"\"),IF($K7=B$6,$K7,\"\"))","v":""},{"$f":"IF($M$1>=$M$2,IFERROR(IF($J7>=$K$4,C$6,\"\"),\"\"),IF($K7=C$6,$K7,\"\"))","v":""},{"$f":"IF($M$1>=$M$2,IFERROR(IF($J7>=$K$4,D$6,\"\"),\"\"),IF($K7=D$6,$K7,\"\"))","v":""},"No",{"$f":"IF(COUNTA($M$6:$T$6)-COUNTA(M7:T7)=0,\"\",\"Missing : \"&COUNTA($M$6:$T$6)-COUNTA(M7:T7))","v":""},null,null,null,{"$f":"IF(COUNT(M7:T7)<2,0,ROUND((SUM(M7:T7)-LARGE(M7:T7,1)-SMALL(M7:T7,1)+LARGE(M7:T7,2)+SMALL(M7:T7,2))/COUNT(M7:T7),1))","v":0},null,{"$f":"A7","v":1}]

{"sheet":"Template DBC","index":6,"n_rows":7,"n_cols":20,"rows_kept":7,"cut":false,"hidden":false,"merged":[[0,3,0,6],[1,3,1,6],[2,3,2,6],[5,5,5,8]]}
[null,null,null,"Dutch Beer Challenge",null,null,null,null,"Jury :",null,{"$f":"IF($M$1<L1,\"-\",IFERROR(LARGE($J$7:$J$196,L1),\"-\"))","v":0},1,{"$f":"COUNTA($L$7:$L$77)","v":1},"NbSample",null,null,null,null,null,"Series"]
[null,null,null,null,null,null,null,null,"Date :",null,{"$f":"IF($M$1<L2,\"-\",IFERROR(LARGE($J$7:$J$196,L2),\"-\"))","v":"-"},2,0,"Min pour discussion"]
[null,null,null,null,null,null,null,null,"Flight : ",null,{"$f":"IF($M$1<L3,\"-\",IFERROR(LARGE($J$7:$J$196,L3),\"-\"))","v":"-"},3,{"$f":"IF(M6=\"\",\"\",IF(COUNTA($L$7:$L$77)-COUNTA(M$7:M$77)=0,\"\",COUNTA($L$7:$L$77)-COUNTA(M$7:M$77)))","v":""},"","","","","","",""]
[null,null,null,null,null,null,null,null,null,null,{"$f":"IF($M$1<L4,\"-\",IFERROR(LARGE($J$7:$J$196,L4),\"-\"))","v":"-"},4]
[null," Gold"," Silver"," Bronze","No medal",null,null,null,null,null,null,null," "," "," "," "," "," "," "," "]
["Sample","G","S","B","No","Comment",null,null,null,"Winsorized","Medal","Sample"]
[1,{"$f":"IF($M$1>=$M$2,IFERROR(IF($J7>=$K$4,B$6,\"\"),\"\"),IF($K7=B$6,$K7,\"\"))","v":""},{"$f":"IF($M$1>=$M$2,IFERROR(IF($J7>=$K$4,C$6,\"\"),\"\"),IF($K7=C$6,$K7,\"\"))","v":""},{"$f":"IF($M$1>=$M$2,IFERROR(IF($J7>=$K$4,D$6,\"\"),\"\"),IF($K7=D$6,$K7,\"\"))","v":""},"No",{"$f":"IF(COUNTA($M$6:$T$6)-COUNTA(M7:T7)=0,\"\",\"Missing : \"&COUNTA($M$6:$T$6)-COUNTA(M7:T7))","v":""},null,null,null,{"$f":"IF(COUNT(M7:T7)<2,0,ROUND((SUM(M7:T7)-LARGE(M7:T7,1)-SMALL(M7:T7,1)+LARGE(M7:T7,2)+SMALL(M7:T7,2))/COUNT(M7:T7),1))","v":0},null,{"$f":"A7","v":1}]

{"sheet":"Template AWS","index":7,"n_rows":7,"n_cols":20,"rows_kept":7,"cut":false,"hidden":true,"merged":[[0,3,0,6],[1,3,1,6],[2,3,2,6],[5,5,5,8]]}
[null,null,null,"Asian Wine and Spirits",null,null,null,null,"Jury :",null,{"$f":"IF($M$1<L1,\"-\",IFERROR(LARGE($J$7:$J$196,L1),\"-\"))","v":0},1,{"$f":"COUNTA($L$7:$L$77)","v":1},"NbSample",null,null,null,null,null,"Series"]
[null,null,null,2016,null,null,null,null,"Date :",null,{"$f":"IF($M$1<L2,\"-\",IFERROR(LARGE($J$7:$J$196,L2),\"-\"))","v":"-"},2,0,"Min pour discussion"]
[null,null,null,null,null,null,null,null,"Flight : ",null,{"$f":"IF($M$1<L3,\"-\",IFERROR(LARGE($J$7:$J$196,L3),\"-\"))","v":"-"},3,{"$f":"IF(M6=\"\",\"\",IF(COUNTA($L$7:$L$77)-COUNTA(M$7:M$77)=0,\"\",COUNTA($L$7:$L$77)-COUNTA(M$7:M$77)))","v":""},"","","","","","",""]
[null,null,null,null,null,null,null,null,null,null,{"$f":"IF($M$1<L4,\"-\",IFERROR(LARGE($J$7:$J$196,L4),\"-\"))","v":"-"},4]
[null," Gold"," Silver"," Bronze","No medal",null,null,null,null,null,null,null," "," "," "," "," "," "," "," "]
["Sample","G","S","B","No","Comment",null,null,null,"Winsorized","Medal","Sample"]
[1,{"$f":"IF($M$1>=$M$2,IFERROR(IF($J7>=$K$4,B$6,\"\"),\"\"),IF($K7=B$6,$K7,\"\"))","v":""},{"$f":"IF($M$1>=$M$2,IFERROR(IF($J7>=$K$4,C$6,\"\"),\"\"),IF($K7=C$6,$K7,\"\"))","v":""},{"$f":"IF($M$1>=$M$2,IFERROR(IF($J7>=$K$4,D$6,\"\"),\"\"),IF($K7=D$6,$K7,\"\"))","v":""},"No",{"$f":"IF(COUNTA($M$6:$T$6)-COUNTA(M7:T7)=0,\"\",\"Missing : \"&COUNTA($M$6:$T$6)-COUNTA(M7:T7))","v":""},null,null,null,{"$f":"IF(COUNT(M7:T7)<2,0,ROUND((SUM(M7:T7)-LARGE(M7:T7,1)-SMALL(M7:T7,1)+LARGE(M7:T7,2)+SMALL(M7:T7,2))/COUNT(M7:T7),1))","v":0},null,{"$f":"A7","v":1}]

{"sheet":"Tasters","index":8,"n_rows":44,"n_cols":10,"rows_kept":44,"cut":false,"hidden":false,"merged":[]}
["Jour","Num","Prenom","Nom","PaysIso","JuryNum","Type","ConcoursID","Data from :","Series_Spirits_Tasters"]
[1,100,"Michael","Simon","NL",2,"Beer",115]
[1,101,"Sander","van Werkhoven","NL",3,"Beer",115]
[1,102,"Fiona","de Lange","NL",8,"Beer",115]
[1,103,"Sanne","Carbaat","NL",3,"Beer",115]
[1,104,"Mark","Van Bergen","NL",4,"Beer",115]
[1,105,"Erik","Schnickers","NL",9,"Beer",115]
[1,106,"Piet","Tuinema","NL",7,"Beer",115]
[1,107,"Frank","Boon","BE",6,"Beer",115]
[1,108,"Puck","Kerkhoven","NL",1,"Beer",115]
[1,109,"Harrie","Baas","NL",6,"Beer",115]
[1,110,"Luisa","Schroën","NL",2,"Beer",115]
[1,111,"Richard","Moerkerk","NL",7,"Beer",115]
[1,112,"Jasper","Borgdorff","NL",10,"Beer",115]
[1,113,"Frans","Ruiter","NL",6,"Beer",115]
[1,114,"Maurus","Wijman","NL",9,"Beer",115]
[1,115,"Kim","Sonneveld","NL",7,"Beer",115]
[1,116,"Taco","Zuidema","NL",2,"Beer",115]
[1,117,"Ben","Floren","BE",5,"Beer",115]
[1,118,"Guillaume","De Landtsheer","BE",1,"Beer",115]
[1,119,"Tina","Rogers","NL",9,"Beer",115]
[1,120,"John","Schut","NL",10,"Beer",115]
[1,121,"Aad","Westdijk","NL",8,"Beer",115]
[1,122,"Nathan","Hak","NL",1,"Beer",115]
[1,123,"Arvid","Bergström","NL",7,"Beer",115]
[1,124,"Marco","Philipsen","NL",1,"Beer",115]
[1,125,"Tim","Skelton","GB",2,"Beer",115]
[1,126,"Ivo","Thijssen","NL",3,"Beer",115]
[1,127,"Fedor","Vogel","NL",5,"Beer",115]
[1,128,"Raymond","Van der Laan","NL",8,"Beer",115]
[1,129,"Yannick","de Cocqueau","BE",2,"Beer",115]
[1,130,"Jacob","Linden","SE",4,"Beer",115]
[1,131,"Bas","Schampers","NL",8,"Beer",115]
[1,132,"Anneke","Staals","NL",10,"Beer",115]
[1,133,"Ferry","Wijnhoven","NL",10,"Beer",115]
[1,134,"Boukje","Koop","NL",6,"Beer",115]
[1,135,"Maaike","Zilverberg","NL",4,"Beer",115]
[1,136,"Karen","Follens","BE",4,"Beer",115]
[1,137,"Rob","Alphenaar","NL",9,"Beer",115]
[1,139,"Jan Machiel","Van Bragt","NL",3,"Beer",115]
[1,140,"Yu","Mey Kwee","NL",5,"Beer",115]
[1,141,"Gerard","Molenaar","NL",4,"Beer",115]
[1,142,"Ton","Van Opstal","NL",5,"Beer",115]
[1,143,"Gino","Baart","BE",1,"Beer",115]

{"sheet":"Series","index":9,"n_rows":35,"n_cols":12,"rows_kept":35,"cut":false,"hidden":false,"merged":[]}
["SeriID","SeriNum","SeriName","NbInscr","JuryID","JuryNum","DateID","DateNum","DateHeure","DateOrdre","SplitForTasting","ConcoursID"]
[3472,101,"Blond : Pils",25,311,8,400,1]
[3473,102,"Blond : Saison",15,307,4,400,1]
[3474,135,"Blond : Licht blond - FINAL ROUND",0,310,7,400,1]
[3475,104,"Blond : Blond-/Meibock",19,304,1,400,1]
[3476,105,"Blond : Zwaar blond",13,313,10,400,1]
[3477,132,"Blond : Tripel - FINAL ROUND",0,307,4,400,1]
[3478,107,"Amber Ale : Pale ale/Speciale Belge",18,305,2,400,1]
[3479,138,"Amber Ale : IPA - FINAL ROUND",0,306,3,400,1]
[3480,109,"Amber Ale : Double/Imperial IPA",8,305,2,400,1]
[3481,110,"Amber Ale : Session IPA",13,312,9,400,1]
[3482,111,"Amber Ale : Hazy IPA/ NEIPA",22,313,10,400,1]
[3483,112,"Donker : Licht Donker",16,308,5,400,1]
[3484,113,"Donker : Bock/Dubbelbock",17,309,6,400,1]
[3485,114,"Donker : Dark/Black IPA",10,310,7,400,1]
[3486,115,"Donker : Stout/Porter",23,313,10,400,1]
[3487,116,"Donker : Zwaar donker",16,306,3,400,1]
[3488,117,"Donker : Gerstewijn (Barley Wine)",23,308,5,400,1]
[3489,118,"Donker : Imperial Stout",20,309,6,400,1]
[3490,119,"Tarwe-/Granenbier : Witbier",23,312,9,400,1]
[3491,120,"Tarwe-/Granenbier : Weizen",17,306,3,400,1]
[3492,121,"Innovatie/speciaal : Fruit",8,304,1,400,1]
[3493,122,"Innovatie/speciaal : Houtgelagerd",27,311,8,400,1]
[3494,123,"Innovatie/speciaal : Rook",8,311,8,400,1]
[3495,124,"Innovatie/speciaal : Speciaal  (Minder dan 6 ABV)",23,310,7,400,1]
[3497,126,"Innovatie/speciaal : Speciaal  (Meer dan 6 ABV)",23,312,9,400,1]
[3498,127,"Innovatie/speciaal : Sour/Brett",17,307,4,400,1]
[3499,128,"Innovatie/speciaal : Alcoholvrij",5,304,1,400,1]
[3500,129,"Innovatie/speciaal : Alcoholarm",20,310,7,400,1]
[3501,130,"Blond : Tripel - ROUND 1 - 1 / 2",30,304,1,400,1]
[3502,131,"Blond : Tripel - ROUND 1 - 2 / 2",30,305,2,400,1]
[3503,133,"Blond : Licht blond - ROUND 1 - 1 / 2",21,306,3,400,1]
[3504,134,"Blond : Licht blond - ROUND 1 - 2 / 2",20,307,4,400,1]
[3505,136,"Amber Ale : IPA - ROUND 1 - 1 / 2",21,308,5,400,1]
[3506,137,"Amber Ale : IPA - ROUND 1 - 2 / 2",19,309,6,400,1]

{"sheet":"Samples","index":10,"n_rows":571,"n_cols":15,"rows_kept":571,"cut":false,"hidden":false,"merged":[]}
["SeriePassage","Etiquette","Produit","ConcoursID","Concours","InscrID","DateNum","JuryNum","SerieNum","Passage","TF","APPEARANCE","AROMA","TASTE","OVERALL_IMPRESSION"]
["S122 E07",null,"1818 BA 01",115,"DBC2022"]
["S118 E02",419,1,115,"DBC2022"]
["S117 E21",470,"200 Watt",115,"DBC2022"]
["S133 E21",450,"40 Watt",115,"DBC2022"]
["S102 E07",409,"44 boven NAP",115,"DBC2022"]
["S124 E18",540,"Aard",115,"DBC2022"]
["S101 E08",42,"Alfa Edel Pils",115,"DBC2022"]
["S104 E19",43,"Alfa Krachtig Dort",115,"DBC2022"]
["S105 E03",534,"Alkmaars Blondje",115,"DBC2022"]
["S115 E11",40,"All Black",115,"DBC2022"]
["S123 E08",332,"Allmouth",115,"DBC2022"]
["S119 E08",127,"Amsterdams Wit",115,"DBC2022"]
["S105 E01",407,"ANNA",115,"DBC2022"]
["S115 E23",271,"Anniversay 7",115,"DBC2022"]
["S101 E19",88,"Apollo Amsterdam Pilsner",115,"DBC2022"]
["S115 E05",475,"Arkto",115,"DBC2022"]
["S129 E08",513,"Aurora",115,"DBC2022"]
["S110 E07",91,"B.S. - The Bright Side",115,"DBC2022"]
["S120 E08",381,"B1 Hefe Weizen",115,"DBC2022"]
["S111 E19",451,"Back by Hop Demand",115,"DBC2022"]
["S120 E09",505,"Badgast",115,"DBC2022"]
["S134 E03",385,"Balista",115,"DBC2022"]
["S117 E13",96,"Barley Beast",115,"DBC2022"]
["S117 E18",252,"Barley Wine",115,"DBC2022"]
["S117 E17",269,"Barley wine",115,"DBC2022"]
["S117 E01",62,"Barleywine (biologisch)",115,"DBC2022"]
["S122 E14",455,"Barleywine BA Madeira Tinta Negra",115,"DBC2022"]
["S122 E04",141,"Barrel aged selection Tripel brett",115,"DBC2022"]
["S122 E16",267,"Barrel Project 2022 Buffalo Trace",115,"DBC2022"]
["S122 E23",24,"Barrelstar Galactica",115,"DBC2022"]
["S134 E01",373,"Barrosã",115,"DBC2022"]
["S120 E03",41,"Barry Weizen",115,"DBC2022"]
["S120 E11",603,"Bartjes Weizen",115,"DBC2022"]
["S126 E10",511,"Battle Royale 7",115,"DBC2022"]
["S136 E20",510,"Battle Royale The Warrior Code",115,"DBC2022"]
["S123 E03",535,"Bekem",115,"DBC2022"]
["S130 E23",461,"Beyla Honing Tripel",115,"DBC2022"]
["S112 E09",83,"Bière de Garage",115,"DBC2022"]
["S113 E12",80,"Bierfabriek Dubbel Bock 7,8%",115,"DBC2022"]
["S104 E04",366,"Bijenblond",115,"DBC2022"]
["S136 E03",107,"Bird of Prey",115,"DBC2022"]
["S126 E12",130,"Bitterkoek & Sinaas",115,"DBC2022"]
["S120 E16",372,"Blaarkop",115,"DBC2022"]
["S107 E16",212,"Blauw APA (Achtervelds Pale Ale)",115,"DBC2022"]
["S105 E04",2,"Blauwe Vlam",115,"DBC2022"]
["S114 E05",166,"Blauwst’rig",115,"DBC2022"]
["S130 E01",410,"Bleis Verlaat",115,"DBC2022"]
["S131 E18",530,"Bliejschoap Tripel",115,"DBC2022"]
["S129 E05",466,"Blitzkrieg BOB",115,"DBC2022"]
["S124 E12",38,"Blitzkveik Bop",115,"DBC2022"]
["S133 E01",396,"Blondie",115,"DBC2022"]
["S133 E12",491,"Blondie Demons",115,"DBC2022"]
["S113 E01",58,"Bock (biologisch)",115,"DBC2022"]
["S113 E06",515,"Bock 7",115,"DBC2022"]
["S109 E05",215,"Boks",115,"DBC2022"]
["S116 E10",null,"Bolwerck 10",115,"DBC2022"]
["S117 E15",159,"Bommen & Granaten",115,"DBC2022"]
["S131 E12",417,"Bossche Posse Tripel",115,"DBC2022"]
["S120 E15",469,"Brabantsche Weissheit",115,"DBC2022"]
["S114 E09",null,"Brak Peat",115,"DBC2022"]
["S113 E10",198,"Brand Dubbelbock",115,"DBC2022"]
["S137 E14",200,"Brand IPA",115,"DBC2022"]
["S128 E04",197,"Brand IPA 0.0",115,"DBC2022"]
["S105 E06",194,"Brand Krachtig Blond",115,"DBC2022"]
["S104 E06",195,"Brand Lentebock",115,"DBC2022"]
["S101 E13",199,"Brand Pilsener",115,"DBC2022"]
["S128 E03",201,"Brand Weizen 0.0",115,"DBC2022"]
["S113 E09",196,"Brand Winterbock",115,"DBC2022"]
["S104 E01",121,"Brassers Blond",115,"DBC2022"]
["S113 E07",217,"Breugem Herfstbock",115,"DBC2022"]
["S118 E19",162,"Brewer's Breakfast",115,"DBC2022"]
["S101 E02",202,"Bron van Lentevreugd",115,"DBC2022"]
["S120 E14",504,"Bronze",115,"DBC2022"]
["S131 E05",72,"Brouwerij Avereest",115,"DBC2022"]
["S126 E06",519,"Brut IPA",115,"DBC2022"]
["S126 E05",11,"Brute Snor",115,"DBC2022"]
["S121 E05",163,"Bruut",115,"DBC2022"]
["S124 E09",383,"Bubbling Betty - Brut IPA",115,"DBC2022"]
["S119 E21",488,"Buitenpost",115,"DBC2022"]
["S136 E07",156,"Bulldog",115,"DBC2022"]
["S115 E10",285,"Burgunder Swart",115,"DBC2022"]
["S134 E18",402,"BUUZ. Krachtig Blond",115,"DBC2022"]
["S110 E06",14,"Calypso",115,"DBC2022"]
["S124 E14",36,"Cappu dei Capi",115,"DBC2022"]
["S119 E23",103,"Cascade Green Sweater Can",115,"DBC2022"]
["S101 E23",447,"Château Neubourg",115,"DBC2022"]
["S115 E13",523,"Cheeky Chocolate Stout",115,"DBC2022"]
["S127 E13",17,"Cherry Sour",115,"DBC2022"]
["S126 E17",94,"Chocolatize",115,"DBC2022"]
["S122 E17",378,"Cleij Malt & Rey Whisky Baltic Porter",115,"DBC2022"]
["S126 E08",454,"Coffee IPA",115,"DBC2022"]
["S122 E08",133,"Cognac Strong Ale Barrel Aged 2022",115,"DBC2022"]
["S119 E02",374,"Couillard",115,"DBC2022"]
["S105 E05",30,"Crescendo Jubilée",115,"DBC2022"]
["S119 E19",405,"Croptop met Blazer",115,"DBC2022"]
["S126 E23",90,"Daemon #15 Pazuzu Imperial Stout With Chocolate, Coconut, Vanilla And Milk Sugar",115,"DBC2022"]
["S107 E08",37,"Damn the Torpedoes!",115,"DBC2022"]
["S118 E18",262,"Dangeris",115,"DBC2022"]
["S130 E12",408,"Daor Hedde de Guld",115,"DBC2022"]
["S137 E02",48,"Dappere Dodo",115,"DBC2022"]
["S126 E14",268,"Dark & Stormy",115,"DBC2022"]
["S114 E06",235,"Dark Hops",115,"DBC2022"]
["S114 E08",null,"Dark Hops",115,"DBC2022"]
["S112 E15",485,"Darkness",115,"DBC2022"]
["S127 E08",537,"Dauw",115,"DBC2022"]
["S122 E01",489,"Davo Bordo",115,"DBC2022"]
["S104 E16",null,"De Deerne",115,"DBC2022"]
["S112 E12",296,"De Diefhenker",115,"DBC2022"]
["S126 E09",284,"De Dienstmeid van de Rijksontvanger",115,"DBC2022"]
["S117 E20",404,"De Direkteur",115,"DBC2022"]
["S133 E04",293,"De Dochter van de Burgemeester",115,"DBC2022"]
["S133 E05",338,"De Heische Hoeve Blond",115,"DBC2022"]
["S117 E19",401,"De Kwietwaeg",115,"DBC2022"]
["S118 E05",241,"De Paddeburght",115,"DBC2022"]
["S115 E22",295,"De Pikjongen",115,"DBC2022"]
["S131 E26",294,"De Scheepstimmerman",115,"DBC2022"]
["S124 E07",null,"De Vagebond Vienna",115,"DBC2022"]
["S113 E15",529,"De Verschoappeling Pale Dubbel Bock",115,"DBC2022"]
["S122 E19",286,"De Vuurboetmeester",115,"DBC2022"]
["S117 E22",null,"De Vuurboetmeester",115,"DBC2022"]
["S104 E14",null,"De Weldoener",115,"DBC2022"]
["S118 E20",154,"Deerhunter",115,"DBC2022"]
["S107 E15",361,"DijkBier Hemels Hop",115,"DBC2022"]
["S118 E04",362,"Dijkbier Stevige Stout",115,"DBC2022"]
["S130 E28",363,"DijkBier Trotse Tripel",115,"DBC2022"]
["S107 E11",109,"Dikke Lul 3 Bier",115,"DBC2022"]
["S105 E12",416,"Dinkelbieren Stevig Blond",115,"DBC2022"]
["S110 E12",287,"Dinky",115,"DBC2022"]
["S102 E02",152,"Dionysos",115,"DBC2022"]
["S120 E07",224,"Dirndl",115,"DBC2022"]
["S129 E06",412,"Dodgeball",115,"DBC2022"]
["S136 E15",350,"Doerak",115,"DBC2022"]
["S131 E23",304,"Domina",115,"DBC2022"]
["S129 E11",139,"do-ri-n-ku",115,"DBC2022"]
["S134 E14",99,"Dorps Leven",115,"DBC2022"]
["S111 E22",415,"Double Juice Punch",115,"DBC2022"]
["S109 E06",111,"Dr. Raptor",115,"DBC2022"]
["S117 E03",283,"Driehoppig Monster",115,"DBC2022"]
["S114 E04",302,"Dropzone X",115,"DBC2022"]
["S112 E05",398,"Drulse Dubbel",115,"DBC2022"]
["S133 E09",150,"Dryade",115,"DBC2022"]
["S123 E05",null,"Dubbo Klockels",115,"DBC2022"]
["S112 E10",606,"Duits & Lauret Biere de Garde Brune",115,"DBC2022"]
["S102 E13",440,"Duits & Lauret Blond",115,"DBC2022"]
["S105 E11",276,"Duits & Lauret Extra Blond",115,"DBC2022"]
["S123 E06",274,"Duits & Lauret Houtgerijpte Rook Dubbelbock",115,"DBC2022"]
["S115 E06",275,"Duits & Lauret Stout",115,"DBC2022"]
["S115 E17",277,"Duits & Lauret Winterstout",115,"DBC2022"]
["S120 E13",210,"Dunkelweizen Vandeoirsprong",115,"DBC2022"]
["S101 E21",456,"Dutch Border Kellerbier",115,"DBC2022"]
["S120 E05",458,"Dutch Border Weizen",115,"DBC2022"]
["S137 E04",null,"Dutch IPA Bittersweet Victory",115,"DBC2022"]
["S118 E10",null,"Dutch IPA Black Canon",115,"DBC2022"]
["S110 E04",null,"Dutch IPA Easy Does IT",115,"DBC2022"]
["S124 E11",null,"Dutch IPA Lemons for Lunch",115,"DBC2022"]
["S131 E25",430,"Eallju",115,"DBC2022"]
["S116 E03",364,"Edelhert Donker",115,"DBC2022"]
["S117 E10",233,"Eem Beestig",115,"DBC2022"]
["S117 E12",null,"Eem Beestig",115,"DBC2022"]
["S133 E19",236,"Eem Jolig",115,"DBC2022"]
["S133 E20",null,"Eem Jolig",115,"DBC2022"]
["S104 E02",494,"Eeuwig ZON",115,"DBC2022"]
["S126 E16",495,"Eeuwig Zonde Quadrupel Whisky Infused",115,"DBC2022"]
["S130 E30",493,"Eeuwig Zonde Tripel",115,"DBC2022"]
["S124 E16",145,"Egyptian ale",115,"DBC2022"]
["S117 E09",325,"ELEGAST - Quadrupel",115,"DBC2022"]
["S117 E23",231,"Emelisse Barley Wine",115,"DBC2022"]
["S114 E07",228,"Emelisse BIPA",115,"DBC2022"]
["S136 E02",230,"Emelisse Blond IPA",115,"DBC2022"]
["S115 E21",232,"Emelisse Espresso Stout",115,"DBC2022"]
["S118 E17",234,"Emelisse Imperial Russian Stout",115,"DBC2022"]
["S109 E08",229,"Emelisse TIPA",115,"DBC2022"]
["S134 E15",238,"Enjoy together - Ginger Blond",115,"DBC2022"]
["S116 E01",79,"Eucos",115,"DBC2022"]
["S136 E17",452,"Euforie 3",115,"DBC2022"]
["S131 E06",368,"Everzwijn Tripel",115,"DBC2022"]
["S111 E21",261,"Exotiqa",115,"DBC2022"]
["S118 E13",270,"Export Porter",115,"DBC2022"]
["S115 E08",457,"Extra Stout",115,"DBC2022"]
["S115 E12",60,"Extra Stout (biologisch)",115,"DBC2022"]
["S110 E05",211,"Fashion Session",115,"DBC2022"]
["S133 E10",326,"FEEKS - Blond",115,"DBC2022"]
["S107 E01",105,"Ff Lekker Met Je Bek In Het Zonnetje",115,"DBC2022"]
["S104 E15",256,"Flirt",115,"DBC2022"]
["S126 E04",538,"Fors",115,"DBC2022"]
["S129 E17",15,"Free I.P.A.",115,"DBC2022"]
["S102 E10",453,"French Rye Saison",115,"DBC2022"]
["S133 E15",129,"Fruit & Kruid",115,"DBC2022"]
["S102 E11",29,"Fugu",115,"DBC2022"]
["S129 E19",21,"Fun House",115,"DBC2022"]
["S137 E13",135,"Gaia",115,"DBC2022"]
["S115 E09",371,"Galloway",115,"DBC2022"]
["S134 E02",null,"Gerardus Blond",115,"DBC2022"]
["S112 E06",343,"Gerardus Dubbel",115,"DBC2022"]
["S131 E02",344,"Gerardus Tripel",115,"DBC2022"]
["S101 E22",84,"Gevloerd",115,"DBC2022"]
["S109 E01",334,"Gigantic Sailor",115,"DBC2022"]
["S119 E13",507,"Gin & Juice",115,"DBC2022"]
["S127 E09",536,"Gloed",115,"DBC2022"]
["S110 E08",484,"Goal Getter session hazy IPA",115,"DBC2022"]
["S137 E06",53,"Gójje Kloët",115,"DBC2022"]
["S102 E15",71,"Gooisch Saison",115,"DBC2022"]
["S124 E21",67,"Gooisch Zwart",115,"DBC2022"]
["S126 E07",70,"Gooische Bubbel",115,"DBC2022"]
["S101 E16",66,"Gooische Goud",115,"DBC2022"]
["S115 E14",68,"Gooische Stout",115,"DBC2022"]
["S131 E15",69,"Gooische Tripel",115,"DBC2022"]
["S127 E16",192,"Gospel",115,"DBC2022"]
["S134 E11",422,"Gouverneur Blond",115,"DBC2022"]
["S112 E02",424,"Gouverneur Dubbel",115,"DBC2022"]
["S122 E18",421,"Gouverneur Stout op Hout",115,"DBC2022"]
["S130 E24",426,"Gouverneur Tripel",115,"DBC2022"]
["S104 E03",290,"Graansilo Blond",115,"DBC2022"]
["S116 E04",320,"Grand Cru",115,"DBC2022"]
["S121 E01",22,"Grapefruit non alcoholic IPA",115,"DBC2022"]
["S122 E22",468,"GROM: Beast of Bourbon",115,"DBC2022"]
["S117 E02",74,"Gulle",115,"DBC2022"]
["S113 E02",341,"Gulpener Herfstbock",115,"DBC2022"]
["S104 E07",340,"Gulpener Lentebock",115,"DBC2022"]
["S101 E12",449,"Gulpener Pilsner",115,"DBC2022"]
["S124 E20",448,"Gulpener Ur-Hop",115,"DBC2022"]
["S112 E13",132,"Guur & Kou",115,"DBC2022"]
["S117 E14",259,"Handdruk",115,"DBC2022"]
["S110 E13",486,"Hang Out",115,"DBC2022"]
["S111 E17",204,"Hazy bands of Light",115,"DBC2022"]
["S111 E15",23,"Hazy Weekend New England IPA",115,"DBC2022"]
["S131 E22",164,"Heen & Weer",115,"DBC2022"]
["S131 E16",472,"Heeren van Eynthoven",115,"DBC2022"]
["S118 E09",161,"Hel & Verdoemenis",115,"DBC2022"]
["S130 E21",249,"Helse Engel",115,"DBC2022"]
["S131 E17",464,"Hemelvuur",115,"DBC2022"]
["S128 E01",315,"Hertog Jan 0.0",115,"DBC2022"]
["S124 E23",605,"Hertog Jan Bourgondische Chocolade Stout",115,"DBC2022"]
["S116 E09",314,"Hertog Jan Grand Prestige",115,"DBC2022"]
["S107 E18",328,"Hertog Jan Karakter",115,"DBC2022"]
["S104 E17",336,"Hertog Jan Lentebock",115,"DBC2022"]
["S101 E20",307,"Hertog Jan Pilsener",115,"DBC2022"]
["S131 E04",337,"Hertog Jan Tripel",115,"DBC2022"]
["S120 E10",335,"Hertog Jan Weizener",115,"DBC2022"]
["S107 E12",206,"Het Amber Bier Vandeoirsprong",115,"DBC2022"]
["S133 E17",208,"Het Blond Bier Vandeoirsprong",115,"DBC2022"]
["S112 E04",207,"Het Dubbele Bier Vandeoirsprong",115,"DBC2022"]
["S130 E29",209,"Het Tripel Bier Vandeoirsprong",115,"DBC2022"]
["S118 E14",13,"Het Visioen",115,"DBC2022"]
["S130 E09",257,"High Five",115,"DBC2022"]
["S136 E08",514,"High Hops",115,"DBC2022"]
["S101 E05",522,"Hocus Pocus Pilatus Pils",115,"DBC2022"]
["S136 E10",47,"Hoek Bier",115,"DBC2022"]
["S131 E13",46,"Hoek Bier",115,"DBC2022"]
["S126 E03",525,"Holy Moly Tripel",115,"DBC2022"]
["S124 E08",104,"Hoo-Dini",115,"DBC2022"]
["S122 E02",329,"Hooglander #03 Saison Vatgerijpt",115,"DBC2022"]
["S114 E03",330,"Hooglander Black IPA",115,"DBC2022"]
["S115 E16",331,"Hooglander Espresso Stout",115,"DBC2022"]
["S124 E10",20,"Hop Art gluten free IPA",115,"DBC2022"]
["S111 E13",95,"Hops & Dreams",115,"DBC2022"]
["S126 E13",441,"Hopvogel Black Tripel",115,"DBC2022"]
["S130 E27",303,"Hosenhym Bier: De Driedubbele Durdewèèkse Diensdag",115,"DBC2022"]
["S115 E15",1,"Houston we have coffee",115,"DBC2022"]
["S116 E14",4,"Houten Hasses",115,"DBC2022"]
["S137 E08",18,"I.P.A.",115,"DBC2022"]
["S137 E15",263,"Iconiq",115,"DBC2022"]
["S119 E20",394,"IJwit",115,"DBC2022"]
["S120 E17",255,"Imperial Dunkel Weizen",115,"DBC2022"]
["S137 E03",56,"India Pale Ale (biologisch)",115,"DBC2022"]
["S127 E17",193,"Italia",115,"DBC2022"]
["S133 E03",265,"It's a Blond",115,"DBC2022"]
["S122 E24",158,"I've Got Friends In The Music Business B.A. Blend #3",115,"DBC2022"]
["S116 E16",240,"Jacques",115,"DBC2022"]
["S134 E13",44,"Jake's Blondina",115,"DBC2022"]
["S137 E19",45,"Jake's Tripa",115,"DBC2022"]
["S119 E07",168,"Jopen Adriaan Wit",115,"DBC2022"]
["S134 E06",167,"Jopen Bio Blond",115,"DBC2022"]
["S111 E05",189,"Jopen Blurred Lines",115,"DBC2022"]
["S124 E03",170,"Jopen Bright Light",115,"DBC2022"]
["S101 E04",184,"Jopen Craft Pilsner",115,"DBC2022"]
["S119 E22",171,"Jopen Dubbel Wit",115,"DBC2022"]
["S115 E02",177,"Jopen Extra Stout",115,"DBC2022"]
["S109 E07",169,"Jopen Heavy Cross",115,"DBC2022"]
["S107 E03",172,"Jopen Hop on the Booze Bus",115,"DBC2022"]
["S136 E11",176,"Jopen Hop zij met ons",115,"DBC2022"]
["S134 E16",173,"Jopen Hoppenbier",115,"DBC2022"]
["S107 E10",186,"Jopen Jacobus Pale Ale",115,"DBC2022"]
["S101 E25",179,"Jopen Juicy Lager",115,"DBC2022"]
["S110 E01",175,"Jopen Let there be light",115,"DBC2022"]
["S124 E04",174,"Jopen Livin la vida lowcarb",115,"DBC2022"]
["S137 E09",182,"Jopen Mooie Nel North Sea IPA",115,"DBC2022"]
["S129 E10",188,"Jopen NON Gember",115,"DBC2022"]
["S129 E20",187,"Jopen NONnetje IPA",115,"DBC2022"]
["S116 E12",181,"Jopen Ongelovige Thomas - Doubting Thomas",115,"DBC2022"]
["S136 E06",185,"Jopen Sunny Day IPA",115,"DBC2022"]
["S101 E24",178,"Jopen Super DuPA",115,"DBC2022"]
["S123 E04",183,"Jopen Witte Rook",115,"DBC2022"]
["S122 E20",180,"Jopen Zwarte Ziel",115,"DBC2022"]
["S111 E11",153,"Juice Punch",115,"DBC2022"]
["S111 E09",508,"Juicy Joker",115,"DBC2022"]
["S131 E01",442,"Jura 8",115,"DBC2022"]
["S128 E05",500,"Kaapse Bob",115,"DBC2022"]
["S110 E09",497,"Kaapse Karel - Session IPA",115,"DBC2022"]
["S111 E01",496,"Kaapse Maria - Hazy Pale Ale",115,"DBC2022"]
["S101 E01",498,"Kaapse Nelis - Craft Pils",115,"DBC2022"]
["S137 E01",499,"Kaapse Zweipac - Westcoast IPA",115,"DBC2022"]
["S104 E09",null,"Kâld Kletske Blun",115,"DBC2022"]
["S126 E01",null,"Kald Kletske Galjes",115,"DBC2022"]
["S102 E03",null,"Kâld Kletske Jiertiid",115,"DBC2022"]
["S101 E06",null,"Kâld Kletske Pils",115,"DBC2022"]
["S130 E16",null,"Kâld Kletske Trijedubel",115,"DBC2022"]
["S119 E10",31,"Kalk Wit",115,"DBC2022"]
["S137 E11",125,"Katzwijm",115,"DBC2022"]
["S131 E21",93,"Keetje Tripel",115,"DBC2022"]
["S110 E02",122,"Ketelbinkie",115,"DBC2022"]
["S111 E07",157,"Kia Ora",115,"DBC2022"]
["S122 E21",120,"Klapgijp #5",115,"DBC2022"]
["S116 E06",null,"Kneiter Gieter Pater",115,"DBC2022"]
["S129 E13",216,"Knipoog",115,"DBC2022"]
["S115 E07",608,"Knock-Out Bitter Ale",115,"DBC2022"]
["S105 E13",310,"Knoeër",115,"DBC2022"]
["S118 E03",473,"Koffie Stout",115,"DBC2022"]
["S119 E06",443,"Korenwolf",115,"DBC2022"]
["S134 E10",7,"Kruikje Blond",115,"DBC2022"]
["S131 E07",387,"Kuuks Brabant Tripel",115,"DBC2022"]
["S115 E20",null,"Kveik Maar Wat Je Doet",115,"DBC2022"]
["S136 E19",463,"La IPA Bonita",115,"DBC2022"]
["S134 E05",300,"La Trappe Blond",115,"DBC2022"]
["S112 E07",292,"La Trappe Dubbel",115,"DBC2022"]
["S128 E02",117,"La Trappe Nillis 0.0%",115,"DBC2022"]
["S116 E08",299,"La Trappe Quadrupel",115,"DBC2022"]
["S122 E09",218,"La Trappe Quadrupel Oak Aged",115,"DBC2022"]
["S130 E13",291,"La Trappe Tripel",115,"DBC2022"]
["S119 E14",151,"La Trappe Witte Trappist",115,"DBC2022"]
["S124 E22",377,"Lager Lab Eastcoast Porter",115,"DBC2022"]
["S124 E02",376,"Lager Lab Pennsylvania Swankey",115,"DBC2022"]
["S107 E17",97,"Lang Zal Die Leven",115,"DBC2022"]
["S124 E17",414,"Leemcuyl Landbier",115,"DBC2022"]
["S104 E10",221,"Lentebier",115,"DBC2022"]
["S104 E13",26,"Lentebock",115,"DBC2022"]
["S104 E08",null,"Lentebock",115,"DBC2022"]
["S105 E08",400,"Lepelblijde",115,"DBC2022"]
["S129 E09",467,"Leussink Non-Alcoholic",115,"DBC2022"]
["S110 E10",509,"Levensgenieter",115,"DBC2022"]
["S111 E02",null,"Levensgenieter",115,"DBC2022"]
["S113 E14",143,"Liberty Dubbelbock",115,"DBC2022"]
["S107 E07",142,"Liberty Pale Ale",115,"DBC2022"]
["S129 E04",323,"Lichtekooi",115,"DBC2022"]
["S115 E03",92,"LIEF",115,"DBC2022"]
["S113 E03",428,"Lindeboom Bock",115,"DBC2022"]
["S101 E10",423,"Lindeboom Pilsener",115,"DBC2022"]
["S102 E04",429,"Lindeboom Saison",115,"DBC2022"]
["S126 E19",213,"Liquid Desserts 20.1 - Rye Bourbon B.A. Salted Caramel Pecan Pie Quadruple",115,"DBC2022"]
["S126 E22",214,"Liquid Desserts 20.2 - Cognag B.A. Salted Caramel Pecan Pie Quadruple",115,"DBC2022"]
["S113 E16",null,"Lömpe Böck",115,"DBC2022"]
["S137 E12",289,"Lord Nelson",115,"DBC2022"]
["S121 E03",119,"Lorre",115,"DBC2022"]
["S119 E01",null,"Lucia's Licht",115,"DBC2022"]
["S105 E02",76,"Lulls Blond",115,"DBC2022"]
["S119 E16",77,"Lulls wit",115,"DBC2022"]
["S136 E14",100,"Lupulo Adicto DDH IPA",115,"DBC2022"]
["S117 E08",null,"M 10",115,"DBC2022"]
["S122 E10",465,"Mad Mountie BA",115,"DBC2022"]
["S113 E05",136,"Madeleine",115,"DBC2022"]
["S136 E01",260,"Man Hug",115,"DBC2022"]
["S102 E08",190,"Mannenliefde",115,"DBC2022"]
["S101 E03",null,"Matamata Beer",115,"DBC2022"]
["S133 E06",null,"Meermoid",115,"DBC2022"]
["S130 E11",399,"Meugen Herder",115,"DBC2022"]
["S127 E07",539,"Mijmer",115,"DBC2022"]
["S120 E06",87,"Mist Weizen",115,"DBC2022"]
["S118 E12",6,"Mooi de Klos",115,"DBC2022"]
["S107 E09",435,"Morebeer - Poesiat & Kater - Dutch Eagle",115,"DBC2022"]
["S123 E07",436,"Morebeer - Poesiat & Kater - Frank's Smoke House - Smoke House Eagle",115,"DBC2022"]
["S115 E18",438,"Morebeer - Poesiat & Kater - KiKa - Roos = Ready To Rock",115,"DBC2022"]
["S126 E20",437,"Morebeer - Poesiat & Kater - Mikkie = Cattivella",115,"DBC2022"]
["S109 E04",439,"Morebeer - Uiltje - The Big Fat 5",115,"DBC2022"]
["S117 E04",524,"Moscatel Mania Barley Wine",115,"DBC2022"]
["S111 E18",360,"Naastbos Neipa Milkshake - Psycho Passion",115,"DBC2022"]
["S127 E06",219,"Naeckt in het Wild - CELAENO",115,"DBC2022"]
["S127 E11",226,"Naeckt in het Wild - HAEDI",115,"DBC2022"]
["S127 E10",223,"Naeckt in het Wild - MAIA",115,"DBC2022"]
["S127 E01",225,"Naeckt in het Wild - POLARIS",115,"DBC2022"]
["S127 E14",227,"Naeckt in het Wild - ZANIAH",115,"DBC2022"]
["S113 E11",318,"Naeckte Bock",115,"DBC2022"]
["S112 E16",327,"NAECKTE NON - Dubbel",115,"DBC2022"]
["S136 E21",532,"Natte Snor",115,"DBC2022"]
["S121 E08",null,"Naughty Berry",115,"DBC2022"]
["S121 E06",431,"Naughty berry",115,"DBC2022"]
["S111 E08",521,"NEIPAard",115,"DBC2022"]
["S134 E19",375,"Nelis Brabants Blond",115,"DBC2022"]
["S111 E03",61,"New England (biologisch)",115,"DBC2022"]
["S136 E09",528,"Niej Schoap IPA",115,"DBC2022"]
["S117 E11",248,"Nieuw Ligt",115,"DBC2022"]
["S105 E07",324,"NIMF",115,"DBC2022"]
["S114 E10",253,"Nina's Black Metal Black DIPA",115,"DBC2022"]
["S137 E10",89,"Nisaba West Coast IPA",115,"DBC2022"]
["S133 E02",420,"Nog Eentje Dan",115,"DBC2022"]
["S129 E07",520,"Non Alk",115,"DBC2022"]
["S131 E30",251,"Nondeju Grand Cru",115,"DBC2022"]
["S131 E20",379,"Nothing Else Matters",115,"DBC2022"]
["S134 E17",444,"Nova 7",115,"DBC2022"]
["S130 E02",null,"Nustige Neef",115,"DBC2022"]
["S101 E14",140,"Oedipus Pilsner",115,"DBC2022"]
["S134 E04",342,"Oertarwe Blond",115,"DBC2022"]
["S130 E18",205,"Of je Wind Lust?!",115,"DBC2022"]
["S134 E09",313,"Oh buurman",115,"DBC2022"]
["S102 E14",406,"One Hit Wonder",115,"DBC2022"]
["S107 E02",165,"Op & Top",115,"DBC2022"]
["S112 E08",5,"Op den Ophef",115,"DBC2022"]
["S136 E12",301,"OPA Northwest IPA",115,"DBC2022"]
["S111 E14",471,"Orchestra of Angels",115,"DBC2022"]
["S120 E04",50,"Othmar Dunkel Weizen",115,"DBC2022"]
["S123 E02",51,"Othmar Rauch",115,"DBC2022"]
["S107 E04",49,"Othmar Rood",115,"DBC2022"]
["S107 E13",477,"Overzees",115,"DBC2022"]
["S122 E12",459,"Pakhuis Twente Barleywine BA Tawny Port",115,"DBC2022"]
["S124 E15",3,"Palmbomenbier",115,"DBC2022"]
["S127 E05",191,"Pamela",115,"DBC2022"]
["S133 E13",512,"Pandora",115,"DBC2022"]
["S115 E04",134,"Panty",115,"DBC2022"]
["S126 E21",462,"Parochia Negro",115,"DBC2022"]
["S121 E04",305,"Passion Fruit Ale",115,"DBC2022"]
["S102 E06",118,"Pieremegoggel",115,"DBC2022"]
["S101 E11",147,"Pilsner",115,"DBC2022"]
["S101 E18",27,"Piltonia",115,"DBC2022"]
["S118 E01",106,"Pitmaster Porter",115,"DBC2022"]
["S129 E18",19,"Playground non alcoholic IPA",115,"DBC2022"]
["S109 E02",481,"Power Move west coast IPA",115,"DBC2022"]
["S119 E17",101,"Prince Owlbert",115,"DBC2022"]
["S118 E15",309,"Quadrupel Poorter",115,"DBC2022"]
["S130 E20",146,"Razende swaen",115,"DBC2022"]
["S116 E07",413,"Red Velvet",115,"DBC2022"]
["S117 E16",155,"Rhodesian",115,"DBC2022"]
["S131 E08",487,"Road Trip",115,"DBC2022"]
["S137 E05",460,"Roots Radics IPA",115,"DBC2022"]
["S102 E12",65,"ROTT.lesser",115,"DBC2022"]
["S115 E01",64,"ROTT.melk",115,"DBC2022"]
["S126 E15",63,"ROTT.wine",115,"DBC2022"]
["S112 E14",526,"Royal Dark",115,"DBC2022"]
["S118 E06",203,"Russian Imperial Stout",115,"DBC2022"]
["S131 E11",492,"Saefthinge Goud",115,"DBC2022"]
["S117 E05",445,"Saga 10",115,"DBC2022"]
["S122 E11",382,"Sailing ’21 Tres Hombres Rum Barrel Aged Quadrupel",115,"DBC2022"]
["S102 E01",518,"Saison",115,"DBC2022"]
["S113 E04",123,"Scheepsbok",115,"DBC2022"]
["S119 E03",250,"Serafijn",115,"DBC2022"]
["S102 E09",411,"Sergeant Pepper",115,"DBC2022"]
["S124 E05",16,"Session White Elderflower",115,"DBC2022"]
["S114 E01",306,"Sexy Galaxy",115,"DBC2022"]
["S122 E13",352,"Shadow Assassin Buffalo Trace BA",115,"DBC2022"]
["S127 E12",365,"Sjouwer",115,"DBC2022"]
["S127 E04",312,"Slightly Sour Summer Session Ale",115,"DBC2022"]
["S111 E20",266,"Slow Dancing in a green room",115,"DBC2022"]
["S113 E08",351,"Slufterbok",115,"DBC2022"]
["S123 E01",34,"Smokin' Hammers",115,"DBC2022"]
["S121 E02",482,"Sour Surfer Smoothie Sour",115,"DBC2022"]
["S118 E16",517,"Space Cowboy",115,"DBC2022"]
["S129 E14",397,"Spiegelwaal",115,"DBC2022"]
["S104 E05",609,"Spring Bock",115,"DBC2022"]
["S104 E11",148,"Springhaver",115,"DBC2022"]
["S118 E07",474,"St. Dmitri Ivanovitsj Donskoi",115,"DBC2022"]
["S133 E14",25,"St. Liduina",115,"DBC2022"]
["S119 E12",433,"Stadshaven Great White 5,3%",115,"DBC2022"]
["S110 E11",82,"Stadshaven IPA 4,5%",115,"DBC2022"]
["S133 E07",432,"Stadshaven Kraken Blond 6,0%",115,"DBC2022"]
["S131 E03",434,"Stadshaven Piranha Tripel 8,5%",115,"DBC2022"]
["S101 E17",null,"Stadshaven Ur Pilsner 5%",115,"DBC2022"]
["S110 E03",8,"Steekje Los",115,"DBC2022"]
["S124 E01",280,"Stoked! California Common",115,"DBC2022"]
["S129 E01",278,"Stoked! Hibiscus Radler",115,"DBC2022"]
["S120 E02",282,"Stoked! Kristallweizen",115,"DBC2022"]
["S101 E09",279,"Stoked! Unfiltered lager",115,"DBC2022"]
["S112 E03",281,"Stoked! Zoigl",115,"DBC2022"]
["S114 E02",264,"Stomp",115,"DBC2022"]
["S130 E26",403,"Strafwerk",115,"DBC2022"]
["S119 E15",390,"Strijder Amerikaans Witbier",115,"DBC2022"]
["S133 E11",389,"Strijder Blond 101",115,"DBC2022"]
["S112 E01",388,"Strijder Irish Red",115,"DBC2022"]
["S130 E17",391,"Strijder Tripel",115,"DBC2022"]
["S129 E12",506,"Stunt Double",115,"DBC2022"]
["S111 E04",333,"Sunshine Shake",115,"DBC2022"]
["S134 E20",418,"Superallerlaatste",115,"DBC2022"]
["S129 E03",110,"Superb-Owl",115,"DBC2022"]
["S137 E07",386,"Supreme IPA",115,"DBC2022"]
["S134 E08",480,"Swaegers Blonde Jack",115,"DBC2022"]
["S136 E04",478,"Swaegers IPA",115,"DBC2022"]
["S131 E10",479,"Swaegers Tripel",115,"DBC2022"]
["S127 E03",138,"Swingers",115,"DBC2022"]
["S122 E03",239,"Take it easy - Oaked Tripel",115,"DBC2022"]
["S101 E15",354,"Tesselaar Eilandbier",115,"DBC2022"]
["S107 E06",353,"Tesselaar Strandstruner",115,"DBC2022"]
["S124 E06",242,"Texels Blond",115,"DBC2022"]
["S136 E05",243,"Texels Overzee IPA",115,"DBC2022"]
["S119 E04",245,"Texels Skiller Wit",115,"DBC2022"]
["S107 E14",247,"Texels Skuumkoppe",115,"DBC2022"]
["S104 E18",244,"Texels Springtij",115,"DBC2022"]
["S105 E10",246,"Texels Tripel",115,"DBC2022"]
["S130 E22",137,"Thai Thai",115,"DBC2022"]
["S127 E15",601,"The Crab & The Monkey",115,"DBC2022"]
["S131 E29",490,"Three Demons",115,"DBC2022"]
["S118 E08",319,"TIEN",115,"DBC2022"]
["S122 E26",321,"TIEN - Hennesy VS Cognac",115,"DBC2022"]
["S122 E27",317,"TIEN - Kilchoman Islay Whisky",115,"DBC2022"]
["S122 E25",316,"TIEN - Panama Rum",115,"DBC2022"]
["S124 E19",384,"TIngling Tilly",115,"DBC2022"]
["S104 E12",349,"Toewijding",115,"DBC2022"]
["S118 E11",112,"Tonka Fever",115,"DBC2022"]
["S115 E19",531,"Tonkasino Royale",115,"DBC2022"]
["S130 E04",144,"Traais Tripel",115,"DBC2022"]
["S111 E06",108,"Trackdown",115,"DBC2022"]
["S113 E13",149,"Traiectinator",115,"DBC2022"]
["S109 E03",288,"TrainHopper",115,"DBC2022"]
["S130 E08",527,"Tripel",115,"DBC2022"]
["S131 E19",222,"Tripel",115,"DBC2022"]
["S130 E06",59,"Tripel (biologisch)",115,"DBC2022"]
["S131 E28",311,"Tripel IPA",115,"DBC2022"]
["S131 E27",516,"Tripel 't MAG",115,"DBC2022"]
["S126 E02",113,"Tripel Wit",115,"DBC2022"]
["S130 E14",75,"Tripel-B",115,"DBC2022"]
["S130 E15",39,"Triple Rock Church",115,"DBC2022"]
["S130 E25",345,"Triple Trouble",115,"DBC2022"]
["S133 E16",367,"Tulips Craft Beer",115,"DBC2022"]
["S121 E07",10,"Tweach Tripel 2 Kumasi",115,"DBC2022"]
["S133 E08",32,"Twee Vingers Blond",115,"DBC2022"]
["S122 E15",602,"TX Barrel Aged Bock",115,"DBC2022"]
["S119 E18",102,"Uiltje Wit",115,"DBC2022"]
["S127 E02",35,"Unter den Linden",115,"DBC2022"]
["S101 E07",81,"Ur-Pilsner",115,"DBC2022"]
["S116 E05",73,"Uruz",115,"DBC2022"]
["S137 E18",369,"Valk IPA  Edition Henk Schiffmacher",115,"DBC2022"]
["S122 E06",85,"VAT4 2021 Lagavulin",115,"DBC2022"]
["S136 E18",298,"Veluwse Schavuyt",115,"DBC2022"]
["S130 E03",null,"Veluwse Schavuyt",115,"DBC2022"]
["S107 E05",427,"Venloosch Alt",115,"DBC2022"]
["S119 E11",425,"Venloosch Wit",115,"DBC2022"]
["S130 E19",52,"Verrekte Vlaegel",115,"DBC2022"]
["S134 E07",273,"Vijfheeren Bier Blond",115,"DBC2022"]
["S112 E11",272,"Vijfheeren Bier Dubbel",115,"DBC2022"]
["S126 E11",131,"Vijg & Vanille",115,"DBC2022"]
["S129 E16",57,"Virgin IPA (biologisch)",115,"DBC2022"]
["S134 E12",12,"Vlaai away",115,"DBC2022"]
["S116 E13",78,"Vletje 12",115,"DBC2022"]
["S131 E09",476,"Volle Laag Fryske Dúmkes",115,"DBC2022"]
["S137 E16",null,"Vreemdeling 10 - India Pale Ale Great Britain",115,"DBC2022"]
["S129 E02",392,"VrIJwit",115,"DBC2022"]
["S136 E13",128,"Vuur & Vlam",115,"DBC2022"]
["S130 E05",55,"Vuurvogel",115,"DBC2022"]
["S129 E15",370,"Wanderlust",115,"DBC2022"]
["S136 E16",28,"Warmouth v6",115,"DBC2022"]
["S111 E12",160,"Water & Vuur",115,"DBC2022"]
["S113 E17",483,"Weizenbock",115,"DBC2022"]
["S119 E09",86,"Wentersch Wit",115,"DBC2022"]
["S116 E02",380,"Westerschelde",115,"DBC2022"]
["S120 E12",503,"White IPA",115,"DBC2022"]
["S124 E13",33,"Witches Hammer",115,"DBC2022"]
["S119 E05",9,"Witte Koning",115,"DBC2022"]
["S137 E17",348,"Woal Brouwers Krib 868 IPA",115,"DBC2022"]
["S105 E09",346,"Woal Brouwers Krib 875 Stevig Blond",115,"DBC2022"]
["S116 E15",347,"Woal Brouwers Krib 888 Quadrupel",115,"DBC2022"]
["S111 E10",237,"You and IPAssion - NEIPA",115,"DBC2022"]
["S131 E24",114,"You Rock",115,"DBC2022"]
["S122 E05",308,"Zaat op vaat",115,"DBC2022"]
["S130 E10",395,"Zatte Tripel",115,"DBC2022"]
["S111 E16",126,"Zeebonk",115,"DBC2022"]
["S120 E01",54,"Zilver",115,"DBC2022"]
["S133 E18",258,"Zoentje",115,"DBC2022"]
["S102 E05",322,"ZONNEGLOED - Saison",115,"DBC2022"]
["S116 E11",254,"Zuster Agatha",115,"DBC2022"]
["S130 E07",98,"Zwaar Leven",115,"DBC2022"]
["S117 E07",220,"Zware Barrie",115,"DBC2022"]
["S117 E06",533,"Zware Hufter",115,"DBC2022"]
["S131 E14",null,"Zware Jongen",115,"DBC2022"]
["S126 E18",124,"Zwarte Zwaan",115,"DBC2022"]